Workbook

Sheet CAPA

Sheet CLIENTES (hidden)
B1: PREFEITURA MUNICIPAL DE POUSO ALEGRE
B2: PREFEITURA MUNICIPAL DE CACHOEIRA DE MINAS
B3: PREFEITURA MUNICIPAL DE ITAJUBÁ
B4: PREFEITURA MUNICIPAL DE SANTA RITA DO SAPUCAÍ
B5: RYZA
B6: FAPEPE
B7: PREFEITURA MUNICIPAL DE DELFIM MOREIRA
B8: PREFEITURA MUNICIPAL DE PIRANGUINHO

Sheet DADOS
B2: DATA | D2: 2025-04-04
B4: CLIENTE | E4: 1
B6: REVISÃO | D6: R01
B8: PROJETO | D8: AMPLIAÇÃO DO C.E.I.M. MARILISA LOPES DE OLIVEIRA
B10: BDI TIPO 1 | D10: 0.2652
B12: BDI TIPO 2 | D12: -
B14: BANCOS DE DADOS | D14: SINAPI: 02/2025 Minas Gerais SETOP: 10/2024 Minas Gerais SICRO : 10/2024 Minas Gerais SUDECAP: 10/2024 Minas Gerais
B16: RESPONSÁVEL | D16: ALOISIO CAETANO FERREIRA
B18: CREA | D18: CREA - MG 97.132/D
B20: TIPO | D20: PROJETO EXECUTIVO

Sheet ORC
A3: 1000 | D3: A | E3: ADMINISTRAÇÃO DE OBRA | M3: =SUMIF(A:A,D3,M:M) -> 0 | N3: =SUMIF(A:A,D3,N:N) -> 0
D4: A.B | M4: =IFERROR(SUMIFS(M:M,A:A,LEFT(D4,SEARCH(".",D4)-1),B:B,RIGHT(D4,LEN(D4)-SEARCH(".",D4))),"") -> 0 | N4: =IFERROR(SUMIFS(N:N,A:A,LEFT(D4,SEARCH(".",D4)-1),B:B,RIGHT(D4,LEN(D4)-SEARCH(".",D4))),"") -> 0
D5: A.B.C | M5: =IFERROR(SUMIFS(M:M,A:A,LEFT(D5,SEARCH(".",D5)-1),B:B,LEFT(RIGHT(D5,LEN(D5)-SEARCH(".",D5)),SEARCH(".",RIGHT(D5,LEN(D5)-SEARCH(".",D5)))-1),C:C,RIGHT(D5,LEN(D5)-SEARCH(".",D5,SEARCH(".",D5)+1))),"") -> 0 | N5: =IFERROR(SUMIFS(N:N,A:A,LEFT(D5,SEARCH(".",D5)-1),B:B,LEFT(RIGHT(D5,LEN(D5)-SEARCH(".",D5)),SEARCH(".",RIGHT(D5,LEN(D5)-SEARCH(".",D5)))-1),C:C,RIGHT(D5,LEN(D5)-SEARCH(".",D5,SEARCH(".",D5)+1))),"") -> 0
A6: =IFERROR(LEFT(D6,SEARCH(".",D6)-1),"") -> a | B6: =IFERROR(LEFT(RIGHT(D6,LEN(D6)-SEARCH(".",D6)),SEARCH(".",RIGHT(D6,LEN(D6)-SEARCH(".",D6)))-1),"") -> a/a | C6: =IFERROR(IF(LEN(D6)-LEN(SUBSTITUTE(D6,".",""))<>3,"",MID(D6,SEARCH(".",D6,SEARCH(".",D6)+1)+1,LEN(D6)-SEARCH(".",D6,SEARCH(".",D6)+1)-(LEN(D6)-(SEARCH(".",D6,SEARCH(".",D6,SEARCH(".",D6)+1)+1)-1)))),"") ->  | D6: a.a/a.a.a/a.a.a.a | E6: =IF($G6="SINAPI",VLOOKUP($F6,DADOS_SINAPI,2,0),IF(G6="SETOP",VLOOKUP($F6,DADOS_SETOP,2,0),IF(G6="CPU",VLOOKUP($F6,DADOS_COMPOSICAO,2,0),IF(G6="SICRO",VLOOKUP($F6,DADOS_SICRO,2,0),IF(G6="SUDECAP",VLOOKUP(F6,DADOS_SUDECAP,2,0),IF(G6="COTAÇÃO",VLOOKUP($F6,DADOS_COTACAO,2,0),"")))))) ->  | H6: =IF(G6="SINAPI",VLOOKUP($F6,DADOS_SINAPI,3,0),IF(G6="SETOP",VLOOKUP($F6,DADOS_SETOP,3,0),IF(G6="CPU",VLOOKUP($F6,DADOS_COMPOSICAO,10,0),IF(G6="SICRO",VLOOKUP($F6,DADOS_SICRO,3,0),IF(G6="SUDECAP",VLOOKUP(F6,DADOS_SUDECAP,3,0),IF(G6="COTAÇÃO",VLOOKUP($F6,DADOS_COTACAO,9,0),"")))))) ->  | J6: =TRUNC(IF(G6="SINAPI",VLOOKUP($F6,DADOS_SINAPI,4,0),IF(G6="SETOP",VLOOKUP($F6,DADOS_SETOP,4,0),IF(G6="CPU",VLOOKUP($F6,DADOS_COMPOSICAO,13,0),IF(G6="SICRO",VLOOKUP($F6,DADOS_SICRO,4,0),IF(G6="SUDECAP",VLOOKUP(F6,DADOS_SUDECAP,4,0),IF(G6="COTAÇÃO",VLOOKUP(F6,DADOS_COTACAO,12,0),"")))))),2) ->  | K6: BDI 1 | L6: =TRUNC(J6*(1+$N$17),2) ->  | M6: =IFERROR(TRUNC(I6*J6,2),"") ->  | N6: =IFERROR(TRUNC(L6*I6,2),"") -> 
A7: =IFERROR(LEFT(D7,SEARCH(".",D7)-1),"") -> a | B7: =IFERROR(LEFT(RIGHT(D7,LEN(D7)-SEARCH(".",D7)),SEARCH(".",RIGHT(D7,LEN(D7)-SEARCH(".",D7)))-1),"") -> a/a | C7: =IFERROR(IF(LEN(D7)-LEN(SUBSTITUTE(D7,".",""))<>3,"",MID(D7,SEARCH(".",D7,SEARCH(".",D7)+1)+1,LEN(D7)-SEARCH(".",D7,SEARCH(".",D7)+1)-(LEN(D7)-(SEARCH(".",D7,SEARCH(".",D7,SEARCH(".",D7)+1)+1)-1)))),"") ->  | D7: a.a/a.a.a/a.a.a.a | E7: =VLOOKUP($F7,DADOS_COTACAO,2,0) ->  | G7: COTAÇÃO | H7: =VLOOKUP($F7,DADOS_COTACAO,9,0) ->  | J7: =TRUNC(VLOOKUP($F7,DADOS_COTACAO,12,0),2) ->  | K7: BDI 2 | L7: =TRUNC(J7*(1+$N$18),2) ->  | M7: =IFERROR(TRUNC(I7*J7,2),"") ->  | N7: =IFERROR(TRUNC(L7*I7,2),"") -> 
A8: 2000
E11: PLANILHA ORÇAMENTÁRIA | M11: Revisão: | N11: =DADOS!D6 -> R01 | O11: a
M12: Data: | N12: =DADOS!D2 -> 2025-04-04
D13: Projeto: | E13: =DADOS!D8 -> AMPLIAÇÃO DO C.E.I.M. MARILISA LOPES DE OLIVEIRA | M13: Bancos:
D14: Responsável: | F14: Cliente: | M14: =DADOS!D14 -> SINAPI: 02/2025 Minas Gerais SETOP: 10/2024 Minas Gerais SICRO : 10/2024 Minas Gerais SUDECAP: 10/2024 Minas Gerais
M17: BDI 1: | N17: =DADOS!D10 -> 0.2652
M18: BDI 2: | N18: =DADOS!D12 -> -
D20: =E11&" DE "&DADOS!D20&" - "&E13 -> PLANILHA ORÇAMENTÁRIA DE PROJETO EXECUTIVO - AMPLIAÇÃO DO C.E.I.M. MARILISA LOPES DE OLIVEIRA
D22: Item | E22: Descrição | F22: Código | G22: Banco | H22: Unidade | I22: Quantidade | J22: Valor Unitário | K22: BDI | L22: Valor Unit. com BDI | M22: Total | N22: Total com BDI
M23: =ROUND(I23*J23,2) -> 0 | N23: =ROUND(L23*I23,2) -> 0
A24: 1000 | D24: 1 | E24: CANTEIRO DE OBRAS | M24: =SUMIF(A:A,D24,M:M) -> 52406.8 | N24: =SUMIF(A:A,D24,N:N) -> 66300.15
A25: =IFERROR(LEFT(D25,SEARCH(".",D25)-1),"") -> 1 | B25: =IFERROR(LEFT(RIGHT(D25,LEN(D25)-SEARCH(".",D25)),SEARCH(".",RIGHT(D25,LEN(D25)-SEARCH(".",D25)))-1),"") ->  | C25: =IFERROR(IF(LEN(D25)-LEN(SUBSTITUTE(D25,".",""))<>3,"",MID(D25,SEARCH(".",D25,SEARCH(".",D25)+1)+1,LEN(D25)-SEARCH(".",D25,SEARCH(".",D25)+1)-(LEN(D25)-(SEARCH(".",D25,SEARCH(".",D25,SEARCH(".",D25)+1)+1)-1)))),"") ->  | D25: 1.1 | E25: =IF($G25="SINAPI",VLOOKUP($F25,DADOS_SINAPI,2,0),IF(G25="SETOP",VLOOKUP($F25,DADOS_SETOP,2,0),IF(G25="CPU",VLOOKUP($F25,DADOS_COMPOSICAO,2,0),IF(G25="SICRO",VLOOKUP($F25,DADOS_SICRO,2,0),IF(G25="SUDECAP",VLOOKUP(F25,DADOS_SUDECAP,2,0),IF(G25="COTAÇÃO",VLOOKUP($F25,DADOS_COTACAO,2,0),"")))))) -> LOCAÇÃO DE CONTAINER COM ISOLAMENTO TÉRMICO, TIPO 3, PARA DEPÓSITO/FERRAMENTARIA DE OBRA, COM MEDIDAS REFERENCIAIS DE (6) METROS COMPRIMENTO, (2,3) METROS LARGURA E (2,5) METROS ALTURA ÚTIL INTERNA, INCLUSIVE LIGAÇÕES ELÉTRICAS INTERNAS, EXCLUSIVE MOBILIZAÇÃO/DESMOBILIZAÇÃO E LIGAÇÕES PROVISÓRIAS EXTERNAS | F25: ED-16350 | G25: SETOP | H25: =IF(G25="SINAPI",VLOOKUP($F25,DADOS_SINAPI,3,0),IF(G25="SETOP",VLOOKUP($F25,DADOS_SETOP,3,0),IF(G25="CPU",VLOOKUP($F25,DADOS_COMPOSICAO,10,0),IF(G25="SICRO",VLOOKUP($F25,DADOS_SICRO,3,0),IF(G25="SUDECAP",VLOOKUP(F25,DADOS_SUDECAP,3,0),IF(G25="COTAÇÃO",VLOOKUP($F25,DADOS_COTACAO,9,0),"")))))) -> mês | I25: =F28 -> 8 | J25: =TRUNC(IF(G25="SINAPI",VLOOKUP($F25,DADOS_SINAPI,4,0),IF(G25="SETOP",VLOOKUP($F25,DADOS_SETOP,4,0),IF(G25="CPU",VLOOKUP($F25,DADOS_COMPOSICAO,13,0),IF(G25="SICRO",VLOOKUP($F25,DADOS_SICRO,4,0),IF(G25="SUDECAP",VLOOKUP(F25,DADOS_SUDECAP,4,0),IF(G25="COTAÇÃO",VLOOKUP(F25,DADOS_COTACAO,12,0),"")))))),2) -> 802.02 | K25: BDI 1 | L25: =TRUNC(J25*(1+$N$17),2) -> 1014.71 | M25: =IFERROR(TRUNC(I25*J25,2),"") -> 6416.16 | N25: =IFERROR(TRUNC(L25*I25,2),"") -> 8117.68
A26: 2000
A27: 2000 | E27: Quantidade | F27: 8 | G27: mês
A28: 2000 | E28: Total | F28: =F27 -> 8 | G28: mês
A29: 2000
A30: =IFERROR(LEFT(D30,SEARCH(".",D30)-1),"") -> 1 | B30: =IFERROR(LEFT(RIGHT(D30,LEN(D30)-SEARCH(".",D30)),SEARCH(".",RIGHT(D30,LEN(D30)-SEARCH(".",D30)))-1),"") ->  | C30: =IFERROR(IF(LEN(D30)-LEN(SUBSTITUTE(D30,".",""))<>3,"",MID(D30,SEARCH(".",D30,SEARCH(".",D30)+1)+1,LEN(D30)-SEARCH(".",D30,SEARCH(".",D30)+1)-(LEN(D30)-(SEARCH(".",D30,SEARCH(".",D30,SEARCH(".",D30)+1)+1)-1)))),"") ->  | D30: 1.2 | E30: =IF($G30="SINAPI",VLOOKUP($F30,DADOS_SINAPI,2,0),IF(G30="SETOP",VLOOKUP($F30,DADOS_SETOP,2,0),IF(G30="CPU",VLOOKUP($F30,DADOS_COMPOSICAO,2,0),IF(G30="SICRO",VLOOKUP($F30,DADOS_SICRO,2,0),IF(G30="SUDECAP",VLOOKUP(F30,DADOS_SUDECAP,2,0),IF(G30="COTAÇÃO",VLOOKUP($F30,DADOS_COTACAO,2,0),"")))))) -> LIGAÇÕES PROVISÓRIAS PARA CONTAINER TIPO 3 (CORRESPONDENTE AO CÓDIGO ED-16350) | F30: ED-16358 | G30: SETOP | H30: =IF(G30="SINAPI",VLOOKUP($F30,DADOS_SINAPI,3,0),IF(G30="SETOP",VLOOKUP($F30,DADOS_SETOP,3,0),IF(G30="CPU",VLOOKUP($F30,DADOS_COMPOSICAO,10,0),IF(G30="SICRO",VLOOKUP($F30,DADOS_SICRO,3,0),IF(G30="SUDECAP",VLOOKUP(F30,DADOS_SUDECAP,3,0),IF(G30="COTAÇÃO",VLOOKUP($F30,DADOS_COTACAO,9,0),"")))))) -> un | I30: =F33 -> 1 | J30: =TRUNC(IF(G30="SINAPI",VLOOKUP($F30,DADOS_SINAPI,4,0),IF(G30="SETOP",VLOOKUP($F30,DADOS_SETOP,4,0),IF(G30="CPU",VLOOKUP($F30,DADOS_COMPOSICAO,13,0),IF(G30="SICRO",VLOOKUP($F30,DADOS_SICRO,4,0),IF(G30="SUDECAP",VLOOKUP(F30,DADOS_SUDECAP,4,0),IF(G30="COTAÇÃO",VLOOKUP(F30,DADOS_COTACAO,12,0),"")))))),2) -> 299.27 | K30: BDI 1 | L30: =TRUNC(J30*(1+$N$17),2) -> 378.63 | M30: =IFERROR(TRUNC(I30*J30,2),"") -> 299.27 | N30: =IFERROR(TRUNC(L30*I30,2),"") -> 378.63
A31: 2000
A32: 2000 | E32: Quantidade | F32: 1 | G32: un
A33: 2000 | E33: Total | F33: =F32 -> 1 | G33: un
A34: 2000
A35: =IFERROR(LEFT(D35,SEARCH(".",D35)-1),"") -> 1 | B35: =IFERROR(LEFT(RIGHT(D35,LEN(D35)-SEARCH(".",D35)),SEARCH(".",RIGHT(D35,LEN(D35)-SEARCH(".",D35)))-1),"") ->  | C35: =IFERROR(IF(LEN(D35)-LEN(SUBSTITUTE(D35,".",""))<>3,"",MID(D35,SEARCH(".",D35,SEARCH(".",D35)+1)+1,LEN(D35)-SEARCH(".",D35,SEARCH(".",D35)+1)-(LEN(D35)-(SEARCH(".",D35,SEARCH(".",D35,SEARCH(".",D35)+1)+1)-1)))),"") ->  | D35: 1.3 | E35: =IF($G35="SINAPI",VLOOKUP($F35,DADOS_SINAPI,2,0),IF(G35="SETOP",VLOOKUP($F35,DADOS_SETOP,2,0),IF(G35="CPU",VLOOKUP($F35,DADOS_COMPOSICAO,2,0),IF(G35="SICRO",VLOOKUP($F35,DADOS_SICRO,2,0),IF(G35="SUDECAP",VLOOKUP(F35,DADOS_SUDECAP,2,0),IF(G35="COTAÇÃO",VLOOKUP($F35,DADOS_COTACAO,2,0),"")))))) -> MOBILIZAÇÃO E DESMOBILIZAÇÃO DE CONTAINER, INCLUSIVE CARGA, DESCARGA E TRANSPORTE EM CAMINHÃO CARROCERIA COM GUINDAUTO (MUNCK), EXCLUSIVE LOCAÇÃO DO CONTAINER | F35: ED-50137 | G35: SETOP | H35: =IF(G35="SINAPI",VLOOKUP($F35,DADOS_SINAPI,3,0),IF(G35="SETOP",VLOOKUP($F35,DADOS_SETOP,3,0),IF(G35="CPU",VLOOKUP($F35,DADOS_COMPOSICAO,10,0),IF(G35="SICRO",VLOOKUP($F35,DADOS_SICRO,3,0),IF(G35="SUDECAP",VLOOKUP(F35,DADOS_SUDECAP,3,0),IF(G35="COTAÇÃO",VLOOKUP($F35,DADOS_COTACAO,9,0),"")))))) -> un | I35: =F38 -> 1 | J35: =TRUNC(IF(G35="SINAPI",VLOOKUP($F35,DADOS_SINAPI,4,0),IF(G35="SETOP",VLOOKUP($F35,DADOS_SETOP,4,0),IF(G35="CPU",VLOOKUP($F35,DADOS_COMPOSICAO,13,0),IF(G35="SICRO",VLOOKUP($F35,DADOS_SICRO,4,0),IF(G35="SUDECAP",VLOOKUP(F35,DADOS_SUDECAP,4,0),IF(G35="COTAÇÃO",VLOOKUP(F35,DADOS_COTACAO,12,0),"")))))),2) -> 1534.32 | K35: BDI 1 | L35: =TRUNC(J35*(1+$N$17),2) -> 1941.22 | M35: =IFERROR(TRUNC(I35*J35,2),"") -> 1534.32 | N35: =IFERROR(TRUNC(L35*I35,2),"") -> 1941.22
A36: 2000
A37: 2000 | E37: Quantidade | F37: 1 | G37: un
A38: 2000 | E38: Total | F38: =F37 -> 1 | G38: un
A39: 2000
A40: =IFERROR(LEFT(D40,SEARCH(".",D40)-1),"") -> 1 | B40: =IFERROR(LEFT(RIGHT(D40,LEN(D40)-SEARCH(".",D40)),SEARCH(".",RIGHT(D40,LEN(D40)-SEARCH(".",D40)))-1),"") ->  | C40: =IFERROR(IF(LEN(D40)-LEN(SUBSTITUTE(D40,".",""))<>3,"",MID(D40,SEARCH(".",D40,SEARCH(".",D40)+1)+1,LEN(D40)-SEARCH(".",D40,SEARCH(".",D40)+1)-(LEN(D40)-(SEARCH(".",D40,SEARCH(".",D40,SEARCH(".",D40)+1)+1)-1)))),"") ->  | D40: 1.4 | E40: =IF($G40="SINAPI",VLOOKUP($F40,DADOS_SINAPI,2,0),IF(G40="SETOP",VLOOKUP($F40,DADOS_SETOP,2,0),IF(G40="CPU",VLOOKUP($F40,DADOS_COMPOSICAO,2,0),IF(G40="SICRO",VLOOKUP($F40,DADOS_SICRO,2,0),IF(G40="SUDECAP",VLOOKUP(F40,DADOS_SUDECAP,2,0),IF(G40="COTAÇÃO",VLOOKUP($F40,DADOS_COTACAO,2,0),"")))))) -> LOCAÇÃO DE BANHEIRO QUÍMICO, DIMENSÃO (110X120X230)CM, LINHA PADRÃO, CONTENDO UMA (1) PIA/HIGIENIZADOR DE MÃOS, INCLUSIVE MANUTENÇÃO E MOBILIZAÇÃO/DESMOBILIZAÇÃO | F40: ED-50155 | G40: SETOP | H40: =IF(G40="SINAPI",VLOOKUP($F40,DADOS_SINAPI,3,0),IF(G40="SETOP",VLOOKUP($F40,DADOS_SETOP,3,0),IF(G40="CPU",VLOOKUP($F40,DADOS_COMPOSICAO,10,0),IF(G40="SICRO",VLOOKUP($F40,DADOS_SICRO,3,0),IF(G40="SUDECAP",VLOOKUP(F40,DADOS_SUDECAP,3,0),IF(G40="COTAÇÃO",VLOOKUP($F40,DADOS_COTACAO,9,0),"")))))) -> mês | I40: =F44 -> 16 | J40: =TRUNC(IF(G40="SINAPI",VLOOKUP($F40,DADOS_SINAPI,4,0),IF(G40="SETOP",VLOOKUP($F40,DADOS_SETOP,4,0),IF(G40="CPU",VLOOKUP($F40,DADOS_COMPOSICAO,13,0),IF(G40="SICRO",VLOOKUP($F40,DADOS_SICRO,4,0),IF(G40="SUDECAP",VLOOKUP(F40,DADOS_SUDECAP,4,0),IF(G40="COTAÇÃO",VLOOKUP(F40,DADOS_COTACAO,12,0),"")))))),2) -> 900 | K40: BDI 1 | L40: =TRUNC(J40*(1+$N$17),2) -> 1138.68 | M40: =IFERROR(TRUNC(I40*J40,2),"") -> 14400 | N40: =IFERROR(TRUNC(L40*I40,2),"") -> 18218.88
A41: 2000
A42: 2000 | E42: Quantidade de banheiros | F42: 2 | G42: un
A43: 2000 | E43: Tempo de Utilização | F43: 8 | G43: mês
A44: 2000 | E44: Total | F44: =F42*F43 -> 16 | G44: mês
A45: 2000
A46: =IFERROR(LEFT(D46,SEARCH(".",D46)-1),"") -> 1 | B46: =IFERROR(LEFT(RIGHT(D46,LEN(D46)-SEARCH(".",D46)),SEARCH(".",RIGHT(D46,LEN(D46)-SEARCH(".",D46)))-1),"") ->  | C46: =IFERROR(IF(LEN(D46)-LEN(SUBSTITUTE(D46,".",""))<>3,"",MID(D46,SEARCH(".",D46,SEARCH(".",D46)+1)+1,LEN(D46)-SEARCH(".",D46,SEARCH(".",D46)+1)-(LEN(D46)-(SEARCH(".",D46,SEARCH(".",D46,SEARCH(".",D46)+1)+1)-1)))),"") ->  | D46: 1.5 | E46: =IF($G46="SINAPI",VLOOKUP($F46,DADOS_SINAPI,2,0),IF(G46="SETOP",VLOOKUP($F46,DADOS_SETOP,2,0),IF(G46="CPU",VLOOKUP($F46,DADOS_COMPOSICAO,2,0),IF(G46="SICRO",VLOOKUP($F46,DADOS_SICRO,2,0),IF(G46="SUDECAP",VLOOKUP(F46,DADOS_SUDECAP,2,0),IF(G46="COTAÇÃO",VLOOKUP($F46,DADOS_COTACAO,2,0),"")))))) -> TAPUME FIXO DE PROTEÇÃO PARA FECHAMENTO DE OBRA EM TELHA METÁLICA GALVANIZADA, TIPO TRAPEZOIDAL, ESP. 0,5MM, COM MÓDULO NA DIMENSÃO DE (300X220)CM, COM REAPROVEITAMENTO, EXCLUSIVE PINTURA ESMALTE, INCLUSIVE PONTALETE E FIXAÇÃO | F46: ED-29823 | G46: SETOP | H46: =IF(G46="SINAPI",VLOOKUP($F46,DADOS_SINAPI,3,0),IF(G46="SETOP",VLOOKUP($F46,DADOS_SETOP,3,0),IF(G46="CPU",VLOOKUP($F46,DADOS_COMPOSICAO,10,0),IF(G46="SICRO",VLOOKUP($F46,DADOS_SICRO,3,0),IF(G46="SUDECAP",VLOOKUP(F46,DADOS_SUDECAP,3,0),IF(G46="COTAÇÃO",VLOOKUP($F46,DADOS_COTACAO,9,0),"")))))) -> m2 | I46: =F52 -> 463.65 | J46: =TRUNC(IF(G46="SINAPI",VLOOKUP($F46,DADOS_SINAPI,4,0),IF(G46="SETOP",VLOOKUP($F46,DADOS_SETOP,4,0),IF(G46="CPU",VLOOKUP($F46,DADOS_COMPOSICAO,13,0),IF(G46="SICRO",VLOOKUP($F46,DADOS_SICRO,4,0),IF(G46="SUDECAP",VLOOKUP(F46,DADOS_SUDECAP,4,0),IF(G46="COTAÇÃO",VLOOKUP(F46,DADOS_COTACAO,12,0),"")))))),2) -> 61.38 | K46: BDI 1 | L46: =TRUNC(J46*(1+$N$17),2) -> 77.65 | M46: =IFERROR(TRUNC(I46*J46,2),"") -> 28458.83 | N46: =IFERROR(TRUNC(L46*I46,2),"") -> 36002.42
A47: 2000
A48: 2000 | E48: Salas de Aulas | F48: =66.8*2.2 -> 146.96 | G48: m²
A49: 2000 | E49: Cozinha | F49: =63.55*2.2 -> 139.81 | G49: m²
A50: 2000 | E50: Banheiros/DML | F50: =50.4*2.2 -> 110.88 | G50: m²
A51: 2000 | E51: Reservatório | F51: =30*2.2 -> 66 | G51: m²
A52: 2000 | E52: Total | F52: =SUM(F48:F51) -> 463.65 | G52: m²
A53: 2000
A54: =IFERROR(LEFT(D54,SEARCH(".",D54)-1),"") -> 1 | B54: =IFERROR(LEFT(RIGHT(D54,LEN(D54)-SEARCH(".",D54)),SEARCH(".",RIGHT(D54,LEN(D54)-SEARCH(".",D54)))-1),"") ->  | C54: =IFERROR(IF(LEN(D54)-LEN(SUBSTITUTE(D54,".",""))<>3,"",MID(D54,SEARCH(".",D54,SEARCH(".",D54)+1)+1,LEN(D54)-SEARCH(".",D54,SEARCH(".",D54)+1)-(LEN(D54)-(SEARCH(".",D54,SEARCH(".",D54,SEARCH(".",D54)+1)+1)-1)))),"") ->  | D54: 1.6 | E54: =IF($G54="SINAPI",VLOOKUP($F54,DADOS_SINAPI,2,0),IF(G54="SETOP",VLOOKUP($F54,DADOS_SETOP,2,0),IF(G54="CPU",VLOOKUP($F54,DADOS_COMPOSICAO,2,0),IF(G54="SICRO",VLOOKUP($F54,DADOS_SICRO,2,0),IF(G54="SUDECAP",VLOOKUP(F54,DADOS_SUDECAP,2,0),IF(G54="COTAÇÃO",VLOOKUP($F54,DADOS_COTACAO,2,0),"")))))) -> REMOÇÃO DE TAPUME/ CHAPAS METÁLICAS E DE MADEIRA, DE FORMA MANUAL, SEM REAPROVEITAMENTO. AF_09/2023 | F54: 97637 | G54: SINAPI | H54: =IF(G54="SINAPI",VLOOKUP($F54,DADOS_SINAPI,3,0),IF(G54="SETOP",VLOOKUP($F54,DADOS_SETOP,3,0),IF(G54="CPU",VLOOKUP($F54,DADOS_COMPOSICAO,10,0),IF(G54="SICRO",VLOOKUP($F54,DADOS_SICRO,3,0),IF(G54="SUDECAP",VLOOKUP(F54,DADOS_SUDECAP,3,0),IF(G54="COTAÇÃO",VLOOKUP($F54,DADOS_COTACAO,9,0),"")))))) -> M2 | I54: =F60 -> 463.65 | J54: =TRUNC(IF(G54="SINAPI",VLOOKUP($F54,DADOS_SINAPI,4,0),IF(G54="SETOP",VLOOKUP($F54,DADOS_SETOP,4,0),IF(G54="CPU",VLOOKUP($F54,DADOS_COMPOSICAO,13,0),IF(G54="SICRO",VLOOKUP($F54,DADOS_SICRO,4,0),IF(G54="SUDECAP",VLOOKUP(F54,DADOS_SUDECAP,4,0),IF(G54="COTAÇÃO",VLOOKUP(F54,DADOS_COTACAO,12,0),"")))))),2) -> 2.8 | K54: BDI 1 | L54: =TRUNC(J54*(1+$N$17),2) -> 3.54 | M54: =IFERROR(TRUNC(I54*J54,2),"") -> 1298.22 | N54: =IFERROR(TRUNC(L54*I54,2),"") -> 1641.32
A55: 2000
A56: 2000 | E56: Salas de Aulas | F56: =66.8*2.2 -> 146.96 | G56: m²
A57: 2000 | E57: Cozinha | F57: =63.55*2.2 -> 139.81 | G57: m²
A58: 2000 | E58: Banheiros/DML | F58: =50.4*2.2 -> 110.88 | G58: m²
A59: 2000 | E59: Reservatório | F59: =30*2.2 -> 66 | G59: m²
A60: 2000 | E60: Total | F60: =SUM(F56:F59) -> 463.65 | G60: m²
A61: 2000
A62: 1000 | D62: 2 | E62: SERVIÇOS PRELIMINARES | M62: =SUMIF(A:A,D62,M:M) -> 15307.8 | N62: =SUMIF(A:A,D62,N:N) -> 19366.45
A63: =IFERROR(LEFT(D63,SEARCH(".",D63)-1),"") -> 2 | B63: =IFERROR(LEFT(RIGHT(D63,LEN(D63)-SEARCH(".",D63)),SEARCH(".",RIGHT(D63,LEN(D63)-SEARCH(".",D63)))-1),"") ->  | C63: =IFERROR(IF(LEN(D63)-LEN(SUBSTITUTE(D63,".",""))<>3,"",MID(D63,SEARCH(".",D63,SEARCH(".",D63)+1)+1,LEN(D63)-SEARCH(".",D63,SEARCH(".",D63)+1)-(LEN(D63)-(SEARCH(".",D63,SEARCH(".",D63,SEARCH(".",D63)+1)+1)-1)))),"") ->  | D63: 2.1 | E63: =IF($G63="SINAPI",VLOOKUP($F63,DADOS_SINAPI,2,0),IF(G63="SETOP",VLOOKUP($F63,DADOS_SETOP,2,0),IF(G63="CPU",VLOOKUP($F63,DADOS_COMPOSICAO,2,0),IF(G63="SICRO",VLOOKUP($F63,DADOS_SICRO,2,0),IF(G63="SUDECAP",VLOOKUP(F63,DADOS_SUDECAP,2,0),IF(G63="COTAÇÃO",VLOOKUP($F63,DADOS_COTACAO,2,0),"")))))) -> FORNECIMENTO E COLOCAÇÃO DE PLACA DE OBRA EM CHAPA GALVANIZADA #26, ESP. 0,45MM, DIMENSÃO (3X1,5)M, PLOTADA COM ADESIVO VINÍLICO, AFIXADA COM REBITES 4,8X40MM, EM ESTRUTURA METÁLICA DE METALON 20X20MM, ESP. 1,25MM, INCLUSIVE SUPORTE EM EUCALIPTO AUTOCLAVADO PINTADO COM TINTA PVA DUAS (2) DEMÃOS | F63: ED-28427 | G63: SETOP | H63: =IF(G63="SINAPI",VLOOKUP($F63,DADOS_SINAPI,3,0),IF(G63="SETOP",VLOOKUP($F63,DADOS_SETOP,3,0),IF(G63="CPU",VLOOKUP($F63,DADOS_COMPOSICAO,10,0),IF(G63="SICRO",VLOOKUP($F63,DADOS_SICRO,3,0),IF(G63="SUDECAP",VLOOKUP(F63,DADOS_SUDECAP,3,0),IF(G63="COTAÇÃO",VLOOKUP($F63,DADOS_COTACAO,9,0),"")))))) -> un | I63: =F66 -> 1 | J63: =TRUNC(IF(G63="SINAPI",VLOOKUP($F63,DADOS_SINAPI,4,0),IF(G63="SETOP",VLOOKUP($F63,DADOS_SETOP,4,0),IF(G63="CPU",VLOOKUP($F63,DADOS_COMPOSICAO,13,0),IF(G63="SICRO",VLOOKUP($F63,DADOS_SICRO,4,0),IF(G63="SUDECAP",VLOOKUP(F63,DADOS_SUDECAP,4,0),IF(G63="COTAÇÃO",VLOOKUP(F63,DADOS_COTACAO,12,0),"")))))),2) -> 1179.54 | K63: BDI 1 | L63: =TRUNC(J63*(1+$N$17),2) -> 1492.35 | M63: =IFERROR(TRUNC(I63*J63,2),"") -> 1179.54 | N63: =IFERROR(TRUNC(L63*I63,2),"") -> 1492.35
A64: 2000
A65: 2000 | E65: Quantidade | F65: 1 | G65: un
A66: 2000 | E66: Total | F66: =F65 -> 1 | G66: un
A67: 2000
A68: =IFERROR(LEFT(D68,SEARCH(".",D68)-1),"") -> 2 | B68: =IFERROR(LEFT(RIGHT(D68,LEN(D68)-SEARCH(".",D68)),SEARCH(".",RIGHT(D68,LEN(D68)-SEARCH(".",D68)))-1),"") ->  | C68: =IFERROR(IF(LEN(D68)-LEN(SUBSTITUTE(D68,".",""))<>3,"",MID(D68,SEARCH(".",D68,SEARCH(".",D68)+1)+1,LEN(D68)-SEARCH(".",D68,SEARCH(".",D68)+1)-(LEN(D68)-(SEARCH(".",D68,SEARCH(".",D68,SEARCH(".",D68)+1)+1)-1)))),"") ->  | D68: 2.2 | E68: =IF($G68="SINAPI",VLOOKUP($F68,DADOS_SINAPI,2,0),IF(G68="SETOP",VLOOKUP($F68,DADOS_SETOP,2,0),IF(G68="CPU",VLOOKUP($F68,DADOS_COMPOSICAO,2,0),IF(G68="SICRO",VLOOKUP($F68,DADOS_SICRO,2,0),IF(G68="SUDECAP",VLOOKUP(F68,DADOS_SUDECAP,2,0),IF(G68="COTAÇÃO",VLOOKUP($F68,DADOS_COTACAO,2,0),"")))))) -> LOCAÇÃO CONVENCIONAL DE OBRA, UTILIZANDO GABARITO DE TÁBUAS CORRIDAS PONTALETADAS A CADA 2,00M - 2 UTILIZAÇÕES. AF_03/2024 | F68: 99059 | G68: SINAPI | H68: =IF(G68="SINAPI",VLOOKUP($F68,DADOS_SINAPI,3,0),IF(G68="SETOP",VLOOKUP($F68,DADOS_SETOP,3,0),IF(G68="CPU",VLOOKUP($F68,DADOS_COMPOSICAO,10,0),IF(G68="SICRO",VLOOKUP($F68,DADOS_SICRO,3,0),IF(G68="SUDECAP",VLOOKUP(F68,DADOS_SUDECAP,3,0),IF(G68="COTAÇÃO",VLOOKUP($F68,DADOS_COTACAO,9,0),"")))))) -> M | I68: =F74 -> 202.15 | J68: =TRUNC(IF(G68="SINAPI",VLOOKUP($F68,DADOS_SINAPI,4,0),IF(G68="SETOP",VLOOKUP($F68,DADOS_SETOP,4,0),IF(G68="CPU",VLOOKUP($F68,DADOS_COMPOSICAO,13,0),IF(G68="SICRO",VLOOKUP($F68,DADOS_SICRO,4,0),IF(G68="SUDECAP",VLOOKUP(F68,DADOS_SUDECAP,4,0),IF(G68="COTAÇÃO",VLOOKUP(F68,DADOS_COTACAO,12,0),"")))))),2) -> 69.89 | K68: BDI 1 | L68: =TRUNC(J68*(1+$N$17),2) -> 88.42 | M68: =IFERROR(TRUNC(I68*J68,2),"") -> 14128.26 | N68: =IFERROR(TRUNC(L68*I68,2),"") -> 17874.1
A69: 2000
A70: 2000 | E70: Salas de Aula | F70: 66.8 | G70: m
A71: 2000 | E71: Cozinha | F71: 63.55 | G71: m
A72: 2000 | E72: Banheiros/DML | F72: 50.4 | G72: m
A73: 2000 | E73: Reservatório | F73: 21.4 | G73: m
A74: 2000 | E74: Total | F74: =SUM(F70:F73) -> 202.15 | G74: m
A75: 2000
A76: 1000 | D76: 3 | E76: LIMPEZAS E DEMOLIÇÕES | M76: =SUMIF(A:A,D76,M:M) -> 24103.28 | N76: =SUMIF(A:A,D76,N:N) -> 30488.33
A77: =IFERROR(LEFT(D77,SEARCH(".",D77)-1),"") -> 3 | B77: =IFERROR(LEFT(RIGHT(D77,LEN(D77)-SEARCH(".",D77)),SEARCH(".",RIGHT(D77,LEN(D77)-SEARCH(".",D77)))-1),"") ->  | C77: =IFERROR(IF(LEN(D77)-LEN(SUBSTITUTE(D77,".",""))<>3,"",MID(D77,SEARCH(".",D77,SEARCH(".",D77)+1)+1,LEN(D77)-SEARCH(".",D77,SEARCH(".",D77)+1)-(LEN(D77)-(SEARCH(".",D77,SEARCH(".",D77,SEARCH(".",D77)+1)+1)-1)))),"") ->  | D77: 3.1 | E77: =IF($G77="SINAPI",VLOOKUP($F77,DADOS_SINAPI,2,0),IF(G77="SETOP",VLOOKUP($F77,DADOS_SETOP,2,0),IF(G77="CPU",VLOOKUP($F77,DADOS_COMPOSICAO,2,0),IF(G77="SICRO",VLOOKUP($F77,DADOS_SICRO,2,0),IF(G77="SUDECAP",VLOOKUP(F77,DADOS_SUDECAP,2,0),IF(G77="COTAÇÃO",VLOOKUP($F77,DADOS_COTACAO,2,0),"")))))) -> CORTE RASO E RECORTE DE ÁRVORE COM DIÂMETRO DE TRONCO MAIOR OU IGUAL A 0,20 M E MENOR QUE 0,40 M. AF_03/2024 | F77: 98529 | G77: SINAPI | H77: =IF(G77="SINAPI",VLOOKUP($F77,DADOS_SINAPI,3,0),IF(G77="SETOP",VLOOKUP($F77,DADOS_SETOP,3,0),IF(G77="CPU",VLOOKUP($F77,DADOS_COMPOSICAO,10,0),IF(G77="SICRO",VLOOKUP($F77,DADOS_SICRO,3,0),IF(G77="SUDECAP",VLOOKUP(F77,DADOS_SUDECAP,3,0),IF(G77="COTAÇÃO",VLOOKUP($F77,DADOS_COTACAO,9,0),"")))))) -> UN | I77: =F80 -> 2 | J77: =TRUNC(IF(G77="SINAPI",VLOOKUP($F77,DADOS_SINAPI,4,0),IF(G77="SETOP",VLOOKUP($F77,DADOS_SETOP,4,0),IF(G77="CPU",VLOOKUP($F77,DADOS_COMPOSICAO,13,0),IF(G77="SICRO",VLOOKUP($F77,DADOS_SICRO,4,0),IF(G77="SUDECAP",VLOOKUP(F77,DADOS_SUDECAP,4,0),IF(G77="COTAÇÃO",VLOOKUP(F77,DADOS_COTACAO,12,0),"")))))),2) -> 73.45 | K77: BDI 1 | L77: =TRUNC(J77*(1+$N$17),2) -> 92.92 | M77: =IFERROR(TRUNC(I77*J77,2),"") -> 146.9 | N77: =IFERROR(TRUNC(L77*I77,2),"") -> 185.84
A78: 2000
A79: 2000 | E79: Quantidade | F79: 2 | G79: un
A80: 2000 | E80: Total | F80: =F79 -> 2 | G80: un
A81: 2000
A82: =IFERROR(LEFT(D82,SEARCH(".",D82)-1),"") -> 3 | B82: =IFERROR(LEFT(RIGHT(D82,LEN(D82)-SEARCH(".",D82)),SEARCH(".",RIGHT(D82,LEN(D82)-SEARCH(".",D82)))-1),"") ->  | C82: =IFERROR(IF(LEN(D82)-LEN(SUBSTITUTE(D82,".",""))<>3,"",MID(D82,SEARCH(".",D82,SEARCH(".",D82)+1)+1,LEN(D82)-SEARCH(".",D82,SEARCH(".",D82)+1)-(LEN(D82)-(SEARCH(".",D82,SEARCH(".",D82,SEARCH(".",D82)+1)+1)-1)))),"") ->  | D82: 3.2 | E82: =IF($G82="SINAPI",VLOOKUP($F82,DADOS_SINAPI,2,0),IF(G82="SETOP",VLOOKUP($F82,DADOS_SETOP,2,0),IF(G82="CPU",VLOOKUP($F82,DADOS_COMPOSICAO,2,0),IF(G82="SICRO",VLOOKUP($F82,DADOS_SICRO,2,0),IF(G82="SUDECAP",VLOOKUP(F82,DADOS_SUDECAP,2,0),IF(G82="COTAÇÃO",VLOOKUP($F82,DADOS_COTACAO,2,0),"")))))) -> CORTE RASO E RECORTE DE ÁRVORE COM DIÂMETRO DE TRONCO MAIOR OU IGUAL A 0,40 M E MENOR QUE 0,60 M. AF_03/2024 | F82: 98530 | G82: SINAPI | H82: =IF(G82="SINAPI",VLOOKUP($F82,DADOS_SINAPI,3,0),IF(G82="SETOP",VLOOKUP($F82,DADOS_SETOP,3,0),IF(G82="CPU",VLOOKUP($F82,DADOS_COMPOSICAO,10,0),IF(G82="SICRO",VLOOKUP($F82,DADOS_SICRO,3,0),IF(G82="SUDECAP",VLOOKUP(F82,DADOS_SUDECAP,3,0),IF(G82="COTAÇÃO",VLOOKUP($F82,DADOS_COTACAO,9,0),"")))))) -> UN | I82: =F85 -> 2 | J82: =TRUNC(IF(G82="SINAPI",VLOOKUP($F82,DADOS_SINAPI,4,0),IF(G82="SETOP",VLOOKUP($F82,DADOS_SETOP,4,0),IF(G82="CPU",VLOOKUP($F82,DADOS_COMPOSICAO,13,0),IF(G82="SICRO",VLOOKUP($F82,DADOS_SICRO,4,0),IF(G82="SUDECAP",VLOOKUP(F82,DADOS_SUDECAP,4,0),IF(G82="COTAÇÃO",VLOOKUP(F82,DADOS_COTACAO,12,0),"")))))),2) -> 144.17 | K82: BDI 1 | L82: =TRUNC(J82*(1+$N$17),2) -> 182.4 | M82: =IFERROR(TRUNC(I82*J82,2),"") -> 288.34 | N82: =IFERROR(TRUNC(L82*I82,2),"") -> 364.8
A83: 2000
A84: 2000 | E84: Quantidade | F84: 2 | G84: un
A85: 2000 | E85: Total | F85: =F84 -> 2 | G85: un
A86: 2000
A87: =IFERROR(LEFT(D87,SEARCH(".",D87)-1),"") -> 3 | B87: =IFERROR(LEFT(RIGHT(D87,LEN(D87)-SEARCH(".",D87)),SEARCH(".",RIGHT(D87,LEN(D87)-SEARCH(".",D87)))-1),"") ->  | C87: =IFERROR(IF(LEN(D87)-LEN(SUBSTITUTE(D87,".",""))<>3,"",MID(D87,SEARCH(".",D87,SEARCH(".",D87)+1)+1,LEN(D87)-SEARCH(".",D87,SEARCH(".",D87)+1)-(LEN(D87)-(SEARCH(".",D87,SEARCH(".",D87,SEARCH(".",D87)+1)+1)-1)))),"") ->  | D87: 3.3 | E87: =IF($G87="SINAPI",VLOOKUP($F87,DADOS_SINAPI,2,0),IF(G87="SETOP",VLOOKUP($F87,DADOS_SETOP,2,0),IF(G87="CPU",VLOOKUP($F87,DADOS_COMPOSICAO,2,0),IF(G87="SICRO",VLOOKUP($F87,DADOS_SICRO,2,0),IF(G87="SUDECAP",VLOOKUP(F87,DADOS_SUDECAP,2,0),IF(G87="COTAÇÃO",VLOOKUP($F87,DADOS_COTACAO,2,0),"")))))) -> CORTE RASO E RECORTE DE ÁRVORE COM DIÂMETRO DE TRONCO MAIOR OU IGUAL A 0,60 M. AF_03/2024 | F87: 98531 | G87: SINAPI | H87: =IF(G87="SINAPI",VLOOKUP($F87,DADOS_SINAPI,3,0),IF(G87="SETOP",VLOOKUP($F87,DADOS_SETOP,3,0),IF(G87="CPU",VLOOKUP($F87,DADOS_COMPOSICAO,10,0),IF(G87="SICRO",VLOOKUP($F87,DADOS_SICRO,3,0),IF(G87="SUDECAP",VLOOKUP(F87,DADOS_SUDECAP,3,0),IF(G87="COTAÇÃO",VLOOKUP($F87,DADOS_COTACAO,9,0),"")))))) -> UN | I87: =F90 -> 1 | J87: =TRUNC(IF(G87="SINAPI",VLOOKUP($F87,DADOS_SINAPI,4,0),IF(G87="SETOP",VLOOKUP($F87,DADOS_SETOP,4,0),IF(G87="CPU",VLOOKUP($F87,DADOS_COMPOSICAO,13,0),IF(G87="SICRO",VLOOKUP($F87,DADOS_SICRO,4,0),IF(G87="SUDECAP",VLOOKUP(F87,DADOS_SUDECAP,4,0),IF(G87="COTAÇÃO",VLOOKUP(F87,DADOS_COTACAO,12,0),"")))))),2) -> 386.79 | K87: BDI 1 | L87: =TRUNC(J87*(1+$N$17),2) -> 489.36 | M87: =IFERROR(TRUNC(I87*J87,2),"") -> 386.79 | N87: =IFERROR(TRUNC(L87*I87,2),"") -> 489.36
A88: 2000
A89: 2000 | E89: Quantidade | F89: 1 | G89: un
A90: 2000 | E90: Total | F90: =F89 -> 1 | G90: un
A91: 2000
A92: =IFERROR(LEFT(D92,SEARCH(".",D92)-1),"") -> 3 | B92: =IFERROR(LEFT(RIGHT(D92,LEN(D92)-SEARCH(".",D92)),SEARCH(".",RIGHT(D92,LEN(D92)-SEARCH(".",D92)))-1),"") ->  | C92: =IFERROR(IF(LEN(D92)-LEN(SUBSTITUTE(D92,".",""))<>3,"",MID(D92,SEARCH(".",D92,SEARCH(".",D92)+1)+1,LEN(D92)-SEARCH(".",D92,SEARCH(".",D92)+1)-(LEN(D92)-(SEARCH(".",D92,SEARCH(".",D92,SEARCH(".",D92)+1)+1)-1)))),"") ->  | D92: 3.4 | E92: =IF($G92="SINAPI",VLOOKUP($F92,DADOS_SINAPI,2,0),IF(G92="SETOP",VLOOKUP($F92,DADOS_SETOP,2,0),IF(G92="CPU",VLOOKUP($F92,DADOS_COMPOSICAO,2,0),IF(G92="SICRO",VLOOKUP($F92,DADOS_SICRO,2,0),IF(G92="SUDECAP",VLOOKUP(F92,DADOS_SUDECAP,2,0),IF(G92="COTAÇÃO",VLOOKUP($F92,DADOS_COTACAO,2,0),"")))))) -> REMOÇÃO DE RAÍZES REMANESCENTES DE TRONCO DE ÁRVORE COM DIÂMETRO MAIOR OU IGUAL A 0,20 M E MENOR QUE 0,40 M. AF_03/2024 | F92: 98526 | G92: SINAPI | H92: =IF(G92="SINAPI",VLOOKUP($F92,DADOS_SINAPI,3,0),IF(G92="SETOP",VLOOKUP($F92,DADOS_SETOP,3,0),IF(G92="CPU",VLOOKUP($F92,DADOS_COMPOSICAO,10,0),IF(G92="SICRO",VLOOKUP($F92,DADOS_SICRO,3,0),IF(G92="SUDECAP",VLOOKUP(F92,DADOS_SUDECAP,3,0),IF(G92="COTAÇÃO",VLOOKUP($F92,DADOS_COTACAO,9,0),"")))))) -> UN | I92: =F95 -> 2 | J92: =TRUNC(IF(G92="SINAPI",VLOOKUP($F92,DADOS_SINAPI,4,0),IF(G92="SETOP",VLOOKUP($F92,DADOS_SETOP,4,0),IF(G92="CPU",VLOOKUP($F92,DADOS_COMPOSICAO,13,0),IF(G92="SICRO",VLOOKUP($F92,DADOS_SICRO,4,0),IF(G92="SUDECAP",VLOOKUP(F92,DADOS_SUDECAP,4,0),IF(G92="COTAÇÃO",VLOOKUP(F92,DADOS_COTACAO,12,0),"")))))),2) -> 137.01 | K92: BDI 1 | L92: =TRUNC(J92*(1+$N$17),2) -> 173.34 | M92: =IFERROR(TRUNC(I92*J92,2),"") -> 274.02 | N92: =IFERROR(TRUNC(L92*I92,2),"") -> 346.68
A93: 2000
A94: 2000 | E94: Quantidade | F94: 2 | G94: un
A95: 2000 | E95: Total | F95: =F94 -> 2 | G95: un
A96: 2000
A97: =IFERROR(LEFT(D97,SEARCH(".",D97)-1),"") -> 3 | B97: =IFERROR(LEFT(RIGHT(D97,LEN(D97)-SEARCH(".",D97)),SEARCH(".",RIGHT(D97,LEN(D97)-SEARCH(".",D97)))-1),"") ->  | C97: =IFERROR(IF(LEN(D97)-LEN(SUBSTITUTE(D97,".",""))<>3,"",MID(D97,SEARCH(".",D97,SEARCH(".",D97)+1)+1,LEN(D97)-SEARCH(".",D97,SEARCH(".",D97)+1)-(LEN(D97)-(SEARCH(".",D97,SEARCH(".",D97,SEARCH(".",D97)+1)+1)-1)))),"") ->  | D97: 3.5 | E97: =IF($G97="SINAPI",VLOOKUP($F97,DADOS_SINAPI,2,0),IF(G97="SETOP",VLOOKUP($F97,DADOS_SETOP,2,0),IF(G97="CPU",VLOOKUP($F97,DADOS_COMPOSICAO,2,0),IF(G97="SICRO",VLOOKUP($F97,DADOS_SICRO,2,0),IF(G97="SUDECAP",VLOOKUP(F97,DADOS_SUDECAP,2,0),IF(G97="COTAÇÃO",VLOOKUP($F97,DADOS_COTACAO,2,0),"")))))) -> REMOÇÃO DE RAÍZES REMANESCENTES DE TRONCO DE ÁRVORE COM DIÂMETRO MAIOR OU IGUAL A 0,40 M E MENOR QUE 0,60 M. AF_03/2024 | F97: 98527 | G97: SINAPI | H97: =IF(G97="SINAPI",VLOOKUP($F97,DADOS_SINAPI,3,0),IF(G97="SETOP",VLOOKUP($F97,DADOS_SETOP,3,0),IF(G97="CPU",VLOOKUP($F97,DADOS_COMPOSICAO,10,0),IF(G97="SICRO",VLOOKUP($F97,DADOS_SICRO,3,0),IF(G97="SUDECAP",VLOOKUP(F97,DADOS_SUDECAP,3,0),IF(G97="COTAÇÃO",VLOOKUP($F97,DADOS_COTACAO,9,0),"")))))) -> UN | I97: =F100 -> 2 | J97: =TRUNC(IF(G97="SINAPI",VLOOKUP($F97,DADOS_SINAPI,4,0),IF(G97="SETOP",VLOOKUP($F97,DADOS_SETOP,4,0),IF(G97="CPU",VLOOKUP($F97,DADOS_COMPOSICAO,13,0),IF(G97="SICRO",VLOOKUP($F97,DADOS_SICRO,4,0),IF(G97="SUDECAP",VLOOKUP(F97,DADOS_SUDECAP,4,0),IF(G97="COTAÇÃO",VLOOKUP(F97,DADOS_COTACAO,12,0),"")))))),2) -> 227.38 | K97: BDI 1 | L97: =TRUNC(J97*(1+$N$17),2) -> 287.68 | M97: =IFERROR(TRUNC(I97*J97,2),"") -> 454.76 | N97: =IFERROR(TRUNC(L97*I97,2),"") -> 575.36
A98: 2000
A99: 2000 | E99: Quantidade | F99: 2 | G99: un
A100: 2000 | E100: Total | F100: =F99 -> 2 | G100: un
A101: 2000
A102: =IFERROR(LEFT(D102,SEARCH(".",D102)-1),"") -> 3 | B102: =IFERROR(LEFT(RIGHT(D102,LEN(D102)-SEARCH(".",D102)),SEARCH(".",RIGHT(D102,LEN(D102)-SEARCH(".",D102)))-1),"") ->  | C102: =IFERROR(IF(LEN(D102)-LEN(SUBSTITUTE(D102,".",""))<>3,"",MID(D102,SEARCH(".",D102,SEARCH(".",D102)+1)+1,LEN(D102)-SEARCH(".",D102,SEARCH(".",D102)+1)-(LEN(D102)-(SEARCH(".",D102,SEARCH(".",D102,SEARCH(".",D102)+1)+1)-1)))),"") ->  | D102: 3.6 | E102: =IF($G102="SINAPI",VLOOKUP($F102,DADOS_SINAPI,2,0),IF(G102="SETOP",VLOOKUP($F102,DADOS_SETOP,2,0),IF(G102="CPU",VLOOKUP($F102,DADOS_COMPOSICAO,2,0),IF(G102="SICRO",VLOOKUP($F102,DADOS_SICRO,2,0),IF(G102="SUDECAP",VLOOKUP(F102,DADOS_SUDECAP,2,0),IF(G102="COTAÇÃO",VLOOKUP($F102,DADOS_COTACAO,2,0),"")))))) -> REMOÇÃO DE RAÍZES REMANESCENTES DE TRONCO DE ÁRVORE COM DIÂMETRO MAIOR OU IGUAL A 0,60 M. AF_03/2024 | F102: 98528 | G102: SINAPI | H102: =IF(G102="SINAPI",VLOOKUP($F102,DADOS_SINAPI,3,0),IF(G102="SETOP",VLOOKUP($F102,DADOS_SETOP,3,0),IF(G102="CPU",VLOOKUP($F102,DADOS_COMPOSICAO,10,0),IF(G102="SICRO",VLOOKUP($F102,DADOS_SICRO,3,0),IF(G102="SUDECAP",VLOOKUP(F102,DADOS_SUDECAP,3,0),IF(G102="COTAÇÃO",VLOOKUP($F102,DADOS_COTACAO,9,0),"")))))) -> UN | I102: =F105 -> 1 | J102: =TRUNC(IF(G102="SINAPI",VLOOKUP($F102,DADOS_SINAPI,4,0),IF(G102="SETOP",VLOOKUP($F102,DADOS_SETOP,4,0),IF(G102="CPU",VLOOKUP($F102,DADOS_COMPOSICAO,13,0),IF(G102="SICRO",VLOOKUP($F102,DADOS_SICRO,4,0),IF(G102="SUDECAP",VLOOKUP(F102,DADOS_SUDECAP,4,0),IF(G102="COTAÇÃO",VLOOKUP(F102,DADOS_COTACAO,12,0),"")))))),2) -> 299.7 | K102: BDI 1 | L102: =TRUNC(J102*(1+$N$17),2) -> 379.18 | M102: =IFERROR(TRUNC(I102*J102,2),"") -> 299.7 | N102: =IFERROR(TRUNC(L102*I102,2),"") -> 379.18
A103: 2000
A104: 2000 | E104: Quantidade | F104: 1 | G104: un
A105: 2000 | E105: Total | F105: =F104 -> 1 | G105: un
A106: 2000
A107: =IFERROR(LEFT(D107,SEARCH(".",D107)-1),"") -> 3 | B107: =IFERROR(LEFT(RIGHT(D107,LEN(D107)-SEARCH(".",D107)),SEARCH(".",RIGHT(D107,LEN(D107)-SEARCH(".",D107)))-1),"") ->  | C107: =IFERROR(IF(LEN(D107)-LEN(SUBSTITUTE(D107,".",""))<>3,"",MID(D107,SEARCH(".",D107,SEARCH(".",D107)+1)+1,LEN(D107)-SEARCH(".",D107,SEARCH(".",D107)+1)-(LEN(D107)-(SEARCH(".",D107,SEARCH(".",D107,SEARCH(".",D107)+1)+1)-1)))),"") ->  | D107: 3.7 | E107: =IF($G107="SINAPI",VLOOKUP($F107,DADOS_SINAPI,2,0),IF(G107="SETOP",VLOOKUP($F107,DADOS_SETOP,2,0),IF(G107="CPU",VLOOKUP($F107,DADOS_COMPOSICAO,2,0),IF(G107="SICRO",VLOOKUP($F107,DADOS_SICRO,2,0),IF(G107="SUDECAP",VLOOKUP(F107,DADOS_SUDECAP,2,0),IF(G107="COTAÇÃO",VLOOKUP($F107,DADOS_COTACAO,2,0),"")))))) -> DEMOLIÇÃO MANUAL DE ALVENARIA DE TIJOLO CERÂMICO OU BLOCO DE CONCRETO, INCLUSIVE AFASTAMENTO E EMPILHAMENTO, EXCLUSIVE TRANSPORTE E RETIRADA DO MATERIAL DEMOLIDO | F107: ED-48435 | G107: SETOP | H107: =IF(G107="SINAPI",VLOOKUP($F107,DADOS_SINAPI,3,0),IF(G107="SETOP",VLOOKUP($F107,DADOS_SETOP,3,0),IF(G107="CPU",VLOOKUP($F107,DADOS_COMPOSICAO,10,0),IF(G107="SICRO",VLOOKUP($F107,DADOS_SICRO,3,0),IF(G107="SUDECAP",VLOOKUP(F107,DADOS_SUDECAP,3,0),IF(G107="COTAÇÃO",VLOOKUP($F107,DADOS_COTACAO,9,0),"")))))) -> m3 | I107: =F113 -> 4.8858 | J107: =TRUNC(IF(G107="SINAPI",VLOOKUP($F107,DADOS_SINAPI,4,0),IF(G107="SETOP",VLOOKUP($F107,DADOS_SETOP,4,0),IF(G107="CPU",VLOOKUP($F107,DADOS_COMPOSICAO,13,0),IF(G107="SICRO",VLOOKUP($F107,DADOS_SICRO,4,0),IF(G107="SUDECAP",VLOOKUP(F107,DADOS_SUDECAP,4,0),IF(G107="COTAÇÃO",VLOOKUP(F107,DADOS_COTACAO,12,0),"")))))),2) -> 109.09 | K107: BDI 1 | L107: =TRUNC(J107*(1+$N$17),2) -> 138.02 | M107: =IFERROR(TRUNC(I107*J107,2),"") -> 532.99 | N107: 674.92
A108: 2000
A109: 2000 | E109: Casa da Gás | F109: =0.65*1*0.2 -> 0.13 | G109: m³
A110: 2000 | E110: Canteiro | F110: =4.51*0.15*0.3*4 -> 0.8118 | G110: m³
A111: 2000 | E111: Quiosque | F111: =(2+2+2.2+2+2+2+4)*0.8*0.15 -> 1.944 | G111: m³
A112: 2000 | E112: Muro | F112: =4*2.5*0.2 -> 2 | G112: m³
A113: 2000 | E113: Total | F113: =SUM(F109:F112) -> 4.8858 | G113: m³
A114: 2000
A115: =IFERROR(LEFT(D115,SEARCH(".",D115)-1),"") -> 3 | B115: =IFERROR(LEFT(RIGHT(D115,LEN(D115)-SEARCH(".",D115)),SEARCH(".",RIGHT(D115,LEN(D115)-SEARCH(".",D115)))-1),"") ->  | C115: =IFERROR(IF(LEN(D115)-LEN(SUBSTITUTE(D115,".",""))<>3,"",MID(D115,SEARCH(".",D115,SEARCH(".",D115)+1)+1,LEN(D115)-SEARCH(".",D115,SEARCH(".",D115)+1)-(LEN(D115)-(SEARCH(".",D115,SEARCH(".",D115,SEARCH(".",D115)+1)+1)-1)))),"") ->  | D115: 3.8 | E115: =IF($G115="SINAPI",VLOOKUP($F115,DADOS_SINAPI,2,0),IF(G115="SETOP",VLOOKUP($F115,DADOS_SETOP,2,0),IF(G115="CPU",VLOOKUP($F115,DADOS_COMPOSICAO,2,0),IF(G115="SICRO",VLOOKUP($F115,DADOS_SICRO,2,0),IF(G115="SUDECAP",VLOOKUP(F115,DADOS_SUDECAP,2,0),IF(G115="COTAÇÃO",VLOOKUP($F115,DADOS_COTACAO,2,0),"")))))) -> DEMOLIÇÃO MANUAL DE LAJE DE CONCRETO ARMADO, COM ESPESSURA DE ATÉ 15CM, INCLUSIVE AFASTAMENTO E EMPILHAMENTO, EXCLUSIVE TRANSPORTE E RETIRADA DO MATERIAL DEMOLIDO | F115: ED-48487 | G115: SETOP | H115: =IF(G115="SINAPI",VLOOKUP($F115,DADOS_SINAPI,3,0),IF(G115="SETOP",VLOOKUP($F115,DADOS_SETOP,3,0),IF(G115="CPU",VLOOKUP($F115,DADOS_COMPOSICAO,10,0),IF(G115="SICRO",VLOOKUP($F115,DADOS_SICRO,3,0),IF(G115="SUDECAP",VLOOKUP(F115,DADOS_SUDECAP,3,0),IF(G115="COTAÇÃO",VLOOKUP($F115,DADOS_COTACAO,9,0),"")))))) -> m2 | I115: =F118 -> 0.64 | J115: =TRUNC(IF(G115="SINAPI",VLOOKUP($F115,DADOS_SINAPI,4,0),IF(G115="SETOP",VLOOKUP($F115,DADOS_SETOP,4,0),IF(G115="CPU",VLOOKUP($F115,DADOS_COMPOSICAO,13,0),IF(G115="SICRO",VLOOKUP($F115,DADOS_SICRO,4,0),IF(G115="SUDECAP",VLOOKUP(F115,DADOS_SUDECAP,4,0),IF(G115="COTAÇÃO",VLOOKUP(F115,DADOS_COTACAO,12,0),"")))))),2) -> 43.64 | K115: BDI 1 | L115: =TRUNC(J115*(1+$N$17),2) -> 55.21 | M115: =IFERROR(TRUNC(I115*J115,2),"") -> 27.92 | N115: =IFERROR(TRUNC(L115*I115,2),"") -> 35.33
A116: 2000
A117: 2000 | E117: Casa da Gás | F117: 0.64 | G117: m²
A118: 2000 | E118: Total | F118: =F117 -> 0.64 | G118: m²
A119: 2000
A120: =IFERROR(LEFT(D120,SEARCH(".",D120)-1),"") -> 3 | B120: =IFERROR(LEFT(RIGHT(D120,LEN(D120)-SEARCH(".",D120)),SEARCH(".",RIGHT(D120,LEN(D120)-SEARCH(".",D120)))-1),"") ->  | C120: =IFERROR(IF(LEN(D120)-LEN(SUBSTITUTE(D120,".",""))<>3,"",MID(D120,SEARCH(".",D120,SEARCH(".",D120)+1)+1,LEN(D120)-SEARCH(".",D120,SEARCH(".",D120)+1)-(LEN(D120)-(SEARCH(".",D120,SEARCH(".",D120,SEARCH(".",D120)+1)+1)-1)))),"") ->  | D120: 3.9 | E120: =IF($G120="SINAPI",VLOOKUP($F120,DADOS_SINAPI,2,0),IF(G120="SETOP",VLOOKUP($F120,DADOS_SETOP,2,0),IF(G120="CPU",VLOOKUP($F120,DADOS_COMPOSICAO,2,0),IF(G120="SICRO",VLOOKUP($F120,DADOS_SICRO,2,0),IF(G120="SUDECAP",VLOOKUP(F120,DADOS_SUDECAP,2,0),IF(G120="COTAÇÃO",VLOOKUP($F120,DADOS_COTACAO,2,0),"")))))) -> DEMOLIÇÃO MANUAL DE REVESTIMENTO DE PEDRA (MÁRMORE, GRANITO, ARDÓSIA, ETC.), INCLUSIVE AFASTAMENTO E EMPILHAMENTO, EXCLUSIVE DEMOLIÇÃO DO REBOCO OU EMBOÇO, TRANSPORTE E RETIRADA DO MATERIAL DEMOLIDO | F120: ED-48503 | G120: SETOP | H120: =IF(G120="SINAPI",VLOOKUP($F120,DADOS_SINAPI,3,0),IF(G120="SETOP",VLOOKUP($F120,DADOS_SETOP,3,0),IF(G120="CPU",VLOOKUP($F120,DADOS_COMPOSICAO,10,0),IF(G120="SICRO",VLOOKUP($F120,DADOS_SICRO,3,0),IF(G120="SUDECAP",VLOOKUP(F120,DADOS_SUDECAP,3,0),IF(G120="COTAÇÃO",VLOOKUP($F120,DADOS_COTACAO,9,0),"")))))) -> m2 | I120: =F123 -> 50.42 | J120: =TRUNC(IF(G120="SINAPI",VLOOKUP($F120,DADOS_SINAPI,4,0),IF(G120="SETOP",VLOOKUP($F120,DADOS_SETOP,4,0),IF(G120="CPU",VLOOKUP($F120,DADOS_COMPOSICAO,13,0),IF(G120="SICRO",VLOOKUP($F120,DADOS_SICRO,4,0),IF(G120="SUDECAP",VLOOKUP(F120,DADOS_SUDECAP,4,0),IF(G120="COTAÇÃO",VLOOKUP(F120,DADOS_COTACAO,12,0),"")))))),2) -> 25.85 | K120: BDI 1 | L120: =TRUNC(J120*(1+$N$17),2) -> 32.7 | M120: =IFERROR(TRUNC(I120*J120,2),"") -> 1303.35 | N120: =IFERROR(TRUNC(L120*I120,2),"") -> 1648.73
A121: 2000
A122: 2000 | E122: Área externa | F122: =25.21*2 -> 50.42 | G122: m²
A123: 2000 | E123: Total | F123: =SUM(F122:F122) -> 50.42 | G123: m²
A124: 2000
A125: =IFERROR(LEFT(D125,SEARCH(".",D125)-1),"") -> 3 | B125: =IFERROR(LEFT(RIGHT(D125,LEN(D125)-SEARCH(".",D125)),SEARCH(".",RIGHT(D125,LEN(D125)-SEARCH(".",D125)))-1),"") ->  | C125: =IFERROR(IF(LEN(D125)-LEN(SUBSTITUTE(D125,".",""))<>3,"",MID(D125,SEARCH(".",D125,SEARCH(".",D125)+1)+1,LEN(D125)-SEARCH(".",D125,SEARCH(".",D125)+1)-(LEN(D125)-(SEARCH(".",D125,SEARCH(".",D125,SEARCH(".",D125)+1)+1)-1)))),"") ->  | D125: 3.10 | E125: =IF($G125="SINAPI",VLOOKUP($F125,DADOS_SINAPI,2,0),IF(G125="SETOP",VLOOKUP($F125,DADOS_SETOP,2,0),IF(G125="CPU",VLOOKUP($F125,DADOS_COMPOSICAO,2,0),IF(G125="SICRO",VLOOKUP($F125,DADOS_SICRO,2,0),IF(G125="SUDECAP",VLOOKUP(F125,DADOS_SUDECAP,2,0),IF(G125="COTAÇÃO",VLOOKUP($F125,DADOS_COTACAO,2,0),"")))))) -> DEMOLIÇÃO MANUAL DE CONCRETO ARMADO, INCLUSIVE AFASTAMENTO E EMPILHAMENTO, EXCLUSIVE TRANSPORTE E RETIRADA DO MATERIAL DEMOLIDO | F125: ED-48441 | G125: SETOP | H125: =IF(G125="SINAPI",VLOOKUP($F125,DADOS_SINAPI,3,0),IF(G125="SETOP",VLOOKUP($F125,DADOS_SETOP,3,0),IF(G125="CPU",VLOOKUP($F125,DADOS_COMPOSICAO,10,0),IF(G125="SICRO",VLOOKUP($F125,DADOS_SICRO,3,0),IF(G125="SUDECAP",VLOOKUP(F125,DADOS_SUDECAP,3,0),IF(G125="COTAÇÃO",VLOOKUP($F125,DADOS_COTACAO,9,0),"")))))) -> m3 | I125: =F129 -> 2.07 | J125: =TRUNC(IF(G125="SINAPI",VLOOKUP($F125,DADOS_SINAPI,4,0),IF(G125="SETOP",VLOOKUP($F125,DADOS_SETOP,4,0),IF(G125="CPU",VLOOKUP($F125,DADOS_COMPOSICAO,13,0),IF(G125="SICRO",VLOOKUP($F125,DADOS_SICRO,4,0),IF(G125="SUDECAP",VLOOKUP(F125,DADOS_SUDECAP,4,0),IF(G125="COTAÇÃO",VLOOKUP(F125,DADOS_COTACAO,12,0),"")))))),2) -> 498.69 | K125: BDI 1 | L125: =TRUNC(J125*(1+$N$17),2) -> 630.94 | M125: =IFERROR(TRUNC(I125*J125,2),"") -> 1032.28 | N125: 1306.05
A126: 2000
A127: 2000 | E127: Piso - Cozinha | F127: =8.36*0.2 -> 1.672 | G127: m³
A128: 2000 | E128: Postes | F128: =0.4*5*0.2 -> 0.4 | G128: m³
A129: 2000 | E129: Total | F129: 2.07 | G129: m³
A130: 2000
A131: =IFERROR(LEFT(D131,SEARCH(".",D131)-1),"") -> 3 | B131: =IFERROR(LEFT(RIGHT(D131,LEN(D131)-SEARCH(".",D131)),SEARCH(".",RIGHT(D131,LEN(D131)-SEARCH(".",D131)))-1),"") ->  | C131: =IFERROR(IF(LEN(D131)-LEN(SUBSTITUTE(D131,".",""))<>3,"",MID(D131,SEARCH(".",D131,SEARCH(".",D131)+1)+1,LEN(D131)-SEARCH(".",D131,SEARCH(".",D131)+1)-(LEN(D131)-(SEARCH(".",D131,SEARCH(".",D131,SEARCH(".",D131)+1)+1)-1)))),"") ->  | D131: 3.11 | E131: =IF($G131="SINAPI",VLOOKUP($F131,DADOS_SINAPI,2,0),IF(G131="SETOP",VLOOKUP($F131,DADOS_SETOP,2,0),IF(G131="CPU",VLOOKUP($F131,DADOS_COMPOSICAO,2,0),IF(G131="SICRO",VLOOKUP($F131,DADOS_SICRO,2,0),IF(G131="SUDECAP",VLOOKUP(F131,DADOS_SUDECAP,2,0),IF(G131="COTAÇÃO",VLOOKUP($F131,DADOS_COTACAO,2,0),"")))))) -> REMOÇÃO DE POSTE METÁLICO | F131: DAC-2.1 | G131: CPU | H131: =IF(G131="SINAPI",VLOOKUP($F131,DADOS_SINAPI,3,0),IF(G131="SETOP",VLOOKUP($F131,DADOS_SETOP,3,0),IF(G131="CPU",VLOOKUP($F131,DADOS_COMPOSICAO,10,0),IF(G131="SICRO",VLOOKUP($F131,DADOS_SICRO,3,0),IF(G131="SUDECAP",VLOOKUP(F131,DADOS_SUDECAP,3,0),IF(G131="COTAÇÃO",VLOOKUP($F131,DADOS_COTACAO,9,0),"")))))) -> UN | I131: =F134 -> 5 | J131: =TRUNC(IF(G131="SINAPI",VLOOKUP($F131,DADOS_SINAPI,4,0),IF(G131="SETOP",VLOOKUP($F131,DADOS_SETOP,4,0),IF(G131="CPU",VLOOKUP($F131,DADOS_COMPOSICAO,13,0),IF(G131="SICRO",VLOOKUP($F131,DADOS_SICRO,4,0),IF(G131="SUDECAP",VLOOKUP(F131,DADOS_SUDECAP,4,0),IF(G131="COTAÇÃO",VLOOKUP(F131,DADOS_COTACAO,12,0),"")))))),2) -> 141.64 | K131: BDI 1 | L131: =TRUNC(J131*(1+$N$17),2) -> 179.2 | M131: =IFERROR(TRUNC(I131*J131,2),"") -> 708.2 | N131: =IFERROR(TRUNC(L131*I131,2),"") -> 896
A132: 2000
A133: 2000 | E133: Quantidade | F133: 5 | G133: un
A134: 2000 | E134: Total | F134: =SUM(F133:F133) -> 5 | G134: un
A135: 2000
A136: =IFERROR(LEFT(D136,SEARCH(".",D136)-1),"") -> 3 | B136: =IFERROR(LEFT(RIGHT(D136,LEN(D136)-SEARCH(".",D136)),SEARCH(".",RIGHT(D136,LEN(D136)-SEARCH(".",D136)))-1),"") ->  | C136: =IFERROR(IF(LEN(D136)-LEN(SUBSTITUTE(D136,".",""))<>3,"",MID(D136,SEARCH(".",D136,SEARCH(".",D136)+1)+1,LEN(D136)-SEARCH(".",D136,SEARCH(".",D136)+1)-(LEN(D136)-(SEARCH(".",D136,SEARCH(".",D136,SEARCH(".",D136)+1)+1)-1)))),"") ->  | D136: 3.12 | E136: =IF($G136="SINAPI",VLOOKUP($F136,DADOS_SINAPI,2,0),IF(G136="SETOP",VLOOKUP($F136,DADOS_SETOP,2,0),IF(G136="CPU",VLOOKUP($F136,DADOS_COMPOSICAO,2,0),IF(G136="SICRO",VLOOKUP($F136,DADOS_SICRO,2,0),IF(G136="SUDECAP",VLOOKUP(F136,DADOS_SUDECAP,2,0),IF(G136="COTAÇÃO",VLOOKUP($F136,DADOS_COTACAO,2,0),"")))))) -> LIMPEZA DE TERRENO, INCLUSIVE CAPINA, RASTELAMENTO COM AFASTAMENTO ATÉ VINTE (20) METROS E QUEIMA CONTROLADA | F136: ED-50703 | G136: SETOP | H136: =IF(G136="SINAPI",VLOOKUP($F136,DADOS_SINAPI,3,0),IF(G136="SETOP",VLOOKUP($F136,DADOS_SETOP,3,0),IF(G136="CPU",VLOOKUP($F136,DADOS_COMPOSICAO,10,0),IF(G136="SICRO",VLOOKUP($F136,DADOS_SICRO,3,0),IF(G136="SUDECAP",VLOOKUP(F136,DADOS_SUDECAP,3,0),IF(G136="COTAÇÃO",VLOOKUP($F136,DADOS_COTACAO,9,0),"")))))) -> m2 | I136: =F141 -> 458.43 | J136: =TRUNC(IF(G136="SINAPI",VLOOKUP($F136,DADOS_SINAPI,4,0),IF(G136="SETOP",VLOOKUP($F136,DADOS_SETOP,4,0),IF(G136="CPU",VLOOKUP($F136,DADOS_COMPOSICAO,13,0),IF(G136="SICRO",VLOOKUP($F136,DADOS_SICRO,4,0),IF(G136="SUDECAP",VLOOKUP(F136,DADOS_SUDECAP,4,0),IF(G136="COTAÇÃO",VLOOKUP(F136,DADOS_COTACAO,12,0),"")))))),2) -> 2.48 | K136: BDI 1 | L136: =TRUNC(J136*(1+$N$17),2) -> 3.13 | M136: =IFERROR(TRUNC(I136*J136,2),"") -> 1136.9 | N136: 1434.89
A137: 2000
A138: 2000 | E138: Área Cozinha | F138: 127.58 | G138: m²
A139: 2000 | E139: Área Salas de Aula | F139: 245.85 | G139: m²
A140: 2000 | E140: Área Banheiro | F140: 85 | G140: m²
A141: 2000 | E141: Total | F141: =SUM(F138:F140) -> 458.43 | G141: m²
A142: 2000
A143: =IFERROR(LEFT(D143,SEARCH(".",D143)-1),"") -> 3 | B143: =IFERROR(LEFT(RIGHT(D143,LEN(D143)-SEARCH(".",D143)),SEARCH(".",RIGHT(D143,LEN(D143)-SEARCH(".",D143)))-1),"") ->  | C143: =IFERROR(IF(LEN(D143)-LEN(SUBSTITUTE(D143,".",""))<>3,"",MID(D143,SEARCH(".",D143,SEARCH(".",D143)+1)+1,LEN(D143)-SEARCH(".",D143,SEARCH(".",D143)+1)-(LEN(D143)-(SEARCH(".",D143,SEARCH(".",D143,SEARCH(".",D143)+1)+1)-1)))),"") ->  | D143: 3.13 | E143: =IF($G143="SINAPI",VLOOKUP($F143,DADOS_SINAPI,2,0),IF(G143="SETOP",VLOOKUP($F143,DADOS_SETOP,2,0),IF(G143="CPU",VLOOKUP($F143,DADOS_COMPOSICAO,2,0),IF(G143="SICRO",VLOOKUP($F143,DADOS_SICRO,2,0),IF(G143="SUDECAP",VLOOKUP(F143,DADOS_SUDECAP,2,0),IF(G143="COTAÇÃO",VLOOKUP($F143,DADOS_COTACAO,2,0),"")))))) -> DEMOLIÇÃO MANUAL DE PISO CERÂMICO OU LADRILHO HIDRÁULICO, INCLUSIVE AFASTAMENTO E EMPILHAMENTO, EXCLUSIVE DEMOLIÇÃO DE CONTRAPISO, TRANSPORTE E RETIRADA DO MATERIAL DEMOLIDO | F143: ED-48480 | G143: SETOP | H143: =IF(G143="SINAPI",VLOOKUP($F143,DADOS_SINAPI,3,0),IF(G143="SETOP",VLOOKUP($F143,DADOS_SETOP,3,0),IF(G143="CPU",VLOOKUP($F143,DADOS_COMPOSICAO,10,0),IF(G143="SICRO",VLOOKUP($F143,DADOS_SICRO,3,0),IF(G143="SUDECAP",VLOOKUP(F143,DADOS_SUDECAP,3,0),IF(G143="COTAÇÃO",VLOOKUP($F143,DADOS_COTACAO,9,0),"")))))) -> m2 | I143: =F146 -> 20 | J143: =TRUNC(IF(G143="SINAPI",VLOOKUP($F143,DADOS_SINAPI,4,0),IF(G143="SETOP",VLOOKUP($F143,DADOS_SETOP,4,0),IF(G143="CPU",VLOOKUP($F143,DADOS_COMPOSICAO,13,0),IF(G143="SICRO",VLOOKUP($F143,DADOS_SICRO,4,0),IF(G143="SUDECAP",VLOOKUP(F143,DADOS_SUDECAP,4,0),IF(G143="COTAÇÃO",VLOOKUP(F143,DADOS_COTACAO,12,0),"")))))),2) -> 17.23 | K143: BDI 1 | L143: =TRUNC(J143*(1+$N$17),2) -> 21.79 | M143: =IFERROR(TRUNC(I143*J143,2),"") -> 344.6 | N143: =IFERROR(TRUNC(L143*I143,2),"") -> 435.8
A144: 2000
A145: 2000 | E145: Área Instalação de Gás | F145: 20 | G145: m²
A146: 2000 | E146: Total | F146: =SUM(F145:F145) -> 20 | G146: m²
A147: 2000
A148: =IFERROR(LEFT(D148,SEARCH(".",D148)-1),"") -> 3 | B148: =IFERROR(LEFT(RIGHT(D148,LEN(D148)-SEARCH(".",D148)),SEARCH(".",RIGHT(D148,LEN(D148)-SEARCH(".",D148)))-1),"") ->  | C148: =IFERROR(IF(LEN(D148)-LEN(SUBSTITUTE(D148,".",""))<>3,"",MID(D148,SEARCH(".",D148,SEARCH(".",D148)+1)+1,LEN(D148)-SEARCH(".",D148,SEARCH(".",D148)+1)-(LEN(D148)-(SEARCH(".",D148,SEARCH(".",D148,SEARCH(".",D148)+1)+1)-1)))),"") ->  | D148: 3.14 | E148: =IF($G148="SINAPI",VLOOKUP($F148,DADOS_SINAPI,2,0),IF(G148="SETOP",VLOOKUP($F148,DADOS_SETOP,2,0),IF(G148="CPU",VLOOKUP($F148,DADOS_COMPOSICAO,2,0),IF(G148="SICRO",VLOOKUP($F148,DADOS_SICRO,2,0),IF(G148="SUDECAP",VLOOKUP(F148,DADOS_SUDECAP,2,0),IF(G148="COTAÇÃO",VLOOKUP($F148,DADOS_COTACAO,2,0),"")))))) -> REMOÇÃO MANUAL DE GUIA DE MEIO-FIO PRÉ-MOLDADA EM CONCRETO, SEM REAPROVEITAMENTO, INCLUSIVE AFASTAMENTO E EMPILHAMENTO, EXCLUSIVE TRANSPORTE E RETIRADA DO MATERIAL REMOVIDO NÃO REAPROVEITÁVEL | F148: DAC-2.2 | G148: CPU | H148: =IF(G148="SINAPI",VLOOKUP($F148,DADOS_SINAPI,3,0),IF(G148="SETOP",VLOOKUP($F148,DADOS_SETOP,3,0),IF(G148="CPU",VLOOKUP($F148,DADOS_COMPOSICAO,10,0),IF(G148="SICRO",VLOOKUP($F148,DADOS_SICRO,3,0),IF(G148="SUDECAP",VLOOKUP(F148,DADOS_SUDECAP,3,0),IF(G148="COTAÇÃO",VLOOKUP($F148,DADOS_COTACAO,9,0),"")))))) -> M | I148: =F151 -> 21.37 | J148: =TRUNC(IF(G148="SINAPI",VLOOKUP($F148,DADOS_SINAPI,4,0),IF(G148="SETOP",VLOOKUP($F148,DADOS_SETOP,4,0),IF(G148="CPU",VLOOKUP($F148,DADOS_COMPOSICAO,13,0),IF(G148="SICRO",VLOOKUP($F148,DADOS_SICRO,4,0),IF(G148="SUDECAP",VLOOKUP(F148,DADOS_SUDECAP,4,0),IF(G148="COTAÇÃO",VLOOKUP(F148,DADOS_COTACAO,12,0),"")))))),2) -> 24.2 | K148: BDI 1 | L148: =TRUNC(J148*(1+$N$17),2) -> 30.61 | M148: =IFERROR(TRUNC(I148*J148,2),"") -> 517.15 | N148: 654.14
A149: 2000
A150: 2000 | E150: Comprimento Cozinha | F150: 21.37 | G150: m
A151: 2000 | E151: Total | F151: =SUM(F150:F150) -> 21.37 | G151: m
A152: 2000
A153: =IFERROR(LEFT(D153,SEARCH(".",D153)-1),"") -> 3 | B153: =IFERROR(LEFT(RIGHT(D153,LEN(D153)-SEARCH(".",D153)),SEARCH(".",RIGHT(D153,LEN(D153)-SEARCH(".",D153)))-1),"") ->  | C153: =IFERROR(IF(LEN(D153)-LEN(SUBSTITUTE(D153,".",""))<>3,"",MID(D153,SEARCH(".",D153,SEARCH(".",D153)+1)+1,LEN(D153)-SEARCH(".",D153,SEARCH(".",D153)+1)-(LEN(D153)-(SEARCH(".",D153,SEARCH(".",D153,SEARCH(".",D153)+1)+1)-1)))),"") ->  | D153: 3.15 | E153: =IF($G153="SINAPI",VLOOKUP($F153,DADOS_SINAPI,2,0),IF(G153="SETOP",VLOOKUP($F153,DADOS_SETOP,2,0),IF(G153="CPU",VLOOKUP($F153,DADOS_COMPOSICAO,2,0),IF(G153="SICRO",VLOOKUP($F153,DADOS_SICRO,2,0),IF(G153="SUDECAP",VLOOKUP(F153,DADOS_SUDECAP,2,0),IF(G153="COTAÇÃO",VLOOKUP($F153,DADOS_COTACAO,2,0),"")))))) -> REMOÇÃO DE TRAMA DE MADEIRA PARA COBERTURA, DE FORMA MANUAL, SEM REAPROVEITAMENTO. AF_09/2023 | F153: 97650 | G153: SINAPI | H153: =IF(G153="SINAPI",VLOOKUP($F153,DADOS_SINAPI,3,0),IF(G153="SETOP",VLOOKUP($F153,DADOS_SETOP,3,0),IF(G153="CPU",VLOOKUP($F153,DADOS_COMPOSICAO,10,0),IF(G153="SICRO",VLOOKUP($F153,DADOS_SICRO,3,0),IF(G153="SUDECAP",VLOOKUP(F153,DADOS_SUDECAP,3,0),IF(G153="COTAÇÃO",VLOOKUP($F153,DADOS_COTACAO,9,0),"")))))) -> M2 | I153: =F156 -> 12 | J153: =TRUNC(IF(G153="SINAPI",VLOOKUP($F153,DADOS_SINAPI,4,0),IF(G153="SETOP",VLOOKUP($F153,DADOS_SETOP,4,0),IF(G153="CPU",VLOOKUP($F153,DADOS_COMPOSICAO,13,0),IF(G153="SICRO",VLOOKUP($F153,DADOS_SICRO,4,0),IF(G153="SUDECAP",VLOOKUP(F153,DADOS_SUDECAP,4,0),IF(G153="COTAÇÃO",VLOOKUP(F153,DADOS_COTACAO,12,0),"")))))),2) -> 7.65 | K153: BDI 1 | L153: =TRUNC(J153*(1+$N$17),2) -> 9.67 | M153: =IFERROR(TRUNC(I153*J153,2),"") -> 91.8 | N153: =IFERROR(TRUNC(L153*I153,2),"") -> 116.04
A154: 2000
A155: 2000 | E155: Cobertura Quiosque | F155: 12 | G155: m²
A156: 2000 | E156: Total | F156: =F155 -> 12 | G156: m²
A157: 2000
A158: =IFERROR(LEFT(D158,SEARCH(".",D158)-1),"") -> 3 | B158: =IFERROR(LEFT(RIGHT(D158,LEN(D158)-SEARCH(".",D158)),SEARCH(".",RIGHT(D158,LEN(D158)-SEARCH(".",D158)))-1),"") ->  | C158: =IFERROR(IF(LEN(D158)-LEN(SUBSTITUTE(D158,".",""))<>3,"",MID(D158,SEARCH(".",D158,SEARCH(".",D158)+1)+1,LEN(D158)-SEARCH(".",D158,SEARCH(".",D158)+1)-(LEN(D158)-(SEARCH(".",D158,SEARCH(".",D158,SEARCH(".",D158)+1)+1)-1)))),"") ->  | D158: 3.16 | E158: =IF($G158="SINAPI",VLOOKUP($F158,DADOS_SINAPI,2,0),IF(G158="SETOP",VLOOKUP($F158,DADOS_SETOP,2,0),IF(G158="CPU",VLOOKUP($F158,DADOS_COMPOSICAO,2,0),IF(G158="SICRO",VLOOKUP($F158,DADOS_SICRO,2,0),IF(G158="SUDECAP",VLOOKUP(F158,DADOS_SUDECAP,2,0),IF(G158="COTAÇÃO",VLOOKUP($F158,DADOS_COTACAO,2,0),"")))))) -> REMOÇÃO DE TELHAS DE FIBROCIMENTO, METÁLICA E CERÂMICA, DE FORMA MECANIZADA, COM USO DE GUINDASTE, SEM REAPROVEITAMENTO. AF_09/2023 | F158: 97649 | G158: SINAPI | H158: =IF(G158="SINAPI",VLOOKUP($F158,DADOS_SINAPI,3,0),IF(G158="SETOP",VLOOKUP($F158,DADOS_SETOP,3,0),IF(G158="CPU",VLOOKUP($F158,DADOS_COMPOSICAO,10,0),IF(G158="SICRO",VLOOKUP($F158,DADOS_SICRO,3,0),IF(G158="SUDECAP",VLOOKUP(F158,DADOS_SUDECAP,3,0),IF(G158="COTAÇÃO",VLOOKUP($F158,DADOS_COTACAO,9,0),"")))))) -> M2 | I158: =F161 -> 12 | J158: =TRUNC(IF(G158="SINAPI",VLOOKUP($F158,DADOS_SINAPI,4,0),IF(G158="SETOP",VLOOKUP($F158,DADOS_SETOP,4,0),IF(G158="CPU",VLOOKUP($F158,DADOS_COMPOSICAO,13,0),IF(G158="SICRO",VLOOKUP($F158,DADOS_SICRO,4,0),IF(G158="SUDECAP",VLOOKUP(F158,DADOS_SUDECAP,4,0),IF(G158="COTAÇÃO",VLOOKUP(F158,DADOS_COTACAO,12,0),"")))))),2) -> 4.52 | K158: BDI 1 | L158: =TRUNC(J158*(1+$N$17),2) -> 5.71 | M158: =IFERROR(TRUNC(I158*J158,2),"") -> 54.24 | N158: =IFERROR(TRUNC(L158*I158,2),"") -> 68.52
A159: 2000
A160: 2000 | E160: Cobertura Quiosque | F160: 12 | G160: m²
A161: 2000 | E161: Total | F161: =F160 -> 12 | G161: m²
A162: 2000
A163: =IFERROR(LEFT(D163,SEARCH(".",D163)-1),"") -> 3 | B163: =IFERROR(LEFT(RIGHT(D163,LEN(D163)-SEARCH(".",D163)),SEARCH(".",RIGHT(D163,LEN(D163)-SEARCH(".",D163)))-1),"") ->  | C163: =IFERROR(IF(LEN(D163)-LEN(SUBSTITUTE(D163,".",""))<>3,"",MID(D163,SEARCH(".",D163,SEARCH(".",D163)+1)+1,LEN(D163)-SEARCH(".",D163,SEARCH(".",D163)+1)-(LEN(D163)-(SEARCH(".",D163,SEARCH(".",D163,SEARCH(".",D163)+1)+1)-1)))),"") ->  | D163: 3.17 | E163: =IF($G163="SINAPI",VLOOKUP($F163,DADOS_SINAPI,2,0),IF(G163="SETOP",VLOOKUP($F163,DADOS_SETOP,2,0),IF(G163="CPU",VLOOKUP($F163,DADOS_COMPOSICAO,2,0),IF(G163="SICRO",VLOOKUP($F163,DADOS_SICRO,2,0),IF(G163="SUDECAP",VLOOKUP(F163,DADOS_SUDECAP,2,0),IF(G163="COTAÇÃO",VLOOKUP($F163,DADOS_COTACAO,2,0),"")))))) -> REMOÇÃO DE ESTRUTURA EM MADEIRA, SEM REAPROVEITAMENTO | F163: DAC-2.3 | G163: CPU | H163: =IF(G163="SINAPI",VLOOKUP($F163,DADOS_SINAPI,3,0),IF(G163="SETOP",VLOOKUP($F163,DADOS_SETOP,3,0),IF(G163="CPU",VLOOKUP($F163,DADOS_COMPOSICAO,10,0),IF(G163="SICRO",VLOOKUP($F163,DADOS_SICRO,3,0),IF(G163="SUDECAP",VLOOKUP(F163,DADOS_SUDECAP,3,0),IF(G163="COTAÇÃO",VLOOKUP($F163,DADOS_COTACAO,9,0),"")))))) -> UN | I163: =F166 -> 1 | J163: =TRUNC(IF(G163="SINAPI",VLOOKUP($F163,DADOS_SINAPI,4,0),IF(G163="SETOP",VLOOKUP($F163,DADOS_SETOP,4,0),IF(G163="CPU",VLOOKUP($F163,DADOS_COMPOSICAO,13,0),IF(G163="SICRO",VLOOKUP($F163,DADOS_SICRO,4,0),IF(G163="SUDECAP",VLOOKUP(F163,DADOS_SUDECAP,4,0),IF(G163="COTAÇÃO",VLOOKUP(F163,DADOS_COTACAO,12,0),"")))))),2) -> 78.12 | K163: BDI 1 | L163: =TRUNC(J163*(1+$N$17),2) -> 98.83 | M163: =IFERROR(TRUNC(I163*J163,2),"") -> 78.12 | N163: =IFERROR(TRUNC(L163*I163,2),"") -> 98.83
A164: 2000
A165: 2000 | E165: Quiosque | F165: 1 | G165: un
A166: 2000 | E166: Total | F166: =F165 -> 1 | G166: un
A167: 2000
A168: =IFERROR(LEFT(D168,SEARCH(".",D168)-1),"") -> 3 | B168: =IFERROR(LEFT(RIGHT(D168,LEN(D168)-SEARCH(".",D168)),SEARCH(".",RIGHT(D168,LEN(D168)-SEARCH(".",D168)))-1),"") ->  | C168: =IFERROR(IF(LEN(D168)-LEN(SUBSTITUTE(D168,".",""))<>3,"",MID(D168,SEARCH(".",D168,SEARCH(".",D168)+1)+1,LEN(D168)-SEARCH(".",D168,SEARCH(".",D168)+1)-(LEN(D168)-(SEARCH(".",D168,SEARCH(".",D168,SEARCH(".",D168)+1)+1)-1)))),"") ->  | D168: 3.18 | E168: =IF($G168="SINAPI",VLOOKUP($F168,DADOS_SINAPI,2,0),IF(G168="SETOP",VLOOKUP($F168,DADOS_SETOP,2,0),IF(G168="CPU",VLOOKUP($F168,DADOS_COMPOSICAO,2,0),IF(G168="SICRO",VLOOKUP($F168,DADOS_SICRO,2,0),IF(G168="SUDECAP",VLOOKUP(F168,DADOS_SUDECAP,2,0),IF(G168="COTAÇÃO",VLOOKUP($F168,DADOS_COTACAO,2,0),"")))))) -> CARGA MANUAL DE MATERIAL DE QUALQUER NATUREZA SOBRE CAMINHÃO, EXCLUSIVE TRANSPORTE | F168: ED-51131 | G168: SETOP | H168: =IF(G168="SINAPI",VLOOKUP($F168,DADOS_SINAPI,3,0),IF(G168="SETOP",VLOOKUP($F168,DADOS_SETOP,3,0),IF(G168="CPU",VLOOKUP($F168,DADOS_COMPOSICAO,10,0),IF(G168="SICRO",VLOOKUP($F168,DADOS_SICRO,3,0),IF(G168="SUDECAP",VLOOKUP(F168,DADOS_SUDECAP,3,0),IF(G168="COTAÇÃO",VLOOKUP($F168,DADOS_COTACAO,9,0),"")))))) -> m3 | I168: =F191 -> 354.45046 | J168: =TRUNC(IF(G168="SINAPI",VLOOKUP($F168,DADOS_SINAPI,4,0),IF(G168="SETOP",VLOOKUP($F168,DADOS_SETOP,4,0),IF(G168="CPU",VLOOKUP($F168,DADOS_COMPOSICAO,13,0),IF(G168="SICRO",VLOOKUP($F168,DADOS_SICRO,4,0),IF(G168="SUDECAP",VLOOKUP(F168,DADOS_SUDECAP,4,0),IF(G168="COTAÇÃO",VLOOKUP(F168,DADOS_COTACAO,12,0),"")))))),2) -> 41.88 | K168: BDI 1 | L168: =TRUNC(J168*(1+$N$17),2) -> 52.98 | M168: =IFERROR(TRUNC(I168*J168,2),"") -> 14844.38 | N168: 18778.76
A169: 2000
A170: 2000 | E170: Volume Árvore | F170: =(0.13*F80*5)+(0.28*F85*5)+(0.35*1*5) -> 5.85 | G170: m³
A171: 2000 | E171: Volume Raiz | F171: =(0.13*F80*2)+(0.28*F85*2)+0.35*1*2 -> 2.34 | G171: m³
A172: 2000 | E172: Volume Alvenaria | F172: =F113 -> 4.8858 | G172: m³
A173: 2000 | E173: Área Laje | F173: =F118 -> 0.64 | G173: m²
A174: 2000 | E174: Espessura Laje | F174: 0.15 | G174: m
A175: 2000 | E175: Área Pedra | F175: =F123 -> 50.42 | G175: m²
A176: 2000 | E176: Espessura Pedra | F176: 0.05 | G176: m
A177: 2000 | E177: Volume Concreto | F177: =F129 -> 2.07 | G177: m³
A178: 2000 | E178: Volume Poste | F178: =F134*2*0.5*0.5 -> 2.5 | G178: m³
A179: 2000 | E179: Área Terreno | F179: =F141 -> 458.43 | G179: m²
A180: 2000 | E180: Altura para limpeza | F180: 0.5 | G180: m
A181: 2000 | E181: Área Piso Cerâmico | F181: =F146 -> 20 | G181: m²
A182: 2000 | E182: Espessura Piso Cerâmico | F182: 0.03 | G182: m
A183: 2000 | E183: Área Meio Fio | F183: =F151*0.2 -> 4.274 | G183: m²
A184: 2000 | E184: Espessura Meio Fio | F184: =0.15 -> 0.15 | G184: m
A185: 2000 | E185: Área de trama de madeira | F185: =F161 -> 12 | G185: m²
A186: 2000 | E186: Espessura | F186: 0.05 | G186: m
A187: 2000 | E187: Área de cobertura com telha cerâmica | F187: =F185 -> 12 | G187: m²
A188: 2000 | E188: Espessura | F188: =0.03 -> 0.03 | G188: m
A189: 2000 | E189: Volume estrutura em madeira | F189: 1.5 | G189: m³
A190: 2000 | E190: Empolamento (40%) | F190: 1.4 | G190: -
A191: 2000 | E191: Total | F191: =((F170)+(F171)+(F172)+(F173*F174)+(F175*F176)+(F177+F178)+(F179*F180)+(F181*F182)+(F183*F184)+(F186*F185)+(F187*F188)+F189)*F190 -> 354.45046 | G191: m³
A192: 2000
A193: =IFERROR(LEFT(D193,SEARCH(".",D193)-1),"") -> 3 | B193: =IFERROR(LEFT(RIGHT(D193,LEN(D193)-SEARCH(".",D193)),SEARCH(".",RIGHT(D193,LEN(D193)-SEARCH(".",D193)))-1),"") ->  | C193: =IFERROR(IF(LEN(D193)-LEN(SUBSTITUTE(D193,".",""))<>3,"",MID(D193,SEARCH(".",D193,SEARCH(".",D193)+1)+1,LEN(D193)-SEARCH(".",D193,SEARCH(".",D193)+1)-(LEN(D193)-(SEARCH(".",D193,SEARCH(".",D193,SEARCH(".",D193)+1)+1)-1)))),"") ->  | D193: 3.19 | E193: =IF($G193="SINAPI",VLOOKUP($F193,DADOS_SINAPI,2,0),IF(G193="SETOP",VLOOKUP($F193,DADOS_SETOP,2,0),IF(G193="CPU",VLOOKUP($F193,DADOS_COMPOSICAO,2,0),IF(G193="SICRO",VLOOKUP($F193,DADOS_SICRO,2,0),IF(G193="SUDECAP",VLOOKUP(F193,DADOS_SUDECAP,2,0),IF(G193="COTAÇÃO",VLOOKUP($F193,DADOS_COTACAO,2,0),"")))))) -> TRANSPORTE COM CAMINHÃO BASCULANTE DE 14 M³, EM VIA URBANA PAVIMENTADA, DMT ATÉ 30 KM (UNIDADE: M3XKM). AF_07/2020 | F193: 95876 | G193: SINAPI | H193: =IF(G193="SINAPI",VLOOKUP($F193,DADOS_SINAPI,3,0),IF(G193="SETOP",VLOOKUP($F193,DADOS_SETOP,3,0),IF(G193="CPU",VLOOKUP($F193,DADOS_COMPOSICAO,10,0),IF(G193="SICRO",VLOOKUP($F193,DADOS_SICRO,3,0),IF(G193="SUDECAP",VLOOKUP(F193,DADOS_SUDECAP,3,0),IF(G193="COTAÇÃO",VLOOKUP($F193,DADOS_COTACAO,9,0),"")))))) -> M3XKM | I193: =F197 -> 708.90092 | J193: =TRUNC(IF(G193="SINAPI",VLOOKUP($F193,DADOS_SINAPI,4,0),IF(G193="SETOP",VLOOKUP($F193,DADOS_SETOP,4,0),IF(G193="CPU",VLOOKUP($F193,DADOS_COMPOSICAO,13,0),IF(G193="SICRO",VLOOKUP($F193,DADOS_SICRO,4,0),IF(G193="SUDECAP",VLOOKUP(F193,DADOS_SUDECAP,4,0),IF(G193="COTAÇÃO",VLOOKUP(F193,DADOS_COTACAO,12,0),"")))))),2) -> 2.23 | K193: BDI 1 | L193: =TRUNC(J193*(1+$N$17),2) -> 2.82 | M193: =IFERROR(TRUNC(I193*J193,2),"") -> 1580.84 | N193: =IFERROR(TRUNC(L193*I193,2),"") -> 1999.1
A194: 2000
A195: 2000 | E195: Carga | F195: =F191 -> 354.45046 | G195: m³
A196: 2000 | E196: Distância | F196: 2 | G196: km
A197: 2000 | E197: Total | F197: =F195*F196 -> 708.90092 | G197: m³xkm
A198: 2000
A199: 1000 | D199: 4 | E199: TERRAPLENAGEM | M199: =SUMIF(A:A,D199,M:M) -> 62993.4 | N199: =SUMIF(A:A,D199,N:N) -> 79682.21
D200: 4.1 | E200: EXECUÇÃO DE CORTE E ATERRO | M200: =IFERROR(SUMIFS(M:M,A:A,LEFT(D200,SEARCH(".",D200)-1),B:B,RIGHT(D200,LEN(D200)-SEARCH(".",D200))),"") -> 21887.32 | N200: =IFERROR(SUMIFS(N:N,A:A,LEFT(D200,SEARCH(".",D200)-1),B:B,RIGHT(D200,LEN(D200)-SEARCH(".",D200))),"") -> 27689.87
A201: =IFERROR(LEFT(D201,SEARCH(".",D201)-1),"") -> 4 | B201: =IFERROR(LEFT(RIGHT(D201,LEN(D201)-SEARCH(".",D201)),SEARCH(".",RIGHT(D201,LEN(D201)-SEARCH(".",D201)))-1),"") -> 1 | C201: =IFERROR(IF(LEN(D201)-LEN(SUBSTITUTE(D201,".",""))<>3,"",MID(D201,SEARCH(".",D201,SEARCH(".",D201)+1)+1,LEN(D201)-SEARCH(".",D201,SEARCH(".",D201)+1)-(LEN(D201)-(SEARCH(".",D201,SEARCH(".",D201,SEARCH(".",D201)+1)+1)-1)))),"") ->  | D201: 4.1.1 | E201: =IF($G201="SINAPI",VLOOKUP($F201,DADOS_SINAPI,2,0),IF(G201="SETOP",VLOOKUP($F201,DADOS_SETOP,2,0),IF(G201="CPU",VLOOKUP($F201,DADOS_COMPOSICAO,2,0),IF(G201="SICRO",VLOOKUP($F201,DADOS_SICRO,2,0),IF(G201="SUDECAP",VLOOKUP(F201,DADOS_SUDECAP,2,0),IF(G201="COTAÇÃO",VLOOKUP($F201,DADOS_COTACAO,2,0),"")))))) -> COMPACTAÇÃO MECANIZADA DE ATERRO COM PLACA VIBRATÓRIA, INCLUSIVE ESPALHAMENTO MANUAL | F201: ED-51096 | G201: SETOP | H201: =IF(G201="SINAPI",VLOOKUP($F201,DADOS_SINAPI,3,0),IF(G201="SETOP",VLOOKUP($F201,DADOS_SETOP,3,0),IF(G201="CPU",VLOOKUP($F201,DADOS_COMPOSICAO,10,0),IF(G201="SICRO",VLOOKUP($F201,DADOS_SICRO,3,0),IF(G201="SUDECAP",VLOOKUP(F201,DADOS_SUDECAP,3,0),IF(G201="COTAÇÃO",VLOOKUP($F201,DADOS_COTACAO,9,0),"")))))) -> m3 | I201: =F204 -> 429.5 | J201: =TRUNC(IF(G201="SINAPI",VLOOKUP($F201,DADOS_SINAPI,4,0),IF(G201="SETOP",VLOOKUP($F201,DADOS_SETOP,4,0),IF(G201="CPU",VLOOKUP($F201,DADOS_COMPOSICAO,13,0),IF(G201="SICRO",VLOOKUP($F201,DADOS_SICRO,4,0),IF(G201="SUDECAP",VLOOKUP(F201,DADOS_SUDECAP,4,0),IF(G201="COTAÇÃO",VLOOKUP(F201,DADOS_COTACAO,12,0),"")))))),2) -> 50.96 | K201: BDI 1 | L201: =TRUNC(J201*(1+$N$17),2) -> 64.47 | M201: =IFERROR(TRUNC(I201*J201,2),"") -> 21887.32 | N201: 27689.87
A202: 2000
A203: 2000 | E203: Volume de aterro | F203: 429.5 | G203: m³
A204: 2000 | E204: Total | F204: =F203 -> 429.5 | G204: m³
A205: 2000
D206: 4.2 | E206: EMPRÉSTIMO DE SOLO | M206: =IFERROR(SUMIFS(M:M,A:A,LEFT(D206,SEARCH(".",D206)-1),B:B,RIGHT(D206,LEN(D206)-SEARCH(".",D206))),"") -> 39035.95 | N206: =IFERROR(SUMIFS(N:N,A:A,LEFT(D206,SEARCH(".",D206)-1),B:B,RIGHT(D206,LEN(D206)-SEARCH(".",D206))),"") -> 49374.27
A207: =IFERROR(LEFT(D207,SEARCH(".",D207)-1),"") -> 4 | B207: =IFERROR(LEFT(RIGHT(D207,LEN(D207)-SEARCH(".",D207)),SEARCH(".",RIGHT(D207,LEN(D207)-SEARCH(".",D207)))-1),"") -> 2 | C207: =IFERROR(IF(LEN(D207)-LEN(SUBSTITUTE(D207,".",""))<>3,"",MID(D207,SEARCH(".",D207,SEARCH(".",D207)+1)+1,LEN(D207)-SEARCH(".",D207,SEARCH(".",D207)+1)-(LEN(D207)-(SEARCH(".",D207,SEARCH(".",D207,SEARCH(".",D207)+1)+1)-1)))),"") ->  | D207: 4.2.1 | E207: =IF($G207="SINAPI",VLOOKUP($F207,DADOS_SINAPI,2,0),IF(G207="SETOP",VLOOKUP($F207,DADOS_SETOP,2,0),IF(G207="CPU",VLOOKUP($F207,DADOS_COMPOSICAO,2,0),IF(G207="SICRO",VLOOKUP($F207,DADOS_SICRO,2,0),IF(G207="SUDECAP",VLOOKUP(F207,DADOS_SUDECAP,2,0),IF(G207="COTAÇÃO",VLOOKUP($F207,DADOS_COTACAO,2,0),"")))))) -> ARGILA OU BARRO PARA ATERRO/REATERRO (RETIRADO NA JAZIDA, SEM TRANSPORTE) | F207: 6077 | G207: SINAPI | H207: =IF(G207="SINAPI",VLOOKUP($F207,DADOS_SINAPI,3,0),IF(G207="SETOP",VLOOKUP($F207,DADOS_SETOP,3,0),IF(G207="CPU",VLOOKUP($F207,DADOS_COMPOSICAO,10,0),IF(G207="SICRO",VLOOKUP($F207,DADOS_SICRO,3,0),IF(G207="SUDECAP",VLOOKUP(F207,DADOS_SUDECAP,3,0),IF(G207="COTAÇÃO",VLOOKUP($F207,DADOS_COTACAO,9,0),"")))))) -> M3 | I207: =F211 -> 477.2222222 | J207: =TRUNC(IF(G207="SINAPI",VLOOKUP($F207,DADOS_SINAPI,4,0),IF(G207="SETOP",VLOOKUP($F207,DADOS_SETOP,4,0),IF(G207="CPU",VLOOKUP($F207,DADOS_COMPOSICAO,13,0),IF(G207="SICRO",VLOOKUP($F207,DADOS_SICRO,4,0),IF(G207="SUDECAP",VLOOKUP(F207,DADOS_SUDECAP,4,0),IF(G207="COTAÇÃO",VLOOKUP(F207,DADOS_COTACAO,12,0),"")))))),2) -> 37.35 | K207: BDI 1 | L207: =TRUNC(J207*(1+$N$17),2) -> 47.25 | M207: =IFERROR(TRUNC(I207*J207,2),"") -> 17824.25 | N207: 22548.65
A208: 2000
... 1862 more rows

Sheet ABC
A2: CURVA ABC DE SERVIÇOS | H2: Revisão: | I2: =DADOS!D6 -> R01
H3: Data: | I3: =DADOS!D2 -> 2025-04-04
A4: Projeto: | C4: Responsável: | D4: Cliente: | H4: Bancos:
A5: =DADOS!D8 -> AMPLIAÇÃO DO C.E.I.M. MARILISA LOPES DE OLIVEIRA | H5: =DADOS!D14 -> SINAPI: 02/2025 Minas Gerais SETOP: 10/2024 Minas Gerais SICRO : 10/2024 Minas Gerais SUDECAP: 10/2024 Minas Gerais
H8: BDI 1: | I8: =DADOS!D10 -> 0.2652
H9: BDI 2: | I9: =DADOS!D12 -> -
A11: =A2&" DE "&DADOS!D20&" - "&A5 -> CURVA ABC DE SERVIÇOS DE PROJETO EXECUTIVO - AMPLIAÇÃO DO C.E.I.M. MARILISA LOPES DE OLIVEIRA
A13: Código | B13: Banco | C13: Descrição | D13: Unidade | E13: Quantidade | F13: Valor Unitário | G13: Total | H13: Peso (%) | I13: Peso Acumulado (%)
A15: ED-48298 | B15: SETOP | C15: CORTE, DOBRA E MONTAGEM DE AÇO CA-50/60, INCLUSIVE ESPAÇADOR | D15: Kg | E15: 4914 | F15: 17.24 | G15: 84717.37 | H15: 0.0429637227 | I15: 0.0429637227
A16: 103318 | B16: SINAPI | C16: ALVENARIA DE VEDAÇÃO DE BLOCOS VAZADOS DE CONCRETO DE 14X19X39 CM (ESPESSURA 14 CM) E ARGAMASSA DE ASSENTAMENTO COM PREPARO EM BETONEIRA. AF_12/2021 | D16: M2 | E16: 554.54 | F16: 130.23 | G16: 72217.74 | H16: 0.03662463737 | I16: 0.07958836007
A17: COT-HID-002 | B17: COTAÇÃO | C17: RESERVATÓRIO TIPO TAÇA, COLUNA SECA, 35.000 LITROS - FORNECIMENTO E INSTALAÇÃO | D17: UN | E17: 1 | F17: 69839.04 | G17: 69839.04 | H17: 0.03541829908 | I17: 0.1150066592
A18: DAC-10.1 | B18: CPU | C18: EXECUÇÃO DE PASSEIO (CALÇADA) OU PISO DE CONCRETO COM CONCRETO MOLDADO IN LOCO, USINADO, ACABAMENTO CONVENCIONAL, ESPESSURA 10 CM, ARMADO | D18: M2 | E18: 433.06 | F18: 158.46 | G18: 68622.69 | H18: 0.03480143711 | I18: 0.1498080963
A19: DAC-5.2 | B19: CPU | C19: ESTACA DO TIPO STRAUSS, COM DIÂMETRO DE 32CM, CONCRETO C-20, ARMAÇÃO, MOBILIZAÇÃO E DESMOBILIZAÇÃO | D19: M | E19: 336 | F19: 198.58 | G19: 66722.88 | H19: 0.03383796397 | I19: 0.1836460602
A20: DAC-15.2 | B20: CPU | C20: CANALETA DE CONCRETO ARMADO 0,30 X 0,20M - INCLUSIVE GRELHA EM FERRO FUNDIDO | D20: M | E20: 97.04 | F20: 564.53 | G20: 54781.99 | H20: 0.02778223908 | I20: 0.2114282993
A21: 87779 | B21: SINAPI | C21: EMBOÇO OU MASSA ÚNICA EM ARGAMASSA TRAÇO 1:2:8, PREPARO MECÂNICO COM BETONEIRA 400 L, APLICADA MANUALMENTE EM PANOS DE FACHADA COM PRESENÇA DE VÃOS, ESPESSURA DE 35 MM. AF_08/2022 | D21: M2 | E21: 550.62 | F21: 90.67 | G21: 49924.72 | H21: 0.02531891424 | I21: 0.2367472136
A22: 92450 | B22: SINAPI | C22: MONTAGEM E DESMONTAGEM DE FÔRMA DE VIGA, ESCORAMENTO METÁLICO, PÉ-DIREITO DUPLO, EM CHAPA DE MADEIRA RESINADA, 2 UTILIZAÇÕES. AF_09/2020 | D22: M2 | E22: 117.39 | F22: 376.37 | G22: 44182.07 | H22: 0.02240657617 | I22: 0.2591537897
A23: 94440 | B23: SINAPI | C23: TELHAMENTO COM TELHA CERÂMICA DE ENCAIXE, TIPO FRANCESA, COM ATÉ 2 ÁGUAS, INCLUSO TRANSPORTE VERTICAL. AF_07/2019 | D23: M2 | E23: 470.883 | F23: 85.08 | G23: 40062.47 | H23: 0.02031735465 | I23: 0.2794711444
A24: 92569 | B24: SINAPI | C24: TRAMA DE AÇO COMPOSTA POR RIPAS E CAIBROS PARA TELHADOS DE ATÉ 2 ÁGUAS PARA TELHA DE ENCAIXE DE CERÂMICA OU DE CONCRETO, INCLUSO TRANSPORTE VERTICAL. AF_07/2019 | D24: M2 | E24: 470.883 | F24: 82.16 | G24: 38687.5 | H24: 0.01962004984 | I24: 0.2990911942
A25: ED-29484 | B25: SETOP | C25: JANELA EM ALUMÍNIO DE CORRER COM 2 FOLHAS, LINHA 25/SUPREMA, ACABAMENTO ANODIZADO NATURAL, INCLUSIVE PERFIS, VIDRO 4MM E INSTALAÇÃO, EXCLUSIVE FERRAGENS PARA JANELA DE ALUMÍNIO DE CORRER | D25: m2 | E25: 34.5 | F25: 1107.69 | G25: 38215.31 | H25: 0.01938058254 | I25: 0.3184717768
A26: ED-50754 | B26: SETOP | C26: REVESTIMENTO COM PORCELANATO APLICADO EM PISO, ACABAMENTO POLÍDO, AMBIENTE INTERNO, PADRÃO EXTRA, BORDA RETIFICADA, DIMENSÃO DA PEÇA (60X60)CM, ASSENTAMENTO COM ARGAMASSA INDUSTRIALIZADA, INCLUSIVE REJUNTAMENTO | D26: m2 | E26: 283.21 | F26: 129.67 | G26: 36723.84 | H26: 0.0186241957 | I26: 0.3370959725
A27: ED-29823 | B27: SETOP | C27: TAPUME FIXO DE PROTEÇÃO PARA FECHAMENTO DE OBRA EM TELHA METÁLICA GALVANIZADA, TIPO TRAPEZOIDAL, ESP. 0,5MM, COM MÓDULO NA DIMENSÃO DE (300X220)CM, COM REAPROVEITAMENTO, EXCLUSIVE PINTURA ESMALTE, INCLUSIVE PONTALETE E FIXAÇÃO | D27: m2 | E27: 463.65 | F27: 77.65 | G27: 36002.42 | H27: 0.01825833344 | I27: 0.3553543059
A28: 92446 | B28: SINAPI | C28: MONTAGEM E DESMONTAGEM DE FÔRMA DE VIGA, ESCORAMENTO COM PONTALETE DE MADEIRA, PÉ-DIREITO SIMPLES, EM MADEIRA SERRADA, 1 UTILIZAÇÃO. AF_09/2020 | D28: M2 | E28: 79.02 | F28: 444.33 | G28: 35110.96 | H28: 0.01780623677 | I28: 0.3731605427
A29: ED-9081 | B29: SETOP | C29: REVESTIMENTO COM CERÂMICA APLICADO EM PAREDE, ACABAMENTO ESMALTADO, AMBIENTE INTERNO/EXTERNO, PADRÃO EXTRA, DIMENSÃO DA PEÇA ATÉ 2025 CM2, PEI III, ASSENTAMENTO COM ARGAMASSA INDUSTRIALIZADA, INCLUSIVE REJUNTAMENTO | D29: m2 | E29: 383.11 | F29: 90.39 | G29: 34629.31 | H29: 0.01756197191 | I29: 0.3907225146
A30: ED-49806 | B30: SETOP | C30: FORNECIMENTO DE CONCRETO ESTRUTURAL, USINADO BOMBEADO, COM FCK 30MPA, INCLUSIVE LANÇAMENTO, ADENSAMENTO E ACABAMENTO (FUNDAÇÃO) | D30: m3 | E30: 35.16 | F30: 929.07 | G30: 32666.09 | H30: 0.01656634091 | I30: 0.4072888555
A31: 87529 | B31: SINAPI | C31: MASSA ÚNICA, EM ARGAMASSA TRAÇO 1:2:8, PREPARO MECÂNICO, APLICADA MANUALMENTE EM PAREDES INTERNAS DE AMBIENTES COM ÁREA ENTRE 5M² E 10M², E = 17,5MM, COM TALISCAS. AF_03/2024 | D31: M2 | E31: 661.91 | F31: 47.02 | G31: 31123.01 | H31: 0.01578378048 | I31: 0.423072636
A32: ED-49810 | B32: SETOP | C32: FÔRMA E DESFORMA PARA VIGA-CINTA/BLOCO COM TÁBUA E SARRAFO, REAPROVEITAMENTO (3X) (FUNDAÇÃO) | D32: m2 | E32: 346.18 | F32: 88.65 | G32: 30688.86 | H32: 0.01556360485 | I32: 0.4386362408
A33: 94229 | B33: SINAPI | C33: CALHA EM CHAPA DE AÇO GALVANIZADO NÚMERO 24, DESENVOLVIMENTO DE 100 CM, INCLUSO TRANSPORTE VERTICAL. AF_07/2019 | D33: M | E33: 115.16 | F33: 247.81 | G33: 28537.8 | H33: 0.01447271233 | I33: 0.4531089532
A34: ED-51096 | B34: SETOP | C34: COMPACTAÇÃO MECANIZADA DE ATERRO COM PLACA VIBRATÓRIA, INCLUSIVE ESPALHAMENTO MANUAL | D34: m3 | E34: 429.5 | F34: 64.47 | G34: 27689.87 | H34: 0.01404269155 | I34: 0.4671516447
A35: DAC-14.1 | B35: CPU | C35: BANCADA EM AÇO INOX COM RODABANCA | D35: M2 | E35: 9.3 | F35: 2646.1 | G35: 24608.73 | H35: 0.01248011655 | I35: 0.4796317613
A36: DAC-5.4 | B36: CPU | C36: LAJE TRELIÇADA H=12 CM - INCLUSO MONTAGEM E FORNECIMENTO DE TODOS OS MATERIAIS | D36: M2 | E36: 131.66 | F36: 186.08 | G36: 24499.29 | H36: 0.01242461495 | I36: 0.4920563762
A37: DAC-5.5 | B37: CPU | C37: LAJE TRELIÇADA H=16 CM - INCLUSO MONTAGEM E FORNECIMENTO DE TODOS OS MATERIAIS | D37: M2 | E37: 117.69 | F37: 205.06 | G37: 24133.51 | H37: 0.01223911261 | I37: 0.5042954888
A38: ED-49639 | B38: SETOP | C38: FORNECIMENTO DE CONCRETO ESTRUTURAL, USINADO BOMBEADO, COM FCK 30MPA, INCLUSIVE LANÇAMENTO, ADENSAMENTO E ACABAMENTO | D38: m3 | E38: 24.72 | F38: 947.68 | G38: 23426.64 | H38: 0.01188062926 | I38: 0.5161761181
A39: ED-51017 | B39: SETOP | C39: ATERRAMENTO COMPLETO PARA PARA-RAIOS, COM HASTE DE COBRE DE ALTA CAMADA, TIPO COPPERWELD, DIÂMETRO DE 3/4", COMPRIMENTO DE 240CM, EXCLUSIVE CABO, INCLUSIVE CAIXA DE INSPEÇÃO COM TAMPA EM FERRO FUNDIDO E GRAMPO PARA HASTE | D39: un | E39: 16 | F39: 1453.84 | G39: 23261.44 | H39: 0.01179684943 | I39: 0.5279729675
A40: 6077 | B40: SINAPI | C40: ARGILA OU BARRO PARA ATERRO/REATERRO (RETIRADO NA JAZIDA, SEM TRANSPORTE) | D40: M3 | E40: 477.2222222 | F40: 47.25 | G40: 22548.65 | H40: 0.0114353638 | I40: 0.5394083313
A41: DAC-15.1 | B41: CPU | C41: CANALETA DE CONCRETO ARMADO 0,20 X 0,20M - INCLUSIVE GRELHA EM FERRO FUNDIDO | D41: M | E41: 56.2 | F41: 388.84 | G41: 21852.81 | H41: 0.01108247422 | I41: 0.5504908055
A42: 95875 | B42: SINAPI | C42: TRANSPORTE COM CAMINHÃO BASCULANTE DE 10 M³, EM VIA URBANA PAVIMENTADA, DMT ATÉ 30 KM (UNIDADE: M3XKM). AF_07/2020 | D42: M3XKM | E42: 6762.312111 | F42: 3.2 | G42: 21639.39 | H42: 0.01097424001 | I42: 0.5614650455
A43: 98555 | B43: SINAPI | C43: IMPERMEABILIZAÇÃO DE SUPERFÍCIE COM ARGAMASSA POLIMÉRICA / MEMBRANA ACRÍLICA, 3 DEMÃOS. AF_09/2023 | D43: M2 | E43: 539.505 | F43: 38.95 | G43: 21013.91 | H43: 0.01065703293 | I43: 0.5721220785
A44: ED-13935 | B44: SETOP | C44: CABO DE COBRE NU #50 MM2 - 7 FIOSX3,00MM, PARA ELEMENTOS DE CAPTAÇÃO/ANEL DE CINTAMENTO (SPDA), INCLUSIVE PRESILHA DE FIXAÇÃO | D44: m | E44: 257.3 | F44: 76.34 | G44: 19642.28 | H44: 0.009961421974 | I44: 0.5820835004
A45: ED-51131 | B45: SETOP | C45: CARGA MANUAL DE MATERIAL DE QUALQUER NATUREZA SOBRE CAMINHÃO, EXCLUSIVE TRANSPORTE | D45: m3 | E45: 365.84046 | F45: 52.98 | G45: 19382.2 | H45: 0.009829524525 | I45: 0.591913025
A46: ED-50155 | B46: SETOP | C46: LOCAÇÃO DE BANHEIRO QUÍMICO, DIMENSÃO (110X120X230)CM, LINHA PADRÃO, CONTENDO UMA (1) PIA/HIGIENIZADOR DE MÃOS, INCLUSIVE MANUTENÇÃO E MOBILIZAÇÃO/DESMOBILIZAÇÃO | D46: mês | E46: 16 | F46: 1138.68 | G46: 18218.88 | H46: 0.009239556282 | I46: 0.6011525813
A47: 92990 | B47: SINAPI | C47: CABO DE COBRE FLEXÍVEL ISOLADO, 70 MM², ANTI-CHAMA 0,6/1,0 KV, PARA REDE ENTERRADA DE DISTRIBUIÇÃO DE ENERGIA ELÉTRICA - FORNECIMENTO E INSTALAÇÃO. AF_12/2021 | D47: M | E47: 183.36 | F47: 97.49 | G47: 17875.77 | H47: 0.009065550846 | I47: 0.6102181321
A48: 99059 | B48: SINAPI | C48: LOCAÇÃO CONVENCIONAL DE OBRA, UTILIZANDO GABARITO DE TÁBUAS CORRIDAS PONTALETADAS A CADA 2,00M - 2 UTILIZAÇÕES. AF_03/2024 | D48: M | E48: 202.15 | F48: 88.42 | G48: 17874.1 | H48: 0.00906470392 | I48: 0.619282836
A49: 92415 | B49: SINAPI | C49: MONTAGEM E DESMONTAGEM DE FÔRMA DE PILARES RETANGULARES E ESTRUTURAS SIMILARES, PÉ-DIREITO SIMPLES, EM CHAPA DE MADEIRA COMPENSADA RESINADA, 2 UTILIZAÇÕES. AF_09/2020 | D49: M2 | E49: 98.9 | F49: 178.6 | G49: 17663.54 | H49: 0.008957920134 | I49: 0.6282407562
A50: 92261 | B50: SINAPI | C50: INSTALAÇÃO DE TESOURA (INTEIRA OU MEIA), BIAPOIADA, EM MADEIRA NÃO APARELHADA, PARA VÃOS MAIORES OU IGUAIS A 8,0 M E MENORES QUE 10,0 M, INCLUSO IÇAMENTO. AF_07/2019 | D50: UN | E50: 20 | F50: 880.99 | G50: 17619.8 | H50: 0.00893573775 | I50: 0.6371764939
A51: ED-48533 | B51: SETOP | C51: DIVISÓRIA EM GRANITO CINZA ANDORINHA, ESP. 3CM, INCLUSIVE INSTALAÇÃO, FERRAGENS EM LATÃO CROMADO E ACESSÓRIOS | D51: m2 | E51: 21.05 | F51: 833.12 | G51: 17537.18 | H51: 0.008893837692 | I51: 0.6460703316
A52: 87630 | B52: SINAPI | C52: CONTRAPISO EM ARGAMASSA TRAÇO 1:4 (CIMENTO E AREIA), PREPARO MECÂNICO COM BETONEIRA 400 L, APLICADO EM ÁREAS SECAS SOBRE LAJE, ADERIDO, ACABAMENTO NÃO REFORÇADO, ESPESSURA 3CM. AF_07/2021 | D52: M2 | E52: 330.45 | F52: 51.45 | G52: 17001.65 | H52: 0.008622248023 | I52: 0.6546925796
A53: COT-ARQ-001 | B53: COTAÇÃO | C53: COBERTURA DE POLICARBONATO 2,00 MM, INCLUSIVE ESTRUTURA METÁLICA, CALHAS E PINTURA | D53: M2 | E53: 20.1 | F53: 842.53 | G53: 16934.85 | H53: 0.008588370949 | I53: 0.6632809506
A54: ED-50474 | B54: SETOP | C54: EMASSAMENTO EM PAREDE COM MASSA ACRÍLICA, DUAS (2) DEMÃOS, INCLUSIVE LIXAMENTO PARA PINTURA | D54: m2 | E54: 550.62 | F54: 29.61 | G54: 16303.86 | H54: 0.00826836952 | I54: 0.6715493201
A55: 92417 | B55: SINAPI | C55: MONTAGEM E DESMONTAGEM DE FÔRMA DE PILARES RETANGULARES E ESTRUTURAS SIMILARES, PÉ-DIREITO DUPLO, EM CHAPA DE MADEIRA COMPENSADA RESINADA, 2 UTILIZAÇÕES. AF_09/2020 | D55: M2 | E55: 76.91 | F55: 208.4 | G55: 16028.04 | H55: 0.008128489659 | I55: 0.6796778097
A56: ED-13338 | B56: SETOP | C56: LUMINÁRIA COMERCIAL CHANFRADA DE SOBREPOR COMPLETA, PARA DUAS (2) LÂMPADAS TUBULARES LED 2X18W-ØT8, TEMPERATURA DA COR 6500K, FORNECIMENTO E INSTALAÇÃO, INCLUSIVE BASE E LÂMPADAS | D56: un | E56: 68 | F56: 218.57 | G56: 14862.76 | H56: 0.007537527418 | I56: 0.6872153372
A57: DAC-5.3 | B57: CPU | C57: ESTACA DO TIPO BROCA MANUAL, COM DIÂMETRO DE 25CM, CONCRETO C-20, COM ARMAÇÃO | D57: M | E57: 91 | F57: 152.62 | G57: 13888.42 | H57: 0.00704339884 | I57: 0.694258736
A58: DAC-5.1 | B58: CPU | C58: ESTACA DO TIPO ESCAVADA COM TRADO MECÂNICO, SEM FLUIDO ESTABILIZANTE, COM DIÂMETRO DE 30CM, CONCRETO C-25 LANÇADO POR CAMINHÃO BETONEIRA (EXCLUSIVE MOBILIZAÇÃO E DESMOBILIZAÇÃO) | D58: M | E58: 81 | F58: 169.48 | G58: 13727.88 | H58: 0.00696198229 | I58: 0.7012207183
A59: 93202 | B59: SINAPI | C59: FIXAÇÃO (ENCUNHAMENTO) DE ALVENARIA DE VEDAÇÃO COM TIJOLO MACIÇO. AF_03/2024 | D59: M | E59: 352.16 | F59: 34.84 | G59: 12269.25 | H59: 0.006222249991 | I59: 0.7074429683
A60: 91834 | B60: SINAPI | C60: ELETRODUTO FLEXÍVEL CORRUGADO, PVC, DN 25 MM (3/4"), PARA CIRCUITOS TERMINAIS, INSTALADO EM FORRO - FORNECIMENTO E INSTALAÇÃO. AF_03/2023 | D60: M | E60: 504.91 | F60: 22.55 | G60: 11385.72 | H60: 0.005774174963 | I60: 0.7132171433
A61: 98680 | B61: SINAPI | C61: PISO CIMENTADO, TRAÇO 1:3 (CIMENTO E AREIA), ACABAMENTO LISO, ESPESSURA 3,0 CM, PREPARO MECÂNICO DA ARGAMASSA. AF_09/2020 | D61: M2 | E61: 177.01 | F61: 63.65 | G61: 11266.69 | H61: 0.00571380987 | I61: 0.7189309531
A62: 95626 | B62: SINAPI | C62: APLICAÇÃO MANUAL DE TINTA LÁTEX ACRÍLICA EM PAREDE EXTERNAS DE CASAS, DUAS DEMÃOS. AF_03/2024 | D62: M2 | E62: 550.62 | F62: 20.25 | G62: 11150.06 | H62: 0.005654661918 | I62: 0.724585615
A63: DAC-5.6 | B63: CPU | C63: LAJE TRELIÇADA H=20 CM - INCLUSO MONTAGEM E FORNECIMENTO DE TODOS OS MATERIAIS | D63: M2 | E63: 38.15 | F63: 282.24 | G63: 10767.46 | H63: 0.005460629451 | I63: 0.7300462445
A64: ED-48245 | B64: SETOP | C64: MONTAGEM E DESMONTAGEM DE ANDAIME METÁLICO PARA FACHADA COM PISO METÁLICO, INCLUSIVE RODAPÉ/GUARDA-CORPO EM MADEIRA, EXCLUSIVE FORNECIMENTO DO ANDAIME | D64: m2 | E64: 551 | F64: 19.19 | G64: 10573.69 | H64: 0.005362360577 | I64: 0.7354086051
A65: 93358 | B65: SINAPI | C65: ESCAVAÇÃO MANUAL DE VALA. AF_09/2024 | D65: M3 | E65: 98.6762 | F65: 104.69 | G65: 10330.81 | H65: 0.005239185967 | I65: 0.740647791
A66: 87745 | B66: SINAPI | C66: CONTRAPISO EM ARGAMASSA TRAÇO 1:4 (CIMENTO E AREIA), PREPARO MECÂNICO COM BETONEIRA 400 L, APLICADO EM ÁREAS MOLHADAS SOBRE LAJE, ADERIDO, ACABAMENTO NÃO REFORÇADO, ESPESSURA 3CM. AF_07/2021 | D66: M2 | E66: 151.21 | F66: 67.04 | G66: 10137.12 | H66: 0.005140957665 | I66: 0.7457887487
A67: ED-9076 | B67: SETOP | C67: FORNECIMENTO DE ANDAIME METÁLICO TUBULAR TIPO TORRE (LOCAÇÃO), INCLUSIVE RODÍZIOS, EXCLUSIVE MONTAGEM E DESMONTAGEM | D67: mxmês | E67: 360 | F67: 27.83 | G67: 10018.8 | H67: 0.005080952643 | I67: 0.7508697013
A68: 87414 | B68: SINAPI | C68: APLICAÇÃO MANUAL DE GESSO DESEMPENADO (SEM TALISCAS) EM TETO DE AMBIENTES DE ÁREA MAIOR QUE 10M², ESPESSURA DE 1,0CM. AF_03/2023 | D68: M2 | E68: 284.03 | F68: 34.35 | G68: 9756.43 | H68: 0.004947893839 | I68: 0.7558175952
A69: ED-51019 | B69: SETOP | C69: BARRA CHATA DE ALUMÍNIO 7/8" X 1/8" X 3M | D69: U | E69: 261 | F69: 37 | G69: 9657 | H69: 0.004897468726 | I69: 0.7607150639
A70: ED-9075 | B70: SETOP | C70: FORNECIMENTO DE ANDAIME METÁLICO PARA FACHADA (LOCAÇÃO), INCLUSIVE PISO METÁLICO E SAPATAS, EXCLUSIVE MONTAGEM E DESMONTAGEM | D70: m2xmês | E70: 560 | F70: 17.08 | G70: 9564.8 | H70: 0.004850710248 | I70: 0.7655657742
A71: 98510 | B71: SINAPI | C71: PLANTIO DE ÁRVORE ORNAMENTAL COM ALTURA DE MUDA MENOR OU IGUAL A 2,00 M . AF_07/2024 | D71: UN | E71: 80 | F71: 115.23 | G71: 9218.4 | H71: 0.004675036316 | I71: 0.7702408105
A72: ED-32098 | B72: SETOP | C72: GUARDA-CORPO EXTERNO, ALTURA 130CM, EM TUBO GALVANIZADO, COM COSTURA, DIÂMETRO DE 2", ESP. 3MM, GRADIL COM DIVISÃO HORIZONTAL EM TUBO GALVANIZADO, COM COSTURA, DIÂMETRO DE 1", ESP. 3MM, EXCLUSIVE PINTURA | D72: m | E72: 10.5 | F72: 874.62 | G72: 9183.51 | H72: 0.004657342137 | I72: 0.7748981526
A73: ED-19638 | B73: SETOP | C73: CIMBRAMENTO PARA LAJE PRÉ-MOLDADA COM ESCORAMENTO METÁLICO, TIPO "B", ALTURA DE (311 ATÉ 450)CM, INCLUSIVE DESCARGA, MONTAGEM, DESMONTAGEM E CARGA | D73: m2xmês | E73: 287.5 | F73: 31.84 | G73: 9154 | H73: 0.004642376381 | I73: 0.779540529
A74: ED-29481 | B74: SETOP | C74: JANELA EM ALUMÍNIO MÁXIM-AR COM ALTURA DE 60CM, LINHA 25/SUPREMA, ACABAMENTO ANODIZADO NATURAL, INCLUSIVE PERFIS, VIDRO LISO 4MM E INSTALAÇÃO, EXCLUSIVE FERRAGENS PARA MÓDULO DE JANELA DE ALUMÍNIO MÁXIM-AR | D74: m2 | E74: 6.96 | F74: 1295.08 | G74: 9013.76 | H74: 0.00457125481 | I74: 0.7841117838
A75: ED-16350 | B75: SETOP | C75: LOCAÇÃO DE CONTAINER COM ISOLAMENTO TÉRMICO, TIPO 3, PARA DEPÓSITO/FERRAMENTARIA DE OBRA, COM MEDIDAS REFERENCIAIS DE (6) METROS COMPRIMENTO, (2,3) METROS LARGURA E (2,5) METROS ALTURA ÚTIL INTERNA, INCLUSIVE LIGAÇÕES ELÉTRICAS INTERNAS, EXCLUSIVE MOBILIZAÇÃO/DESMOBILIZAÇÃO E LIGAÇÕES PROVISÓRIAS EXTERNAS | D75: mês | E75: 8 | F75: 1014.71 | G75: 8117.68 | H75: 0.004116815152 | I75: 0.788228599
A76: 100874 | B76: SINAPI | C76: PUXADOR PARA PCD, FIXADO NA PORTA - FORNECIMENTO E INSTALAÇÃO. AF_01/2020 | D76: UN | E76: 18 | F76: 434.38 | G76: 7818.84 | H76: 0.003965260886 | I76: 0.7921938598
A77: 98557 | B77: SINAPI | C77: IMPERMEABILIZAÇÃO DE SUPERFÍCIE COM EMULSÃO ASFÁLTICA, 2 DEMÃOS. AF_09/2023 | D77: M2 | E77: 142.36 | F77: 52.53 | G77: 7478.17 | H77: 0.003792492876 | I77: 0.7959863527
A78: ED-51094 | B78: SETOP | C78: APILOAMENTO MECANIZADO EM FUNDO DE VALA COM PLACA VIBRATÓRIA, EXCLUSIVE ESCAVAÇÃO | D78: m2 | E78: 433.06 | F78: 17.24 | G78: 7465.96 | H78: 0.003786300674 | I78: 0.7997726534
A79: ED-29480 | B79: SETOP | C79: PORTA VENEZIANA EM ALUMÍNIO COMPLETA, DIMENSÃO (90X210)CM, TIPO DE ABRIR, COM UMA (1) FOLHA, LINHA 25/SUPREMA, ACABAMENTO ANODIZADO NATURAL, INCLUSIVE PERFIS, FERRAGENS E INSTALAÇÃO | D79: un | E79: 3 | F79: 2473.01 | G79: 7419.03 | H79: 0.003762500507 | I79: 0.8035351539
A80: 91926 | B80: SINAPI | C80: CABO DE COBRE FLEXÍVEL ISOLADO, 2,5 MM², ANTI-CHAMA 450/750 V, PARA CIRCUITOS TERMINAIS - FORNECIMENTO E INSTALAÇÃO. AF_03/2023 | D80: M | E80: 1345.32 | F80: 5.49 | G80: 7385.81 | H80: 0.003745653256 | I80: 0.8072808071
A81: DAC-19.1 | B81: CPU | C81: FIXAÇÃO DE SUPORTE PARA BARRA CHATA | D81: UN | E81: 140 | F81: 52.42 | G81: 7338.8 | H81: 0.003721812518 | I81: 0.8110026197
A82: 105025 | B82: SINAPI | C82: VERGA MOLDADA IN LOCO COM UTILIZAÇÃO DE BLOCOS CANALETA, ESPESSURA DE *15* CM. AF_03/2024 | D82: M | E82: 94.1 | F82: 75.84 | G82: 7136.54 | H82: 0.00361923801 | I82: 0.8146218577
A83: 86931 | B83: SINAPI | C83: VASO SANITÁRIO SIFONADO COM CAIXA ACOPLADA LOUÇA BRANCA, INCLUSO ENGATE FLEXÍVEL EM PLÁSTICO BRANCO, 1/2 X 40CM - FORNECIMENTO E INSTALAÇÃO. AF_01/2020 | D83: UN | E83: 11 | F83: 642.65 | G83: 7069.15 | H83: 0.003585061721 | I83: 0.8182069194
A84: 100854 | B84: SINAPI | C84: TORNEIRA CROMADA DE MESA PARA LAVATÓRIO COM SENSOR DE PRESENCA. AF_01/2020 | D84: UN | E84: 3 | F84: 2351.85 | G84: 7055.55 | H84: 0.003578164592 | I84: 0.821785084
A85: ED-29581 | B85: SETOP | C85: ARMADURA DE TELA DE AÇO CA-60, SOLDADA TIPO Q-92, DIÂMETRO Ø4,2MM, TRAMA COM DIMENSÃO (150X150)MM, INCLUSIVE ESPAÇADOR, EXCLUSIVE CONCRETO | D85: m2 | E85: 287.5 | F85: 24.27 | G85: 6977.63 | H85: 0.0035386481 | I85: 0.8253237321
A86: 96622 | B86: SINAPI | C86: LASTRO COM MATERIAL GRANULAR, APLICADO EM PISOS OU LAJES SOBRE SOLO, ESPESSURA DE *5 CM*. AF_01/2024 | D86: M3 | E86: 21.653 | F86: 317.78 | G86: 6879.94 | H86: 0.003489105414 | I86: 0.8288128375
A87: ED-50478 | B87: SETOP | C87: EMASSAMENTO EM PAREDE COM MASSA CORRIDA (PVA), DUAS (2) DEMÃOS, INCLUSIVE LIXAMENTO PARA PINTURA | D87: m2 | E87: 278.8 | F87: 23.92 | G87: 6668.9 | H87: 0.003382078201 | I87: 0.8321949157
A88: COT-EQUI-001 | B88: COTAÇÃO | C88: COIFA INDUSTRIAL PARA FOGÃO - FORNECIMENTO E INSTALAÇÃO | D88: UN | E88: 1 | F88: 6607.5 | G88: 6607.5 | H88: 0.003350939692 | I88: 0.8355458554
A89: ED-20586 | B89: SETOP | C89: ENTRADA DE ENERGIA AÉREA, TIPO C6, PADRÃO CEMIG, CARGA INSTALADA DE 47,1KVA ATÉ 57KVA, TRIFÁSICO, COM SAÍDA SUBTERRÂNEA, INCLUSIVE POSTE, CAIXA PARA MEDIDOR, DISJUNTOR, BARRAMENTO, ATERRAMENTO E ACESSÓRIOS | D89: un | E89: 1 | F89: 6457.32 | G89: 6457.32 | H89: 0.003274777131 | I89: 0.8388206325
A90: 91321 | B90: SINAPI | C90: KIT DE PORTA DE MADEIRA PARA PINTURA, SEMI-OCA (LEVE OU MÉDIA), PADRÃO POPULAR, 90X210CM, ESPESSURA DE 3,5CM, ITENS INCLUSOS: DOBRADIÇAS, MONTAGEM E INSTALAÇÃO DO BATENTE, SEM FECHADURA - FORNECIMENTO E INSTALAÇÃO. AF_12/2019 | D90: UN | E90: 6 | F90: 1069.58 | G90: 6417.48 | H90: 0.0032545726 | I90: 0.8420752051
A91: 92260 | B91: SINAPI | C91: INSTALAÇÃO DE TESOURA (INTEIRA OU MEIA), BIAPOIADA, EM MADEIRA NÃO APARELHADA, PARA VÃOS MAIORES OU IGUAIS A 6,0 M E MENORES QUE 8,0 M, INCLUSO IÇAMENTO. AF_07/2019 | D91: UN | E91: 8 | F91: 798.97 | G91: 6391.76 | H91: 0.003241528912 | I91: 0.845316734
A92: 86938 | B92: SINAPI | C92: CUBA DE EMBUTIR OVAL EM LOUÇA BRANCA, 35 X 50CM OU EQUIVALENTE, INCLUSO VÁLVULA E SIFÃO TIPO GARRAFA EM METAL CROMADO - FORNECIMENTO E INSTALAÇÃO. AF_01/2020 | D92: UN | E92: 10 | F92: 613.57 | G92: 6135.7 | H92: 0.003111670173 | I92: 0.8484284042
A93: DAC-7.3 | B93: CPU | C93: PORTA EM ALUMÍNIO DE ABRIR TIPO VENEZIANA, FIXAÇÃO COM PARAFUSOS - FORNECIMENTO E INSTALAÇÃO. | D93: M2 | E93: 9.9 | F93: 606.28 | G93: 6002.17 | H93: 0.003043951523 | I93: 0.8514723557
A94: 87905 | B94: SINAPI | C94: CHAPISCO APLICADO EM ALVENARIA (COM PRESENÇA DE VÃOS) E ESTRUTURAS DE CONCRETO DE FACHADA, COM COLHER DE PEDREIRO. ARGAMASSA TRAÇO 1:3 COM PREPARO EM BETONEIRA 400L. AF_10/2022 | D94: M2 | E94: 550.62 | F94: 10.33 | G94: 5687.9 | H94: 0.002884572058 | I94: 0.8543569278
A95: 88488 | B95: SINAPI | C95: PINTURA LÁTEX ACRÍLICA PREMIUM, APLICAÇÃO MANUAL EM TETO, DUAS DEMÃOS. AF_04/2023 | D95: M2 | E95: 285.47 | F95: 19.62 | G95: 5600.92 | H95: 0.002840460861 | I95: 0.8571973887
A96: 100978 | B96: SINAPI | C96: CARGA, MANOBRA E DESCARGA DE SOLOS E MATERIAIS GRANULARES EM CAMINHÃO BASCULANTE 10 M³ - CARGA COM ESCAVADEIRA HIDRÁULICA (CAÇAMBA DE 1,20 M³ / 155 HP) E DESCARGA LIVRE (UNIDADE: M3). AF_07/2020 | D96: M3 | E96: 620.3888889 | F96: 9 | G96: 5583.51 | H96: 0.002831631522 | I96: 0.8600290202
A97: 92986 | B97: SINAPI | C97: CABO DE COBRE FLEXÍVEL ISOLADO, 35 MM², ANTI-CHAMA 0,6/1,0 KV, PARA REDE ENTERRADA DE DISTRIBUIÇÃO DE ENERGIA ELÉTRICA - FORNECIMENTO E INSTALAÇÃO. AF_12/2021 | D97: M | E97: 101.6 | F97: 48.52 | G97: 4929.63 | H97: 0.002500021617 | I97: 0.8625290418
A98: 102491 | B98: SINAPI | C98: PINTURA DE PISO COM TINTA ACRÍLICA, APLICAÇÃO MANUAL, 2 DEMÃOS, INCLUSO FUNDO PREPARADOR. AF_05/2021 | D98: M2 | E98: 177.01 | F98: 27.27 | G98: 4827.06 | H98: 0.002448004079 | I98: 0.8649770459
A99: ED-29817 | B99: SETOP | C99: MOBILIZAÇÃO E DESMOBILIZAÇÃO DE EQUIPAMENTO PARA ESTACA TIPO TRADO ROTATIVO (CUSTO FIXO), INCLUSIVE CARGA E DESCARGA, EXCLUSIVE TRANSPORTE EM QUILÔMETRO RODADO (CUSTO VARIÁVEL) | D99: un | E99: 1 | F99: 4727.39 | G99: 4727.39 | H99: 0.002397457252 | I99: 0.8673745031
A100: ED-13934 | B100: SETOP | C100: CABO DE COBRE NU #35MM2 - 7 FIOSX2,50MM, PARA ELEMENTOS DE CAPTAÇÃO/ANEL DE CINTAMENTO (SPDA), INCLUSIVE PRESILHA DE FIXAÇÃO | D100: m | E100: 81.83 | F100: 56.88 | G100: 4654.49 | H100: 0.002360486612 | I100: 0.8697349897
A101: ED-51121 | B101: SETOP | C101: REATERRO MANUAL DE VALA, INCLUSIVE ESPALHAMENTO E COMPACTAÇÃO MECANIZADA COM PLACA VIBRATÓRIA | D101: m3 | E101: 79.94 | F101: 57.88 | G101: 4626.93 | H101: 0.002346509783 | I101: 0.8720814995
A102: 88489 | B102: SINAPI | C102: PINTURA LÁTEX ACRÍLICA PREMIUM, APLICAÇÃO MANUAL EM PAREDES, DUAS DEMÃOS. AF_04/2023 | D102: M2 | E102: 278.8 | F102: 16.59 | G102: 4625.29 | H102: 0.00234567807 | I102: 0.8744271776
A103: COT-DAD-006 | B103: COTAÇÃO | C103: CAMERA POE | D103: UN | E103: 6 | F103: 765.44 | G103: 4592.64 | H103: 0.002329119889 | I103: 0.8767562975
A104: ED-50998 | B104: SETOP | C104: PEITORIL DE GRANITO, NA COR CINZA ANDORINHA, COM PINGADEIRA, ESP. 3CM, ACABAMENTO POLIDO, ASSENTAMENTO COM ARGAMASSA INDUSTRIALIZADA, INCLUSIVE REJUNTAMENTO | D104: m2 | E104: 9.936 | F104: 460 | G104: 4572.4 | H104: 0.002318855338 | I104: 0.8790751528
A105: ED-9077 | B105: SETOP | C105: MONTAGEM E DESMONTAGEM DE ANDAIME METÁLICO TUBULAR TIPO TORRE, EXCLUSIVE FORNECIMENTO DO ANDAIME | D105: m | E105: 355 | F105: 12.76 | G105: 4529.8 | H105: 0.002297251096 | I105: 0.8813724039
A106: 105031 | B106: SINAPI | C106: CONTRAVERGA MOLDADA IN LOCO COM UTILIZAÇÃO DE BLOCOS CANALETA, ESPESSURA DE *15* CM. AF_03/2024 | D106: M | E106: 69.2 | F106: 60.83 | G106: 4209.45 | H106: 0.002134788208 | I106: 0.8835071921
A107: DAC-18.2 | B107: CPU | C107: MONTAGEM DO HACK E COMPONENTES - ACESSÓRIOS DE CABEAMENTO DO HACK | D107: UN | E107: 1 | F107: 4092.06 | G107: 4092.06 | H107: 0.002075254828 | I107: 0.8855824469
A108: COT-DAD-001 | B108: COTAÇÃO | C108: NVR 16 PORTAS | D108: UN | E108: 1 | F108: 3896.38 | G108: 3896.38 | H108: 0.001976017313 | I108: 0.8875584643
A109: 91992 | B109: SINAPI | C109: TOMADA ALTA DE EMBUTIR (1 MÓDULO), 2P+T 10 A, INCLUINDO SUPORTE E PLACA - FORNECIMENTO E INSTALAÇÃO. AF_03/2023 | D109: UN | E109: 68 | F109: 56.71 | G109: 3856.28 | H109: 0.001955680926 | I109: 0.8895141452
A110: 87879 | B110: SINAPI | C110: CHAPISCO APLICADO EM ALVENARIAS E ESTRUTURAS DE CONCRETO INTERNAS, COM COLHER DE PEDREIRO. ARGAMASSA TRAÇO 1:3 COM PREPARO EM BETONEIRA 400L. AF_10/2022 | D110: M2 | E110: 661.91 | F110: 5.7 | G110: 3772.89 | H110: 0.001913390368 | I110: 0.8914275356
A111: ED-49197 | B111: SETOP | C111: CAIXA DE INSPEÇÃO EM CONCRETO, TIPO "ZA" PASSEIO, PADRÃO CEMIG, DIMENSÃO (28X28)CM, ALTURA 40CM, COM TAMPA E ARO ARTICULADO EM FERRO FUNDIDO, INCLUSIVE ESCAVAÇÃO, APILOAMENTO, LASTRO DE BRITA, REATERRO E TRANSPORTE COM RETIRADA DO MATERIAL ESCAVADO (EM CAÇAMBA) | D111: un | E111: 14 | F111: 268.32 | G111: 3756.48 | H111: 0.00190506817 | I111: 0.8933326037
A112: 88415 | B112: SINAPI | C112: APLICAÇÃO MANUAL DE FUNDO SELADOR ACRÍLICO EM PAREDES EXTERNAS DE CASAS. AF_03/2024 | D112: M2 | E112: 550.62 | F112: 6.74 | G112: 3711.18 | H112: 0.001882094645 | I112: 0.8952146984
A113: ED-49297 | B113: SETOP | C113: DUTO CORRUGADO EM PEAD (POLIETILENO DE ALTA DENSIDADE), PARA PROTEÇÃO DE CABOS SUBTERRÂNEOS DN 75 MM (3") | D113: M | E113: 61.21 | F113: 60 | G113: 3672.6 | H113: 0.001862529113 | I113: 0.8970772275
A114: DAC-7.1 | B114: CPU | C114: PORTA EM ALUMÍNIO DE CORRER COM FOLHA ÚNICA (90X210)CM COMPLETA, LINHA 25/SUPREMA, ACABAMENTO ANODIZADO NATURAL, INCLUSIVE PERFIS, VIDRO, FERRAGENS E INSTALAÇÃO | D114: UN | E114: 2 | F114: 1813.53 | G114: 3627.06 | H114: 0.001839433874 | I114: 0.8989166614
A115: 96523 | B115: SINAPI | C115: ESCAVAÇÃO MANUAL PARA BLOCO DE COROAMENTO OU SAPATA (INCLUINDO ESCAVAÇÃO PARA COLOCAÇÃO DE FÔRMAS). AF_01/2024 | D115: M3 | E115: 30.35 | F115: 117.67 | G115: 3571.28 | H115: 0.001811145502 | I115: 0.9007278069
A116: 86936 | B116: SINAPI | C116: CUBA DE EMBUTIR DE AÇO INOXIDÁVEL MÉDIA, INCLUSO VÁLVULA TIPO AMERICANA E SIFÃO TIPO GARRAFA EM METAL CROMADO - FORNECIMENTO E INSTALAÇÃO. AF_01/2020 | D116: UN | E116: 5 | F116: 703.95 | G116: 3519.75 | H116: 0.001785012483 | I116: 0.9025128193
A117: ED-50266 | B117: SETOP | C117: LIMPEZA FINAL PARA ENTREGA DA OBRA | D117: m2 | E117: 342.39 | F117: 9.76 | G117: 3341.72 | H117: 0.001694726022 | I117: 0.9042075454
A118: ED-50986 | B118: SETOP | C118: PORTÃO EM TUBO DE AÇO GALVANIZADO COM COSTURA, DIÂMETRO DE 1.1/2" (38,1MM), ESP. 2MM, COM TELA QUADRICULADA ONDULADA, TRAMA DE 1/2" (12,70MM), FIO 12 (2,77MM), EXCLUSIVE CADEADO E PINTURA | D118: m2 | E118: 4.31 | F118: 724.3 | G118: 3121.73 | H118: 0.001583159889 | I118: 0.9057907053
A119: 91933 | B119: SINAPI | C119: CABO DE COBRE FLEXÍVEL ISOLADO, 10 MM², ANTI-CHAMA 0,6/1,0 KV, PARA CIRCUITOS TERMINAIS - FORNECIMENTO E INSTALAÇÃO. AF_03/2023 | D119: M | E119: 150 | F119: 20.48 | G119: 3072 | H119: 0.001557939725 | I119: 0.907348645
A120: ED-50497 | B120: SETOP | C120: PINTURA ESMALTE BASE SOLVENTE EM ESTRUTURA METÁLICA, DUAS (2) DEMÃOS, COM APLICAÇÃO MANUAL, INCLUSIVE UMA (1) DEMÃO FUNDO GALVANIZADO | D120: m2 | E120: 71.168 | F120: 43.13 | G120: 3069.56 | H120: 0.001556702299 | I120: 0.9089053473
A121: 100875 | B121: SINAPI | C121: BANCO ARTICULADO, EM ACO INOX, PARA PCD, FIXADO NA PAREDE - FORNECIMENTO E INSTALAÇÃO. AF_01/2020 | D121: UN | E121: 2 | F121: 1493.58 | G121: 2987.16 | H121: 0.001514913812 | I121: 0.9104202611
A122: DAC-9.1 | B122: CPU | C122: APLICAÇÃO DE RESINA SINTÉTICA PARA APLICAÇÃO DE GESSO | D122: M2 | E122: 284.03 | F122: 10.46 | G122: 2970.95 | H122: 0.001506693042 | I122: 0.9119269541
A123: 91924 | B123: SINAPI | C123: CABO DE COBRE FLEXÍVEL ISOLADO, 1,5 MM², ANTI-CHAMA 450/750 V, PARA CIRCUITOS TERMINAIS - FORNECIMENTO E INSTALAÇÃO. AF_03/2023 | D123: M | E123: 778.28 | F123: 3.78 | G123: 2941.9 | H123: 0.001491960572 | I123: 0.9134189147
A124: ED-49883 | B124: SETOP | C124: CAIXA DE ESGOTO DE INSPEÇÃO/PASSAGEM EM ALVENARIA (60X60X60CM), REVESTIMENTO EM ARGAMASSA COM ADITIVO IMPERMEABILIZANTE, COM TAMPA DE CONCRETO, INCLUSIVE ESCAVAÇÃO, REATERRO E TRANSPORTE COM RETIRADA DO MATERIAL ESCAVADO (EM CAÇAMBA) | D124: un | E124: 4 | F124: 715.39 | G124: 2861.56 | H124: 0.001451216797 | I124: 0.9148701315
A125: 91940 | B125: SINAPI | C125: CAIXA RETANGULAR 4" X 2" MÉDIA (1,30 M DO PISO), PVC, INSTALADA EM PAREDE - FORNECIMENTO E INSTALAÇÃO. AF_03/2023 | D125: UN | E125: 120 | F125: 23.73 | G125: 2847.6 | H125: 0.001444137097 | I125: 0.9163142686
A126: 89714 | B126: SINAPI | C126: TUBO PVC, SERIE NORMAL, ESGOTO PREDIAL, DN 100 MM, FORNECIDO E INSTALADO EM RAMAL DE DESCARGA OU RAMAL DE ESGOTO SANITÁRIO. AF_08/2022 | D126: M | E126: 59.08 | F126: 48.17 | G126: 2845.88 | H126: 0.001443264813 | I126: 0.9177575334
A127: ED-50329 | B127: SETOP | C127: TORNEIRA METÁLICA PARA LAVATÓRIO, FECHAMENTO AUTOMÁTICO, ACABAMENTO CROMADO, COM AREJADOR, APLICAÇÃO DE MESA, INCLUSIVE ENGATE FLEXÍVEL METÁLICO | D127: un | E127: 10 | F127: 280.03 | G127: 2800.3 | H127: 0.001420149288 | I127: 0.9191776827
A128: ED-48198 | B128: SETOP | C128: ALVENARIA ESTRUTURAL COM BLOCO DE CONCRETO, ESP. 14CM, (FBK 4,5MPA), PARA REVESTIMENTO, INCLUSIVE ARGAMASSA PARA ASSENTAMENTO | D128: m2 | E128: 26.2 | F128: 99.88 | G128: 2616.86 | H128: 0.001327119189 | I128: 0.9205048019
A129: ED-50314 | B129: SETOP | C129: CHUVEIRO ELÉTRICO COM RESISTÊNCIA BLINDADA, TENSÃO 127V/220V, POTÊNCIA 5500W/6800W, INCLUSIVE BRAÇO/CANO | D129: un | E129: 6 | F129: 433.45 | G129: 2600.7 | H129: 0.001318923777 | I129: 0.9218237257
A130: 98562 | B130: SINAPI | C130: IMPERMEABILIZAÇÃO DE SUPERFÍCIE COM ARGAMASSA DE CIMENTO E AREIA, COM ADITIVO IMPERMEABILIZANTE, E = 1,5CM. AF_09/2023 | D130: M2 | E130: 39.8 | F130: 63.08 | G130: 2510.58 | H130: 0.001273220155 | I130: 0.9230969458
A131: ED-29485 | B131: SETOP | C131: PORTA EM ALUMÍNIO COMPLETA, DIMENSÃO (120X210)CM, TIPO DE CORRER, COM DUAS (2) FOLHAS, LINHA 25/SUPREMA, ACABAMENTO ANODIZADO NATURAL, INCLUSIVE PERFIS, VIDRO, FERRAGENS E INSTALAÇÃO | D131: un | E131: 1 | F131: 2502.85 | G131: 2502.85 | H131: 0.001269299948 | I131: 0.9243662458
A132: COT-DAD-005 | B132: COTAÇÃO | C132: ACCESS POINT | D132: UN | E132: 2 | F132: 1235.83 | G132: 2471.66 | H132: 0.001253482194 | I132: 0.925619728
A133: 92688 | B133: SINAPI | C133: TUBO DE AÇO GALVANIZADO COM COSTURA, CLASSE MÉDIA, CONEXÃO ROSQUEADA, DN 20 (3/4"), INSTALADO EM RAMAIS E SUB-RAMAIS DE GÁS - FORNECIMENTO E INSTALAÇÃO. AF_10/2020 | D133: M | E133: 44.528 | F133: 54.47 | G133: 2425.55 | H133: 0.001230097884 | I133: 0.9268498258
A134: DAC-7.2 | B134: CPU | C134: JANELA AÇO DE ENROLAR, INCLUSIVE EIXO, MOLA, SOLEIRA, ETIQUETA, CAVALETE E GUIAS, FITAS E FECHADURAS LATERAIS | D134: UN | E134: 2.88 | F134: 829.6 | G134: 2389.25 | H134: 0.001211688636 | I134: 0.9280615145
A135: 94221 | B135: SINAPI | C135: CUMEEIRA PARA TELHA CERÂMICA EMBOÇADA COM ARGAMASSA TRAÇO 1:2:9 (CIMENTO, CAL E AREIA) PARA TELHADOS COM ATÉ 2 ÁGUAS, INCLUSO TRANSPORTE VERTICAL. AF_07/2019 | D135: M | E135: 48.65 | F135: 49.07 | G135: 2387.26 | H135: 0.001210679423 | I135: 0.9292721939
A136: 91872 | B136: SINAPI | C136: ELETRODUTO RÍGIDO ROSCÁVEL, PVC, DN 32 MM (1"), PARA CIRCUITOS TERMINAIS, INSTALADO EM PAREDE - FORNECIMENTO E INSTALAÇÃO. AF_03/2023 | D136: M | E136: 96 | F136: 24.53 | G136: 2354.88 | H136: 0.001194258171 | I136: 0.9304664521
A137: 89449 | B137: SINAPI | C137: TUBO, PVC, SOLDÁVEL, DE 50MM, INSTALADO EM PRUMADA DE ÁGUA - FORNECIMENTO E INSTALAÇÃO. AF_06/2022 | D137: M | E137: 109.28 | F137: 21.52 | G137: 2351.71 | H137: 0.001192650531 | I137: 0.9316591026
A138: ED-29479 | B138: SETOP | C138: PORTA VENEZIANA EM ALUMÍNIO COMPLETA, DIMENSÃO (80X210)CM, TIPO DE ABRIR, COM UMA (1) FOLHA, LINHA 25/SUPREMA, ACABAMENTO ANODIZADO NATURAL, INCLUSIVE PERFIS, FERRAGENS E INSTALAÇÃO | D138: un | E138: 1 | F138: 2293.13 | G138: 2293.13 | H138: 0.001162942162 | I138: 0.9328220448
A139: 96527 | B139: SINAPI | C139: ESCAVAÇÃO MANUAL PARA VIGA BALDRAME OU SAPATA CORRIDA (INCLUINDO ESCAVAÇÃO PARA COLOCAÇÃO DE FÔRMAS). AF_01/2024 | D139: M3 | E139: 17.41 | F139: 129.35 | G139: 2251.98 | H139: 0.001142073275 | I139: 0.933964118
A140: COT-ACE-002 | B140: COTAÇÃO | C140: ADESIVO DE SINALIZAÇÃO PARA CADEIRANTE PARA PISO | D140: UN | E140: 8 | F140: 278.63 | G140: 2229.04 | H140: 0.001130439442 | I140: 0.9350945575
A141: ED-48700 | B141: SETOP | C141: ATERRAMENTO COM HASTE DE COBRE, TIPO COPPERWELD, DIÂMETRO DE 5/8", COMPRIMENTO DE 240CM, EXCLUSIVE CABO E CAIXA PARA ATERRAMENTO, INCLUSIVE GRAMPO PARA HASTE E INSTALAÇÃO | D141: un | E141: 16 | F141: 136.09 | G141: 2177.44 | H141: 0.001104270923 | I141: 0.9361988284
A142: 96623 | B142: SINAPI | C142: LASTRO COM MATERIAL GRANULAR, APLICADO EM BLOCOS DE COROAMENTO, ESPESSURA DE *10 CM*. AF_01/2024 | D142: M3 | E142: 7.54 | F142: 288.46 | G142: 2174.99 | H142: 0.001103028425 | I142: 0.9373018568
A143: 89987 | B143: SINAPI | C143: REGISTRO DE GAVETA BRUTO, LATÃO, ROSCÁVEL, 3/4", COM ACABAMENTO E CANOPLA CROMADOS - FORNECIMENTO E INSTALAÇÃO. AF_08/2021 | D143: UN | E143: 13 | F143: 165.56 | G143: 2152.28 | H143: 0.001091511234 | I143: 0.9383933681
A144: 89578 | B144: SINAPI | C144: TUBO PVC, SÉRIE R, ÁGUA PLUVIAL, DN 100 MM, FORNECIDO E INSTALADO EM CONDUTORES VERTICAIS DE ÁGUAS PLUVIAIS. AF_06/2022 | D144: M | E144: 51.41 | F144: 41.52 | G144: 2134.54 | H144: 0.001082514538 | I144: 0.9394758826
A145: COT-ACE-001 | B145: COTAÇÃO | C145: CHAPA DE PROTEÇÃO IMPACTO PARA PORTA 40X80 | D145: UN | E145: 8 | F145: 259.15 | G145: 2073.2 | H145: 0.001051406458 | I145: 0.9405272891
A146: 89356 | B146: SINAPI | C146: TUBO, PVC, SOLDÁVEL, DE 25MM, INSTALADO EM RAMAL OU SUB-RAMAL DE ÁGUA - FORNECIMENTO E INSTALAÇÃO. AF_06/2022 | D146: M | E146: 68.38 | F146: 29.75 | G146: 2034.3 | H146: 0.00103167864 | I146: 0.9415589677
A147: 91836 | B147: SINAPI | C147: ELETRODUTO FLEXÍVEL CORRUGADO, PVC, DN 32 MM (1"), PARA CIRCUITOS TERMINAIS, INSTALADO EM FORRO - FORNECIMENTO E INSTALAÇÃO. AF_03/2023 | D147: M | E147: 75.72 | F147: 26.45 | G147: 2002.79 | H147: 0.001015698601 | I147: 0.9425746663
A148: 95876 | B148: SINAPI | C148: TRANSPORTE COM CAMINHÃO BASCULANTE DE 14 M³, EM VIA URBANA PAVIMENTADA, DMT ATÉ 30 KM (UNIDADE: M3XKM). AF_07/2020 | D148: M3XKM | E148: 708.90092 | F148: 2.82 | G148: 1999.1 | H148: 0.001013827248 | I148: 0.9435884936
A149: 90466 | B149: SINAPI | C149: CHUMBAMENTO LINEAR EM ALVENARIA PARA RAMAIS/DISTRIBUIÇÃO DE INSTALAÇÕES HIDRÁULICAS COM DIÂMETROS MENORES OU IGUAIS A 40 MM. AF_09/2023 | D149: M | E149: 102 | F149: 19.57 | G149: 1996.14 | H149: 0.001012326108 | I149: 0.9446008197
A150: 10.47.07 | B150: SUDECAP | C150: BEBEDOURO INDUSTRIAL 50L | D150: UN | E150: 1 | F150: 1993.27 | G150: 1993.27 | H150: 0.001010870611 | I150: 0.9456116903
A151: ED-50137 | B151: SETOP | C151: MOBILIZAÇÃO E DESMOBILIZAÇÃO DE CONTAINER, INCLUSIVE CARGA, DESCARGA E TRANSPORTE EM CAMINHÃO CARROCERIA COM GUINDAUTO (MUNCK), EXCLUSIVE LOCAÇÃO DO CONTAINER | D151: un | E151: 1 | F151: 1941.22 | G151: 1941.22 | H151: 0.000984473878 | I151: 0.9465961641
A152: 88484 | B152: SINAPI | C152: FUNDO SELADOR ACRÍLICO, APLICAÇÃO MANUAL EM TETO, UMA DEMÃO. AF_04/2023 | D152: M2 | E152: 285.47 | F152: 6.8 | G152: 1941.2 | H152: 0.0009844637352 | I152: 0.9475806279
A153: 91928 | B153: SINAPI | C153: CABO DE COBRE FLEXÍVEL ISOLADO, 4 MM², ANTI-CHAMA 450/750 V, PARA CIRCUITOS TERMINAIS - FORNECIMENTO E INSTALAÇÃO. AF_03/2023 | D153: M | E153: 228.31 | F153: 8.5 | G153: 1940.64 | H153: 0.0009841797357 | I153: 0.9485648076
A154: ED-48343 | B154: SETOP | C154: BANCADA EM GRANITO CINZA ANDORINHA E = 3 CM, APOIADA EM CONSOLE DE METALON 20 X 30 MM | D154: m2 | E154: 3.82 | F154: 494.28 | G154: 1888.15 | H154: 0.0009575598607 | I154: 0.9495223675
A155: ED-50287 | B155: SETOP | C155: CUBA EM AÇO INOXIDÁVEL DE EMBUTIR, AISI 304, APLICAÇÃO PARA TANQUE (600X600X400MM), ASSENTAMENTO EM BANCADA, INCLUSIVE VÁLVULA DE ESCOAMENTO DE METAL COM ACABAMENTO CROMADO, SIFÃO DE METAL TIPO COPO COM ACABAMENTO CROMADO | D155: un | E155: 1 | F155: 1859.6 | G155: 1859.6 | H155: 0.0009430809612 | I155: 0.9504654484
A156: 89712 | B156: SINAPI | C156: TUBO PVC, SERIE NORMAL, ESGOTO PREDIAL, DN 50 MM, FORNECIDO E INSTALADO EM RAMAL DE DESCARGA OU RAMAL DE ESGOTO SANITÁRIO. AF_08/2022 | D156: M | E156: 51.14 | F156: 34.6 | G156: 1769.44 | H156: 0.0008973570531 | I156: 0.9513628055
A157: ED-5444 | B157: SETOP | C157: DISJUNTOR DE PROTEÇÃO DIFERENCIAL RESIDUAL (DR), TETRAPOLAR TIPO DIN, CORRENTE NOMINAL DE 125A, SENSIBILIDADE DE 30MA, FORNECIMENTO E INSTALAÇÃO, INCLUSIVE TERMINAL DE COMPRESSÃO | D157: un | E157: 2 | F157: 882.35 | G157: 1764.7 | H157: 0.0008949532008 | I157: 0.9522577587
A158: COT-DAD-003 | B158: COTAÇÃO | C158: SWITCH GIGABIT 24 PORTAS POE | D158: UN | E158: 1 | F158: 1730.11 | G158: 1730.11 | H158: 0.0008774111647 | I158: 0.9531351699
A159: 101882 | B159: SINAPI | C159: QUADRO DE DISTRIBUIÇÃO DE ENERGIA EM CHAPA DE AÇO GALVANIZADO, DE EMBUTIR, COM BARRAMENTO TRIFÁSICO, PARA 30 DISJUNTORES DIN 225A - FORNECIMENTO E INSTALAÇÃO. AF_10/2020 | D159: UN | E159: 1 | F159: 1713.8 | G159: 1713.8 | H159: 0.0008691396813 | I159: 0.9540043095
A160: COT-INC-002 | B160: COTAÇÃO | C160: EXTINTOR DE INCÊNDIO TIPO PÓ QUÍMICO 4-A:40-B:C, CAPACIDADE 6 KG, EXCLUISVE INSTALAÇÃO | D160: UN | E160: 4 | F160: 415.75 | G160: 1663 | H160: 0.0008433768759 | I160: 0.9548476864
A161: COT-DAD-008 | B161: COTAÇÃO | C161: RACK 12U 19" 570mm | D161: UN | E161: 1 | F161: 1660.14 | G161: 1660.14 | H161: 0.0008419264503 | I161: 0.9556896129
A162: ED-48503 | B162: SETOP | C162: DEMOLIÇÃO MANUAL DE REVESTIMENTO DE PEDRA (MÁRMORE, GRANITO, ARDÓSIA, ETC.), INCLUSIVE AFASTAMENTO E EMPILHAMENTO, EXCLUSIVE DEMOLIÇÃO DO REBOCO OU EMBOÇO, TRANSPORTE E RETIRADA DO MATERIAL DEMOLIDO | D162: m2 | E162: 50.42 | F162: 32.7 | G162: 1648.73 | H162: 0.0008361399619 | I162: 0.9565257528
A163: 97637 | B163: SINAPI | C163: REMOÇÃO DE TAPUME/ CHAPAS METÁLICAS E DE MADEIRA, DE FORMA MANUAL, SEM REAPROVEITAMENTO. AF_09/2023 | D163: M2 | E163: 463.65 | F163: 3.54 | G163: 1641.32 | H163: 0.0008323820409 | I163: 0.9573581349
A164: 89584 | B164: SINAPI | C164: JOELHO 90 GRAUS, PVC, SERIE R, ÁGUA PLUVIAL, DN 100 MM, JUNTA ELÁSTICA, FORNECIDO E INSTALADO EM CONDUTORES VERTICAIS DE ÁGUAS PLUVIAIS. AF_06/2022 | D164: UN | E164: 30 | F164: 54.15 | G164: 1624.5 | H164: 0.0008238519152 | I164: 0.9581819868
A165: 104746 | B165: SINAPI | C165: MINI CAPTOR PARA SPDA - FORNECIMENTO E INSTALAÇÃO. AF_08/2023 | D165: UN | E165: 47 | F165: 33.41 | G165: 1570.27 | H165: 0.0007963496133 | I165: 0.9589783364
A166: 103320 | B166: SINAPI | C166: ALVENARIA DE VEDAÇÃO DE BLOCOS VAZADOS DE CONCRETO DE 19X19X39 CM (ESPESSURA 19 CM) E ARGAMASSA DE ASSENTAMENTO COM PREPARO EM BETONEIRA. AF_12/2021 | D166: M2 | E166: 10 | F166: 156.64 | G166: 1566.4 | H166: 0.0007943869744 | I166: 0.9597727234
A167: ED-50282 | B167: SETOP | C167: LAVATÓRIO DE LOUÇA BRANCA COM COLUNA, TAMANHO MÉDIO, INCLUSIVE ACESSÓRIOS DE FIXAÇÃO, VÁLVULA DE ESCOAMENTO DE METAL COM ACABAMENTO CROMADO, SIFÃO DE METAL TIPO COPO COM ACABAMENTO CROMADO E REJUNTAMENTO, EXCLUSIVE TORNEIRA E ENGATE FLEXÍVEL | D167: un | E167: 2 | F167: 776.66 | G167: 1553.32 | H167: 0.0007877535592 | I167: 0.9605604769
A168: 88485 | B168: SINAPI | C168: FUNDO SELADOR ACRÍLICO, APLICAÇÃO MANUAL EM PAREDE, UMA DEMÃO. AF_04/2023 | D168: M2 | E168: 278.8 | F168: 5.57 | G168: 1552.92 | H168: 0.0007875507025 | I168: 0.9613480276
A169: DAC-10.2 | B169: CPU | C169: RODAPÉ COM REVESTIMENTO EM PORCELANATO 60X60 COM BORDA RETIFICADA E ACABAMENTO POLIDO, ALTURA 10CM | D169: M | E169: 88.4 | F169: 17.02 | G169: 1504.57 | H169: 0.0007630303946 | I169: 0.962111058
A170: ED-48160 | B170: SETOP | C170: BARRA DE APOIO EM AÇO INOX POLIDO RETA, DIÂMETRO DE 1.1/4", PARA ACESSIBILIDADE (PMR/PCR), COMPRIMENTO 80CM, INSTALADO EM PAREDE, INCLUSIVE ACESSÓRIOS PARA FIXAÇÃO | D170: un | E170: 6 | F170: 249.9 | G170: 1499.4 | H170: 0.0007604084713 | I170: 0.9628714665
A171: ED-28427 | B171: SETOP | C171: FORNECIMENTO E COLOCAÇÃO DE PLACA DE OBRA EM CHAPA GALVANIZADA #26, ESP. 0,45MM, DIMENSÃO (3X1,5)M, PLOTADA COM ADESIVO VINÍLICO, AFIXADA COM REBITES 4,8X40MM, EM ESTRUTURA METÁLICA DE METALON 20X20MM, ESP. 1,25MM, INCLUSIVE SUPORTE EM EUCALIPTO AUTOCLAVADO PINTADO COM TINTA PVA DUAS (2) DEMÃOS | D171: un | E171: 1 | F171: 1492.35 | G171: 1492.35 | H171: 0.0007568331214 | I171: 0.9636282996
A172: ED-50703 | B172: SETOP | C172: LIMPEZA DE TERRENO, INCLUSIVE CAPINA, RASTELAMENTO COM AFASTAMENTO ATÉ VINTE (20) METROS E QUEIMA CONTROLADA | D172: m2 | E172: 458.43 | F172: 3.13 | G172: 1434.89 | H172: 0.0007276927514 | I172: 0.9643559924
A173: 101883 | B173: SINAPI | C173: QUADRO DE DISTRIBUIÇÃO DE ENERGIA EM CHAPA DE AÇO GALVANIZADO, DE EMBUTIR, COM BARRAMENTO TRIFÁSICO, PARA 18 DISJUNTORES DIN 100A - FORNECIMENTO E INSTALAÇÃO. AF_10/2020 | D173: UN | E173: 2 | F173: 697.63 | G173: 1395.26 | H173: 0.0007075947203 | I173: 0.9650635871
A174: 101895 | B174: SINAPI | C174: DISJUNTOR TERMOMAGNÉTICO TRIPOLAR , CORRENTE NOMINAL DE 125A - FORNECIMENTO E INSTALAÇÃO. AF_10/2020 | D174: UN | E174: 2 | F174: 685.13 | G174: 1370.26 | H174: 0.0006949161744 | I174: 0.9657585033
A175: 91944 | B175: SINAPI | C175: CAIXA RETANGULAR 4" X 4" BAIXA (0,30 M DO PISO), PVC, INSTALADA EM PAREDE - FORNECIMENTO E INSTALAÇÃO. AF_03/2023 | D175: UN | E175: 68 | F175: 19.5 | G175: 1326 | H175: 0.0006724700767 | I175: 0.9664309733
A176: 96531 | B176: SINAPI | C176: FABRICAÇÃO, MONTAGEM E DESMONTAGEM DE FÔRMA PARA BLOCO DE COROAMENTO, EM MADEIRA SERRADA, E=25 MM, 2 UTILIZAÇÕES. AF_01/2024 | D176: M2 | E176: 9.8 | F176: 134.06 | G176: 1313.79 | H176: 0.0006662778748 | I176: 0.9670972512
A177: 98106 | B177: SINAPI | C177: CAIXA DE GORDURA ESPECIAL (CAPACIDADE: 312 L - PARA ATÉ 146 PESSOAS SERVIDAS NO PICO), RETANGULAR, EM ALVENARIA COM TIJOLOS CERÂMICOS MACIÇOS, DIMENSÕES INTERNAS = 0,4X1,2 M, ALTURA INTERNA = 1 M. AF_12/2020 | D177: UN | E177: 1 | F177: 1306.9 | G177: 1306.9 | H177: 0.0006627836676 | I177: 0.9677600349
A178: ED-48441 | B178: SETOP | C178: DEMOLIÇÃO MANUAL DE CONCRETO ARMADO, INCLUSIVE AFASTAMENTO E EMPILHAMENTO, EXCLUSIVE TRANSPORTE E RETIRADA DO MATERIAL DEMOLIDO | D178: m3 | E178: 2.07 | F178: 630.94 | G178: 1306.05 | H178: 0.000662352597 | I178: 0.9684223875
A179: 2374 | B179: SINAPI | C179: DISJUNTOR TERMOMAGNETICO TRIPOLAR 150 A / 600 V, TIPO FXD / ICC - 35 KA | D179: UN | E179: 2 | F179: 645.28 | G179: 1290.56 | H179: 0.0006544969699 | I179: 0.9690768845
A180: DAC-21.3 | B180: CPU | C180: PISO TATIL DE ALERTA OU DIRECIONAL, DE BORRACHA, PRETO, 25 X 25 CM, E = 12 MM, PARA ARGAMASSA - FORNECIMENTO E INSTALAÇÃO | D180: M2 | E180: 1.8125 | F180: 711.4 | G180: 1287.63 | H180: 0.0006530110444 | I180: 0.9697298955
A181: ED-48373 | B181: SETOP | C181: PATCH PANEL 24 POSIÇÕES, CATEGORIA COM GUIA TRASEIRO | D181: cj | E181: 1 | F181: 1214.68 | G181: 1214.68 | H181: 0.0006160150473 | I181: 0.9703459105
A182: 103946 | B182: SINAPI | C182: PLANTIO DE GRAMA ESMERALDA OU SÃO CARLOS OU CURITIBANA, EM PLACAS. AF_07/2024 | D182: M2 | E182: 58.43 | F182: 20 | G182: 1168.6 | H182: 0.0005926459514 | I182: 0.9709385565
A183: 91845 | B183: SINAPI | C183: ELETRODUTO FLEXÍVEL CORRUGADO REFORÇADO, PVC, DN 25 MM (3/4"), PARA CIRCUITOS TERMINAIS, INSTALADO EM LAJE - FORNECIMENTO E INSTALAÇÃO. AF_03/2023 | D183: M | E183: 103.47 | F183: 11.08 | G183: 1146.45 | H183: 0.0005814127597 | I183: 0.9715199693
A184: 90278 | B184: SINAPI | C184: GRAUTE FGK=15 MPA; TRAÇO 1:0,04:2,2:2,5 (EM MASSA SECA DE CIMENTO/CAL/AREIA GROSSA/BRITA 0) - PREPARO MECÂNICO COM BETONEIRA 400 L. AF_09/2021 | D184: M3 | E184: 1.65 | F184: 688.57 | G184: 1136.14 | H184: 0.0005761841274 | I184: 0.9720961534
A185: ED-48372 | B185: SETOP | C185: PATCH CORD RJ45/RJ45 UTP-4P METÁLICO CATEGORIA 6, PINAGEM T568A (VOZ), COMPRIMENTO 3 METROS | D185: un | E185: 40 | F185: 28.18 | G185: 1127.2 | H185: 0.0005716502794 | I185: 0.9726678037
A186: ED-50482 | B186: SETOP | C186: EMASSAMENTO EM ESQUADRIA DE MADEIRA COM MASSA A ÓLEO, DUAS (2) DEMÃOS, INCLUSIVE LIXAMENTO PARA PINTURA A ÓLEO OU ESMALTE | D186: m2 | E186: 22.68 | F186: 48.1 | G186: 1090.91 | H186: 0.0005532461021 | I186: 0.9732210498
A187: ED-51003 | B187: SETOP | C187: SOLEIRA DE GRANITO, NA COR CINZA ANDORINHA, ESP. 3CM, ACABAMENTO POLIDO, ASSENTAMENTO COM ARGAMASSA INDUSTRIALIZADA, INCLUSIVE REJUNTAMENTO | D187: m2 | E187: 2.38 | F187: 444.28 | G187: 1057.39 | H187: 0.0005362467077 | I187: 0.9737572965
A188: 90443 | B188: SINAPI | C188: RASGO LINEAR MANUAL EM ALVENARIA, PARA RAMAIS/ DISTRIBUIÇÃO DE INSTALAÇÕES HIDRÁULICAS, DIÂMETROS MENORES OU IGUAIS A 40 MM. AF_09/2023 | D188: M | E188: 102 | F188: 10.14 | G188: 1034.28 | H188: 0.0005245266598 | I188: 0.9742818231
A189: COT-DAD-010 | B189: COTAÇÃO | C189: CABO FTP 5E (BLINDADO) - 305 METROS | D189: UN | E189: 1 | F189: 995.2 | G189: 995.2 | H189: 0.0005047075568 | I189: 0.9747865307
A190: ED-50493 | B190: SETOP | C190: PINTURA ESMALTE BASE SOLVENTE EM ESQUADRIA DE MADEIRA, DUAS (2) DEMÃOS, COM APLICAÇÃO MANUAL, INCLUSIVE UMA (1) DEMÃO DE FUNDO NIVELADOR E PREPARAÇÃO DA SUPERFÍCIE COM LIXAMENTO, EXCLUSIVE MASSA A ÓLEO | D190: m2 | E190: 22.68 | F190: 42.37 | G190: 960.95 | H190: 0.0004873379488 | I190: 0.9752738686
A191: 91856 | B191: SINAPI | C191: ELETRODUTO FLEXÍVEL CORRUGADO, PVC, DN 32 MM (1"), PARA CIRCUITOS TERMINAIS, INSTALADO EM PAREDE - FORNECIMENTO E INSTALAÇÃO. AF_03/2023 | D191: M | E191: 58.34 | F191: 16.47 | G191: 960.86 | H191: 0.0004872923061 | I191: 0.9757611609
A192: COT-DAD-002 | B192: COTAÇÃO | C192: HD 2 TB | D192: UN | E192: 1 | F192: 955.32 | G192: 955.32 | H192: 0.0004844827403 | I192: 0.9762456437
A193: ED-48189 | B193: SETOP | C193: DISTRIBUIDOR/DISPENSER PARA ÁLCOOL EM GEL OU SABONETE LÍQUIDO, EM PLÁSTICO, CAPACIDADE RESERVATÓRIO 1500ML, INCLUSIVE ACESSÓRIOS PARA FIXAÇÃO | D193: un | E193: 8 | F193: 119.01 | G193: 952.08 | H193: 0.0004828396007 | I193: 0.9767284833
A194: 91993 | B194: SINAPI | C194: TOMADA ALTA DE EMBUTIR (1 MÓDULO), 2P+T 20 A, INCLUINDO SUPORTE E PLACA - FORNECIMENTO E INSTALAÇÃO. AF_03/2023 | D194: UN | E194: 16 | F194: 59.27 | G194: 948.32 | H194: 0.0004809327474 | I194: 0.977209416
A195: 89985 | B195: SINAPI | C195: REGISTRO DE PRESSÃO BRUTO, LATÃO, ROSCÁVEL, 3/4", COM ACABAMENTO E CANOPLA CROMADOS - FORNECIMENTO E INSTALAÇÃO. AF_08/2021 | D195: UN | E195: 6 | F195: 156.96 | G195: 941.76 | H195: 0.000477605897 | I195: 0.9776870219
A196: 86872 | B196: SINAPI | C196: TANQUE DE LOUÇA BRANCA COM COLUNA, 30L OU EQUIVALENTE - FORNECIMENTO E INSTALAÇÃO. AF_01/2020 | D196: UN | E196: 1 | F196: 933.69 | G196: 933.69 | H196: 0.0004735132624 | I196: 0.9781605352
A197: DAC-21.1 | B197: CPU | C197: PLACA DE SINALIZACAO EM CHAPA DE ALUMINIO COM PINTURA REFLETIVA, E = 2 MM - FORNECIMENTO E INSTALAÇÃO | D197: M2 | E197: 0.57 | F197: 1622.96 | G197: 925.09 | H197: 0.0004691518426 | I197: 0.978629687
A198: DAC-23.1 | B198: CPU | C198: LAUDO CAUTELAR - EDIFICAÇÕES RESIDENCIAIS | D198: UN | E198: 1 | F198: 923.16 | G198: 923.16 | H198: 0.0004681730588 | I198: 0.9790978601
A199: ED-48164 | B199: SETOP | C199: BARRA DE APOIO EM AÇO INOX POLIDO RETA, DIÂMETRO DE 1.1/4", PARA ACESSIBILIDADE (PMR/PCR), COMPRIMENTO 70CM, INSTALADO EM PAREDE, INCLUSIVE ACESSÓRIOS PARA FIXAÇÃO | D199: un | E199: 3 | F199: 300.24 | G199: 900.72 | H199: 0.000456792796 | I199: 0.9795546529
A200: DAC-2.1 | B200: CPU | C200: REMOÇÃO DE POSTE METÁLICO | D200: UN | E200: 5 | F200: 179.2 | G200: 896 | H200: 0.0004543990865 | I200: 0.980009052
A201: 98295 | B201: SINAPI | C201: CABO ELETRÔNICO CATEGORIA 5E, INSTALADO EM EDIFICAÇÃO INSTITUCIONAL - FORNECIMENTO E INSTALAÇÃO. AF_11/2019 | D201: M | E201: 132.97 | F201: 6.62 | G201: 880.26 | H201: 0.000446416674 | I201: 0.9804554686
A202: ED-48183 | B202: SETOP | C202: DISTRIBUIDOR/DISPENSER PARA PAPEL HIGIÊNICO EM PLÁSTICO, TIPO SOBREPOR, INCLUSIVE ACESSÓRIOS DE FIXAÇÃO | D202: un | E202: 11 | F202: 76.07 | G202: 836.77 | H202: 0.0004243610755 | I202: 0.9808798297
A203: 92482 | B203: SINAPI | C203: MONTAGEM E DESMONTAGEM DE FÔRMA DE LAJE MACIÇA, PÉ-DIREITO SIMPLES, EM MADEIRA SERRADA, 1 UTILIZAÇÃO. AF_09/2020 | D203: M2 | E203: 1.66 | F203: 500.31 | G203: 830.51 | H203: 0.0004211863676 | I203: 0.9813010161
A204: 91930 | B204: SINAPI | C204: CABO DE COBRE FLEXÍVEL ISOLADO, 6 MM², ANTI-CHAMA 450/750 V, PARA CIRCUITOS TERMINAIS - FORNECIMENTO E INSTALAÇÃO. AF_03/2023 | D204: M | E204: 69.7 | F204: 11.84 | G204: 825.25 | H204: 0.0004185188015 | I204: 0.9817195349
A205: ED-29818 | B205: SETOP | C205: MOBILIZAÇÃO E DESMOBILIZAÇÃO DE EQUIPAMENTO PARA ESTACA TIPO TRADO ROTATIVO (CUSTO VARIÁVEL), EXCLUSIVE CUSTO FIXO DE TRANSPORTE | D205: km | E205: 30 | F205: 26.97 | G205: 809.1 | H205: 0.0004103284608 | I205: 0.9821298634
A206: ED-49149 | B206: SETOP | C206: CAIXA DE PASSAGEM, DIMENSÃO (20X20)CM, EM CHAPA DE AÇO, TIPO DE EMBUTIR, COM ACABAMENTO EM PINTURA ELETROSTÁTICA E TAMPA CEGA, INCLUSIVE FIXAÇÃO EM ALVENARIA | D206: un | E206: 5 | F206: 159.6 | G206: 798 | H206: 0.0004046991864 | I206: 0.9825345625
... 139 more rows

Sheet Auxiliar_ABC (hidden)
A1: ED-48298 | B1: SETOP | C1: CORTE, DOBRA E MONTAGEM DE AÇO CA-50/60, INCLUSIVE ESPAÇADOR | D1: Kg | E1: 4914 | F1: 17.24 | G1: 84717.37 | H1: 0.0429637227 | I1: 0.0429637227 | R1: QUANTIDADE TOTAL | V1: VALOR TOTAL | W1: % | X1: =W1 -> %
A2: 103318 | B2: SINAPI | C2: ALVENARIA DE VEDAÇÃO DE BLOCOS VAZADOS DE CONCRETO DE 14X19X39 CM (ESPESSURA 14 CM) E ARGAMASSA DE ASSENTAMENTO COM PREPARO EM BETONEIRA. AF_12/2021 | D2: M2 | E2: 554.54 | F2: 130.23 | G2: 72217.74 | H2: 0.03662463737 | I2: 0.07958836007 | R2: =SUMIF(ORC!$F:$F,O2,ORC!$I:$I) -> 0 | V2: =SUMIF(ORC!$F:$F,O2,ORC!$N:$N) -> 0 | W2: =V2/SUM($I:$I) -> 0 | X2: =W2+X1 -> 
A3: COT-HID-002 | B3: COTAÇÃO | C3: RESERVATÓRIO TIPO TAÇA, COLUNA SECA, 35.000 LITROS - FORNECIMENTO E INSTALAÇÃO | D3: UN | E3: 1 | F3: 69839.04 | G3: 69839.04 | H3: 0.03541829908 | I3: 0.1150066592
A4: DAC-10.1 | B4: CPU | C4: EXECUÇÃO DE PASSEIO (CALÇADA) OU PISO DE CONCRETO COM CONCRETO MOLDADO IN LOCO, USINADO, ACABAMENTO CONVENCIONAL, ESPESSURA 10 CM, ARMADO | D4: M2 | E4: 433.06 | F4: 158.46 | G4: 68622.69 | H4: 0.03480143711 | I4: 0.1498080963
A5: DAC-5.2 | B5: CPU | C5: ESTACA DO TIPO STRAUSS, COM DIÂMETRO DE 32CM, CONCRETO C-20, ARMAÇÃO, MOBILIZAÇÃO E DESMOBILIZAÇÃO | D5: M | E5: 336 | F5: 198.58 | G5: 66722.88 | H5: 0.03383796397 | I5: 0.1836460602
A6: DAC-15.2 | B6: CPU | C6: CANALETA DE CONCRETO ARMADO 0,30 X 0,20M - INCLUSIVE GRELHA EM FERRO FUNDIDO | D6: M | E6: 97.04 | F6: 564.53 | G6: 54781.99 | H6: 0.02778223908 | I6: 0.2114282993
A7: 87779 | B7: SINAPI | C7: EMBOÇO OU MASSA ÚNICA EM ARGAMASSA TRAÇO 1:2:8, PREPARO MECÂNICO COM BETONEIRA 400 L, APLICADA MANUALMENTE EM PANOS DE FACHADA COM PRESENÇA DE VÃOS, ESPESSURA DE 35 MM. AF_08/2022 | D7: M2 | E7: 550.62 | F7: 90.67 | G7: 49924.72 | H7: 0.02531891424 | I7: 0.2367472136
A8: 92450 | B8: SINAPI | C8: MONTAGEM E DESMONTAGEM DE FÔRMA DE VIGA, ESCORAMENTO METÁLICO, PÉ-DIREITO DUPLO, EM CHAPA DE MADEIRA RESINADA, 2 UTILIZAÇÕES. AF_09/2020 | D8: M2 | E8: 117.39 | F8: 376.37 | G8: 44182.07 | H8: 0.02240657617 | I8: 0.2591537897
A9: 94440 | B9: SINAPI | C9: TELHAMENTO COM TELHA CERÂMICA DE ENCAIXE, TIPO FRANCESA, COM ATÉ 2 ÁGUAS, INCLUSO TRANSPORTE VERTICAL. AF_07/2019 | D9: M2 | E9: 470.883 | F9: 85.08 | G9: 40062.47 | H9: 0.02031735465 | I9: 0.2794711444
A10: 92569 | B10: SINAPI | C10: TRAMA DE AÇO COMPOSTA POR RIPAS E CAIBROS PARA TELHADOS DE ATÉ 2 ÁGUAS PARA TELHA DE ENCAIXE DE CERÂMICA OU DE CONCRETO, INCLUSO TRANSPORTE VERTICAL. AF_07/2019 | D10: M2 | E10: 470.883 | F10: 82.16 | G10: 38687.5 | H10: 0.01962004984 | I10: 0.2990911942
A11: ED-29484 | B11: SETOP | C11: JANELA EM ALUMÍNIO DE CORRER COM 2 FOLHAS, LINHA 25/SUPREMA, ACABAMENTO ANODIZADO NATURAL, INCLUSIVE PERFIS, VIDRO 4MM E INSTALAÇÃO, EXCLUSIVE FERRAGENS PARA JANELA DE ALUMÍNIO DE CORRER | D11: m2 | E11: 34.5 | F11: 1107.69 | G11: 38215.31 | H11: 0.01938058254 | I11: 0.3184717768
A12: ED-50754 | B12: SETOP | C12: REVESTIMENTO COM PORCELANATO APLICADO EM PISO, ACABAMENTO POLÍDO, AMBIENTE INTERNO, PADRÃO EXTRA, BORDA RETIFICADA, DIMENSÃO DA PEÇA (60X60)CM, ASSENTAMENTO COM ARGAMASSA INDUSTRIALIZADA, INCLUSIVE REJUNTAMENTO | D12: m2 | E12: 283.21 | F12: 129.67 | G12: 36723.84 | H12: 0.0186241957 | I12: 0.3370959725
A13: ED-29823 | B13: SETOP | C13: TAPUME FIXO DE PROTEÇÃO PARA FECHAMENTO DE OBRA EM TELHA METÁLICA GALVANIZADA, TIPO TRAPEZOIDAL, ESP. 0,5MM, COM MÓDULO NA DIMENSÃO DE (300X220)CM, COM REAPROVEITAMENTO, EXCLUSIVE PINTURA ESMALTE, INCLUSIVE PONTALETE E FIXAÇÃO | D13: m2 | E13: 463.65 | F13: 77.65 | G13: 36002.42 | H13: 0.01825833344 | I13: 0.3553543059
A14: 92446 | B14: SINAPI | C14: MONTAGEM E DESMONTAGEM DE FÔRMA DE VIGA, ESCORAMENTO COM PONTALETE DE MADEIRA, PÉ-DIREITO SIMPLES, EM MADEIRA SERRADA, 1 UTILIZAÇÃO. AF_09/2020 | D14: M2 | E14: 79.02 | F14: 444.33 | G14: 35110.96 | H14: 0.01780623677 | I14: 0.3731605427
A15: ED-9081 | B15: SETOP | C15: REVESTIMENTO COM CERÂMICA APLICADO EM PAREDE, ACABAMENTO ESMALTADO, AMBIENTE INTERNO/EXTERNO, PADRÃO EXTRA, DIMENSÃO DA PEÇA ATÉ 2025 CM2, PEI III, ASSENTAMENTO COM ARGAMASSA INDUSTRIALIZADA, INCLUSIVE REJUNTAMENTO | D15: m2 | E15: 383.11 | F15: 90.39 | G15: 34629.31 | H15: 0.01756197191 | I15: 0.3907225146
A16: ED-49806 | B16: SETOP | C16: FORNECIMENTO DE CONCRETO ESTRUTURAL, USINADO BOMBEADO, COM FCK 30MPA, INCLUSIVE LANÇAMENTO, ADENSAMENTO E ACABAMENTO (FUNDAÇÃO) | D16: m3 | E16: 35.16 | F16: 929.07 | G16: 32666.09 | H16: 0.01656634091 | I16: 0.4072888555
A17: 87529 | B17: SINAPI | C17: MASSA ÚNICA, EM ARGAMASSA TRAÇO 1:2:8, PREPARO MECÂNICO, APLICADA MANUALMENTE EM PAREDES INTERNAS DE AMBIENTES COM ÁREA ENTRE 5M² E 10M², E = 17,5MM, COM TALISCAS. AF_03/2024 | D17: M2 | E17: 661.91 | F17: 47.02 | G17: 31123.01 | H17: 0.01578378048 | I17: 0.423072636
A18: ED-49810 | B18: SETOP | C18: FÔRMA E DESFORMA PARA VIGA-CINTA/BLOCO COM TÁBUA E SARRAFO, REAPROVEITAMENTO (3X) (FUNDAÇÃO) | D18: m2 | E18: 346.18 | F18: 88.65 | G18: 30688.86 | H18: 0.01556360485 | I18: 0.4386362408
A19: 94229 | B19: SINAPI | C19: CALHA EM CHAPA DE AÇO GALVANIZADO NÚMERO 24, DESENVOLVIMENTO DE 100 CM, INCLUSO TRANSPORTE VERTICAL. AF_07/2019 | D19: M | E19: 115.16 | F19: 247.81 | G19: 28537.8 | H19: 0.01447271233 | I19: 0.4531089532
A20: ED-51096 | B20: SETOP | C20: COMPACTAÇÃO MECANIZADA DE ATERRO COM PLACA VIBRATÓRIA, INCLUSIVE ESPALHAMENTO MANUAL | D20: m3 | E20: 429.5 | F20: 64.47 | G20: 27689.87 | H20: 0.01404269155 | I20: 0.4671516447
A21: DAC-14.1 | B21: CPU | C21: BANCADA EM AÇO INOX COM RODABANCA | D21: M2 | E21: 9.3 | F21: 2646.1 | G21: 24608.73 | H21: 0.01248011655 | I21: 0.4796317613
A22: DAC-5.4 | B22: CPU | C22: LAJE TRELIÇADA H=12 CM - INCLUSO MONTAGEM E FORNECIMENTO DE TODOS OS MATERIAIS | D22: M2 | E22: 131.66 | F22: 186.08 | G22: 24499.29 | H22: 0.01242461495 | I22: 0.4920563762
A23: DAC-5.5 | B23: CPU | C23: LAJE TRELIÇADA H=16 CM - INCLUSO MONTAGEM E FORNECIMENTO DE TODOS OS MATERIAIS | D23: M2 | E23: 117.69 | F23: 205.06 | G23: 24133.51 | H23: 0.01223911261 | I23: 0.5042954888
A24: ED-49639 | B24: SETOP | C24: FORNECIMENTO DE CONCRETO ESTRUTURAL, USINADO BOMBEADO, COM FCK 30MPA, INCLUSIVE LANÇAMENTO, ADENSAMENTO E ACABAMENTO | D24: m3 | E24: 24.72 | F24: 947.68 | G24: 23426.64 | H24: 0.01188062926 | I24: 0.5161761181
A25: ED-51017 | B25: SETOP | C25: ATERRAMENTO COMPLETO PARA PARA-RAIOS, COM HASTE DE COBRE DE ALTA CAMADA, TIPO COPPERWELD, DIÂMETRO DE 3/4", COMPRIMENTO DE 240CM, EXCLUSIVE CABO, INCLUSIVE CAIXA DE INSPEÇÃO COM TAMPA EM FERRO FUNDIDO E GRAMPO PARA HASTE | D25: un | E25: 16 | F25: 1453.84 | G25: 23261.44 | H25: 0.01179684943 | I25: 0.5279729675
A26: 6077 | B26: SINAPI | C26: ARGILA OU BARRO PARA ATERRO/REATERRO (RETIRADO NA JAZIDA, SEM TRANSPORTE) | D26: M3 | E26: 477.2222222 | F26: 47.25 | G26: 22548.65 | H26: 0.0114353638 | I26: 0.5394083313
A27: DAC-15.1 | B27: CPU | C27: CANALETA DE CONCRETO ARMADO 0,20 X 0,20M - INCLUSIVE GRELHA EM FERRO FUNDIDO | D27: M | E27: 56.2 | F27: 388.84 | G27: 21852.81 | H27: 0.01108247422 | I27: 0.5504908055
A28: 95875 | B28: SINAPI | C28: TRANSPORTE COM CAMINHÃO BASCULANTE DE 10 M³, EM VIA URBANA PAVIMENTADA, DMT ATÉ 30 KM (UNIDADE: M3XKM). AF_07/2020 | D28: M3XKM | E28: 6762.312111 | F28: 3.2 | G28: 21639.39 | H28: 0.01097424001 | I28: 0.5614650455
A29: 98555 | B29: SINAPI | C29: IMPERMEABILIZAÇÃO DE SUPERFÍCIE COM ARGAMASSA POLIMÉRICA / MEMBRANA ACRÍLICA, 3 DEMÃOS. AF_09/2023 | D29: M2 | E29: 539.505 | F29: 38.95 | G29: 21013.91 | H29: 0.01065703293 | I29: 0.5721220785
A30: ED-13935 | B30: SETOP | C30: CABO DE COBRE NU #50 MM2 - 7 FIOSX3,00MM, PARA ELEMENTOS DE CAPTAÇÃO/ANEL DE CINTAMENTO (SPDA), INCLUSIVE PRESILHA DE FIXAÇÃO | D30: m | E30: 257.3 | F30: 76.34 | G30: 19642.28 | H30: 0.009961421974 | I30: 0.5820835004
A31: ED-51131 | B31: SETOP | C31: CARGA MANUAL DE MATERIAL DE QUALQUER NATUREZA SOBRE CAMINHÃO, EXCLUSIVE TRANSPORTE | D31: m3 | E31: 365.84046 | F31: 52.98 | G31: 19382.2 | H31: 0.009829524525 | I31: 0.591913025
A32: ED-50155 | B32: SETOP | C32: LOCAÇÃO DE BANHEIRO QUÍMICO, DIMENSÃO (110X120X230)CM, LINHA PADRÃO, CONTENDO UMA (1) PIA/HIGIENIZADOR DE MÃOS, INCLUSIVE MANUTENÇÃO E MOBILIZAÇÃO/DESMOBILIZAÇÃO | D32: mês | E32: 16 | F32: 1138.68 | G32: 18218.88 | H32: 0.009239556282 | I32: 0.6011525813
A33: 92990 | B33: SINAPI | C33: CABO DE COBRE FLEXÍVEL ISOLADO, 70 MM², ANTI-CHAMA 0,6/1,0 KV, PARA REDE ENTERRADA DE DISTRIBUIÇÃO DE ENERGIA ELÉTRICA - FORNECIMENTO E INSTALAÇÃO. AF_12/2021 | D33: M | E33: 183.36 | F33: 97.49 | G33: 17875.77 | H33: 0.009065550846 | I33: 0.6102181321
A34: 99059 | B34: SINAPI | C34: LOCAÇÃO CONVENCIONAL DE OBRA, UTILIZANDO GABARITO DE TÁBUAS CORRIDAS PONTALETADAS A CADA 2,00M - 2 UTILIZAÇÕES. AF_03/2024 | D34: M | E34: 202.15 | F34: 88.42 | G34: 17874.1 | H34: 0.00906470392 | I34: 0.619282836
A35: 92415 | B35: SINAPI | C35: MONTAGEM E DESMONTAGEM DE FÔRMA DE PILARES RETANGULARES E ESTRUTURAS SIMILARES, PÉ-DIREITO SIMPLES, EM CHAPA DE MADEIRA COMPENSADA RESINADA, 2 UTILIZAÇÕES. AF_09/2020 | D35: M2 | E35: 98.9 | F35: 178.6 | G35: 17663.54 | H35: 0.008957920134 | I35: 0.6282407562
A36: 92261 | B36: SINAPI | C36: INSTALAÇÃO DE TESOURA (INTEIRA OU MEIA), BIAPOIADA, EM MADEIRA NÃO APARELHADA, PARA VÃOS MAIORES OU IGUAIS A 8,0 M E MENORES QUE 10,0 M, INCLUSO IÇAMENTO. AF_07/2019 | D36: UN | E36: 20 | F36: 880.99 | G36: 17619.8 | H36: 0.00893573775 | I36: 0.6371764939
A37: ED-48533 | B37: SETOP | C37: DIVISÓRIA EM GRANITO CINZA ANDORINHA, ESP. 3CM, INCLUSIVE INSTALAÇÃO, FERRAGENS EM LATÃO CROMADO E ACESSÓRIOS | D37: m2 | E37: 21.05 | F37: 833.12 | G37: 17537.18 | H37: 0.008893837692 | I37: 0.6460703316
A38: 87630 | B38: SINAPI | C38: CONTRAPISO EM ARGAMASSA TRAÇO 1:4 (CIMENTO E AREIA), PREPARO MECÂNICO COM BETONEIRA 400 L, APLICADO EM ÁREAS SECAS SOBRE LAJE, ADERIDO, ACABAMENTO NÃO REFORÇADO, ESPESSURA 3CM. AF_07/2021 | D38: M2 | E38: 330.45 | F38: 51.45 | G38: 17001.65 | H38: 0.008622248023 | I38: 0.6546925796
A39: COT-ARQ-001 | B39: COTAÇÃO | C39: COBERTURA DE POLICARBONATO 2,00 MM, INCLUSIVE ESTRUTURA METÁLICA, CALHAS E PINTURA | D39: M2 | E39: 20.1 | F39: 842.53 | G39: 16934.85 | H39: 0.008588370949 | I39: 0.6632809506
A40: ED-50474 | B40: SETOP | C40: EMASSAMENTO EM PAREDE COM MASSA ACRÍLICA, DUAS (2) DEMÃOS, INCLUSIVE LIXAMENTO PARA PINTURA | D40: m2 | E40: 550.62 | F40: 29.61 | G40: 16303.86 | H40: 0.00826836952 | I40: 0.6715493201
A41: 92417 | B41: SINAPI | C41: MONTAGEM E DESMONTAGEM DE FÔRMA DE PILARES RETANGULARES E ESTRUTURAS SIMILARES, PÉ-DIREITO DUPLO, EM CHAPA DE MADEIRA COMPENSADA RESINADA, 2 UTILIZAÇÕES. AF_09/2020 | D41: M2 | E41: 76.91 | F41: 208.4 | G41: 16028.04 | H41: 0.008128489659 | I41: 0.6796778097
A42: ED-13338 | B42: SETOP | C42: LUMINÁRIA COMERCIAL CHANFRADA DE SOBREPOR COMPLETA, PARA DUAS (2) LÂMPADAS TUBULARES LED 2X18W-ØT8, TEMPERATURA DA COR 6500K, FORNECIMENTO E INSTALAÇÃO, INCLUSIVE BASE E LÂMPADAS | D42: un | E42: 68 | F42: 218.57 | G42: 14862.76 | H42: 0.007537527418 | I42: 0.6872153372
A43: DAC-5.3 | B43: CPU | C43: ESTACA DO TIPO BROCA MANUAL, COM DIÂMETRO DE 25CM, CONCRETO C-20, COM ARMAÇÃO | D43: M | E43: 91 | F43: 152.62 | G43: 13888.42 | H43: 0.00704339884 | I43: 0.694258736
A44: DAC-5.1 | B44: CPU | C44: ESTACA DO TIPO ESCAVADA COM TRADO MECÂNICO, SEM FLUIDO ESTABILIZANTE, COM DIÂMETRO DE 30CM, CONCRETO C-25 LANÇADO POR CAMINHÃO BETONEIRA (EXCLUSIVE MOBILIZAÇÃO E DESMOBILIZAÇÃO) | D44: M | E44: 81 | F44: 169.48 | G44: 13727.88 | H44: 0.00696198229 | I44: 0.7012207183
A45: 93202 | B45: SINAPI | C45: FIXAÇÃO (ENCUNHAMENTO) DE ALVENARIA DE VEDAÇÃO COM TIJOLO MACIÇO. AF_03/2024 | D45: M | E45: 352.16 | F45: 34.84 | G45: 12269.25 | H45: 0.006222249991 | I45: 0.7074429683
A46: 91834 | B46: SINAPI | C46: ELETRODUTO FLEXÍVEL CORRUGADO, PVC, DN 25 MM (3/4"), PARA CIRCUITOS TERMINAIS, INSTALADO EM FORRO - FORNECIMENTO E INSTALAÇÃO. AF_03/2023 | D46: M | E46: 504.91 | F46: 22.55 | G46: 11385.72 | H46: 0.005774174963 | I46: 0.7132171433
A47: 98680 | B47: SINAPI | C47: PISO CIMENTADO, TRAÇO 1:3 (CIMENTO E AREIA), ACABAMENTO LISO, ESPESSURA 3,0 CM, PREPARO MECÂNICO DA ARGAMASSA. AF_09/2020 | D47: M2 | E47: 177.01 | F47: 63.65 | G47: 11266.69 | H47: 0.00571380987 | I47: 0.7189309531
A48: 95626 | B48: SINAPI | C48: APLICAÇÃO MANUAL DE TINTA LÁTEX ACRÍLICA EM PAREDE EXTERNAS DE CASAS, DUAS DEMÃOS. AF_03/2024 | D48: M2 | E48: 550.62 | F48: 20.25 | G48: 11150.06 | H48: 0.005654661918 | I48: 0.724585615
A49: DAC-5.6 | B49: CPU | C49: LAJE TRELIÇADA H=20 CM - INCLUSO MONTAGEM E FORNECIMENTO DE TODOS OS MATERIAIS | D49: M2 | E49: 38.15 | F49: 282.24 | G49: 10767.46 | H49: 0.005460629451 | I49: 0.7300462445
A50: ED-48245 | B50: SETOP | C50: MONTAGEM E DESMONTAGEM DE ANDAIME METÁLICO PARA FACHADA COM PISO METÁLICO, INCLUSIVE RODAPÉ/GUARDA-CORPO EM MADEIRA, EXCLUSIVE FORNECIMENTO DO ANDAIME | D50: m2 | E50: 551 | F50: 19.19 | G50: 10573.69 | H50: 0.005362360577 | I50: 0.7354086051
A51: 93358 | B51: SINAPI | C51: ESCAVAÇÃO MANUAL DE VALA. AF_09/2024 | D51: M3 | E51: 98.6762 | F51: 104.69 | G51: 10330.81 | H51: 0.005239185967 | I51: 0.740647791
A52: 87745 | B52: SINAPI | C52: CONTRAPISO EM ARGAMASSA TRAÇO 1:4 (CIMENTO E AREIA), PREPARO MECÂNICO COM BETONEIRA 400 L, APLICADO EM ÁREAS MOLHADAS SOBRE LAJE, ADERIDO, ACABAMENTO NÃO REFORÇADO, ESPESSURA 3CM. AF_07/2021 | D52: M2 | E52: 151.21 | F52: 67.04 | G52: 10137.12 | H52: 0.005140957665 | I52: 0.7457887487
A53: ED-9076 | B53: SETOP | C53: FORNECIMENTO DE ANDAIME METÁLICO TUBULAR TIPO TORRE (LOCAÇÃO), INCLUSIVE RODÍZIOS, EXCLUSIVE MONTAGEM E DESMONTAGEM | D53: mxmês | E53: 360 | F53: 27.83 | G53: 10018.8 | H53: 0.005080952643 | I53: 0.7508697013
A54: 87414 | B54: SINAPI | C54: APLICAÇÃO MANUAL DE GESSO DESEMPENADO (SEM TALISCAS) EM TETO DE AMBIENTES DE ÁREA MAIOR QUE 10M², ESPESSURA DE 1,0CM. AF_03/2023 | D54: M2 | E54: 284.03 | F54: 34.35 | G54: 9756.43 | H54: 0.004947893839 | I54: 0.7558175952
A55: ED-51019 | B55: SETOP | C55: BARRA CHATA DE ALUMÍNIO 7/8" X 1/8" X 3M | D55: U | E55: 261 | F55: 37 | G55: 9657 | H55: 0.004897468726 | I55: 0.7607150639
A56: ED-9075 | B56: SETOP | C56: FORNECIMENTO DE ANDAIME METÁLICO PARA FACHADA (LOCAÇÃO), INCLUSIVE PISO METÁLICO E SAPATAS, EXCLUSIVE MONTAGEM E DESMONTAGEM | D56: m2xmês | E56: 560 | F56: 17.08 | G56: 9564.8 | H56: 0.004850710248 | I56: 0.7655657742
A57: 98510 | B57: SINAPI | C57: PLANTIO DE ÁRVORE ORNAMENTAL COM ALTURA DE MUDA MENOR OU IGUAL A 2,00 M . AF_07/2024 | D57: UN | E57: 80 | F57: 115.23 | G57: 9218.4 | H57: 0.004675036316 | I57: 0.7702408105
A58: ED-32098 | B58: SETOP | C58: GUARDA-CORPO EXTERNO, ALTURA 130CM, EM TUBO GALVANIZADO, COM COSTURA, DIÂMETRO DE 2", ESP. 3MM, GRADIL COM DIVISÃO HORIZONTAL EM TUBO GALVANIZADO, COM COSTURA, DIÂMETRO DE 1", ESP. 3MM, EXCLUSIVE PINTURA | D58: m | E58: 10.5 | F58: 874.62 | G58: 9183.51 | H58: 0.004657342137 | I58: 0.7748981526
A59: ED-19638 | B59: SETOP | C59: CIMBRAMENTO PARA LAJE PRÉ-MOLDADA COM ESCORAMENTO METÁLICO, TIPO "B", ALTURA DE (311 ATÉ 450)CM, INCLUSIVE DESCARGA, MONTAGEM, DESMONTAGEM E CARGA | D59: m2xmês | E59: 287.5 | F59: 31.84 | G59: 9154 | H59: 0.004642376381 | I59: 0.779540529
A60: ED-29481 | B60: SETOP | C60: JANELA EM ALUMÍNIO MÁXIM-AR COM ALTURA DE 60CM, LINHA 25/SUPREMA, ACABAMENTO ANODIZADO NATURAL, INCLUSIVE PERFIS, VIDRO LISO 4MM E INSTALAÇÃO, EXCLUSIVE FERRAGENS PARA MÓDULO DE JANELA DE ALUMÍNIO MÁXIM-AR | D60: m2 | E60: 6.96 | F60: 1295.08 | G60: 9013.76 | H60: 0.00457125481 | I60: 0.7841117838
A61: ED-16350 | B61: SETOP | C61: LOCAÇÃO DE CONTAINER COM ISOLAMENTO TÉRMICO, TIPO 3, PARA DEPÓSITO/FERRAMENTARIA DE OBRA, COM MEDIDAS REFERENCIAIS DE (6) METROS COMPRIMENTO, (2,3) METROS LARGURA E (2,5) METROS ALTURA ÚTIL INTERNA, INCLUSIVE LIGAÇÕES ELÉTRICAS INTERNAS, EXCLUSIVE MOBILIZAÇÃO/DESMOBILIZAÇÃO E LIGAÇÕES PROVISÓRIAS EXTERNAS | D61: mês | E61: 8 | F61: 1014.71 | G61: 8117.68 | H61: 0.004116815152 | I61: 0.788228599
A62: 100874 | B62: SINAPI | C62: PUXADOR PARA PCD, FIXADO NA PORTA - FORNECIMENTO E INSTALAÇÃO. AF_01/2020 | D62: UN | E62: 18 | F62: 434.38 | G62: 7818.84 | H62: 0.003965260886 | I62: 0.7921938598
A63: 98557 | B63: SINAPI | C63: IMPERMEABILIZAÇÃO DE SUPERFÍCIE COM EMULSÃO ASFÁLTICA, 2 DEMÃOS. AF_09/2023 | D63: M2 | E63: 142.36 | F63: 52.53 | G63: 7478.17 | H63: 0.003792492876 | I63: 0.7959863527
A64: ED-51094 | B64: SETOP | C64: APILOAMENTO MECANIZADO EM FUNDO DE VALA COM PLACA VIBRATÓRIA, EXCLUSIVE ESCAVAÇÃO | D64: m2 | E64: 433.06 | F64: 17.24 | G64: 7465.96 | H64: 0.003786300674 | I64: 0.7997726534
A65: ED-29480 | B65: SETOP | C65: PORTA VENEZIANA EM ALUMÍNIO COMPLETA, DIMENSÃO (90X210)CM, TIPO DE ABRIR, COM UMA (1) FOLHA, LINHA 25/SUPREMA, ACABAMENTO ANODIZADO NATURAL, INCLUSIVE PERFIS, FERRAGENS E INSTALAÇÃO | D65: un | E65: 3 | F65: 2473.01 | G65: 7419.03 | H65: 0.003762500507 | I65: 0.8035351539
A66: 91926 | B66: SINAPI | C66: CABO DE COBRE FLEXÍVEL ISOLADO, 2,5 MM², ANTI-CHAMA 450/750 V, PARA CIRCUITOS TERMINAIS - FORNECIMENTO E INSTALAÇÃO. AF_03/2023 | D66: M | E66: 1345.32 | F66: 5.49 | G66: 7385.81 | H66: 0.003745653256 | I66: 0.8072808071
A67: DAC-19.1 | B67: CPU | C67: FIXAÇÃO DE SUPORTE PARA BARRA CHATA | D67: UN | E67: 140 | F67: 52.42 | G67: 7338.8 | H67: 0.003721812518 | I67: 0.8110026197
A68: 105025 | B68: SINAPI | C68: VERGA MOLDADA IN LOCO COM UTILIZAÇÃO DE BLOCOS CANALETA, ESPESSURA DE *15* CM. AF_03/2024 | D68: M | E68: 94.1 | F68: 75.84 | G68: 7136.54 | H68: 0.00361923801 | I68: 0.8146218577
A69: 86931 | B69: SINAPI | C69: VASO SANITÁRIO SIFONADO COM CAIXA ACOPLADA LOUÇA BRANCA, INCLUSO ENGATE FLEXÍVEL EM PLÁSTICO BRANCO, 1/2 X 40CM - FORNECIMENTO E INSTALAÇÃO. AF_01/2020 | D69: UN | E69: 11 | F69: 642.65 | G69: 7069.15 | H69: 0.003585061721 | I69: 0.8182069194
A70: 100854 | B70: SINAPI | C70: TORNEIRA CROMADA DE MESA PARA LAVATÓRIO COM SENSOR DE PRESENCA. AF_01/2020 | D70: UN | E70: 3 | F70: 2351.85 | G70: 7055.55 | H70: 0.003578164592 | I70: 0.821785084
A71: ED-29581 | B71: SETOP | C71: ARMADURA DE TELA DE AÇO CA-60, SOLDADA TIPO Q-92, DIÂMETRO Ø4,2MM, TRAMA COM DIMENSÃO (150X150)MM, INCLUSIVE ESPAÇADOR, EXCLUSIVE CONCRETO | D71: m2 | E71: 287.5 | F71: 24.27 | G71: 6977.63 | H71: 0.0035386481 | I71: 0.8253237321
A72: 96622 | B72: SINAPI | C72: LASTRO COM MATERIAL GRANULAR, APLICADO EM PISOS OU LAJES SOBRE SOLO, ESPESSURA DE *5 CM*. AF_01/2024 | D72: M3 | E72: 21.653 | F72: 317.78 | G72: 6879.94 | H72: 0.003489105414 | I72: 0.8288128375
A73: ED-50478 | B73: SETOP | C73: EMASSAMENTO EM PAREDE COM MASSA CORRIDA (PVA), DUAS (2) DEMÃOS, INCLUSIVE LIXAMENTO PARA PINTURA | D73: m2 | E73: 278.8 | F73: 23.92 | G73: 6668.9 | H73: 0.003382078201 | I73: 0.8321949157
A74: COT-EQUI-001 | B74: COTAÇÃO | C74: COIFA INDUSTRIAL PARA FOGÃO - FORNECIMENTO E INSTALAÇÃO | D74: UN | E74: 1 | F74: 6607.5 | G74: 6607.5 | H74: 0.003350939692 | I74: 0.8355458554
A75: ED-20586 | B75: SETOP | C75: ENTRADA DE ENERGIA AÉREA, TIPO C6, PADRÃO CEMIG, CARGA INSTALADA DE 47,1KVA ATÉ 57KVA, TRIFÁSICO, COM SAÍDA SUBTERRÂNEA, INCLUSIVE POSTE, CAIXA PARA MEDIDOR, DISJUNTOR, BARRAMENTO, ATERRAMENTO E ACESSÓRIOS | D75: un | E75: 1 | F75: 6457.32 | G75: 6457.32 | H75: 0.003274777131 | I75: 0.8388206325
A76: 91321 | B76: SINAPI | C76: KIT DE PORTA DE MADEIRA PARA PINTURA, SEMI-OCA (LEVE OU MÉDIA), PADRÃO POPULAR, 90X210CM, ESPESSURA DE 3,5CM, ITENS INCLUSOS: DOBRADIÇAS, MONTAGEM E INSTALAÇÃO DO BATENTE, SEM FECHADURA - FORNECIMENTO E INSTALAÇÃO. AF_12/2019 | D76: UN | E76: 6 | F76: 1069.58 | G76: 6417.48 | H76: 0.0032545726 | I76: 0.8420752051
A77: 92260 | B77: SINAPI | C77: INSTALAÇÃO DE TESOURA (INTEIRA OU MEIA), BIAPOIADA, EM MADEIRA NÃO APARELHADA, PARA VÃOS MAIORES OU IGUAIS A 6,0 M E MENORES QUE 8,0 M, INCLUSO IÇAMENTO. AF_07/2019 | D77: UN | E77: 8 | F77: 798.97 | G77: 6391.76 | H77: 0.003241528912 | I77: 0.845316734
A78: 86938 | B78: SINAPI | C78: CUBA DE EMBUTIR OVAL EM LOUÇA BRANCA, 35 X 50CM OU EQUIVALENTE, INCLUSO VÁLVULA E SIFÃO TIPO GARRAFA EM METAL CROMADO - FORNECIMENTO E INSTALAÇÃO. AF_01/2020 | D78: UN | E78: 10 | F78: 613.57 | G78: 6135.7 | H78: 0.003111670173 | I78: 0.8484284042
A79: DAC-7.3 | B79: CPU | C79: PORTA EM ALUMÍNIO DE ABRIR TIPO VENEZIANA, FIXAÇÃO COM PARAFUSOS - FORNECIMENTO E INSTALAÇÃO. | D79: M2 | E79: 9.9 | F79: 606.28 | G79: 6002.17 | H79: 0.003043951523 | I79: 0.8514723557
A80: 87905 | B80: SINAPI | C80: CHAPISCO APLICADO EM ALVENARIA (COM PRESENÇA DE VÃOS) E ESTRUTURAS DE CONCRETO DE FACHADA, COM COLHER DE PEDREIRO. ARGAMASSA TRAÇO 1:3 COM PREPARO EM BETONEIRA 400L. AF_10/2022 | D80: M2 | E80: 550.62 | F80: 10.33 | G80: 5687.9 | H80: 0.002884572058 | I80: 0.8543569278
A81: 88488 | B81: SINAPI | C81: PINTURA LÁTEX ACRÍLICA PREMIUM, APLICAÇÃO MANUAL EM TETO, DUAS DEMÃOS. AF_04/2023 | D81: M2 | E81: 285.47 | F81: 19.62 | G81: 5600.92 | H81: 0.002840460861 | I81: 0.8571973887
A82: 100978 | B82: SINAPI | C82: CARGA, MANOBRA E DESCARGA DE SOLOS E MATERIAIS GRANULARES EM CAMINHÃO BASCULANTE 10 M³ - CARGA COM ESCAVADEIRA HIDRÁULICA (CAÇAMBA DE 1,20 M³ / 155 HP) E DESCARGA LIVRE (UNIDADE: M3). AF_07/2020 | D82: M3 | E82: 620.3888889 | F82: 9 | G82: 5583.51 | H82: 0.002831631522 | I82: 0.8600290202
A83: 92986 | B83: SINAPI | C83: CABO DE COBRE FLEXÍVEL ISOLADO, 35 MM², ANTI-CHAMA 0,6/1,0 KV, PARA REDE ENTERRADA DE DISTRIBUIÇÃO DE ENERGIA ELÉTRICA - FORNECIMENTO E INSTALAÇÃO. AF_12/2021 | D83: M | E83: 101.6 | F83: 48.52 | G83: 4929.63 | H83: 0.002500021617 | I83: 0.8625290418
A84: 102491 | B84: SINAPI | C84: PINTURA DE PISO COM TINTA ACRÍLICA, APLICAÇÃO MANUAL, 2 DEMÃOS, INCLUSO FUNDO PREPARADOR. AF_05/2021 | D84: M2 | E84: 177.01 | F84: 27.27 | G84: 4827.06 | H84: 0.002448004079 | I84: 0.8649770459
A85: ED-29817 | B85: SETOP | C85: MOBILIZAÇÃO E DESMOBILIZAÇÃO DE EQUIPAMENTO PARA ESTACA TIPO TRADO ROTATIVO (CUSTO FIXO), INCLUSIVE CARGA E DESCARGA, EXCLUSIVE TRANSPORTE EM QUILÔMETRO RODADO (CUSTO VARIÁVEL) | D85: un | E85: 1 | F85: 4727.39 | G85: 4727.39 | H85: 0.002397457252 | I85: 0.8673745031
A86: ED-13934 | B86: SETOP | C86: CABO DE COBRE NU #35MM2 - 7 FIOSX2,50MM, PARA ELEMENTOS DE CAPTAÇÃO/ANEL DE CINTAMENTO (SPDA), INCLUSIVE PRESILHA DE FIXAÇÃO | D86: m | E86: 81.83 | F86: 56.88 | G86: 4654.49 | H86: 0.002360486612 | I86: 0.8697349897
A87: ED-51121 | B87: SETOP | C87: REATERRO MANUAL DE VALA, INCLUSIVE ESPALHAMENTO E COMPACTAÇÃO MECANIZADA COM PLACA VIBRATÓRIA | D87: m3 | E87: 79.94 | F87: 57.88 | G87: 4626.93 | H87: 0.002346509783 | I87: 0.8720814995
A88: 88489 | B88: SINAPI | C88: PINTURA LÁTEX ACRÍLICA PREMIUM, APLICAÇÃO MANUAL EM PAREDES, DUAS DEMÃOS. AF_04/2023 | D88: M2 | E88: 278.8 | F88: 16.59 | G88: 4625.29 | H88: 0.00234567807 | I88: 0.8744271776
A89: COT-DAD-006 | B89: COTAÇÃO | C89: CAMERA POE | D89: UN | E89: 6 | F89: 765.44 | G89: 4592.64 | H89: 0.002329119889 | I89: 0.8767562975
A90: ED-50998 | B90: SETOP | C90: PEITORIL DE GRANITO, NA COR CINZA ANDORINHA, COM PINGADEIRA, ESP. 3CM, ACABAMENTO POLIDO, ASSENTAMENTO COM ARGAMASSA INDUSTRIALIZADA, INCLUSIVE REJUNTAMENTO | D90: m2 | E90: 9.936 | F90: 460 | G90: 4572.4 | H90: 0.002318855338 | I90: 0.8790751528
A91: ED-9077 | B91: SETOP | C91: MONTAGEM E DESMONTAGEM DE ANDAIME METÁLICO TUBULAR TIPO TORRE, EXCLUSIVE FORNECIMENTO DO ANDAIME | D91: m | E91: 355 | F91: 12.76 | G91: 4529.8 | H91: 0.002297251096 | I91: 0.8813724039
A92: 105031 | B92: SINAPI | C92: CONTRAVERGA MOLDADA IN LOCO COM UTILIZAÇÃO DE BLOCOS CANALETA, ESPESSURA DE *15* CM. AF_03/2024 | D92: M | E92: 69.2 | F92: 60.83 | G92: 4209.45 | H92: 0.002134788208 | I92: 0.8835071921
A93: DAC-18.2 | B93: CPU | C93: MONTAGEM DO HACK E COMPONENTES - ACESSÓRIOS DE CABEAMENTO DO HACK | D93: UN | E93: 1 | F93: 4092.06 | G93: 4092.06 | H93: 0.002075254828 | I93: 0.8855824469
A94: COT-DAD-001 | B94: COTAÇÃO | C94: NVR 16 PORTAS | D94: UN | E94: 1 | F94: 3896.38 | G94: 3896.38 | H94: 0.001976017313 | I94: 0.8875584643
A95: 91992 | B95: SINAPI | C95: TOMADA ALTA DE EMBUTIR (1 MÓDULO), 2P+T 10 A, INCLUINDO SUPORTE E PLACA - FORNECIMENTO E INSTALAÇÃO. AF_03/2023 | D95: UN | E95: 68 | F95: 56.71 | G95: 3856.28 | H95: 0.001955680926 | I95: 0.8895141452
A96: 87879 | B96: SINAPI | C96: CHAPISCO APLICADO EM ALVENARIAS E ESTRUTURAS DE CONCRETO INTERNAS, COM COLHER DE PEDREIRO. ARGAMASSA TRAÇO 1:3 COM PREPARO EM BETONEIRA 400L. AF_10/2022 | D96: M2 | E96: 661.91 | F96: 5.7 | G96: 3772.89 | H96: 0.001913390368 | I96: 0.8914275356
A97: ED-49197 | B97: SETOP | C97: CAIXA DE INSPEÇÃO EM CONCRETO, TIPO "ZA" PASSEIO, PADRÃO CEMIG, DIMENSÃO (28X28)CM, ALTURA 40CM, COM TAMPA E ARO ARTICULADO EM FERRO FUNDIDO, INCLUSIVE ESCAVAÇÃO, APILOAMENTO, LASTRO DE BRITA, REATERRO E TRANSPORTE COM RETIRADA DO MATERIAL ESCAVADO (EM CAÇAMBA) | D97: un | E97: 14 | F97: 268.32 | G97: 3756.48 | H97: 0.00190506817 | I97: 0.8933326037
A98: 88415 | B98: SINAPI | C98: APLICAÇÃO MANUAL DE FUNDO SELADOR ACRÍLICO EM PAREDES EXTERNAS DE CASAS. AF_03/2024 | D98: M2 | E98: 550.62 | F98: 6.74 | G98: 3711.18 | H98: 0.001882094645 | I98: 0.8952146984
A99: ED-49297 | B99: SETOP | C99: DUTO CORRUGADO EM PEAD (POLIETILENO DE ALTA DENSIDADE), PARA PROTEÇÃO DE CABOS SUBTERRÂNEOS DN 75 MM (3") | D99: M | E99: 61.21 | F99: 60 | G99: 3672.6 | H99: 0.001862529113 | I99: 0.8970772275
A100: DAC-7.1 | B100: CPU | C100: PORTA EM ALUMÍNIO DE CORRER COM FOLHA ÚNICA (90X210)CM COMPLETA, LINHA 25/SUPREMA, ACABAMENTO ANODIZADO NATURAL, INCLUSIVE PERFIS, VIDRO, FERRAGENS E INSTALAÇÃO | D100: UN | E100: 2 | F100: 1813.53 | G100: 3627.06 | H100: 0.001839433874 | I100: 0.8989166614
A101: 96523 | B101: SINAPI | C101: ESCAVAÇÃO MANUAL PARA BLOCO DE COROAMENTO OU SAPATA (INCLUINDO ESCAVAÇÃO PARA COLOCAÇÃO DE FÔRMAS). AF_01/2024 | D101: M3 | E101: 30.35 | F101: 117.67 | G101: 3571.28 | H101: 0.001811145502 | I101: 0.9007278069
A102: 86936 | B102: SINAPI | C102: CUBA DE EMBUTIR DE AÇO INOXIDÁVEL MÉDIA, INCLUSO VÁLVULA TIPO AMERICANA E SIFÃO TIPO GARRAFA EM METAL CROMADO - FORNECIMENTO E INSTALAÇÃO. AF_01/2020 | D102: UN | E102: 5 | F102: 703.95 | G102: 3519.75 | H102: 0.001785012483 | I102: 0.9025128193
A103: ED-50266 | B103: SETOP | C103: LIMPEZA FINAL PARA ENTREGA DA OBRA | D103: m2 | E103: 342.39 | F103: 9.76 | G103: 3341.72 | H103: 0.001694726022 | I103: 0.9042075454
A104: ED-50986 | B104: SETOP | C104: PORTÃO EM TUBO DE AÇO GALVANIZADO COM COSTURA, DIÂMETRO DE 1.1/2" (38,1MM), ESP. 2MM, COM TELA QUADRICULADA ONDULADA, TRAMA DE 1/2" (12,70MM), FIO 12 (2,77MM), EXCLUSIVE CADEADO E PINTURA | D104: m2 | E104: 4.31 | F104: 724.3 | G104: 3121.73 | H104: 0.001583159889 | I104: 0.9057907053
A105: 91933 | B105: SINAPI | C105: CABO DE COBRE FLEXÍVEL ISOLADO, 10 MM², ANTI-CHAMA 0,6/1,0 KV, PARA CIRCUITOS TERMINAIS - FORNECIMENTO E INSTALAÇÃO. AF_03/2023 | D105: M | E105: 150 | F105: 20.48 | G105: 3072 | H105: 0.001557939725 | I105: 0.907348645
A106: ED-50497 | B106: SETOP | C106: PINTURA ESMALTE BASE SOLVENTE EM ESTRUTURA METÁLICA, DUAS (2) DEMÃOS, COM APLICAÇÃO MANUAL, INCLUSIVE UMA (1) DEMÃO FUNDO GALVANIZADO | D106: m2 | E106: 71.168 | F106: 43.13 | G106: 3069.56 | H106: 0.001556702299 | I106: 0.9089053473
A107: 100875 | B107: SINAPI | C107: BANCO ARTICULADO, EM ACO INOX, PARA PCD, FIXADO NA PAREDE - FORNECIMENTO E INSTALAÇÃO. AF_01/2020 | D107: UN | E107: 2 | F107: 1493.58 | G107: 2987.16 | H107: 0.001514913812 | I107: 0.9104202611
A108: DAC-9.1 | B108: CPU | C108: APLICAÇÃO DE RESINA SINTÉTICA PARA APLICAÇÃO DE GESSO | D108: M2 | E108: 284.03 | F108: 10.46 | G108: 2970.95 | H108: 0.001506693042 | I108: 0.9119269541
A109: 91924 | B109: SINAPI | C109: CABO DE COBRE FLEXÍVEL ISOLADO, 1,5 MM², ANTI-CHAMA 450/750 V, PARA CIRCUITOS TERMINAIS - FORNECIMENTO E INSTALAÇÃO. AF_03/2023 | D109: M | E109: 778.28 | F109: 3.78 | G109: 2941.9 | H109: 0.001491960572 | I109: 0.9134189147
A110: ED-49883 | B110: SETOP | C110: CAIXA DE ESGOTO DE INSPEÇÃO/PASSAGEM EM ALVENARIA (60X60X60CM), REVESTIMENTO EM ARGAMASSA COM ADITIVO IMPERMEABILIZANTE, COM TAMPA DE CONCRETO, INCLUSIVE ESCAVAÇÃO, REATERRO E TRANSPORTE COM RETIRADA DO MATERIAL ESCAVADO (EM CAÇAMBA) | D110: un | E110: 4 | F110: 715.39 | G110: 2861.56 | H110: 0.001451216797 | I110: 0.9148701315
A111: 91940 | B111: SINAPI | C111: CAIXA RETANGULAR 4" X 2" MÉDIA (1,30 M DO PISO), PVC, INSTALADA EM PAREDE - FORNECIMENTO E INSTALAÇÃO. AF_03/2023 | D111: UN | E111: 120 | F111: 23.73 | G111: 2847.6 | H111: 0.001444137097 | I111: 0.9163142686
A112: 89714 | B112: SINAPI | C112: TUBO PVC, SERIE NORMAL, ESGOTO PREDIAL, DN 100 MM, FORNECIDO E INSTALADO EM RAMAL DE DESCARGA OU RAMAL DE ESGOTO SANITÁRIO. AF_08/2022 | D112: M | E112: 59.08 | F112: 48.17 | G112: 2845.88 | H112: 0.001443264813 | I112: 0.9177575334
A113: ED-50329 | B113: SETOP | C113: TORNEIRA METÁLICA PARA LAVATÓRIO, FECHAMENTO AUTOMÁTICO, ACABAMENTO CROMADO, COM AREJADOR, APLICAÇÃO DE MESA, INCLUSIVE ENGATE FLEXÍVEL METÁLICO | D113: un | E113: 10 | F113: 280.03 | G113: 2800.3 | H113: 0.001420149288 | I113: 0.9191776827
A114: ED-48198 | B114: SETOP | C114: ALVENARIA ESTRUTURAL COM BLOCO DE CONCRETO, ESP. 14CM, (FBK 4,5MPA), PARA REVESTIMENTO, INCLUSIVE ARGAMASSA PARA ASSENTAMENTO | D114: m2 | E114: 26.2 | F114: 99.88 | G114: 2616.86 | H114: 0.001327119189 | I114: 0.9205048019
A115: ED-50314 | B115: SETOP | C115: CHUVEIRO ELÉTRICO COM RESISTÊNCIA BLINDADA, TENSÃO 127V/220V, POTÊNCIA 5500W/6800W, INCLUSIVE BRAÇO/CANO | D115: un | E115: 6 | F115: 433.45 | G115: 2600.7 | H115: 0.001318923777 | I115: 0.9218237257
A116: 98562 | B116: SINAPI | C116: IMPERMEABILIZAÇÃO DE SUPERFÍCIE COM ARGAMASSA DE CIMENTO E AREIA, COM ADITIVO IMPERMEABILIZANTE, E = 1,5CM. AF_09/2023 | D116: M2 | E116: 39.8 | F116: 63.08 | G116: 2510.58 | H116: 0.001273220155 | I116: 0.9230969458
A117: ED-29485 | B117: SETOP | C117: PORTA EM ALUMÍNIO COMPLETA, DIMENSÃO (120X210)CM, TIPO DE CORRER, COM DUAS (2) FOLHAS, LINHA 25/SUPREMA, ACABAMENTO ANODIZADO NATURAL, INCLUSIVE PERFIS, VIDRO, FERRAGENS E INSTALAÇÃO | D117: un | E117: 1 | F117: 2502.85 | G117: 2502.85 | H117: 0.001269299948 | I117: 0.9243662458
A118: COT-DAD-005 | B118: COTAÇÃO | C118: ACCESS POINT | D118: UN | E118: 2 | F118: 1235.83 | G118: 2471.66 | H118: 0.001253482194 | I118: 0.925619728
A119: 92688 | B119: SINAPI | C119: TUBO DE AÇO GALVANIZADO COM COSTURA, CLASSE MÉDIA, CONEXÃO ROSQUEADA, DN 20 (3/4"), INSTALADO EM RAMAIS E SUB-RAMAIS DE GÁS - FORNECIMENTO E INSTALAÇÃO. AF_10/2020 | D119: M | E119: 44.528 | F119: 54.47 | G119: 2425.55 | H119: 0.001230097884 | I119: 0.9268498258
A120: DAC-7.2 | B120: CPU | C120: JANELA AÇO DE ENROLAR, INCLUSIVE EIXO, MOLA, SOLEIRA, ETIQUETA, CAVALETE E GUIAS, FITAS E FECHADURAS LATERAIS | D120: UN | E120: 2.88 | F120: 829.6 | G120: 2389.25 | H120: 0.001211688636 | I120: 0.9280615145
A121: 94221 | B121: SINAPI | C121: CUMEEIRA PARA TELHA CERÂMICA EMBOÇADA COM ARGAMASSA TRAÇO 1:2:9 (CIMENTO, CAL E AREIA) PARA TELHADOS COM ATÉ 2 ÁGUAS, INCLUSO TRANSPORTE VERTICAL. AF_07/2019 | D121: M | E121: 48.65 | F121: 49.07 | G121: 2387.26 | H121: 0.001210679423 | I121: 0.9292721939
A122: 91872 | B122: SINAPI | C122: ELETRODUTO RÍGIDO ROSCÁVEL, PVC, DN 32 MM (1"), PARA CIRCUITOS TERMINAIS, INSTALADO EM PAREDE - FORNECIMENTO E INSTALAÇÃO. AF_03/2023 | D122: M | E122: 96 | F122: 24.53 | G122: 2354.88 | H122: 0.001194258171 | I122: 0.9304664521
A123: 89449 | B123: SINAPI | C123: TUBO, PVC, SOLDÁVEL, DE 50MM, INSTALADO EM PRUMADA DE ÁGUA - FORNECIMENTO E INSTALAÇÃO. AF_06/2022 | D123: M | E123: 109.28 | F123: 21.52 | G123: 2351.71 | H123: 0.001192650531 | I123: 0.9316591026
A124: ED-29479 | B124: SETOP | C124: PORTA VENEZIANA EM ALUMÍNIO COMPLETA, DIMENSÃO (80X210)CM, TIPO DE ABRIR, COM UMA (1) FOLHA, LINHA 25/SUPREMA, ACABAMENTO ANODIZADO NATURAL, INCLUSIVE PERFIS, FERRAGENS E INSTALAÇÃO | D124: un | E124: 1 | F124: 2293.13 | G124: 2293.13 | H124: 0.001162942162 | I124: 0.9328220448
A125: 96527 | B125: SINAPI | C125: ESCAVAÇÃO MANUAL PARA VIGA BALDRAME OU SAPATA CORRIDA (INCLUINDO ESCAVAÇÃO PARA COLOCAÇÃO DE FÔRMAS). AF_01/2024 | D125: M3 | E125: 17.41 | F125: 129.35 | G125: 2251.98 | H125: 0.001142073275 | I125: 0.933964118
A126: COT-ACE-002 | B126: COTAÇÃO | C126: ADESIVO DE SINALIZAÇÃO PARA CADEIRANTE PARA PISO | D126: UN | E126: 8 | F126: 278.63 | G126: 2229.04 | H126: 0.001130439442 | I126: 0.9350945575
A127: ED-48700 | B127: SETOP | C127: ATERRAMENTO COM HASTE DE COBRE, TIPO COPPERWELD, DIÂMETRO DE 5/8", COMPRIMENTO DE 240CM, EXCLUSIVE CABO E CAIXA PARA ATERRAMENTO, INCLUSIVE GRAMPO PARA HASTE E INSTALAÇÃO | D127: un | E127: 16 | F127: 136.09 | G127: 2177.44 | H127: 0.001104270923 | I127: 0.9361988284
A128: 96623 | B128: SINAPI | C128: LASTRO COM MATERIAL GRANULAR, APLICADO EM BLOCOS DE COROAMENTO, ESPESSURA DE *10 CM*. AF_01/2024 | D128: M3 | E128: 7.54 | F128: 288.46 | G128: 2174.99 | H128: 0.001103028425 | I128: 0.9373018568
A129: 89987 | B129: SINAPI | C129: REGISTRO DE GAVETA BRUTO, LATÃO, ROSCÁVEL, 3/4", COM ACABAMENTO E CANOPLA CROMADOS - FORNECIMENTO E INSTALAÇÃO. AF_08/2021 | D129: UN | E129: 13 | F129: 165.56 | G129: 2152.28 | H129: 0.001091511234 | I129: 0.9383933681
A130: 89578 | B130: SINAPI | C130: TUBO PVC, SÉRIE R, ÁGUA PLUVIAL, DN 100 MM, FORNECIDO E INSTALADO EM CONDUTORES VERTICAIS DE ÁGUAS PLUVIAIS. AF_06/2022 | D130: M | E130: 51.41 | F130: 41.52 | G130: 2134.54 | H130: 0.001082514538 | I130: 0.9394758826
A131: COT-ACE-001 | B131: COTAÇÃO | C131: CHAPA DE PROTEÇÃO IMPACTO PARA PORTA 40X80 | D131: UN | E131: 8 | F131: 259.15 | G131: 2073.2 | H131: 0.001051406458 | I131: 0.9405272891
A132: 89356 | B132: SINAPI | C132: TUBO, PVC, SOLDÁVEL, DE 25MM, INSTALADO EM RAMAL OU SUB-RAMAL DE ÁGUA - FORNECIMENTO E INSTALAÇÃO. AF_06/2022 | D132: M | E132: 68.38 | F132: 29.75 | G132: 2034.3 | H132: 0.00103167864 | I132: 0.9415589677
A133: 91836 | B133: SINAPI | C133: ELETRODUTO FLEXÍVEL CORRUGADO, PVC, DN 32 MM (1"), PARA CIRCUITOS TERMINAIS, INSTALADO EM FORRO - FORNECIMENTO E INSTALAÇÃO. AF_03/2023 | D133: M | E133: 75.72 | F133: 26.45 | G133: 2002.79 | H133: 0.001015698601 | I133: 0.9425746663
A134: 95876 | B134: SINAPI | C134: TRANSPORTE COM CAMINHÃO BASCULANTE DE 14 M³, EM VIA URBANA PAVIMENTADA, DMT ATÉ 30 KM (UNIDADE: M3XKM). AF_07/2020 | D134: M3XKM | E134: 708.90092 | F134: 2.82 | G134: 1999.1 | H134: 0.001013827248 | I134: 0.9435884936
A135: 90466 | B135: SINAPI | C135: CHUMBAMENTO LINEAR EM ALVENARIA PARA RAMAIS/DISTRIBUIÇÃO DE INSTALAÇÕES HIDRÁULICAS COM DIÂMETROS MENORES OU IGUAIS A 40 MM. AF_09/2023 | D135: M | E135: 102 | F135: 19.57 | G135: 1996.14 | H135: 0.001012326108 | I135: 0.9446008197
A136: 10.47.07 | B136: SUDECAP | C136: BEBEDOURO INDUSTRIAL 50L | D136: UN | E136: 1 | F136: 1993.27 | G136: 1993.27 | H136: 0.001010870611 | I136: 0.9456116903
A137: ED-50137 | B137: SETOP | C137: MOBILIZAÇÃO E DESMOBILIZAÇÃO DE CONTAINER, INCLUSIVE CARGA, DESCARGA E TRANSPORTE EM CAMINHÃO CARROCERIA COM GUINDAUTO (MUNCK), EXCLUSIVE LOCAÇÃO DO CONTAINER | D137: un | E137: 1 | F137: 1941.22 | G137: 1941.22 | H137: 0.000984473878 | I137: 0.9465961641
A138: 88484 | B138: SINAPI | C138: FUNDO SELADOR ACRÍLICO, APLICAÇÃO MANUAL EM TETO, UMA DEMÃO. AF_04/2023 | D138: M2 | E138: 285.47 | F138: 6.8 | G138: 1941.2 | H138: 0.0009844637352 | I138: 0.9475806279
A139: 91928 | B139: SINAPI | C139: CABO DE COBRE FLEXÍVEL ISOLADO, 4 MM², ANTI-CHAMA 450/750 V, PARA CIRCUITOS TERMINAIS - FORNECIMENTO E INSTALAÇÃO. AF_03/2023 | D139: M | E139: 228.31 | F139: 8.5 | G139: 1940.64 | H139: 0.0009841797357 | I139: 0.9485648076
A140: ED-48343 | B140: SETOP | C140: BANCADA EM GRANITO CINZA ANDORINHA E = 3 CM, APOIADA EM CONSOLE DE METALON 20 X 30 MM | D140: m2 | E140: 3.82 | F140: 494.28 | G140: 1888.15 | H140: 0.0009575598607 | I140: 0.9495223675
A141: ED-50287 | B141: SETOP | C141: CUBA EM AÇO INOXIDÁVEL DE EMBUTIR, AISI 304, APLICAÇÃO PARA TANQUE (600X600X400MM), ASSENTAMENTO EM BANCADA, INCLUSIVE VÁLVULA DE ESCOAMENTO DE METAL COM ACABAMENTO CROMADO, SIFÃO DE METAL TIPO COPO COM ACABAMENTO CROMADO | D141: un | E141: 1 | F141: 1859.6 | G141: 1859.6 | H141: 0.0009430809612 | I141: 0.9504654484
A142: 89712 | B142: SINAPI | C142: TUBO PVC, SERIE NORMAL, ESGOTO PREDIAL, DN 50 MM, FORNECIDO E INSTALADO EM RAMAL DE DESCARGA OU RAMAL DE ESGOTO SANITÁRIO. AF_08/2022 | D142: M | E142: 51.14 | F142: 34.6 | G142: 1769.44 | H142: 0.0008973570531 | I142: 0.9513628055
A143: ED-5444 | B143: SETOP | C143: DISJUNTOR DE PROTEÇÃO DIFERENCIAL RESIDUAL (DR), TETRAPOLAR TIPO DIN, CORRENTE NOMINAL DE 125A, SENSIBILIDADE DE 30MA, FORNECIMENTO E INSTALAÇÃO, INCLUSIVE TERMINAL DE COMPRESSÃO | D143: un | E143: 2 | F143: 882.35 | G143: 1764.7 | H143: 0.0008949532008 | I143: 0.9522577587
A144: COT-DAD-003 | B144: COTAÇÃO | C144: SWITCH GIGABIT 24 PORTAS POE | D144: UN | E144: 1 | F144: 1730.11 | G144: 1730.11 | H144: 0.0008774111647 | I144: 0.9531351699
A145: 101882 | B145: SINAPI | C145: QUADRO DE DISTRIBUIÇÃO DE ENERGIA EM CHAPA DE AÇO GALVANIZADO, DE EMBUTIR, COM BARRAMENTO TRIFÁSICO, PARA 30 DISJUNTORES DIN 225A - FORNECIMENTO E INSTALAÇÃO. AF_10/2020 | D145: UN | E145: 1 | F145: 1713.8 | G145: 1713.8 | H145: 0.0008691396813 | I145: 0.9540043095
A146: COT-INC-002 | B146: COTAÇÃO | C146: EXTINTOR DE INCÊNDIO TIPO PÓ QUÍMICO 4-A:40-B:C, CAPACIDADE 6 KG, EXCLUISVE INSTALAÇÃO | D146: UN | E146: 4 | F146: 415.75 | G146: 1663 | H146: 0.0008433768759 | I146: 0.9548476864
A147: COT-DAD-008 | B147: COTAÇÃO | C147: RACK 12U 19" 570mm | D147: UN | E147: 1 | F147: 1660.14 | G147: 1660.14 | H147: 0.0008419264503 | I147: 0.9556896129
A148: ED-48503 | B148: SETOP | C148: DEMOLIÇÃO MANUAL DE REVESTIMENTO DE PEDRA (MÁRMORE, GRANITO, ARDÓSIA, ETC.), INCLUSIVE AFASTAMENTO E EMPILHAMENTO, EXCLUSIVE DEMOLIÇÃO DO REBOCO OU EMBOÇO, TRANSPORTE E RETIRADA DO MATERIAL DEMOLIDO | D148: m2 | E148: 50.42 | F148: 32.7 | G148: 1648.73 | H148: 0.0008361399619 | I148: 0.9565257528
A149: 97637 | B149: SINAPI | C149: REMOÇÃO DE TAPUME/ CHAPAS METÁLICAS E DE MADEIRA, DE FORMA MANUAL, SEM REAPROVEITAMENTO. AF_09/2023 | D149: M2 | E149: 463.65 | F149: 3.54 | G149: 1641.32 | H149: 0.0008323820409 | I149: 0.9573581349
A150: 89584 | B150: SINAPI | C150: JOELHO 90 GRAUS, PVC, SERIE R, ÁGUA PLUVIAL, DN 100 MM, JUNTA ELÁSTICA, FORNECIDO E INSTALADO EM CONDUTORES VERTICAIS DE ÁGUAS PLUVIAIS. AF_06/2022 | D150: UN | E150: 30 | F150: 54.15 | G150: 1624.5 | H150: 0.0008238519152 | I150: 0.9581819868
A151: 104746 | B151: SINAPI | C151: MINI CAPTOR PARA SPDA - FORNECIMENTO E INSTALAÇÃO. AF_08/2023 | D151: UN | E151: 47 | F151: 33.41 | G151: 1570.27 | H151: 0.0007963496133 | I151: 0.9589783364
A152: 103320 | B152: SINAPI | C152: ALVENARIA DE VEDAÇÃO DE BLOCOS VAZADOS DE CONCRETO DE 19X19X39 CM (ESPESSURA 19 CM) E ARGAMASSA DE ASSENTAMENTO COM PREPARO EM BETONEIRA. AF_12/2021 | D152: M2 | E152: 10 | F152: 156.64 | G152: 1566.4 | H152: 0.0007943869744 | I152: 0.9597727234
A153: ED-50282 | B153: SETOP | C153: LAVATÓRIO DE LOUÇA BRANCA COM COLUNA, TAMANHO MÉDIO, INCLUSIVE ACESSÓRIOS DE FIXAÇÃO, VÁLVULA DE ESCOAMENTO DE METAL COM ACABAMENTO CROMADO, SIFÃO DE METAL TIPO COPO COM ACABAMENTO CROMADO E REJUNTAMENTO, EXCLUSIVE TORNEIRA E ENGATE FLEXÍVEL | D153: un | E153: 2 | F153: 776.66 | G153: 1553.32 | H153: 0.0007877535592 | I153: 0.9605604769
A154: 88485 | B154: SINAPI | C154: FUNDO SELADOR ACRÍLICO, APLICAÇÃO MANUAL EM PAREDE, UMA DEMÃO. AF_04/2023 | D154: M2 | E154: 278.8 | F154: 5.57 | G154: 1552.92 | H154: 0.0007875507025 | I154: 0.9613480276
A155: DAC-10.2 | B155: CPU | C155: RODAPÉ COM REVESTIMENTO EM PORCELANATO 60X60 COM BORDA RETIFICADA E ACABAMENTO POLIDO, ALTURA 10CM | D155: M | E155: 88.4 | F155: 17.02 | G155: 1504.57 | H155: 0.0007630303946 | I155: 0.962111058
A156: ED-48160 | B156: SETOP | C156: BARRA DE APOIO EM AÇO INOX POLIDO RETA, DIÂMETRO DE 1.1/4", PARA ACESSIBILIDADE (PMR/PCR), COMPRIMENTO 80CM, INSTALADO EM PAREDE, INCLUSIVE ACESSÓRIOS PARA FIXAÇÃO | D156: un | E156: 6 | F156: 249.9 | G156: 1499.4 | H156: 0.0007604084713 | I156: 0.9628714665
A157: ED-28427 | B157: SETOP | C157: FORNECIMENTO E COLOCAÇÃO DE PLACA DE OBRA EM CHAPA GALVANIZADA #26, ESP. 0,45MM, DIMENSÃO (3X1,5)M, PLOTADA COM ADESIVO VINÍLICO, AFIXADA COM REBITES 4,8X40MM, EM ESTRUTURA METÁLICA DE METALON 20X20MM, ESP. 1,25MM, INCLUSIVE SUPORTE EM EUCALIPTO AUTOCLAVADO PINTADO COM TINTA PVA DUAS (2) DEMÃOS | D157: un | E157: 1 | F157: 1492.35 | G157: 1492.35 | H157: 0.0007568331214 | I157: 0.9636282996
A158: ED-50703 | B158: SETOP | C158: LIMPEZA DE TERRENO, INCLUSIVE CAPINA, RASTELAMENTO COM AFASTAMENTO ATÉ VINTE (20) METROS E QUEIMA CONTROLADA | D158: m2 | E158: 458.43 | F158: 3.13 | G158: 1434.89 | H158: 0.0007276927514 | I158: 0.9643559924
A159: 101883 | B159: SINAPI | C159: QUADRO DE DISTRIBUIÇÃO DE ENERGIA EM CHAPA DE AÇO GALVANIZADO, DE EMBUTIR, COM BARRAMENTO TRIFÁSICO, PARA 18 DISJUNTORES DIN 100A - FORNECIMENTO E INSTALAÇÃO. AF_10/2020 | D159: UN | E159: 2 | F159: 697.63 | G159: 1395.26 | H159: 0.0007075947203 | I159: 0.9650635871
A160: 101895 | B160: SINAPI | C160: DISJUNTOR TERMOMAGNÉTICO TRIPOLAR , CORRENTE NOMINAL DE 125A - FORNECIMENTO E INSTALAÇÃO. AF_10/2020 | D160: UN | E160: 2 | F160: 685.13 | G160: 1370.26 | H160: 0.0006949161744 | I160: 0.9657585033
A161: 91944 | B161: SINAPI | C161: CAIXA RETANGULAR 4" X 4" BAIXA (0,30 M DO PISO), PVC, INSTALADA EM PAREDE - FORNECIMENTO E INSTALAÇÃO. AF_03/2023 | D161: UN | E161: 68 | F161: 19.5 | G161: 1326 | H161: 0.0006724700767 | I161: 0.9664309733
A162: 96531 | B162: SINAPI | C162: FABRICAÇÃO, MONTAGEM E DESMONTAGEM DE FÔRMA PARA BLOCO DE COROAMENTO, EM MADEIRA SERRADA, E=25 MM, 2 UTILIZAÇÕES. AF_01/2024 | D162: M2 | E162: 9.8 | F162: 134.06 | G162: 1313.79 | H162: 0.0006662778748 | I162: 0.9670972512
A163: 98106 | B163: SINAPI | C163: CAIXA DE GORDURA ESPECIAL (CAPACIDADE: 312 L - PARA ATÉ 146 PESSOAS SERVIDAS NO PICO), RETANGULAR, EM ALVENARIA COM TIJOLOS CERÂMICOS MACIÇOS, DIMENSÕES INTERNAS = 0,4X1,2 M, ALTURA INTERNA = 1 M. AF_12/2020 | D163: UN | E163: 1 | F163: 1306.9 | G163: 1306.9 | H163: 0.0006627836676 | I163: 0.9677600349
A164: ED-48441 | B164: SETOP | C164: DEMOLIÇÃO MANUAL DE CONCRETO ARMADO, INCLUSIVE AFASTAMENTO E EMPILHAMENTO, EXCLUSIVE TRANSPORTE E RETIRADA DO MATERIAL DEMOLIDO | D164: m3 | E164: 2.07 | F164: 630.94 | G164: 1306.05 | H164: 0.000662352597 | I164: 0.9684223875
A165: 2374 | B165: SINAPI | C165: DISJUNTOR TERMOMAGNETICO TRIPOLAR 150 A / 600 V, TIPO FXD / ICC - 35 KA | D165: UN | E165: 2 | F165: 645.28 | G165: 1290.56 | H165: 0.0006544969699 | I165: 0.9690768845
A166: DAC-21.3 | B166: CPU | C166: PISO TATIL DE ALERTA OU DIRECIONAL, DE BORRACHA, PRETO, 25 X 25 CM, E = 12 MM, PARA ARGAMASSA - FORNECIMENTO E INSTALAÇÃO | D166: M2 | E166: 1.8125 | F166: 711.4 | G166: 1287.63 | H166: 0.0006530110444 | I166: 0.9697298955
A167: ED-48373 | B167: SETOP | C167: PATCH PANEL 24 POSIÇÕES, CATEGORIA COM GUIA TRASEIRO | D167: cj | E167: 1 | F167: 1214.68 | G167: 1214.68 | H167: 0.0006160150473 | I167: 0.9703459105
A168: 103946 | B168: SINAPI | C168: PLANTIO DE GRAMA ESMERALDA OU SÃO CARLOS OU CURITIBANA, EM PLACAS. AF_07/2024 | D168: M2 | E168: 58.43 | F168: 20 | G168: 1168.6 | H168: 0.0005926459514 | I168: 0.9709385565
A169: 91845 | B169: SINAPI | C169: ELETRODUTO FLEXÍVEL CORRUGADO REFORÇADO, PVC, DN 25 MM (3/4"), PARA CIRCUITOS TERMINAIS, INSTALADO EM LAJE - FORNECIMENTO E INSTALAÇÃO. AF_03/2023 | D169: M | E169: 103.47 | F169: 11.08 | G169: 1146.45 | H169: 0.0005814127597 | I169: 0.9715199693
A170: 90278 | B170: SINAPI | C170: GRAUTE FGK=15 MPA; TRAÇO 1:0,04:2,2:2,5 (EM MASSA SECA DE CIMENTO/CAL/AREIA GROSSA/BRITA 0) - PREPARO MECÂNICO COM BETONEIRA 400 L. AF_09/2021 | D170: M3 | E170: 1.65 | F170: 688.57 | G170: 1136.14 | H170: 0.0005761841274 | I170: 0.9720961534
A171: ED-48372 | B171: SETOP | C171: PATCH CORD RJ45/RJ45 UTP-4P METÁLICO CATEGORIA 6, PINAGEM T568A (VOZ), COMPRIMENTO 3 METROS | D171: un | E171: 40 | F171: 28.18 | G171: 1127.2 | H171: 0.0005716502794 | I171: 0.9726678037
A172: ED-50482 | B172: SETOP | C172: EMASSAMENTO EM ESQUADRIA DE MADEIRA COM MASSA A ÓLEO, DUAS (2) DEMÃOS, INCLUSIVE LIXAMENTO PARA PINTURA A ÓLEO OU ESMALTE | D172: m2 | E172: 22.68 | F172: 48.1 | G172: 1090.91 | H172: 0.0005532461021 | I172: 0.9732210498
A173: ED-51003 | B173: SETOP | C173: SOLEIRA DE GRANITO, NA COR CINZA ANDORINHA, ESP. 3CM, ACABAMENTO POLIDO, ASSENTAMENTO COM ARGAMASSA INDUSTRIALIZADA, INCLUSIVE REJUNTAMENTO | D173: m2 | E173: 2.38 | F173: 444.28 | G173: 1057.39 | H173: 0.0005362467077 | I173: 0.9737572965
A174: 90443 | B174: SINAPI | C174: RASGO LINEAR MANUAL EM ALVENARIA, PARA RAMAIS/ DISTRIBUIÇÃO DE INSTALAÇÕES HIDRÁULICAS, DIÂMETROS MENORES OU IGUAIS A 40 MM. AF_09/2023 | D174: M | E174: 102 | F174: 10.14 | G174: 1034.28 | H174: 0.0005245266598 | I174: 0.9742818231
A175: COT-DAD-010 | B175: COTAÇÃO | C175: CABO FTP 5E (BLINDADO) - 305 METROS | D175: UN | E175: 1 | F175: 995.2 | G175: 995.2 | H175: 0.0005047075568 | I175: 0.9747865307
A176: ED-50493 | B176: SETOP | C176: PINTURA ESMALTE BASE SOLVENTE EM ESQUADRIA DE MADEIRA, DUAS (2) DEMÃOS, COM APLICAÇÃO MANUAL, INCLUSIVE UMA (1) DEMÃO DE FUNDO NIVELADOR E PREPARAÇÃO DA SUPERFÍCIE COM LIXAMENTO, EXCLUSIVE MASSA A ÓLEO | D176: m2 | E176: 22.68 | F176: 42.37 | G176: 960.95 | H176: 0.0004873379488 | I176: 0.9752738686
A177: 91856 | B177: SINAPI | C177: ELETRODUTO FLEXÍVEL CORRUGADO, PVC, DN 32 MM (1"), PARA CIRCUITOS TERMINAIS, INSTALADO EM PAREDE - FORNECIMENTO E INSTALAÇÃO. AF_03/2023 | D177: M | E177: 58.34 | F177: 16.47 | G177: 960.86 | H177: 0.0004872923061 | I177: 0.9757611609
A178: COT-DAD-002 | B178: COTAÇÃO | C178: HD 2 TB | D178: UN | E178: 1 | F178: 955.32 | G178: 955.32 | H178: 0.0004844827403 | I178: 0.9762456437
A179: ED-48189 | B179: SETOP | C179: DISTRIBUIDOR/DISPENSER PARA ÁLCOOL EM GEL OU SABONETE LÍQUIDO, EM PLÁSTICO, CAPACIDADE RESERVATÓRIO 1500ML, INCLUSIVE ACESSÓRIOS PARA FIXAÇÃO | D179: un | E179: 8 | F179: 119.01 | G179: 952.08 | H179: 0.0004828396007 | I179: 0.9767284833
A180: 91993 | B180: SINAPI | C180: TOMADA ALTA DE EMBUTIR (1 MÓDULO), 2P+T 20 A, INCLUINDO SUPORTE E PLACA - FORNECIMENTO E INSTALAÇÃO. AF_03/2023 | D180: UN | E180: 16 | F180: 59.27 | G180: 948.32 | H180: 0.0004809327474 | I180: 0.977209416
A181: 89985 | B181: SINAPI | C181: REGISTRO DE PRESSÃO BRUTO, LATÃO, ROSCÁVEL, 3/4", COM ACABAMENTO E CANOPLA CROMADOS - FORNECIMENTO E INSTALAÇÃO. AF_08/2021 | D181: UN | E181: 6 | F181: 156.96 | G181: 941.76 | H181: 0.000477605897 | I181: 0.9776870219
A182: 86872 | B182: SINAPI | C182: TANQUE DE LOUÇA BRANCA COM COLUNA, 30L OU EQUIVALENTE - FORNECIMENTO E INSTALAÇÃO. AF_01/2020 | D182: UN | E182: 1 | F182: 933.69 | G182: 933.69 | H182: 0.0004735132624 | I182: 0.9781605352
A183: DAC-21.1 | B183: CPU | C183: PLACA DE SINALIZACAO EM CHAPA DE ALUMINIO COM PINTURA REFLETIVA, E = 2 MM - FORNECIMENTO E INSTALAÇÃO | D183: M2 | E183: 0.57 | F183: 1622.96 | G183: 925.09 | H183: 0.0004691518426 | I183: 0.978629687
A184: DAC-23.1 | B184: CPU | C184: LAUDO CAUTELAR - EDIFICAÇÕES RESIDENCIAIS | D184: UN | E184: 1 | F184: 923.16 | G184: 923.16 | H184: 0.0004681730588 | I184: 0.9790978601
A185: ED-48164 | B185: SETOP | C185: BARRA DE APOIO EM AÇO INOX POLIDO RETA, DIÂMETRO DE 1.1/4", PARA ACESSIBILIDADE (PMR/PCR), COMPRIMENTO 70CM, INSTALADO EM PAREDE, INCLUSIVE ACESSÓRIOS PARA FIXAÇÃO | D185: un | E185: 3 | F185: 300.24 | G185: 900.72 | H185: 0.000456792796 | I185: 0.9795546529
A186: DAC-2.1 | B186: CPU | C186: REMOÇÃO DE POSTE METÁLICO | D186: UN | E186: 5 | F186: 179.2 | G186: 896 | H186: 0.0004543990865 | I186: 0.980009052
A187: 98295 | B187: SINAPI | C187: CABO ELETRÔNICO CATEGORIA 5E, INSTALADO EM EDIFICAÇÃO INSTITUCIONAL - FORNECIMENTO E INSTALAÇÃO. AF_11/2019 | D187: M | E187: 132.97 | F187: 6.62 | G187: 880.26 | H187: 0.000446416674 | I187: 0.9804554686
A188: ED-48183 | B188: SETOP | C188: DISTRIBUIDOR/DISPENSER PARA PAPEL HIGIÊNICO EM PLÁSTICO, TIPO SOBREPOR, INCLUSIVE ACESSÓRIOS DE FIXAÇÃO | D188: un | E188: 11 | F188: 76.07 | G188: 836.77 | H188: 0.0004243610755 | I188: 0.9808798297
A189: 92482 | B189: SINAPI | C189: MONTAGEM E DESMONTAGEM DE FÔRMA DE LAJE MACIÇA, PÉ-DIREITO SIMPLES, EM MADEIRA SERRADA, 1 UTILIZAÇÃO. AF_09/2020 | D189: M2 | E189: 1.66 | F189: 500.31 | G189: 830.51 | H189: 0.0004211863676 | I189: 0.9813010161
A190: 91930 | B190: SINAPI | C190: CABO DE COBRE FLEXÍVEL ISOLADO, 6 MM², ANTI-CHAMA 450/750 V, PARA CIRCUITOS TERMINAIS - FORNECIMENTO E INSTALAÇÃO. AF_03/2023 | D190: M | E190: 69.7 | F190: 11.84 | G190: 825.25 | H190: 0.0004185188015 | I190: 0.9817195349
A191: ED-29818 | B191: SETOP | C191: MOBILIZAÇÃO E DESMOBILIZAÇÃO DE EQUIPAMENTO PARA ESTACA TIPO TRADO ROTATIVO (CUSTO VARIÁVEL), EXCLUSIVE CUSTO FIXO DE TRANSPORTE | D191: km | E191: 30 | F191: 26.97 | G191: 809.1 | H191: 0.0004103284608 | I191: 0.9821298634
A192: ED-49149 | B192: SETOP | C192: CAIXA DE PASSAGEM, DIMENSÃO (20X20)CM, EM CHAPA DE AÇO, TIPO DE EMBUTIR, COM ACABAMENTO EM PINTURA ELETROSTÁTICA E TAMPA CEGA, INCLUSIVE FIXAÇÃO EM ALVENARIA | D192: un | E192: 5 | F192: 159.6 | G192: 798 | H192: 0.0004046991864 | I192: 0.9825345625
A193: ED-2552 | B193: SETOP | C193: LAVATÓRIO DE CANTO DE LOUÇA BRANCA SEM COLUNA, TAMANHO PEQUENO, INCLUSIVE ACESSÓRIOS DE FIXAÇÃO COM PARAFUSO CASTELO, VÁLVULA DE ESCOAMENTO DE METAL COM ACABAMENTO CROMADO, SIFÃO DE METAL TIPO COPO COM ACABAMENTO CROMADO, E REJUNTAMENTO, EXCLUSIVE TORNEIRA E ENGATE FLEXÍVEL | D193: un | E193: 1 | F193: 786.54 | G193: 786.54 | H193: 0.000398887341 | I193: 0.9829334499
A194: 104329 | B194: SINAPI | C194: CAIXA SIFONADA, COM GRELHA REDONDA, PVC, DN 150 X 150 X 50 MM, JUNTA SOLDÁVEL, FORNECIDA E INSTALADA EM RAMAL DE DESCARGA OU EM RAMAL DE ESGOTO SANITÁRIO. AF_08/2022 | D194: UN | E194: 8 | F194: 94.45 | G194: 755.6 | H194: 0.0003831963725 | I194: 0.9833166463
A195: ED-51054 | B195: SETOP | C195: CAIXA DE EQUALIZAÇÃO PARA USO INTERNO E EXTERNO COM 9 TERMINAIS 380X320X175MM EM AÇO E ACABAMENTO EM EPOXI | D195: U | E195: 1 | F195: 747.1 | G195: 747.1 | H195: 0.0003788856669 | I195: 0.9836955319
A196: ED-50316 | B196: SETOP | C196: DUCHA HIGIÊNICA COM REGISTRO PARA CONTROLE DE FLUXO DE ÁGUA, DIÂMETRO DE 1/2" (20MM), INCLUSIVE ACESSÓRIOS | D196: un | E196: 3 | F196: 241.91 | G196: 725.73 | H196: 0.0003680480458 | I196: 0.98406358
A197: 86909 | B197: SINAPI | C197: TORNEIRA CROMADA TUBO MÓVEL, DE MESA, 1/2" OU 3/4", PARA PIA DE COZINHA, PADRÃO ALTO - FORNECIMENTO E INSTALAÇÃO. AF_01/2020 | D197: UN | E197: 4 | F197: 170.68 | G197: 682.72 | H197: 0.0003462358754 | I197: 0.9844098158
A198: ED-48435 | B198: SETOP | C198: DEMOLIÇÃO MANUAL DE ALVENARIA DE TIJOLO CERÂMICO OU BLOCO DE CONCRETO, INCLUSIVE AFASTAMENTO E EMPILHAMENTO, EXCLUSIVE TRANSPORTE E RETIRADA DO MATERIAL DEMOLIDO | D198: m3 | E198: 4.8858 | F198: 138.02 | G198: 674.92 | H198: 0.000342280169 | I198: 0.984752096
A199: 89711 | B199: SINAPI | C199: TUBO PVC, SERIE NORMAL, ESGOTO PREDIAL, DN 40 MM, FORNECIDO E INSTALADO EM RAMAL DE DESCARGA OU RAMAL DE ESGOTO SANITÁRIO. AF_08/2022 | D199: M | E199: 23.97 | F199: 27.35 | G199: 655.58 | H199: 0.0003324720459 | I199: 0.9850845681
A200: DAC-2.2 | B200: CPU | C200: REMOÇÃO MANUAL DE GUIA DE MEIO-FIO PRÉ-MOLDADA EM CONCRETO, SEM REAPROVEITAMENTO, INCLUSIVE AFASTAMENTO E EMPILHAMENTO, EXCLUSIVE TRANSPORTE E RETIRADA DO MATERIAL REMOVIDO NÃO REAPROVEITÁVEL | D200: M | E200: 21.37 | F200: 30.61 | G200: 654.14 | H200: 0.0003317417617 | I200: 0.9854163098
... 126 more rows

Sheet Auxiliar_ABC2 (hidden)
A1: 1 | D1: 1.1 | E1: LOCAÇÃO DE CONTAINER COM ISOLAMENTO TÉRMICO, TIPO 3, PARA DEPÓSITO/FERRAMENTARIA DE OBRA, COM MEDIDAS REFERENCIAIS DE (6) METROS COMPRIMENTO, (2,3) METROS LARGURA E (2,5) METROS ALTURA ÚTIL INTERNA, INCLUSIVE LIGAÇÕES ELÉTRICAS INTERNAS, EXCLUSIVE MOBILIZAÇÃO/DESMOBILIZAÇÃO E LIGAÇÕES PROVISÓRIAS EXTERNAS | F1: ED-16350 | G1: SETOP | H1: mês | I1: 8 | J1: 802.02 | K1: BDI 1 | L1: 1014.71 | M1: 6416.16 | N1: 8117.68
A2: 1 | D2: 1.2 | E2: LIGAÇÕES PROVISÓRIAS PARA CONTAINER TIPO 3 (CORRESPONDENTE AO CÓDIGO ED-16350) | F2: ED-16358 | G2: SETOP | H2: un | I2: 1 | J2: 299.27 | K2: BDI 1 | L2: 378.63 | M2: 299.27 | N2: 378.63
A3: 1 | D3: 1.3 | E3: MOBILIZAÇÃO E DESMOBILIZAÇÃO DE CONTAINER, INCLUSIVE CARGA, DESCARGA E TRANSPORTE EM CAMINHÃO CARROCERIA COM GUINDAUTO (MUNCK), EXCLUSIVE LOCAÇÃO DO CONTAINER | F3: ED-50137 | G3: SETOP | H3: un | I3: 1 | J3: 1534.32 | K3: BDI 1 | L3: 1941.22 | M3: 1534.32 | N3: 1941.22
A4: 1 | D4: 1.4 | E4: LOCAÇÃO DE BANHEIRO QUÍMICO, DIMENSÃO (110X120X230)CM, LINHA PADRÃO, CONTENDO UMA (1) PIA/HIGIENIZADOR DE MÃOS, INCLUSIVE MANUTENÇÃO E MOBILIZAÇÃO/DESMOBILIZAÇÃO | F4: ED-50155 | G4: SETOP | H4: mês | I4: 16 | J4: 900 | K4: BDI 1 | L4: 1138.68 | M4: 14400 | N4: 18218.88
A5: 1 | D5: 1.5 | E5: TAPUME FIXO DE PROTEÇÃO PARA FECHAMENTO DE OBRA EM TELHA METÁLICA GALVANIZADA, TIPO TRAPEZOIDAL, ESP. 0,5MM, COM MÓDULO NA DIMENSÃO DE (300X220)CM, COM REAPROVEITAMENTO, EXCLUSIVE PINTURA ESMALTE, INCLUSIVE PONTALETE E FIXAÇÃO | F5: ED-29823 | G5: SETOP | H5: m2 | I5: 463.65 | J5: 61.38 | K5: BDI 1 | L5: 77.65 | M5: 28458.83 | N5: 36002.42
A6: 1 | D6: 1.6 | E6: REMOÇÃO DE TAPUME/ CHAPAS METÁLICAS E DE MADEIRA, DE FORMA MANUAL, SEM REAPROVEITAMENTO. AF_09/2023 | F6: 97637 | G6: SINAPI | H6: M2 | I6: 463.65 | J6: 2.8 | K6: BDI 1 | L6: 3.54 | M6: 1298.22 | N6: 1641.32
A7: 2 | D7: 2.1 | E7: FORNECIMENTO E COLOCAÇÃO DE PLACA DE OBRA EM CHAPA GALVANIZADA #26, ESP. 0,45MM, DIMENSÃO (3X1,5)M, PLOTADA COM ADESIVO VINÍLICO, AFIXADA COM REBITES 4,8X40MM, EM ESTRUTURA METÁLICA DE METALON 20X20MM, ESP. 1,25MM, INCLUSIVE SUPORTE EM EUCALIPTO AUTOCLAVADO PINTADO COM TINTA PVA DUAS (2) DEMÃOS | F7: ED-28427 | G7: SETOP | H7: un | I7: 1 | J7: 1179.54 | K7: BDI 1 | L7: 1492.35 | M7: 1179.54 | N7: 1492.35
A8: 2 | D8: 2.2 | E8: LOCAÇÃO CONVENCIONAL DE OBRA, UTILIZANDO GABARITO DE TÁBUAS CORRIDAS PONTALETADAS A CADA 2,00M - 2 UTILIZAÇÕES. AF_03/2024 | F8: 99059 | G8: SINAPI | H8: M | I8: 202.15 | J8: 69.89 | K8: BDI 1 | L8: 88.42 | M8: 14128.26 | N8: 17874.1
A9: 3 | D9: 3.1 | E9: CORTE RASO E RECORTE DE ÁRVORE COM DIÂMETRO DE TRONCO MAIOR OU IGUAL A 0,20 M E MENOR QUE 0,40 M. AF_03/2024 | F9: 98529 | G9: SINAPI | H9: UN | I9: 2 | J9: 73.45 | K9: BDI 1 | L9: 92.92 | M9: 146.9 | N9: 185.84
A10: 3 | D10: 3.2 | E10: CORTE RASO E RECORTE DE ÁRVORE COM DIÂMETRO DE TRONCO MAIOR OU IGUAL A 0,40 M E MENOR QUE 0,60 M. AF_03/2024 | F10: 98530 | G10: SINAPI | H10: UN | I10: 2 | J10: 144.17 | K10: BDI 1 | L10: 182.4 | M10: 288.34 | N10: 364.8
A11: 3 | D11: 3.3 | E11: CORTE RASO E RECORTE DE ÁRVORE COM DIÂMETRO DE TRONCO MAIOR OU IGUAL A 0,60 M. AF_03/2024 | F11: 98531 | G11: SINAPI | H11: UN | I11: 1 | J11: 386.79 | K11: BDI 1 | L11: 489.36 | M11: 386.79 | N11: 489.36
A12: 3 | D12: 3.4 | E12: REMOÇÃO DE RAÍZES REMANESCENTES DE TRONCO DE ÁRVORE COM DIÂMETRO MAIOR OU IGUAL A 0,20 M E MENOR QUE 0,40 M. AF_03/2024 | F12: 98526 | G12: SINAPI | H12: UN | I12: 2 | J12: 137.01 | K12: BDI 1 | L12: 173.34 | M12: 274.02 | N12: 346.68
A13: 3 | D13: 3.5 | E13: REMOÇÃO DE RAÍZES REMANESCENTES DE TRONCO DE ÁRVORE COM DIÂMETRO MAIOR OU IGUAL A 0,40 M E MENOR QUE 0,60 M. AF_03/2024 | F13: 98527 | G13: SINAPI | H13: UN | I13: 2 | J13: 227.38 | K13: BDI 1 | L13: 287.68 | M13: 454.76 | N13: 575.36
A14: 3 | D14: 3.6 | E14: REMOÇÃO DE RAÍZES REMANESCENTES DE TRONCO DE ÁRVORE COM DIÂMETRO MAIOR OU IGUAL A 0,60 M. AF_03/2024 | F14: 98528 | G14: SINAPI | H14: UN | I14: 1 | J14: 299.7 | K14: BDI 1 | L14: 379.18 | M14: 299.7 | N14: 379.18
A15: 3 | D15: 3.7 | E15: DEMOLIÇÃO MANUAL DE ALVENARIA DE TIJOLO CERÂMICO OU BLOCO DE CONCRETO, INCLUSIVE AFASTAMENTO E EMPILHAMENTO, EXCLUSIVE TRANSPORTE E RETIRADA DO MATERIAL DEMOLIDO | F15: ED-48435 | G15: SETOP | H15: m3 | I15: 4.8858 | J15: 109.09 | K15: BDI 1 | L15: 138.02 | M15: 532.99 | N15: 674.92
A16: 3 | D16: 3.8 | E16: DEMOLIÇÃO MANUAL DE LAJE DE CONCRETO ARMADO, COM ESPESSURA DE ATÉ 15CM, INCLUSIVE AFASTAMENTO E EMPILHAMENTO, EXCLUSIVE TRANSPORTE E RETIRADA DO MATERIAL DEMOLIDO | F16: ED-48487 | G16: SETOP | H16: m2 | I16: 0.64 | J16: 43.64 | K16: BDI 1 | L16: 55.21 | M16: 27.92 | N16: 35.33
A17: 3 | D17: 3.9 | E17: DEMOLIÇÃO MANUAL DE REVESTIMENTO DE PEDRA (MÁRMORE, GRANITO, ARDÓSIA, ETC.), INCLUSIVE AFASTAMENTO E EMPILHAMENTO, EXCLUSIVE DEMOLIÇÃO DO REBOCO OU EMBOÇO, TRANSPORTE E RETIRADA DO MATERIAL DEMOLIDO | F17: ED-48503 | G17: SETOP | H17: m2 | I17: 50.42 | J17: 25.85 | K17: BDI 1 | L17: 32.7 | M17: 1303.35 | N17: 1648.73
A18: 3 | D18: 3.10 | E18: DEMOLIÇÃO MANUAL DE CONCRETO ARMADO, INCLUSIVE AFASTAMENTO E EMPILHAMENTO, EXCLUSIVE TRANSPORTE E RETIRADA DO MATERIAL DEMOLIDO | F18: ED-48441 | G18: SETOP | H18: m3 | I18: 2.07 | J18: 498.69 | K18: BDI 1 | L18: 630.94 | M18: 1032.28 | N18: 1306.05
A19: 3 | D19: 3.11 | E19: REMOÇÃO DE POSTE METÁLICO | F19: DAC-2.1 | G19: CPU | H19: UN | I19: 5 | J19: 141.64 | K19: BDI 1 | L19: 179.2 | M19: 708.2 | N19: 896
A20: 3 | D20: 3.12 | E20: LIMPEZA DE TERRENO, INCLUSIVE CAPINA, RASTELAMENTO COM AFASTAMENTO ATÉ VINTE (20) METROS E QUEIMA CONTROLADA | F20: ED-50703 | G20: SETOP | H20: m2 | I20: 458.43 | J20: 2.48 | K20: BDI 1 | L20: 3.13 | M20: 1136.9 | N20: 1434.89
A21: 3 | D21: 3.13 | E21: DEMOLIÇÃO MANUAL DE PISO CERÂMICO OU LADRILHO HIDRÁULICO, INCLUSIVE AFASTAMENTO E EMPILHAMENTO, EXCLUSIVE DEMOLIÇÃO DE CONTRAPISO, TRANSPORTE E RETIRADA DO MATERIAL DEMOLIDO | F21: ED-48480 | G21: SETOP | H21: m2 | I21: 20 | J21: 17.23 | K21: BDI 1 | L21: 21.79 | M21: 344.6 | N21: 435.8
A22: 3 | D22: 3.14 | E22: REMOÇÃO MANUAL DE GUIA DE MEIO-FIO PRÉ-MOLDADA EM CONCRETO, SEM REAPROVEITAMENTO, INCLUSIVE AFASTAMENTO E EMPILHAMENTO, EXCLUSIVE TRANSPORTE E RETIRADA DO MATERIAL REMOVIDO NÃO REAPROVEITÁVEL | F22: DAC-2.2 | G22: CPU | H22: M | I22: 21.37 | J22: 24.2 | K22: BDI 1 | L22: 30.61 | M22: 517.15 | N22: 654.14
A23: 3 | D23: 3.15 | E23: REMOÇÃO DE TRAMA DE MADEIRA PARA COBERTURA, DE FORMA MANUAL, SEM REAPROVEITAMENTO. AF_09/2023 | F23: 97650 | G23: SINAPI | H23: M2 | I23: 12 | J23: 7.65 | K23: BDI 1 | L23: 9.67 | M23: 91.8 | N23: 116.04
A24: 3 | D24: 3.16 | E24: REMOÇÃO DE TELHAS DE FIBROCIMENTO, METÁLICA E CERÂMICA, DE FORMA MECANIZADA, COM USO DE GUINDASTE, SEM REAPROVEITAMENTO. AF_09/2023 | F24: 97649 | G24: SINAPI | H24: M2 | I24: 12 | J24: 4.52 | K24: BDI 1 | L24: 5.71 | M24: 54.24 | N24: 68.52
A25: 3 | D25: 3.17 | E25: REMOÇÃO DE ESTRUTURA EM MADEIRA, SEM REAPROVEITAMENTO | F25: DAC-2.3 | G25: CPU | H25: UN | I25: 1 | J25: 78.12 | K25: BDI 1 | L25: 98.83 | M25: 78.12 | N25: 98.83
A26: 3 | D26: 3.18 | E26: CARGA MANUAL DE MATERIAL DE QUALQUER NATUREZA SOBRE CAMINHÃO, EXCLUSIVE TRANSPORTE | F26: ED-51131 | G26: SETOP | H26: m3 | I26: 354.45046 | J26: 41.88 | K26: BDI 1 | L26: 52.98 | M26: 14844.38 | N26: 18778.76
A27: 3 | D27: 3.19 | E27: TRANSPORTE COM CAMINHÃO BASCULANTE DE 14 M³, EM VIA URBANA PAVIMENTADA, DMT ATÉ 30 KM (UNIDADE: M3XKM). AF_07/2020 | F27: 95876 | G27: SINAPI | H27: M3XKM | I27: 708.90092 | J27: 2.23 | K27: BDI 1 | L27: 2.82 | M27: 1580.84 | N27: 1999.1
A28: 4 | B28: 1 | D28: 4.1.1 | E28: COMPACTAÇÃO MECANIZADA DE ATERRO COM PLACA VIBRATÓRIA, INCLUSIVE ESPALHAMENTO MANUAL | F28: ED-51096 | G28: SETOP | H28: m3 | I28: 429.5 | J28: 50.96 | K28: BDI 1 | L28: 64.47 | M28: 21887.32 | N28: 27689.87
A29: 4 | B29: 2 | D29: 4.2.1 | E29: ARGILA OU BARRO PARA ATERRO/REATERRO (RETIRADO NA JAZIDA, SEM TRANSPORTE) | F29: 6077 | G29: SINAPI | H29: M3 | I29: 477.2222222 | J29: 37.35 | K29: BDI 1 | L29: 47.25 | M29: 17824.25 | N29: 22548.65
A30: 4 | B30: 2 | D30: 4.2.2 | E30: CARGA, MANOBRA E DESCARGA DE SOLOS E MATERIAIS GRANULARES EM CAMINHÃO BASCULANTE 10 M³ - CARGA COM ESCAVADEIRA HIDRÁULICA (CAÇAMBA DE 1,20 M³ / 155 HP) E DESCARGA LIVRE (UNIDADE: M3). AF_07/2020 | F30: 100978 | G30: SINAPI | H30: M3 | I30: 620.3888889 | J30: 7.12 | K30: BDI 1 | L30: 9 | M30: 4417.16 | N30: 5583.51
A31: 4 | B31: 2 | D31: 4.2.3 | E31: TRANSPORTE COM CAMINHÃO BASCULANTE DE 10 M³, EM VIA URBANA PAVIMENTADA, DMT ATÉ 30 KM (UNIDADE: M3XKM). AF_07/2020 | F31: 95875 | G31: SINAPI | H31: M3XKM | I31: 6638.161111 | J31: 2.53 | K31: BDI 1 | L31: 3.2 | M31: 16794.54 | N31: 21242.11
A32: 4 | B32: 3 | D32: 4.3.1 | E32: PLANTIO DE GRAMA ESMERALDA OU SÃO CARLOS OU CURITIBANA, EM PLACAS. AF_07/2024 | F32: 103946 | G32: SINAPI | H32: M2 | I32: 58.43 | J32: 15.81 | K32: BDI 1 | L32: 20 | M32: 923.77 | N32: 1168.6
A33: 4 | B33: 3 | D33: 4.3.2 | E33: CARGA MANUAL DE MATERIAL DE QUALQUER NATUREZA SOBRE CAMINHÃO, EXCLUSIVE TRANSPORTE | F33: ED-51131 | G33: SETOP | H33: m3 | I33: 11.39 | J33: 41.88 | K33: BDI 1 | L33: 52.98 | M33: 477.01 | N33: 603.44
A34: 4 | B34: 3 | D34: 4.3.3 | E34: TRANSPORTE COM CAMINHÃO BASCULANTE DE 10 M³, EM VIA URBANA PAVIMENTADA, DMT ATÉ 30 KM (UNIDADE: M3XKM). AF_07/2020 | F34: 95875 | G34: SINAPI | H34: M3XKM | I34: 124.151 | J34: 2.53 | K34: BDI 1 | L34: 3.2 | M34: 314.1 | N34: 397.28
A35: 4 | B35: 3 | D35: 4.3.4 | E35: APLICAÇÃO DE ADUBO EM SOLO. AF_07/2024 | F35: 98520 | G35: SINAPI | H35: M2 | I35: 58.43 | J35: 5.75 | K35: BDI 1 | L35: 7.27 | M35: 335.97 | N35: 424.79
A36: 4 | B36: 3 | D36: 4.3.5 | E36: APLICAÇÃO DE CALCÁRIO PARA CORREÇÃO DO PH DO SOLO. AF_07/2024 | F36: 98521 | G36: SINAPI | H36: M2 | I36: 58.43 | J36: 0.33 | K36: BDI 1 | L36: 0.41 | M36: 19.28 | N36: 23.96
A37: 5 | B37: 1 | C37: 1 | D37: 5.1.1.1 | E37: ESCAVAÇÃO MANUAL PARA BLOCO DE COROAMENTO OU SAPATA (INCLUINDO ESCAVAÇÃO PARA COLOCAÇÃO DE FÔRMAS). AF_01/2024 | F37: 96523 | G37: SINAPI | H37: M3 | I37: 30.35 | J37: 93.01 | K37: BDI 1 | L37: 117.67 | M37: 2822.85 | N37: 3571.28
A38: 5 | B38: 1 | C38: 1 | D38: 5.1.1.2 | E38: ESCAVAÇÃO MANUAL PARA VIGA BALDRAME OU SAPATA CORRIDA (INCLUINDO ESCAVAÇÃO PARA COLOCAÇÃO DE FÔRMAS). AF_01/2024 | F38: 96527 | G38: SINAPI | H38: M3 | I38: 17.41 | J38: 102.24 | K38: BDI 1 | L38: 129.35 | M38: 1779.99 | N38: 2251.98
A39: 5 | B39: 1 | C39: 1 | D39: 5.1.1.3 | E39: LASTRO COM MATERIAL GRANULAR, APLICADO EM BLOCOS DE COROAMENTO, ESPESSURA DE *10 CM*. AF_01/2024 | F39: 96623 | G39: SINAPI | H39: M3 | I39: 7.54 | J39: 228 | K39: BDI 1 | L39: 288.46 | M39: 1719.12 | N39: 2174.99
A40: 5 | B40: 1 | C40: 2 | D40: 5.1.2.1 | E40: CARGA, MANOBRA E DESCARGA DE SOLOS E MATERIAIS GRANULARES EM CAMINHÃO BASCULANTE 6 M³ - CARGA COM ESCAVADEIRA HIDRÁULICA (CAÇAMBA DE 1,20 M³ / 155 HP) E DESCARGA LIVRE (UNIDADE: M3). AF_07/2020 | F40: 100977 | G40: SINAPI | H40: M3 | I40: 16.18 | J40: 7.88 | K40: BDI 1 | L40: 9.96 | M40: 127.49 | N40: 161.15
A41: 5 | B41: 1 | C41: 2 | D41: 5.1.2.2 | E41: TRANSPORTE COM CAMINHÃO BASCULANTE DE 6 M³, EM VIA URBANA EM REVESTIMENTO PRIMÁRIO (UNIDADE: M3XKM). AF_07/2020 | F41: 97913 | G41: SINAPI | H41: M3XKM | I41: 32.36 | J41: 3.32 | K41: BDI 1 | L41: 4.2 | M41: 107.43 | N41: 135.91
A42: 5 | B42: 1 | C42: 2 | D42: 5.1.2.3 | E42: ESPALHAMENTO DE MATERIAL COM TRATOR DE ESTEIRAS. AF_09/2024 | F42: 100574 | G42: SINAPI | H42: M3 | I42: 16.18 | J42: 1.44 | K42: BDI 1 | L42: 1.82 | M42: 23.29 | N42: 29.45
A43: 5 | B43: 2 | C43: 1 | D43: 5.2.1.1 | E43: MOBILIZAÇÃO E DESMOBILIZAÇÃO DE EQUIPAMENTO PARA ESTACA TIPO TRADO ROTATIVO (CUSTO FIXO), INCLUSIVE CARGA E DESCARGA, EXCLUSIVE TRANSPORTE EM QUILÔMETRO RODADO (CUSTO VARIÁVEL) | F43: ED-29817 | G43: SETOP | H43: un | I43: 1 | J43: 3736.48 | K43: BDI 1 | L43: 4727.39 | M43: 3736.48 | N43: 4727.39
A44: 5 | B44: 2 | C44: 1 | D44: 5.2.1.2 | E44: MOBILIZAÇÃO E DESMOBILIZAÇÃO DE EQUIPAMENTO PARA ESTACA TIPO TRADO ROTATIVO (CUSTO VARIÁVEL), EXCLUSIVE CUSTO FIXO DE TRANSPORTE | F44: ED-29818 | G44: SETOP | H44: km | I44: 30 | J44: 21.32 | K44: BDI 1 | L44: 26.97 | M44: 639.6 | N44: 809.1
A45: 5 | B45: 2 | C45: 1 | D45: 5.2.1.3 | E45: ESTACA DO TIPO ESCAVADA COM TRADO MECÂNICO, SEM FLUIDO ESTABILIZANTE, COM DIÂMETRO DE 30CM, CONCRETO C-25 LANÇADO POR CAMINHÃO BETONEIRA (EXCLUSIVE MOBILIZAÇÃO E DESMOBILIZAÇÃO) | F45: DAC-5.1 | G45: CPU | H45: M | I45: 81 | J45: 133.96 | K45: BDI 1 | L45: 169.48 | M45: 10850.76 | N45: 13727.88
A46: 5 | B46: 2 | C46: 1 | D46: 5.2.1.4 | E46: ESTACA DO TIPO STRAUSS, COM DIÂMETRO DE 32CM, CONCRETO C-20, ARMAÇÃO, MOBILIZAÇÃO E DESMOBILIZAÇÃO | F46: DAC-5.2 | G46: CPU | H46: M | I46: 336 | J46: 156.96 | K46: BDI 1 | L46: 198.58 | M46: 52738.56 | N46: 66722.88
A47: 5 | B47: 2 | C47: 1 | D47: 5.2.1.5 | E47: ESTACA DO TIPO BROCA MANUAL, COM DIÂMETRO DE 25CM, CONCRETO C-20, COM ARMAÇÃO | F47: DAC-5.3 | G47: CPU | H47: M | I47: 91 | J47: 120.63 | K47: BDI 1 | L47: 152.62 | M47: 10977.33 | N47: 13888.42
A48: 5 | B48: 2 | C48: 2 | D48: 5.2.2.1 | E48: FABRICAÇÃO, MONTAGEM E DESMONTAGEM DE FÔRMA PARA BLOCO DE COROAMENTO, EM MADEIRA SERRADA, E=25 MM, 2 UTILIZAÇÕES. AF_01/2024 | F48: 96531 | G48: SINAPI | H48: M2 | I48: 9.8 | J48: 105.96 | K48: BDI 1 | L48: 134.06 | M48: 1038.4 | N48: 1313.79
A49: 5 | B49: 2 | C49: 2 | D49: 5.2.2.2 | E49: CORTE, DOBRA E MONTAGEM DE AÇO CA-50/60, INCLUSIVE ESPAÇADOR | F49: ED-48298 | G49: SETOP | H49: Kg | I49: 934.3 | J49: 13.63 | K49: BDI 1 | L49: 17.24 | M49: 12734.5 | N49: 16107.33
A50: 5 | B50: 2 | C50: 2 | D50: 5.2.2.3 | E50: FORNECIMENTO DE CONCRETO ESTRUTURAL, USINADO BOMBEADO, COM FCK 30MPA, INCLUSIVE LANÇAMENTO, ADENSAMENTO E ACABAMENTO (FUNDAÇÃO) | F50: ED-49806 | G50: SETOP | H50: m3 | I50: 8.6 | J50: 734.33 | K50: BDI 1 | L50: 929.07 | M50: 6315.23 | N50: 7990
A51: 5 | B51: 2 | C51: 3 | D51: 5.2.3.1 | E51: FÔRMA E DESFORMA PARA VIGA-CINTA/BLOCO COM TÁBUA E SARRAFO, REAPROVEITAMENTO (3X) (FUNDAÇÃO) | F51: ED-49810 | G51: SETOP | H51: m2 | I51: 61.48 | J51: 70.07 | K51: BDI 1 | L51: 88.65 | M51: 4307.9 | N51: 5450.2
A52: 5 | B52: 2 | C52: 3 | D52: 5.2.3.2 | E52: CORTE, DOBRA E MONTAGEM DE AÇO CA-50/60, INCLUSIVE ESPAÇADOR | F52: ED-48298 | G52: SETOP | H52: Kg | I52: 262.2 | J52: 13.63 | K52: BDI 1 | L52: 17.24 | M52: 3573.78 | N52: 4520.33
A53: 5 | B53: 2 | C53: 3 | D53: 5.2.3.3 | E53: FORNECIMENTO DE CONCRETO ESTRUTURAL, USINADO BOMBEADO, COM FCK 30MPA, INCLUSIVE LANÇAMENTO, ADENSAMENTO E ACABAMENTO (FUNDAÇÃO) | F53: ED-49806 | G53: SETOP | H53: m3 | I53: 8.92 | J53: 734.33 | K53: BDI 1 | L53: 929.07 | M53: 6550.22 | N53: 8287.3
A54: 5 | B54: 2 | C54: 4 | D54: 5.2.4.1 | E54: FÔRMA E DESFORMA PARA VIGA-CINTA/BLOCO COM TÁBUA E SARRAFO, REAPROVEITAMENTO (3X) (FUNDAÇÃO) | F54: ED-49810 | G54: SETOP | H54: m2 | I54: 284.7 | J54: 70.07 | K54: BDI 1 | L54: 88.65 | M54: 19948.92 | N54: 25238.66
A55: 5 | B55: 2 | C55: 4 | D55: 5.2.4.2 | E55: CORTE, DOBRA E MONTAGEM DE AÇO CA-50/60, INCLUSIVE ESPAÇADOR | F55: ED-48298 | G55: SETOP | H55: Kg | I55: 1026.2 | J55: 13.63 | K55: BDI 1 | L55: 17.24 | M55: 13987.1 | N55: 17691.69
A56: 5 | B56: 2 | C56: 4 | D56: 5.2.4.3 | E56: FORNECIMENTO DE CONCRETO ESTRUTURAL, USINADO BOMBEADO, COM FCK 30MPA, INCLUSIVE LANÇAMENTO, ADENSAMENTO E ACABAMENTO (FUNDAÇÃO) | F56: ED-49806 | G56: SETOP | H56: m3 | I56: 17.64 | J56: 734.33 | K56: BDI 1 | L56: 929.07 | M56: 12953.58 | N56: 16388.79
A57: 5 | B57: 2 | C57: 4 | D57: 5.2.4.4 | E57: IMPERMEABILIZAÇÃO DE SUPERFÍCIE COM EMULSÃO ASFÁLTICA, 2 DEMÃOS. AF_09/2023 | F57: 98557 | G57: SINAPI | H57: M2 | I57: 142.36 | J57: 41.52 | K57: BDI 1 | L57: 52.53 | M57: 5910.78 | N57: 7478.17
A58: 5 | B58: 2 | C58: 5 | D58: 5.2.5.1 | E58: ALVENARIA ESTRUTURAL COM BLOCO DE CONCRETO, ESP. 14CM, (FBK 4,5MPA), PARA REVESTIMENTO, INCLUSIVE ARGAMASSA PARA ASSENTAMENTO | F58: ED-48198 | G58: SETOP | H58: m2 | I58: 26.2 | J58: 78.95 | K58: BDI 1 | L58: 99.88 | M58: 2068.49 | N58: 2616.86
A59: 5 | B59: 2 | C59: 5 | D59: 5.2.5.2 | E59: CORTE, DOBRA E MONTAGEM DE AÇO CA-50/60, INCLUSIVE ESPAÇADOR | F59: ED-48298 | G59: SETOP | H59: Kg | I59: 154.7 | J59: 13.63 | K59: BDI 1 | L59: 17.24 | M59: 2108.56 | N59: 2667.03
A60: 5 | B60: 2 | C60: 5 | D60: 5.2.5.3 | E60: GRAUTE FGK=15 MPA; TRAÇO 1:0,04:2,2:2,5 (EM MASSA SECA DE CIMENTO/CAL/AREIA GROSSA/BRITA 0) - PREPARO MECÂNICO COM BETONEIRA 400 L. AF_09/2021 | F60: 90278 | G60: SINAPI | H60: M3 | I60: 1.65 | J60: 544.24 | K60: BDI 1 | L60: 688.57 | M60: 897.99 | N60: 1136.14
A61: 5 | B61: 2 | C61: 5 | D61: 5.2.5.4 | E61: IMPERMEABILIZAÇÃO DE SUPERFÍCIE COM ARGAMASSA DE CIMENTO E AREIA, COM ADITIVO IMPERMEABILIZANTE, E = 1,5CM. AF_09/2023 | F61: 98562 | G61: SINAPI | H61: M2 | I61: 39.8 | J61: 49.86 | K61: BDI 1 | L61: 63.08 | M61: 1984.42 | N61: 2510.58
A62: 5 | B62: 3 | C62: 1 | D62: 5.3.1.1 | E62: MONTAGEM E DESMONTAGEM DE FÔRMA DE PILARES RETANGULARES E ESTRUTURAS SIMILARES, PÉ-DIREITO DUPLO, EM CHAPA DE MADEIRA COMPENSADA RESINADA, 2 UTILIZAÇÕES. AF_09/2020 | F62: 92417 | G62: SINAPI | H62: M2 | I62: 76.91 | J62: 164.72 | K62: BDI 1 | L62: 208.4 | M62: 12668.61 | N62: 16028.04
A63: 5 | B63: 3 | C63: 1 | D63: 5.3.1.2 | E63: MONTAGEM E DESMONTAGEM DE FÔRMA DE PILARES RETANGULARES E ESTRUTURAS SIMILARES, PÉ-DIREITO SIMPLES, EM CHAPA DE MADEIRA COMPENSADA RESINADA, 2 UTILIZAÇÕES. AF_09/2020 | F63: 92415 | G63: SINAPI | H63: M2 | I63: 98.9 | J63: 141.17 | K63: BDI 1 | L63: 178.6 | M63: 13961.71 | N63: 17663.54
A64: 5 | B64: 3 | C64: 1 | D64: 5.3.1.3 | E64: CORTE, DOBRA E MONTAGEM DE AÇO CA-50/60, INCLUSIVE ESPAÇADOR | F64: ED-48298 | G64: SETOP | H64: Kg | I64: 1540 | J64: 13.63 | K64: BDI 1 | L64: 17.24 | M64: 20990.2 | N64: 26549.6
A65: 5 | B65: 3 | C65: 1 | D65: 5.3.1.4 | E65: FORNECIMENTO DE CONCRETO ESTRUTURAL, USINADO BOMBEADO, COM FCK 30MPA, INCLUSIVE LANÇAMENTO, ADENSAMENTO E ACABAMENTO | F65: ED-49639 | G65: SETOP | H65: m3 | I65: 8.9 | J65: 749.04 | K65: BDI 1 | L65: 947.68 | M65: 6666.45 | N65: 8434.35
A66: 5 | B66: 3 | C66: 2 | D66: 5.3.2.1 | E66: MONTAGEM E DESMONTAGEM DE FÔRMA DE VIGA, ESCORAMENTO METÁLICO, PÉ-DIREITO DUPLO, EM CHAPA DE MADEIRA RESINADA, 2 UTILIZAÇÕES. AF_09/2020 | F66: 92450 | G66: SINAPI | H66: M2 | I66: 117.39 | J66: 297.48 | K66: BDI 1 | L66: 376.37 | M66: 34921.17 | N66: 44182.07
A67: 5 | B67: 3 | C67: 2 | D67: 5.3.2.2 | E67: MONTAGEM E DESMONTAGEM DE FÔRMA DE VIGA, ESCORAMENTO COM PONTALETE DE MADEIRA, PÉ-DIREITO SIMPLES, EM MADEIRA SERRADA, 1 UTILIZAÇÃO. AF_09/2020 | F67: 92446 | G67: SINAPI | H67: M2 | I67: 79.02 | J67: 351.2 | K67: BDI 1 | L67: 444.33 | M67: 27751.82 | N67: 35110.96
A68: 5 | B68: 3 | C68: 2 | D68: 5.3.2.3 | E68: CORTE, DOBRA E MONTAGEM DE AÇO CA-50/60, INCLUSIVE ESPAÇADOR | F68: ED-48298 | G68: SETOP | H68: Kg | I68: 854.2 | J68: 13.63 | K68: BDI 1 | L68: 17.24 | M68: 11642.74 | N68: 14726.41
A69: 5 | B69: 3 | C69: 2 | D69: 5.3.2.4 | E69: FORNECIMENTO DE CONCRETO ESTRUTURAL, USINADO BOMBEADO, COM FCK 30MPA, INCLUSIVE LANÇAMENTO, ADENSAMENTO E ACABAMENTO | F69: ED-49639 | G69: SETOP | H69: m3 | I69: 14.71 | J69: 749.04 | K69: BDI 1 | L69: 947.68 | M69: 11018.37 | N69: 13940.37
A70: 5 | B70: 3 | C70: 3 | D70: 5.3.3.1 | E70: LAJE TRELIÇADA H=12 CM - INCLUSO MONTAGEM E FORNECIMENTO DE TODOS OS MATERIAIS | F70: DAC-5.4 | G70: CPU | H70: M2 | I70: 131.66 | J70: 147.08 | K70: BDI 1 | L70: 186.08 | M70: 19364.55 | N70: 24499.29
A71: 5 | B71: 3 | C71: 3 | D71: 5.3.3.2 | E71: LAJE TRELIÇADA H=16 CM - INCLUSO MONTAGEM E FORNECIMENTO DE TODOS OS MATERIAIS | F71: DAC-5.5 | G71: CPU | H71: M2 | I71: 117.69 | J71: 162.08 | K71: BDI 1 | L71: 205.06 | M71: 19075.19 | N71: 24133.51
A72: 5 | B72: 3 | C72: 3 | D72: 5.3.3.3 | E72: LAJE TRELIÇADA H=20 CM - INCLUSO MONTAGEM E FORNECIMENTO DE TODOS OS MATERIAIS | F72: DAC-5.6 | G72: CPU | H72: M2 | I72: 38.15 | J72: 223.08 | K72: BDI 1 | L72: 282.24 | M72: 8510.5 | N72: 10767.46
A73: 5 | B73: 3 | C73: 3 | D73: 5.3.3.4 | E73: ARMADURA DE TELA DE AÇO CA-60, SOLDADA TIPO Q-92, DIÂMETRO Ø4,2MM, TRAMA COM DIMENSÃO (150X150)MM, INCLUSIVE ESPAÇADOR, EXCLUSIVE CONCRETO | F73: ED-29581 | G73: SETOP | H73: m2 | I73: 287.5 | J73: 19.19 | K73: BDI 1 | L73: 24.27 | M73: 5517.12 | N73: 6977.63
A74: 5 | B74: 3 | C74: 3 | D74: 5.3.3.5 | E74: CIMBRAMENTO PARA LAJE PRÉ-MOLDADA COM ESCORAMENTO METÁLICO, TIPO "B", ALTURA DE (311 ATÉ 450)CM, INCLUSIVE DESCARGA, MONTAGEM, DESMONTAGEM E CARGA | F74: ED-19638 | G74: SETOP | H74: m2xmês | I74: 287.5 | J74: 25.17 | K74: BDI 1 | L74: 31.84 | M74: 7236.37 | N74: 9154
A75: 5 | B75: 3 | C75: 3 | D75: 5.3.3.6 | E75: CORTE, DOBRA E MONTAGEM DE AÇO CA-50/60, INCLUSIVE ESPAÇADOR | F75: ED-48298 | G75: SETOP | H75: Kg | I75: 90.5 | J75: 13.63 | K75: BDI 1 | L75: 17.24 | M75: 1233.51 | N75: 1560.22
A76: 5 | B76: 3 | C76: 4 | D76: 5.3.4.1 | E76: MONTAGEM E DESMONTAGEM DE FÔRMA DE LAJE MACIÇA, PÉ-DIREITO SIMPLES, EM MADEIRA SERRADA, 1 UTILIZAÇÃO. AF_09/2020 | F76: 92482 | G76: SINAPI | H76: M2 | I76: 1.66 | J76: 395.44 | K76: BDI 1 | L76: 500.31 | M76: 656.43 | N76: 830.51
A77: 5 | B77: 3 | C77: 4 | D77: 5.3.4.2 | E77: CORTE, DOBRA E MONTAGEM DE AÇO CA-50/60, INCLUSIVE ESPAÇADOR | F77: ED-48298 | G77: SETOP | H77: Kg | I77: 51.9 | J77: 13.63 | K77: BDI 1 | L77: 17.24 | M77: 707.39 | N77: 894.76
A78: 5 | B78: 3 | C78: 4 | D78: 5.3.4.3 | E78: FORNECIMENTO DE CONCRETO ESTRUTURAL, USINADO BOMBEADO, COM FCK 30MPA, INCLUSIVE LANÇAMENTO, ADENSAMENTO E ACABAMENTO | F78: ED-49639 | G78: SETOP | H78: m3 | I78: 1.11 | J78: 749.04 | K78: BDI 1 | L78: 947.68 | M78: 831.43 | N78: 1051.92
A79: 6 | B79: 1 | D79: 6.1.1 | E79: ALVENARIA DE VEDAÇÃO DE BLOCOS VAZADOS DE CONCRETO DE 14X19X39 CM (ESPESSURA 14 CM) E ARGAMASSA DE ASSENTAMENTO COM PREPARO EM BETONEIRA. AF_12/2021 | F79: 103318 | G79: SINAPI | H79: M2 | I79: 554.54 | J79: 102.94 | K79: BDI 1 | L79: 130.23 | M79: 57084.34 | N79: 72217.74
A80: 6 | B80: 1 | D80: 6.1.2 | E80: ALVENARIA DE VEDAÇÃO DE BLOCOS VAZADOS DE CONCRETO DE 19X19X39 CM (ESPESSURA 19 CM) E ARGAMASSA DE ASSENTAMENTO COM PREPARO EM BETONEIRA. AF_12/2021 | F80: 103320 | G80: SINAPI | H80: M2 | I80: 10 | J80: 123.81 | K80: BDI 1 | L80: 156.64 | M80: 1238.1 | N80: 1566.4
A81: 6 | B81: 1 | D81: 6.1.3 | E81: FIXAÇÃO (ENCUNHAMENTO) DE ALVENARIA DE VEDAÇÃO COM TIJOLO MACIÇO. AF_03/2024 | F81: 93202 | G81: SINAPI | H81: M | I81: 352.16 | J81: 27.54 | K81: BDI 1 | L81: 34.84 | M81: 9698.48 | N81: 12269.25
A82: 6 | B82: 2 | D82: 6.2.1 | E82: DIVISÓRIA EM GRANITO CINZA ANDORINHA, ESP. 3CM, INCLUSIVE INSTALAÇÃO, FERRAGENS EM LATÃO CROMADO E ACESSÓRIOS | F82: ED-48533 | G82: SETOP | H82: m2 | I82: 21.05 | J82: 658.49 | K82: BDI 1 | L82: 833.12 | M82: 13861.21 | N82: 17537.18
A83: 6 | B83: 3 | D83: 6.3.1 | E83: GUARDA-CORPO EXTERNO, ALTURA 130CM, EM TUBO GALVANIZADO, COM COSTURA, DIÂMETRO DE 2", ESP. 3MM, GRADIL COM DIVISÃO HORIZONTAL EM TUBO GALVANIZADO, COM COSTURA, DIÂMETRO DE 1", ESP. 3MM, EXCLUSIVE PINTURA | F83: ED-32098 | G83: SETOP | H83: m | I83: 10.5 | J83: 691.29 | K83: BDI 1 | L83: 874.62 | M83: 7258.54 | N83: 9183.51
A84: 6 | B84: 4 | D84: 6.4.1 | E84: FORNECIMENTO DE ANDAIME METÁLICO TUBULAR TIPO TORRE (LOCAÇÃO), INCLUSIVE RODÍZIOS, EXCLUSIVE MONTAGEM E DESMONTAGEM | F84: ED-9076 | G84: SETOP | H84: mxmês | I84: 360 | J84: 22 | K84: BDI 1 | L84: 27.83 | M84: 7920 | N84: 10018.8
A85: 6 | B85: 4 | D85: 6.4.2 | E85: MONTAGEM E DESMONTAGEM DE ANDAIME METÁLICO TUBULAR TIPO TORRE, EXCLUSIVE FORNECIMENTO DO ANDAIME | F85: ED-9077 | G85: SETOP | H85: m | I85: 355 | J85: 10.09 | K85: BDI 1 | L85: 12.76 | M85: 3581.95 | N85: 4529.8
A86: 7 | B86: 1 | D86: 7.1.1 | E86: KIT DE PORTA DE MADEIRA PARA PINTURA, SEMI-OCA (LEVE OU MÉDIA), PADRÃO POPULAR, 90X210CM, ESPESSURA DE 3,5CM, ITENS INCLUSOS: DOBRADIÇAS, MONTAGEM E INSTALAÇÃO DO BATENTE, SEM FECHADURA - FORNECIMENTO E INSTALAÇÃO. AF_12/2019 | F86: 91321 | G86: SINAPI | H86: UN | I86: 6 | J86: 845.39 | K86: BDI 1 | L86: 1069.58 | M86: 5072.34 | N86: 6417.48
A87: 7 | B87: 2 | D87: 7.2.1 | E87: PORTA EM ALUMÍNIO COMPLETA, DIMENSÃO (120X210)CM, TIPO DE CORRER, COM DUAS (2) FOLHAS, LINHA 25/SUPREMA, ACABAMENTO ANODIZADO NATURAL, INCLUSIVE PERFIS, VIDRO, FERRAGENS E INSTALAÇÃO | F87: ED-29485 | G87: SETOP | H87: un | I87: 1 | J87: 1978.23 | K87: BDI 1 | L87: 2502.85 | M87: 1978.23 | N87: 2502.85
A88: 7 | B88: 2 | D88: 7.2.2 | E88: PORTA EM ALUMÍNIO DE CORRER COM FOLHA ÚNICA (90X210)CM COMPLETA, LINHA 25/SUPREMA, ACABAMENTO ANODIZADO NATURAL, INCLUSIVE PERFIS, VIDRO, FERRAGENS E INSTALAÇÃO | F88: DAC-7.1 | G88: CPU | H88: UN | I88: 2 | J88: 1433.4 | K88: BDI 1 | L88: 1813.53 | M88: 2866.8 | N88: 3627.06
A89: 7 | B89: 2 | D89: 7.2.3 | E89: PORTÃO EM TUBO DE AÇO GALVANIZADO COM COSTURA, DIÂMETRO DE 1.1/2" (38,1MM), ESP. 2MM, COM TELA QUADRICULADA ONDULADA, TRAMA DE 1/2" (12,70MM), FIO 12 (2,77MM), EXCLUSIVE CADEADO E PINTURA | F89: ED-50986 | G89: SETOP | H89: m2 | I89: 4.31 | J89: 572.48 | K89: BDI 1 | L89: 724.3 | M89: 2467.38 | N89: 3121.73
A90: 7 | B90: 2 | D90: 7.2.4 | E90: PORTA VENEZIANA EM ALUMÍNIO COMPLETA, DIMENSÃO (80X210)CM, TIPO DE ABRIR, COM UMA (1) FOLHA, LINHA 25/SUPREMA, ACABAMENTO ANODIZADO NATURAL, INCLUSIVE PERFIS, FERRAGENS E INSTALAÇÃO | F90: ED-29479 | G90: SETOP | H90: un | I90: 1 | J90: 1812.47 | K90: BDI 1 | L90: 2293.13 | M90: 1812.47 | N90: 2293.13
A91: 7 | B91: 2 | D91: 7.2.5 | E91: PORTA EM ALUMÍNIO DE ABRIR TIPO VENEZIANA, FIXAÇÃO COM PARAFUSOS - FORNECIMENTO E INSTALAÇÃO. | F91: DAC-7.3 | G91: CPU | H91: M2 | I91: 9.9 | J91: 479.2 | K91: BDI 1 | L91: 606.28 | M91: 4744.08 | N91: 6002.17
A92: 7 | B92: 2 | D92: 7.2.6 | E92: PORTA VENEZIANA EM ALUMÍNIO COMPLETA, DIMENSÃO (90X210)CM, TIPO DE ABRIR, COM UMA (1) FOLHA, LINHA 25/SUPREMA, ACABAMENTO ANODIZADO NATURAL, INCLUSIVE PERFIS, FERRAGENS E INSTALAÇÃO | F92: ED-29480 | G92: SETOP | H92: un | I92: 3 | J92: 1954.64 | K92: BDI 1 | L92: 2473.01 | M92: 5863.92 | N92: 7419.03
A93: 7 | B93: 3 | D93: 7.3.1 | E93: JANELA EM ALUMÍNIO DE CORRER COM 2 FOLHAS, LINHA 25/SUPREMA, ACABAMENTO ANODIZADO NATURAL, INCLUSIVE PERFIS, VIDRO 4MM E INSTALAÇÃO, EXCLUSIVE FERRAGENS PARA JANELA DE ALUMÍNIO DE CORRER | F93: ED-29484 | G93: SETOP | H93: m2 | I93: 34.5 | J93: 875.51 | K93: BDI 1 | L93: 1107.69 | M93: 30205.09 | N93: 38215.31
A94: 7 | B94: 3 | D94: 7.3.2 | E94: JANELA EM ALUMÍNIO MÁXIM-AR COM ALTURA DE 60CM, LINHA 25/SUPREMA, ACABAMENTO ANODIZADO NATURAL, INCLUSIVE PERFIS, VIDRO LISO 4MM E INSTALAÇÃO, EXCLUSIVE FERRAGENS PARA MÓDULO DE JANELA DE ALUMÍNIO MÁXIM-AR | F94: ED-29481 | G94: SETOP | H94: m2 | I94: 6.96 | J94: 1023.62 | K94: BDI 1 | L94: 1295.08 | M94: 7124.39 | N94: 9013.76
A95: 7 | B95: 3 | D95: 7.3.3 | E95: JANELA AÇO DE ENROLAR, INCLUSIVE EIXO, MOLA, SOLEIRA, ETIQUETA, CAVALETE E GUIAS, FITAS E FECHADURAS LATERAIS | F95: DAC-7.2 | G95: CPU | H95: UN | I95: 2.88 | J95: 655.71 | K95: BDI 1 | L95: 829.6 | M95: 1888.44 | N95: 2389.25
A96: 7 | B96: 4 | D96: 7.4.1 | E96: VERGA MOLDADA IN LOCO COM UTILIZAÇÃO DE BLOCOS CANALETA, ESPESSURA DE *15* CM. AF_03/2024 | F96: 105025 | G96: SINAPI | H96: M | I96: 94.1 | J96: 59.95 | K96: BDI 1 | L96: 75.84 | M96: 5641.29 | N96: 7136.54
A97: 7 | B97: 4 | D97: 7.4.2 | E97: CONTRAVERGA MOLDADA IN LOCO COM UTILIZAÇÃO DE BLOCOS CANALETA, ESPESSURA DE *15* CM. AF_03/2024 | F97: 105031 | G97: SINAPI | H97: M | I97: 69.2 | J97: 48.08 | K97: BDI 1 | L97: 60.83 | M97: 3327.13 | N97: 4209.45
A98: 7 | B98: 5 | D98: 7.5.1 | E98: PINTURA ESMALTE BASE SOLVENTE EM ESTRUTURA METÁLICA, DUAS (2) DEMÃOS, COM APLICAÇÃO MANUAL, INCLUSIVE UMA (1) DEMÃO FUNDO GALVANIZADO | F98: ED-50497 | G98: SETOP | H98: m2 | I98: 71.168 | J98: 34.09 | K98: BDI 1 | L98: 43.13 | M98: 2426.11 | N98: 3069.56
A99: 7 | B99: 5 | D99: 7.5.2 | E99: EMASSAMENTO EM ESQUADRIA DE MADEIRA COM MASSA A ÓLEO, DUAS (2) DEMÃOS, INCLUSIVE LIXAMENTO PARA PINTURA A ÓLEO OU ESMALTE | F99: ED-50482 | G99: SETOP | H99: m2 | I99: 22.68 | J99: 38.02 | K99: BDI 1 | L99: 48.1 | M99: 862.29 | N99: 1090.91
A100: 7 | B100: 5 | D100: 7.5.3 | E100: PINTURA ESMALTE BASE SOLVENTE EM ESQUADRIA DE MADEIRA, DUAS (2) DEMÃOS, COM APLICAÇÃO MANUAL, INCLUSIVE UMA (1) DEMÃO DE FUNDO NIVELADOR E PREPARAÇÃO DA SUPERFÍCIE COM LIXAMENTO, EXCLUSIVE MASSA A ÓLEO | F100: ED-50493 | G100: SETOP | H100: m2 | I100: 22.68 | J100: 33.49 | K100: BDI 1 | L100: 42.37 | M100: 759.55 | N100: 960.95
A101: 7 | B101: 5 | D101: 7.5.4 | E101: PEITORIL DE GRANITO, NA COR CINZA ANDORINHA, COM PINGADEIRA, ESP. 3CM, ACABAMENTO POLIDO, ASSENTAMENTO COM ARGAMASSA INDUSTRIALIZADA, INCLUSIVE REJUNTAMENTO | F101: ED-50998 | G101: SETOP | H101: m2 | I101: 9.936 | J101: 363.58 | K101: BDI 1 | L101: 460 | M101: 3612.53 | N101: 4572.4
A102: 8 | D102: 8.1 | E102: INSTALAÇÃO DE TESOURA (INTEIRA OU MEIA), BIAPOIADA, EM MADEIRA NÃO APARELHADA, PARA VÃOS MAIORES OU IGUAIS A 6,0 M E MENORES QUE 8,0 M, INCLUSO IÇAMENTO. AF_07/2019 | F102: 92260 | G102: SINAPI | H102: UN | I102: 8 | J102: 631.5 | K102: BDI 1 | L102: 798.97 | M102: 5052 | N102: 6391.76
A103: 8 | D103: 8.2 | E103: INSTALAÇÃO DE TESOURA (INTEIRA OU MEIA), BIAPOIADA, EM MADEIRA NÃO APARELHADA, PARA VÃOS MAIORES OU IGUAIS A 8,0 M E MENORES QUE 10,0 M, INCLUSO IÇAMENTO. AF_07/2019 | F103: 92261 | G103: SINAPI | H103: UN | I103: 20 | J103: 696.33 | K103: BDI 1 | L103: 880.99 | M103: 13926.6 | N103: 17619.8
A104: 8 | D104: 8.3 | E104: TRAMA DE AÇO COMPOSTA POR RIPAS E CAIBROS PARA TELHADOS DE ATÉ 2 ÁGUAS PARA TELHA DE ENCAIXE DE CERÂMICA OU DE CONCRETO, INCLUSO TRANSPORTE VERTICAL. AF_07/2019 | F104: 92569 | G104: SINAPI | H104: M2 | I104: 470.883 | J104: 64.94 | K104: BDI 1 | L104: 82.16 | M104: 30579.14 | N104: 38687.5
A105: 8 | D105: 8.4 | E105: TELHAMENTO COM TELHA CERÂMICA DE ENCAIXE, TIPO FRANCESA, COM ATÉ 2 ÁGUAS, INCLUSO TRANSPORTE VERTICAL. AF_07/2019 | F105: 94440 | G105: SINAPI | H105: M2 | I105: 470.883 | J105: 67.25 | K105: BDI 1 | L105: 85.08 | M105: 31666.88 | N105: 40062.47
A106: 8 | D106: 8.5 | E106: CUMEEIRA PARA TELHA CERÂMICA EMBOÇADA COM ARGAMASSA TRAÇO 1:2:9 (CIMENTO, CAL E AREIA) PARA TELHADOS COM ATÉ 2 ÁGUAS, INCLUSO TRANSPORTE VERTICAL. AF_07/2019 | F106: 94221 | G106: SINAPI | H106: M | I106: 48.65 | J106: 38.79 | K106: BDI 1 | L106: 49.07 | M106: 1887.13 | N106: 2387.26
A107: 8 | D107: 8.6 | E107: COBERTURA DE POLICARBONATO 2,00 MM, INCLUSIVE ESTRUTURA METÁLICA, CALHAS E PINTURA | F107: COT-ARQ-001 | G107: COTAÇÃO | H107: M2 | I107: 20.1 | J107: 665.93 | K107: BDI 1 | L107: 842.53 | M107: 13385.19 | N107: 16934.85
A108: 9 | B108: 1 | D108: 9.1.1 | E108: CHAPISCO APLICADO EM ALVENARIAS E ESTRUTURAS DE CONCRETO INTERNAS, COM COLHER DE PEDREIRO. ARGAMASSA TRAÇO 1:3 COM PREPARO EM BETONEIRA 400L. AF_10/2022 | F108: 87879 | G108: SINAPI | H108: M2 | I108: 661.91 | J108: 4.51 | K108: BDI 1 | L108: 5.7 | M108: 2985.21 | N108: 3772.89
A109: 9 | B109: 1 | D109: 9.1.2 | E109: MASSA ÚNICA, EM ARGAMASSA TRAÇO 1:2:8, PREPARO MECÂNICO, APLICADA MANUALMENTE EM PAREDES INTERNAS DE AMBIENTES COM ÁREA ENTRE 5M² E 10M², E = 17,5MM, COM TALISCAS. AF_03/2024 | F109: 87529 | G109: SINAPI | H109: M2 | I109: 661.91 | J109: 37.17 | K109: BDI 1 | L109: 47.02 | M109: 24603.19 | N109: 31123.01
A110: 9 | B110: 1 | D110: 9.1.3 | E110: REVESTIMENTO COM CERÂMICA APLICADO EM PAREDE, ACABAMENTO ESMALTADO, AMBIENTE INTERNO/EXTERNO, PADRÃO EXTRA, DIMENSÃO DA PEÇA ATÉ 2025 CM2, PEI III, ASSENTAMENTO COM ARGAMASSA INDUSTRIALIZADA, INCLUSIVE REJUNTAMENTO | F110: ED-9081 | G110: SETOP | H110: m2 | I110: 383.11 | J110: 71.45 | K110: BDI 1 | L110: 90.39 | M110: 27373.2 | N110: 34629.31
A111: 9 | B111: 1 | D111: 9.1.4 | E111: EMASSAMENTO EM PAREDE COM MASSA CORRIDA (PVA), DUAS (2) DEMÃOS, INCLUSIVE LIXAMENTO PARA PINTURA | F111: ED-50478 | G111: SETOP | H111: m2 | I111: 278.8 | J111: 18.91 | K111: BDI 1 | L111: 23.92 | M111: 5272.1 | N111: 6668.9
A112: 9 | B112: 1 | D112: 9.1.5 | E112: IMPERMEABILIZAÇÃO DE SUPERFÍCIE COM ARGAMASSA POLIMÉRICA / MEMBRANA ACRÍLICA, 3 DEMÃOS. AF_09/2023 | F112: 98555 | G112: SINAPI | H112: M2 | I112: 301.8 | J112: 30.79 | K112: BDI 1 | L112: 38.95 | M112: 9292.42 | N112: 11755.11
A113: 9 | B113: 1 | D113: 9.1.6 | E113: APLICAÇÃO DE RESINA SINTÉTICA PARA APLICAÇÃO DE GESSO | F113: DAC-9.1 | G113: CPU | H113: M2 | I113: 284.03 | J113: 8.27 | K113: BDI 1 | L113: 10.46 | M113: 2348.92 | N113: 2970.95
A114: 9 | B114: 1 | D114: 9.1.7 | E114: APLICAÇÃO MANUAL DE GESSO DESEMPENADO (SEM TALISCAS) EM TETO DE AMBIENTES DE ÁREA MAIOR QUE 10M², ESPESSURA DE 1,0CM. AF_03/2023 | F114: 87414 | G114: SINAPI | H114: M2 | I114: 284.03 | J114: 27.15 | K114: BDI 1 | L114: 34.35 | M114: 7711.41 | N114: 9756.43
A115: 9 | B115: 1 | D115: 9.1.8 | E115: MASSA ÚNICA, EM ARGAMASSA TRAÇO 1:2:8, PREPARO MECÂNICO, APLICADA MANUALMENTE EM TETO, E = 17,5MM, COM TALISCAS. AF_03/2024 | F115: 90406 | G115: SINAPI | H115: M2 | I115: 1.44 | J115: 44 | K115: BDI 1 | L115: 55.66 | M115: 63.36 | N115: 80.15
A116: 9 | B116: 2 | D116: 9.2.1 | E116: CHAPISCO APLICADO EM ALVENARIA (COM PRESENÇA DE VÃOS) E ESTRUTURAS DE CONCRETO DE FACHADA, COM COLHER DE PEDREIRO. ARGAMASSA TRAÇO 1:3 COM PREPARO EM BETONEIRA 400L. AF_10/2022 | F116: 87905 | G116: SINAPI | H116: M2 | I116: 550.62 | J116: 8.17 | K116: BDI 1 | L116: 10.33 | M116: 4498.56 | N116: 5687.9
A117: 9 | B117: 2 | D117: 9.2.2 | E117: EMBOÇO OU MASSA ÚNICA EM ARGAMASSA TRAÇO 1:2:8, PREPARO MECÂNICO COM BETONEIRA 400 L, APLICADA MANUALMENTE EM PANOS DE FACHADA COM PRESENÇA DE VÃOS, ESPESSURA DE 35 MM. AF_08/2022 | F117: 87779 | G117: SINAPI | H117: M2 | I117: 550.62 | J117: 71.67 | K117: BDI 1 | L117: 90.67 | M117: 39462.93 | N117: 49924.72
A118: 9 | B118: 2 | D118: 9.2.3 | E118: EMASSAMENTO EM PAREDE COM MASSA ACRÍLICA, DUAS (2) DEMÃOS, INCLUSIVE LIXAMENTO PARA PINTURA | F118: ED-50474 | G118: SETOP | H118: m2 | I118: 550.62 | J118: 23.41 | K118: BDI 1 | L118: 29.61 | M118: 12890.01 | N118: 16303.86
A119: 9 | B119: 2 | D119: 9.2.4 | E119: IMPERMEABILIZAÇÃO DE SUPERFÍCIE COM ARGAMASSA POLIMÉRICA / MEMBRANA ACRÍLICA, 3 DEMÃOS. AF_09/2023 | F119: 98555 | G119: SINAPI | H119: M2 | I119: 237.705 | J119: 30.79 | K119: BDI 1 | L119: 38.95 | M119: 7318.93 | N119: 9258.8
A120: 10 | B120: 1 | D120: 10.1.1 | E120: LASTRO COM MATERIAL GRANULAR, APLICADO EM PISOS OU LAJES SOBRE SOLO, ESPESSURA DE *5 CM*. AF_01/2024 | F120: 96622 | G120: SINAPI | H120: M3 | I120: 14.2325 | J120: 251.17 | K120: BDI 1 | L120: 317.78 | M120: 3574.77 | N120: 4522.01
A121: 10 | B121: 1 | D121: 10.1.2 | E121: APILOAMENTO MECANIZADO EM FUNDO DE VALA COM PLACA VIBRATÓRIA, EXCLUSIVE ESCAVAÇÃO | F121: ED-51094 | G121: SETOP | H121: m2 | I121: 284.65 | J121: 13.63 | K121: BDI 1 | L121: 17.24 | M121: 3879.77 | N121: 4907.37
A122: 10 | B122: 1 | D122: 10.1.3 | E122: EXECUÇÃO DE PASSEIO (CALÇADA) OU PISO DE CONCRETO COM CONCRETO MOLDADO IN LOCO, USINADO, ACABAMENTO CONVENCIONAL, ESPESSURA 10 CM, ARMADO | F122: DAC-10.1 | G122: CPU | H122: M2 | I122: 284.65 | J122: 125.25 | K122: BDI 1 | L122: 158.46 | M122: 35652.41 | N122: 45105.64
A123: 10 | B123: 1 | D123: 10.1.4 | E123: CONTRAPISO EM ARGAMASSA TRAÇO 1:4 (CIMENTO E AREIA), PREPARO MECÂNICO COM BETONEIRA 400 L, APLICADO EM ÁREAS SECAS SOBRE LAJE, ADERIDO, ACABAMENTO NÃO REFORÇADO, ESPESSURA 3CM. AF_07/2021 | F123: 87630 | G123: SINAPI | H123: M2 | I123: 133.44 | J123: 40.67 | K123: BDI 1 | L123: 51.45 | M123: 5427 | N123: 6865.49
A124: 10 | B124: 1 | D124: 10.1.5 | E124: CONTRAPISO EM ARGAMASSA TRAÇO 1:4 (CIMENTO E AREIA), PREPARO MECÂNICO COM BETONEIRA 400 L, APLICADO EM ÁREAS MOLHADAS SOBRE LAJE, ADERIDO, ACABAMENTO NÃO REFORÇADO, ESPESSURA 3CM. AF_07/2021 | F124: 87745 | G124: SINAPI | H124: M2 | I124: 151.21 | J124: 52.99 | K124: BDI 1 | L124: 67.04 | M124: 8012.61 | N124: 10137.12
A125: 10 | B125: 1 | D125: 10.1.6 | E125: REVESTIMENTO COM PORCELANATO APLICADO EM PISO, ACABAMENTO POLÍDO, AMBIENTE INTERNO, PADRÃO EXTRA, BORDA RETIFICADA, DIMENSÃO DA PEÇA (60X60)CM, ASSENTAMENTO COM ARGAMASSA INDUSTRIALIZADA, INCLUSIVE REJUNTAMENTO | F125: ED-50754 | G125: SETOP | H125: m2 | I125: 283.21 | J125: 102.49 | K125: BDI 1 | L125: 129.67 | M125: 29026.19 | N125: 36723.84
A126: 10 | B126: 1 | D126: 10.1.7 | E126: RODAPÉ COM REVESTIMENTO EM PORCELANATO 60X60 COM BORDA RETIFICADA E ACABAMENTO POLIDO, ALTURA 10CM | F126: DAC-10.2 | G126: CPU | H126: M | I126: 88.4 | J126: 13.46 | K126: BDI 1 | L126: 17.02 | M126: 1189.86 | N126: 1504.57
A127: 10 | B127: 1 | D127: 10.1.8 | E127: SOLEIRA DE GRANITO, NA COR CINZA ANDORINHA, ESP. 3CM, ACABAMENTO POLIDO, ASSENTAMENTO COM ARGAMASSA INDUSTRIALIZADA, INCLUSIVE REJUNTAMENTO | F127: ED-51003 | G127: SETOP | H127: m2 | I127: 2.38 | J127: 351.16 | K127: BDI 1 | L127: 444.28 | M127: 835.76 | N127: 1057.39
A128: 10 | B128: 2 | D128: 10.2.1 | E128: LASTRO COM MATERIAL GRANULAR, APLICADO EM PISOS OU LAJES SOBRE SOLO, ESPESSURA DE *5 CM*. AF_01/2024 | F128: 96622 | G128: SINAPI | H128: M3 | I128: 7.4205 | J128: 251.17 | K128: BDI 1 | L128: 317.78 | M128: 1863.8 | N128: 2357.93
A129: 10 | B129: 2 | D129: 10.2.2 | E129: APILOAMENTO MECANIZADO EM FUNDO DE VALA COM PLACA VIBRATÓRIA, EXCLUSIVE ESCAVAÇÃO | F129: ED-51094 | G129: SETOP | H129: m2 | I129: 148.41 | J129: 13.63 | K129: BDI 1 | L129: 17.24 | M129: 2022.82 | N129: 2558.59
A130: 10 | B130: 2 | D130: 10.2.3 | E130: EXECUÇÃO DE PASSEIO (CALÇADA) OU PISO DE CONCRETO COM CONCRETO MOLDADO IN LOCO, USINADO, ACABAMENTO CONVENCIONAL, ESPESSURA 10 CM, ARMADO | F130: DAC-10.1 | G130: CPU | H130: M2 | I130: 148.41 | J130: 125.25 | K130: BDI 1 | L130: 158.46 | M130: 18588.35 | N130: 23517.05
A131: 10 | B131: 2 | D131: 10.2.4 | E131: CONTRAPISO EM ARGAMASSA TRAÇO 1:4 (CIMENTO E AREIA), PREPARO MECÂNICO COM BETONEIRA 400 L, APLICADO EM ÁREAS SECAS SOBRE LAJE, ADERIDO, ACABAMENTO NÃO REFORÇADO, ESPESSURA 3CM. AF_07/2021 | F131: 87630 | G131: SINAPI | H131: M2 | I131: 177.01 | J131: 40.67 | K131: BDI 1 | L131: 51.45 | M131: 7198.99 | N131: 9107.16
A132: 10 | B132: 2 | D132: 10.2.5 | E132: PISO CIMENTADO, TRAÇO 1:3 (CIMENTO E AREIA), ACABAMENTO LISO, ESPESSURA 3,0 CM, PREPARO MECÂNICO DA ARGAMASSA. AF_09/2020 | F132: 98680 | G132: SINAPI | H132: M2 | I132: 177.01 | J132: 50.31 | K132: BDI 1 | L132: 63.65 | M132: 8905.37 | N132: 11266.69
A133: 10 | B133: 2 | D133: 10.2.6 | E133: PINTURA DE PISO COM TINTA ACRÍLICA, APLICAÇÃO MANUAL, 2 DEMÃOS, INCLUSO FUNDO PREPARADOR. AF_05/2021 | F133: 102491 | G133: SINAPI | H133: M2 | I133: 177.01 | J133: 21.56 | K133: BDI 1 | L133: 27.27 | M133: 3816.33 | N133: 4827.06
A134: 10 | B134: 3 | D134: 10.3.1 | E134: CONTRAPISO EM ARGAMASSA TRAÇO 1:4 (CIMENTO E AREIA), PREPARO MECÂNICO COM BETONEIRA 400 L, APLICADO EM ÁREAS SECAS SOBRE LAJE, ADERIDO, ACABAMENTO NÃO REFORÇADO, ESPESSURA 3CM. AF_07/2021 | F134: 87630 | G134: SINAPI | H134: M2 | I134: 20 | J134: 40.67 | K134: BDI 1 | L134: 51.45 | M134: 813.4 | N134: 1029
A135: 11 | D135: 11.1 | E135: FUNDO SELADOR ACRÍLICO, APLICAÇÃO MANUAL EM PAREDE, UMA DEMÃO. AF_04/2023 | F135: 88485 | G135: SINAPI | H135: M2 | I135: 278.8 | J135: 4.41 | K135: BDI 1 | L135: 5.57 | M135: 1229.5 | N135: 1552.92
A136: 11 | D136: 11.2 | E136: PINTURA LÁTEX ACRÍLICA PREMIUM, APLICAÇÃO MANUAL EM PAREDES, DUAS DEMÃOS. AF_04/2023 | F136: 88489 | G136: SINAPI | H136: M2 | I136: 278.8 | J136: 13.12 | K136: BDI 1 | L136: 16.59 | M136: 3657.85 | N136: 4625.29
A137: 11 | D137: 11.3 | E137: FUNDO SELADOR ACRÍLICO, APLICAÇÃO MANUAL EM TETO, UMA DEMÃO. AF_04/2023 | F137: 88484 | G137: SINAPI | H137: M2 | I137: 285.47 | J137: 5.38 | K137: BDI 1 | L137: 6.8 | M137: 1535.82 | N137: 1941.2
A138: 11 | D138: 11.4 | E138: PINTURA LÁTEX ACRÍLICA PREMIUM, APLICAÇÃO MANUAL EM TETO, DUAS DEMÃOS. AF_04/2023 | F138: 88488 | G138: SINAPI | H138: M2 | I138: 285.47 | J138: 15.51 | K138: BDI 1 | L138: 19.62 | M138: 4427.63 | N138: 5600.92
A139: 11 | D139: 11.5 | E139: APLICAÇÃO MANUAL DE FUNDO SELADOR ACRÍLICO EM PAREDES EXTERNAS DE CASAS. AF_03/2024 | F139: 88415 | G139: SINAPI | H139: M2 | I139: 550.62 | J139: 5.33 | K139: BDI 1 | L139: 6.74 | M139: 2934.8 | N139: 3711.18
A140: 11 | D140: 11.6 | E140: APLICAÇÃO MANUAL DE TINTA LÁTEX ACRÍLICA EM PAREDE EXTERNAS DE CASAS, DUAS DEMÃOS. AF_03/2024 | F140: 95626 | G140: SINAPI | H140: M2 | I140: 550.62 | J140: 16.01 | K140: BDI 1 | L140: 20.25 | M140: 8815.42 | N140: 11150.06
A141: 11 | D141: 11.7 | E141: FORNECIMENTO DE ANDAIME METÁLICO PARA FACHADA (LOCAÇÃO), INCLUSIVE PISO METÁLICO E SAPATAS, EXCLUSIVE MONTAGEM E DESMONTAGEM | F141: ED-9075 | G141: SETOP | H141: m2xmês | I141: 560 | J141: 13.5 | K141: BDI 1 | L141: 17.08 | M141: 7560 | N141: 9564.8
A142: 11 | D142: 11.8 | E142: MONTAGEM E DESMONTAGEM DE ANDAIME METÁLICO PARA FACHADA COM PISO METÁLICO, INCLUSIVE RODAPÉ/GUARDA-CORPO EM MADEIRA, EXCLUSIVE FORNECIMENTO DO ANDAIME | F142: ED-48245 | G142: SETOP | H142: m2 | I142: 551 | J142: 15.17 | K142: BDI 1 | L142: 19.19 | M142: 8358.67 | N142: 10573.69
A143: 12 | B143: 1 | D143: 12.1.1 | E143: REGISTRO DE GAVETA BRUTO, LATÃO, ROSCÁVEL, 3/4", COM ACABAMENTO E CANOPLA CROMADOS - FORNECIMENTO E INSTALAÇÃO. AF_08/2021 | F143: 89987 | G143: SINAPI | H143: UN | I143: 13 | J143: 130.86 | K143: BDI 1 | L143: 165.56 | M143: 1701.18 | N143: 2152.28
A144: 12 | B144: 1 | D144: 12.1.2 | E144: REGISTRO DE GAVETA BRUTO, LATÃO, ROSCÁVEL, 1 1/2", COM ACABAMENTO E CANOPLA CROMADOS - FORNECIMENTO E INSTALAÇÃO. AF_08/2021 | F144: 94794 | G144: SINAPI | H144: UN | I144: 1 | J144: 231.98 | K144: BDI 1 | L144: 293.5 | M144: 231.98 | N144: 293.5
A145: 12 | B145: 1 | D145: 12.1.3 | E145: REGISTRO DE PRESSÃO BRUTO, LATÃO, ROSCÁVEL, 3/4", COM ACABAMENTO E CANOPLA CROMADOS - FORNECIMENTO E INSTALAÇÃO. AF_08/2021 | F145: 89985 | G145: SINAPI | H145: UN | I145: 6 | J145: 124.06 | K145: BDI 1 | L145: 156.96 | M145: 744.36 | N145: 941.76
A146: 12 | B146: 2 | D146: 12.2.1 | E146: ADAPTADOR COM FLANGES LIVRES, PVC, SOLDÁVEL, DN 50 MM X 1 1/2", FORNECIMENTO E INSTALAÇÃO | F146: DAC-12.1 | G146: CPU | H146: UN | I146: 1 | J146: 65.49 | K146: BDI 1 | L146: 82.85 | M146: 65.49 | N146: 82.85
A147: 12 | B147: 2 | D147: 12.2.2 | E147: ADAPTADOR CURTO COM BOLSA E ROSCA PARA REGISTRO, PVC, SOLDÁVEL, DN 25MM X 3/4 , INSTALADO EM RAMAL OU SUB-RAMAL DE ÁGUA - FORNECIMENTO E INSTALAÇÃO. AF_06/2022 | F147: 89383 | G147: SINAPI | H147: UN | I147: 26 | J147: 6.52 | K147: BDI 1 | L147: 8.24 | M147: 169.52 | N147: 214.24
A148: 12 | B148: 2 | D148: 12.2.3 | E148: ADAPTADOR CURTO COM BOLSA E ROSCA PARA REGISTRO, PVC, SOLDÁVEL, DN 32 MM X 1", INSTALADO EM RESERVAÇÃO PREDIAL DE ÁGUA - FORNECIMENTO E INSTALAÇÃO. AF_04/2024 | F148: 94658 | G148: SINAPI | H148: UN | I148: 4 | J148: 4.96 | K148: BDI 1 | L148: 6.27 | M148: 19.84 | N148: 25.08
A149: 12 | B149: 2 | D149: 12.2.4 | E149: BUCHA DE REDUÇÃO, LONGA, PVC, SOLDÁVEL, DN 50 X 25 MM, INSTALADO EM RAMAL DE DISTRIBUIÇÃO DE ÁGUA - FORNECIMENTO E INSTALAÇÃO. AF_06/2022 | F149: 103999 | G149: SINAPI | H149: UN | I149: 14 | J149: 12.01 | K149: BDI 1 | L149: 15.19 | M149: 168.14 | N149: 212.66
A150: 12 | B150: 2 | D150: 12.2.5 | E150: BUCHA DE REDUÇÃO , LONGA, PVC, SOLDÁVEL, DN 50 X 32 MM, INSTALADO EM RAMAL DE DISTRIBUIÇÃO DE ÁGUA - FORNECIMENTO E INSTALAÇÃO. AF_06/2022 | F150: 104003 | G150: SINAPI | H150: UN | I150: 1 | J150: 14.04 | K150: BDI 1 | L150: 17.76 | M150: 14.04 | N150: 17.76
A151: 12 | B151: 2 | D151: 12.2.6 | E151: CRUZETA PVC SOLDÁVEL, DN 50MM | F151: COT-HID-001 | G151: COTAÇÃO | H151: UN | I151: 1 | J151: 45.94 | K151: BDI 1 | L151: 58.12 | M151: 45.94 | N151: 58.12
A152: 12 | B152: 2 | D152: 12.2.7 | E152: INSTALAÇÃO DA CRUZETA DN 5 MM | F152: DAC-12.2 | G152: CPU | H152: UN | I152: 1 | J152: 16.35 | K152: BDI 1 | L152: 20.68 | M152: 16.35 | N152: 20.68
A153: 12 | B153: 2 | D153: 12.2.8 | E153: CURVA DE TRANSPOSIÇÃO, PVC, SOLDÁVEL, DN 25MM, INSTALADO EM RAMAL OU SUB-RAMAL DE ÁGUA FORNECIMENTO E INSTALAÇÃO. AF_06/2022 | F153: 89384 | G153: SINAPI | H153: UN | I153: 3 | J153: 12.49 | K153: BDI 1 | L153: 15.8 | M153: 37.47 | N153: 47.4
A154: 12 | B154: 2 | D154: 12.2.9 | E154: JOELHO 90 GRAUS, PVC, SOLDÁVEL, DN 25MM, INSTALADO EM RAMAL OU SUB-RAMAL DE ÁGUA - FORNECIMENTO E INSTALAÇÃO. AF_06/2022 | F154: 89362 | G154: SINAPI | H154: UN | I154: 18 | J154: 9.42 | K154: BDI 1 | L154: 11.91 | M154: 169.56 | N154: 214.38
A155: 12 | B155: 2 | D155: 12.2.10 | E155: JOELHO 90 GRAUS, PVC, SOLDÁVEL, DN 32MM, INSTALADO EM RAMAL OU SUB-RAMAL DE ÁGUA - FORNECIMENTO E INSTALAÇÃO. AF_06/2022 | F155: 89367 | G155: SINAPI | H155: UN | I155: 2 | J155: 12.87 | K155: BDI 1 | L155: 16.28 | M155: 25.74 | N155: 32.56
A156: 12 | B156: 2 | D156: 12.2.11 | E156: JOELHO 90 GRAUS, PVC, SOLDÁVEL, DN 50MM, INSTALADO EM PRUMADA DE ÁGUA - FORNECIMENTO E INSTALAÇÃO. AF_06/2022 | F156: 89501 | G156: SINAPI | H156: UN | I156: 27 | J156: 13.7 | K156: BDI 1 | L156: 17.33 | M156: 369.9 | N156: 467.91
A157: 12 | B157: 2 | D157: 12.2.12 | E157: JOELHO DE REDUÇÃO, 90 GRAUS, PVC, SOLDÁVEL, DN 32 MM X 25 MM, INSTALADO EM RAMAL OU SUB-RAMAL DE ÁGUA - FORNECIMENTO E INSTALAÇÃO. AF_06/2022 | F157: 103951 | G157: SINAPI | H157: UN | I157: 2 | J157: 14.55 | K157: BDI 1 | L157: 18.4 | M157: 29.1 | N157: 36.8
A158: 12 | B158: 2 | D158: 12.2.13 | E158: LUVA DE CORRER, PVC, SOLDÁVEL, DN 25MM, INSTALADO EM RAMAL OU SUB-RAMAL DE ÁGUA - FORNECIMENTO E INSTALAÇÃO. AF_12/2014 | F158: 89379 | G158: SINAPI | H158: UN | I158: 2 | J158: 17.83 | K158: BDI 1 | L158: 22.55 | M158: 35.66 | N158: 45.1
A159: 12 | B159: 2 | D159: 12.2.14 | E159: LUVA, PVC, SOLDÁVEL, DN 25MM, INSTALADO EM RAMAL OU SUB-RAMAL DE ÁGUA - FORNECIMENTO E INSTALAÇÃO. AF_06/2022 | F159: 89378 | G159: SINAPI | H159: UN | I159: 10 | J159: 6.95 | K159: BDI 1 | L159: 8.79 | M159: 69.5 | N159: 87.9
A160: 12 | B160: 2 | D160: 12.2.15 | E160: LUVA, PVC, SOLDÁVEL, DN 32MM, INSTALADO EM PRUMADA DE ÁGUA - FORNECIMENTO E INSTALAÇÃO. AF_06/2022 | F160: 89541 | G160: SINAPI | H160: UN | I160: 2 | J160: 6.14 | K160: BDI 1 | L160: 7.76 | M160: 12.28 | N160: 15.52
A161: 12 | B161: 2 | D161: 12.2.16 | E161: TUBO, PVC, SOLDÁVEL, DE 25MM, INSTALADO EM RAMAL OU SUB-RAMAL DE ÁGUA - FORNECIMENTO E INSTALAÇÃO. AF_06/2022 | F161: 89356 | G161: SINAPI | H161: M | I161: 68.38 | J161: 23.52 | K161: BDI 1 | L161: 29.75 | M161: 1608.29 | N161: 2034.3
A162: 12 | B162: 2 | D162: 12.2.17 | E162: TUBO, PVC, SOLDÁVEL, DE 32MM, INSTALADO EM RAMAL OU SUB-RAMAL DE ÁGUA - FORNECIMENTO E INSTALAÇÃO. AF_06/2022 | F162: 89357 | G162: SINAPI | H162: M | I162: 7.15 | J162: 32.01 | K162: BDI 1 | L162: 40.49 | M162: 228.87 | N162: 289.5
A163: 12 | B163: 2 | D163: 12.2.18 | E163: TUBO, PVC, SOLDÁVEL, DE 50MM, INSTALADO EM PRUMADA DE ÁGUA - FORNECIMENTO E INSTALAÇÃO. AF_06/2022 | F163: 89449 | G163: SINAPI | H163: M | I163: 109.28 | J163: 17.01 | K163: BDI 1 | L163: 21.52 | M163: 1858.85 | N163: 2351.71
A164: 12 | B164: 2 | D164: 12.2.19 | E164: TE, PVC, SOLDÁVEL, DN 25MM, INSTALADO EM PRUMADA DE ÁGUA - FORNECIMENTO E INSTALAÇÃO. AF_06/2022 | F164: 89617 | G164: SINAPI | H164: UN | I164: 23 | J164: 7.39 | K164: BDI 1 | L164: 9.34 | M164: 169.97 | N164: 214.82
A165: 12 | B165: 2 | D165: 12.2.20 | E165: TE, PVC, SOLDÁVEL, DN 50MM, INSTALADO EM RAMAL DE DISTRIBUIÇÃO DE ÁGUA - FORNECIMENTO E INSTALAÇÃO. AF_06/2022 | F165: 104004 | G165: SINAPI | H165: UN | I165: 7 | J165: 28.55 | K165: BDI 1 | L165: 36.12 | M165: 199.85 | N165: 252.84
A166: 12 | B166: 2 | D166: 12.2.21 | E166: TÊ DE REDUÇÃO, PVC, SOLDÁVEL, DN 32MM X 25MM, INSTALADO EM RAMAL OU SUB-RAMAL DE ÁGUA - FORNECIMENTO E INSTALAÇÃO. AF_06/2022 | F166: 89400 | G166: SINAPI | H166: UN | I166: 4 | J166: 19.42 | K166: BDI 1 | L166: 24.57 | M166: 77.68 | N166: 98.28
A167: 12 | B167: 3 | D167: 12.3.1 | E167: JOELHO 90 GRAUS COM BUCHA DE LATÃO, PVC, SOLDÁVEL, DN 25MM, X 3/4 INSTALADO EM RAMAL OU SUB-RAMAL DE ÁGUA - FORNECIMENTO E INSTALAÇÃO. AF_06/2022 | F167: 89366 | G167: SINAPI | H167: UN | I167: 14 | J167: 15.67 | K167: BDI 1 | L167: 19.82 | M167: 219.38 | N167: 277.48
A168: 12 | B168: 3 | D168: 12.3.2 | E168: JOELHO 90 GRAUS COM BUCHA DE LATÃO, PVC, SOLDÁVEL, DN 25MM, X 1/2 INSTALADO EM RAMAL OU SUB-RAMAL DE ÁGUA - FORNECIMENTO E INSTALAÇÃO. AF_06/2022 | F168: 90373 | G168: SINAPI | H168: UN | I168: 28 | J168: 12.58 | K168: BDI 1 | L168: 15.91 | M168: 352.24 | N168: 445.48
A169: 12 | B169: 4 | D169: 12.4.1 | E169: LUVA COM ROSCA, PVC, SOLDÁVEL, DN 50MM X 1.1/2 , INSTALADO EM PRUMADA DE ÁGUA - FORNECIMENTO E INSTALAÇÃO. AF_06/2022 | F169: 89593 | G169: SINAPI | H169: UN | I169: 2 | J169: 22.91 | K169: BDI 1 | L169: 28.98 | M169: 45.82 | N169: 57.96
A170: 12 | B170: 5 | D170: 12.5.1 | E170: RESERVATÓRIO TIPO TAÇA, COLUNA SECA, 35.000 LITROS - FORNECIMENTO E INSTALAÇÃO | F170: COT-HID-002 | G170: COTAÇÃO | H170: UN | I170: 1 | J170: 55200 | K170: BDI 1 | L170: 69839.04 | M170: 55200 | N170: 69839.04
A171: 12 | B171: 6 | D171: 12.6.1 | E171: RASGO LINEAR MANUAL EM ALVENARIA, PARA RAMAIS/ DISTRIBUIÇÃO DE INSTALAÇÕES HIDRÁULICAS, DIÂMETROS MENORES OU IGUAIS A 40 MM. AF_09/2023 | F171: 90443 | G171: SINAPI | H171: M | I171: 90 | J171: 8.02 | K171: BDI 1 | L171: 10.14 | M171: 721.8 | N171: 912.6
A172: 12 | B172: 6 | D172: 12.6.2 | E172: CHUMBAMENTO LINEAR EM ALVENARIA PARA RAMAIS/DISTRIBUIÇÃO DE INSTALAÇÕES HIDRÁULICAS COM DIÂMETROS MENORES OU IGUAIS A 40 MM. AF_09/2023 | F172: 90466 | G172: SINAPI | H172: M | I172: 90 | J172: 15.47 | K172: BDI 1 | L172: 19.57 | M172: 1392.3 | N172: 1761.3
A173: 12 | B173: 7 | D173: 12.7.1 | E173: ESCAVAÇÃO MANUAL DE VALA. AF_09/2024 | F173: 93358 | G173: SINAPI | H173: M3 | I173: 1.54 | J173: 82.75 | K173: BDI 1 | L173: 104.69 | M173: 127.43 | N173: 161.22
A174: 12 | B174: 7 | D174: 12.7.2 | E174: REATERRO MANUAL DE VALA, INCLUSIVE ESPALHAMENTO E COMPACTAÇÃO MECANIZADA COM PLACA VIBRATÓRIA | F174: ED-51121 | G174: SETOP | H174: m3 | I174: 1.54 | J174: 45.75 | K174: BDI 1 | L174: 57.88 | M174: 70.45 | N174: 89.14
A175: 13 | B175: 1 | D175: 13.1.1 | E175: CAIXA DE GORDURA ESPECIAL (CAPACIDADE: 312 L - PARA ATÉ 146 PESSOAS SERVIDAS NO PICO), RETANGULAR, EM ALVENARIA COM TIJOLOS CERÂMICOS MACIÇOS, DIMENSÕES INTERNAS = 0,4X1,2 M, ALTURA INTERNA = 1 M. AF_12/2020 | F175: 98106 | G175: SINAPI | H175: UN | I175: 1 | J175: 1032.96 | K175: BDI 1 | L175: 1306.9 | M175: 1032.96 | N175: 1306.9
A176: 13 | B176: 1 | D176: 13.1.2 | E176: CAIXA DE ESGOTO DE INSPEÇÃO/PASSAGEM EM ALVENARIA (60X60X60CM), REVESTIMENTO EM ARGAMASSA COM ADITIVO IMPERMEABILIZANTE, COM TAMPA DE CONCRETO, INCLUSIVE ESCAVAÇÃO, REATERRO E TRANSPORTE COM RETIRADA DO MATERIAL ESCAVADO (EM CAÇAMBA) | F176: ED-49883 | G176: SETOP | H176: un | I176: 2 | J176: 565.44 | K176: BDI 1 | L176: 715.39 | M176: 1130.88 | N176: 1430.78
A177: 13 | B177: 2 | D177: 13.2.1 | E177: CAIXA SIFONADA, COM GRELHA REDONDA, PVC, DN 150 X 150 X 50 MM, JUNTA SOLDÁVEL, FORNECIDA E INSTALADA EM RAMAL DE DESCARGA OU EM RAMAL DE ESGOTO SANITÁRIO. AF_08/2022 | F177: 104329 | G177: SINAPI | H177: UN | I177: 8 | J177: 74.66 | K177: BDI 1 | L177: 94.45 | M177: 597.28 | N177: 755.6
A178: 13 | B178: 2 | D178: 13.2.2 | E178: RALO SIFONADO, PVC, DN 100 X 40 MM, JUNTA SOLDÁVEL, FORNECIDO E INSTALADO EM RAMAL DE DESCARGA OU EM RAMAL DE ESGOTO SANITÁRIO. AF_08/2022 | F178: 89709 | G178: SINAPI | H178: UN | I178: 6 | J178: 20.02 | K178: BDI 1 | L178: 25.32 | M178: 120.12 | N178: 151.92
A179: 13 | B179: 3 | D179: 13.3.1 | E179: BUCHA DE REDUÇÃO LONGA, PVC, SÉRIE NORMAL, ESGOTO PREDIAL, DN 50 X 40 MM, JUNTA SOLDÁVEL E ELÁSTICA, FORNECIDO E INSTALADO EM RAMAL DE DESCARGA OU RAMAL DE ESGOTO SANITÁRIO. AF_08/2022 | F179: 104341 | G179: SINAPI | H179: UN | I179: 4 | J179: 10.63 | K179: BDI 1 | L179: 13.44 | M179: 42.52 | N179: 53.76
A180: 13 | B180: 3 | D180: 13.3.2 | E180: CURVA CURTA 90 GRAUS, PVC, SERIE NORMAL, ESGOTO PREDIAL, DN 40 MM, JUNTA SOLDÁVEL, FORNECIDO E INSTALADO EM RAMAL DE DESCARGA OU RAMAL DE ESGOTO SANITÁRIO. AF_08/2022 | F180: 89728 | G180: SINAPI | H180: UN | I180: 21 | J180: 13.06 | K180: BDI 1 | L180: 16.52 | M180: 274.26 | N180: 346.92
A181: 13 | B181: 3 | D181: 13.3.3 | E181: CURVA LONGA 90 GRAUS, PVC, SERIE NORMAL, ESGOTO PREDIAL, DN 100 MM, JUNTA ELÁSTICA, FORNECIDO E INSTALADO EM RAMAL DE DESCARGA OU RAMAL DE ESGOTO SANITÁRIO. AF_08/2022 | F181: 89750 | G181: SINAPI | H181: UN | I181: 2 | J181: 76.41 | K181: BDI 1 | L181: 96.67 | M181: 152.82 | N181: 193.34
A182: 13 | B182: 3 | D182: 13.3.4 | E182: JOELHO 45 GRAUS, PVC, SERIE NORMAL, ESGOTO PREDIAL, DN 100 MM, JUNTA ELÁSTICA, FORNECIDO E INSTALADO EM PRUMADA DE ESGOTO SANITÁRIO OU VENTILAÇÃO. AF_08/2022 | F182: 89810 | G182: SINAPI | H182: UN | I182: 4 | J182: 28.79 | K182: BDI 1 | L182: 36.42 | M182: 115.16 | N182: 145.68
A183: 13 | B183: 3 | D183: 13.3.5 | E183: JOELHO 45 GRAUS, PVC, SERIE NORMAL, ESGOTO PREDIAL, DN 40 MM, JUNTA SOLDÁVEL, FORNECIDO E INSTALADO EM RAMAL DE DESCARGA OU RAMAL DE ESGOTO SANITÁRIO. AF_08/2022 | F183: 89726 | G183: SINAPI | H183: UN | I183: 6 | J183: 10.39 | K183: BDI 1 | L183: 13.14 | M183: 62.34 | N183: 78.84
A184: 13 | B184: 3 | D184: 13.3.6 | E184: JOELHO 45 GRAUS, PVC, SERIE NORMAL, ESGOTO PREDIAL, DN 50 MM, JUNTA ELÁSTICA, FORNECIDO E INSTALADO EM RAMAL DE DESCARGA OU RAMAL DE ESGOTO SANITÁRIO. AF_08/2022 | F184: 89732 | G184: SINAPI | H184: UN | I184: 11 | J184: 15.28 | K184: BDI 1 | L184: 19.33 | M184: 168.08 | N184: 212.63
A185: 13 | B185: 3 | D185: 13.3.7 | E185: JOELHO 45 GRAUS, PVC, SERIE NORMAL, ESGOTO PREDIAL, DN 75 MM, JUNTA ELÁSTICA, FORNECIDO E INSTALADO EM PRUMADA DE ESGOTO SANITÁRIO OU VENTILAÇÃO. AF_08/2022 | F185: 89806 | G185: SINAPI | H185: UN | I185: 3 | J185: 20.95 | K185: BDI 1 | L185: 26.5 | M185: 62.85 | N185: 79.5
A186: 13 | B186: 3 | D186: 13.3.8 | E186: JOELHO 90 GRAUS, PVC, SERIE NORMAL, ESGOTO PREDIAL, DN 100 MM, JUNTA ELÁSTICA, FORNECIDO E INSTALADO EM PRUMADA DE ESGOTO SANITÁRIO OU VENTILAÇÃO. AF_08/2022 | F186: 89809 | G186: SINAPI | H186: UN | I186: 11 | J186: 27.96 | K186: BDI 1 | L186: 35.37 | M186: 307.56 | N186: 389.07
A187: 13 | B187: 3 | D187: 13.3.9 | E187: JOELHO PVC, COM BOLSA E ANEL, 90 GRAUS, DN 40 X *38* MM, SERIE NORMAL, PARA ESGOTO PREDIAL - FORNECIMENTO E INSTALAÇÃO | F187: DAC-13.1 | G187: CPU | H187: UN | I187: 15 | J187: 18.26 | K187: BDI 1 | L187: 23.1 | M187: 273.9 | N187: 346.5
A188: 13 | B188: 3 | D188: 13.3.10 | E188: JOELHO 90 GRAUS, PVC, SERIE NORMAL, ESGOTO PREDIAL, DN 50 MM, JUNTA ELÁSTICA, FORNECIDO E INSTALADO EM PRUMADA DE ESGOTO SANITÁRIO OU VENTILAÇÃO. AF_08/2022 | F188: 89801 | G188: SINAPI | H188: UN | I188: 36 | J188: 9.33 | K188: BDI 1 | L188: 11.8 | M188: 335.88 | N188: 424.8
A189: 13 | B189: 3 | D189: 13.3.11 | E189: JOELHO 90 GRAUS, PVC, SERIE NORMAL, ESGOTO PREDIAL, DN 40 MM, JUNTA SOLDÁVEL, FORNECIDO E INSTALADO EM RAMAL DE DESCARGA OU RAMAL DE ESGOTO SANITÁRIO. AF_08/2022 | F189: 89724 | G189: SINAPI | H189: UN | I189: 26 | J189: 10.16 | K189: BDI 1 | L189: 12.85 | M189: 264.16 | N189: 334.1
A190: 13 | B190: 3 | D190: 13.3.12 | E190: JUNÇÃO SIMPLES, PVC, SERIE NORMAL, ESGOTO PREDIAL, DN 100 X 50 MM, JUNTA ELÁSTICA, FORNECIDO E INSTALADO | F190: DAC-13.2 | G190: CPU | H190: UN | I190: 9 | J190: 45.06 | K190: BDI 1 | L190: 57 | M190: 405.54 | N190: 513
A191: 13 | B191: 3 | D191: 13.3.13 | E191: JUNÇÃO SIMPLES, PVC, SERIE NORMAL, ESGOTO PREDIAL, DN 100 X 75 MM, JUNTA ELÁSTICA, FORNECIDO E INSTALADO | F191: DAC-13.3 | G191: CPU | H191: UN | I191: 2 | J191: 51.28 | K191: BDI 1 | L191: 64.87 | M191: 102.56 | N191: 129.74
A192: 13 | B192: 3 | D192: 13.3.14 | E192: JUNÇÃO SIMPLES, PVC, SERIE NORMAL, ESGOTO PREDIAL, DN 100 X 100 MM, JUNTA ELÁSTICA, FORNECIDO E INSTALADO EM PRUMADA DE ESGOTO SANITÁRIO OU VENTILAÇÃO. AF_08/2022 | F192: 89834 | G192: SINAPI | H192: UN | I192: 6 | J192: 51.62 | K192: BDI 1 | L192: 65.3 | M192: 309.72 | N192: 391.8
A193: 13 | B193: 3 | D193: 13.3.15 | E193: JUNÇÃO SIMPLES, PVC, SERIE NORMAL, ESGOTO PREDIAL, DN 50 X 50 MM, JUNTA ELÁSTICA, FORNECIDO E INSTALADO EM PRUMADA DE ESGOTO SANITÁRIO OU VENTILAÇÃO. AF_08/2022 | F193: 89827 | G193: SINAPI | H193: UN | I193: 1 | J193: 18.94 | K193: BDI 1 | L193: 23.96 | M193: 18.94 | N193: 23.96
A194: 13 | B194: 3 | D194: 13.3.16 | E194: JUNÇÃO SIMPLES, PVC, SERIE NORMAL, ESGOTO PREDIAL, DN 75 X 50 MM, JUNTA ELÁSTICA, FORNECIDO E INSTALADO | F194: DAC-13.4 | G194: CPU | H194: UN | I194: 5 | J194: 61.51 | K194: BDI 1 | L194: 77.82 | M194: 307.55 | N194: 389.1
A195: 13 | B195: 3 | D195: 13.3.17 | E195: REDUÇÃO EXCÊNTRICA, PVC, SERIE R, ÁGUA PLUVIAL, DN 75 X 50 MM, JUNTA ELÁSTICA, FORNECIDO E INSTALADO EM RAMAL DE ENCAMINHAMENTO. AF_06/2022 | F195: 89549 | G195: SINAPI | H195: UN | I195: 3 | J195: 18.23 | K195: BDI 1 | L195: 23.06 | M195: 54.69 | N195: 69.18
A196: 13 | B196: 3 | D196: 13.3.18 | E196: REDUÇÃO EXCÊNTRICA, PVC, SERIE R, ÁGUA PLUVIAL, DN 100 X 75 MM, JUNTA ELÁSTICA, FORNECIDO E INSTALADO EM RAMAL DE ENCAMINHAMENTO. AF_06/2022 | F196: 89557 | G196: SINAPI | H196: UN | I196: 1 | J196: 30.52 | K196: BDI 1 | L196: 38.61 | M196: 30.52 | N196: 38.61
A197: 13 | B197: 3 | D197: 13.3.19 | E197: TERMINAL DE VENTILAÇÃO, PVC, SÉRIE NORMAL, ESGOTO PREDIAL, DN 50 MM, JUNTA SOLDÁVEL, FORNECIDO E INSTALADO EM PRUMADA DE ESGOTO SANITÁRIO OU VENTILAÇÃO. AF_08/2022 | F197: 104348 | G197: SINAPI | H197: UN | I197: 5 | J197: 10.85 | K197: BDI 1 | L197: 13.72 | M197: 54.25 | N197: 68.6
A198: 13 | B198: 3 | D198: 13.3.20 | E198: TUBO PVC, SERIE NORMAL, ESGOTO PREDIAL, DN 40 MM, FORNECIDO E INSTALADO EM RAMAL DE DESCARGA OU RAMAL DE ESGOTO SANITÁRIO. AF_08/2022 | F198: 89711 | G198: SINAPI | H198: M | I198: 23.97 | J198: 21.62 | K198: BDI 1 | L198: 27.35 | M198: 518.23 | N198: 655.58
A199: 13 | B199: 3 | D199: 13.3.21 | E199: TUBO PVC, SERIE NORMAL, ESGOTO PREDIAL, DN 50 MM, FORNECIDO E INSTALADO EM RAMAL DE DESCARGA OU RAMAL DE ESGOTO SANITÁRIO. AF_08/2022 | F199: 89712 | G199: SINAPI | H199: M | I199: 51.14 | J199: 27.35 | K199: BDI 1 | L199: 34.6 | M199: 1398.67 | N199: 1769.44
A200: 13 | B200: 3 | D200: 13.3.22 | E200: TUBO PVC, SERIE NORMAL, ESGOTO PREDIAL, DN 100 MM, FORNECIDO E INSTALADO EM RAMAL DE DESCARGA OU RAMAL DE ESGOTO SANITÁRIO. AF_08/2022 | F200: 89714 | G200: SINAPI | H200: M | I200: 59.08 | J200: 38.08 | K200: BDI 1 | L200: 48.17 | M200: 2249.76 | N200: 2845.88
... 156 more rows

Sheet CPU
A2: COMPOSIÇÕES DE CUSTO | L2: Revisão: | M2: =DADOS!D6 -> R01
L3: Data: | M3: =DADOS!D2 -> 2025-04-04
A4: Projeto: | D4: Cliente: | H4: Cliente: | L4: Bancos:
A5: =DADOS!D8 -> AMPLIAÇÃO DO C.E.I.M. MARILISA LOPES DE OLIVEIRA | L5: =DADOS!D14 -> SINAPI: 02/2025 Minas Gerais SETOP: 10/2024 Minas Gerais SICRO : 10/2024 Minas Gerais SUDECAP: 10/2024 Minas Gerais
L8: BDI 1: | M8: =DADOS!D10 -> 0.2652
L9: BDI 2: | M9: =DADOS!D12 -> -
A11: =A2&" DE "&DADOS!D20&" - "&A5 -> COMPOSIÇÕES DE CUSTO DE PROJETO EXECUTIVO - AMPLIAÇÃO DO C.E.I.M. MARILISA LOPES DE OLIVEIRA
A13: CÓDIGO | B13: DESCRIÇÃO | I13: Banco | J13: Unid. | K13: Coeficiente | L13: Preço Unit. | M13: Total
A15: 2 | B15: LIMPEZAS E DEMOLIÇÕES
A16: DAC-2.1 | B16: REMOÇÃO DE POSTE METÁLICO | I16: CPU | J16: UN | M16: =SUM(M17:M18) -> 141.64
B17: 88264 | C17: =IF(I17="SINAPI",VLOOKUP(B17,DADOS_SINAPI,2,0),IF(I17="SETOP",VLOOKUP(B17,DADOS_SETOP,2,0),IF(I17="SICRO",VLOOKUP(B17,DADOS_SICRO,2,0),IF(I17="SUDECAP",VLOOKUP(B17,DADOS_SUDECAP,2,0),IF(I17="COTAÇÃO",VLOOKUP(B17,DADOS_COTACAO,2,0),VLOOKUP(B17,DADOS_COMPOSICAO,2,0)))))) -> ELETRICISTA COM ENCARGOS COMPLEMENTARES | I17: SINAPI | J17: =IF(I17="SINAPI",VLOOKUP(B17,DADOS_SINAPI,3,0),IF(I17="SETOP",VLOOKUP(B17,DADOS_SETOP,3,0),IF(I17="SICRO",VLOOKUP(B17,DADOS_SICRO,3,0),IF(I17="SUDECAP",VLOOKUP(B17,DADOS_SUDECAP,3,0),IF(I17="COTAÇÃO",VLOOKUP(B17,DADOS_COTACAO,9,0),VLOOKUP(B17,DADOS_COMPOSICAO,10,0)))))) -> H | K17: 2 | L17: =IF(I17="SINAPI",VLOOKUP(B17,DADOS_SINAPI,4,0),IF(I17="SETOP",VLOOKUP(B17,DADOS_SETOP,4,0),IF(I17="SICRO",VLOOKUP(B17,DADOS_SICRO,4,0),IF(I17="SUDECAP",VLOOKUP(B17,DADOS_SUDECAP,4,0),IF(I17="COTAÇÃO",VLOOKUP(B17,DADOS_COTACAO,12,0),VLOOKUP(B17,DADOS_COMPOSICAO,13,0)))))) -> 28.98 | M17: =K17*L17 -> 57.96
B18: 88316 | C18: =IF(I18="SINAPI",VLOOKUP(B18,DADOS_SINAPI,2,0),IF(I18="SETOP",VLOOKUP(B18,DADOS_SETOP,2,0),IF(I18="SICRO",VLOOKUP(B18,DADOS_SICRO,2,0),IF(I18="SUDECAP",VLOOKUP(B18,DADOS_SUDECAP,2,0),IF(I18="COTAÇÃO",VLOOKUP(B18,DADOS_COTACAO,2,0),VLOOKUP(B18,DADOS_COMPOSICAO,2,0)))))) -> SERVENTE COM ENCARGOS COMPLEMENTARES | I18: SINAPI | J18: =IF(I18="SINAPI",VLOOKUP(B18,DADOS_SINAPI,3,0),IF(I18="SETOP",VLOOKUP(B18,DADOS_SETOP,3,0),IF(I18="SICRO",VLOOKUP(B18,DADOS_SICRO,3,0),IF(I18="SUDECAP",VLOOKUP(B18,DADOS_SUDECAP,3,0),IF(I18="COTAÇÃO",VLOOKUP(B18,DADOS_COTACAO,9,0),VLOOKUP(B18,DADOS_COMPOSICAO,10,0)))))) -> H | K18: 4 | L18: =IF(I18="SINAPI",VLOOKUP(B18,DADOS_SINAPI,4,0),IF(I18="SETOP",VLOOKUP(B18,DADOS_SETOP,4,0),IF(I18="SICRO",VLOOKUP(B18,DADOS_SICRO,4,0),IF(I18="SUDECAP",VLOOKUP(B18,DADOS_SUDECAP,4,0),IF(I18="COTAÇÃO",VLOOKUP(B18,DADOS_COTACAO,12,0),VLOOKUP(B18,DADOS_COMPOSICAO,13,0)))))) -> 20.92 | M18: 83.68
A20: DAC-2.2 | B20: REMOÇÃO MANUAL DE GUIA DE MEIO-FIO PRÉ-MOLDADA EM CONCRETO, SEM REAPROVEITAMENTO, INCLUSIVE AFASTAMENTO E EMPILHAMENTO, EXCLUSIVE TRANSPORTE E RETIRADA DO MATERIAL REMOVIDO NÃO REAPROVEITÁVEL | I20: CPU | J20: M | M20: =SUM(M21:M22) -> 24.209595
B21: 88309 | C21: =IF(I21="SINAPI",VLOOKUP(B21,DADOS_SINAPI,2,0),IF(I21="SETOP",VLOOKUP(B21,DADOS_SETOP,2,0),IF(I21="SICRO",VLOOKUP(B21,DADOS_SICRO,2,0),IF(I21="SUDECAP",VLOOKUP(B21,DADOS_SUDECAP,2,0),IF(I21="COTAÇÃO",VLOOKUP(B21,DADOS_COTACAO,2,0),VLOOKUP(B21,DADOS_COMPOSICAO,2,0)))))) -> PEDREIRO COM ENCARGOS COMPLEMENTARES | I21: SINAPI | J21: =IF(I21="SINAPI",VLOOKUP(B21,DADOS_SINAPI,3,0),IF(I21="SETOP",VLOOKUP(B21,DADOS_SETOP,3,0),IF(I21="SICRO",VLOOKUP(B21,DADOS_SICRO,3,0),IF(I21="SUDECAP",VLOOKUP(B21,DADOS_SUDECAP,3,0),IF(I21="COTAÇÃO",VLOOKUP(B21,DADOS_COTACAO,9,0),VLOOKUP(B21,DADOS_COMPOSICAO,10,0)))))) -> H | K21: 0.488889 | L21: =IF(I21="SINAPI",VLOOKUP(B21,DADOS_SINAPI,4,0),IF(I21="SETOP",VLOOKUP(B21,DADOS_SETOP,4,0),IF(I21="SICRO",VLOOKUP(B21,DADOS_SICRO,4,0),IF(I21="SUDECAP",VLOOKUP(B21,DADOS_SUDECAP,4,0),IF(I21="COTAÇÃO",VLOOKUP(B21,DADOS_COTACAO,12,0),VLOOKUP(B21,DADOS_COMPOSICAO,13,0)))))) -> 28.6 | M21: =K21*L21 -> 13.9822254
B22: 88316 | C22: =IF(I22="SINAPI",VLOOKUP(B22,DADOS_SINAPI,2,0),IF(I22="SETOP",VLOOKUP(B22,DADOS_SETOP,2,0),IF(I22="SICRO",VLOOKUP(B22,DADOS_SICRO,2,0),IF(I22="SUDECAP",VLOOKUP(B22,DADOS_SUDECAP,2,0),IF(I22="COTAÇÃO",VLOOKUP(B22,DADOS_COTACAO,2,0),VLOOKUP(B22,DADOS_COMPOSICAO,2,0)))))) -> SERVENTE COM ENCARGOS COMPLEMENTARES | I22: SINAPI | J22: =IF(I22="SINAPI",VLOOKUP(B22,DADOS_SINAPI,3,0),IF(I22="SETOP",VLOOKUP(B22,DADOS_SETOP,3,0),IF(I22="SICRO",VLOOKUP(B22,DADOS_SICRO,3,0),IF(I22="SUDECAP",VLOOKUP(B22,DADOS_SUDECAP,3,0),IF(I22="COTAÇÃO",VLOOKUP(B22,DADOS_COTACAO,9,0),VLOOKUP(B22,DADOS_COMPOSICAO,10,0)))))) -> H | K22: 0.48888 | L22: =IF(I22="SINAPI",VLOOKUP(B22,DADOS_SINAPI,4,0),IF(I22="SETOP",VLOOKUP(B22,DADOS_SETOP,4,0),IF(I22="SICRO",VLOOKUP(B22,DADOS_SICRO,4,0),IF(I22="SUDECAP",VLOOKUP(B22,DADOS_SUDECAP,4,0),IF(I22="COTAÇÃO",VLOOKUP(B22,DADOS_COTACAO,12,0),VLOOKUP(B22,DADOS_COMPOSICAO,13,0)))))) -> 20.92 | M22: 10.2273696
A24: DAC-2.3 | B24: REMOÇÃO DE ESTRUTURA EM MADEIRA, SEM REAPROVEITAMENTO | I24: CPU | J24: UN | M24: =SUM(M25:M26) -> 78.12
B25: 88309 | C25: =IF(I25="SINAPI",VLOOKUP(B25,DADOS_SINAPI,2,0),IF(I25="SETOP",VLOOKUP(B25,DADOS_SETOP,2,0),IF(I25="SICRO",VLOOKUP(B25,DADOS_SICRO,2,0),IF(I25="SUDECAP",VLOOKUP(B25,DADOS_SUDECAP,2,0),IF(I25="COTAÇÃO",VLOOKUP(B25,DADOS_COTACAO,2,0),VLOOKUP(B25,DADOS_COMPOSICAO,2,0)))))) -> PEDREIRO COM ENCARGOS COMPLEMENTARES | I25: SINAPI | J25: =IF(I25="SINAPI",VLOOKUP(B25,DADOS_SINAPI,3,0),IF(I25="SETOP",VLOOKUP(B25,DADOS_SETOP,3,0),IF(I25="SICRO",VLOOKUP(B25,DADOS_SICRO,3,0),IF(I25="SUDECAP",VLOOKUP(B25,DADOS_SUDECAP,3,0),IF(I25="COTAÇÃO",VLOOKUP(B25,DADOS_COTACAO,9,0),VLOOKUP(B25,DADOS_COMPOSICAO,10,0)))))) -> H | K25: 2 | L25: =IF(I25="SINAPI",VLOOKUP(B25,DADOS_SINAPI,4,0),IF(I25="SETOP",VLOOKUP(B25,DADOS_SETOP,4,0),IF(I25="SICRO",VLOOKUP(B25,DADOS_SICRO,4,0),IF(I25="SUDECAP",VLOOKUP(B25,DADOS_SUDECAP,4,0),IF(I25="COTAÇÃO",VLOOKUP(B25,DADOS_COTACAO,12,0),VLOOKUP(B25,DADOS_COMPOSICAO,13,0)))))) -> 28.6 | M25: =K25*L25 -> 57.2
B26: 88316 | C26: =IF(I26="SINAPI",VLOOKUP(B26,DADOS_SINAPI,2,0),IF(I26="SETOP",VLOOKUP(B26,DADOS_SETOP,2,0),IF(I26="SICRO",VLOOKUP(B26,DADOS_SICRO,2,0),IF(I26="SUDECAP",VLOOKUP(B26,DADOS_SUDECAP,2,0),IF(I26="COTAÇÃO",VLOOKUP(B26,DADOS_COTACAO,2,0),VLOOKUP(B26,DADOS_COMPOSICAO,2,0)))))) -> SERVENTE COM ENCARGOS COMPLEMENTARES | I26: SINAPI | J26: =IF(I26="SINAPI",VLOOKUP(B26,DADOS_SINAPI,3,0),IF(I26="SETOP",VLOOKUP(B26,DADOS_SETOP,3,0),IF(I26="SICRO",VLOOKUP(B26,DADOS_SICRO,3,0),IF(I26="SUDECAP",VLOOKUP(B26,DADOS_SUDECAP,3,0),IF(I26="COTAÇÃO",VLOOKUP(B26,DADOS_COTACAO,9,0),VLOOKUP(B26,DADOS_COMPOSICAO,10,0)))))) -> H | K26: 1 | L26: =IF(I26="SINAPI",VLOOKUP(B26,DADOS_SINAPI,4,0),IF(I26="SETOP",VLOOKUP(B26,DADOS_SETOP,4,0),IF(I26="SICRO",VLOOKUP(B26,DADOS_SICRO,4,0),IF(I26="SUDECAP",VLOOKUP(B26,DADOS_SUDECAP,4,0),IF(I26="COTAÇÃO",VLOOKUP(B26,DADOS_COTACAO,12,0),VLOOKUP(B26,DADOS_COMPOSICAO,13,0)))))) -> 20.92 | M26: 20.92
A28: 5 | B28: =VLOOKUP(A28,ORC!$D$77:$N$2069,2,0) -> ESTRUTURA
A29: DAC-5.1 | B29: ESTACA DO TIPO ESCAVADA COM TRADO MECÂNICO, SEM FLUIDO ESTABILIZANTE, COM DIÂMETRO DE 30CM, CONCRETO C-25 LANÇADO POR CAMINHÃO BETONEIRA (EXCLUSIVE MOBILIZAÇÃO E DESMOBILIZAÇÃO) | I29: CPU | J29: M | M29: =SUM(M30:M37) -> 133.9605242
B30: 38405 | C30: =IF(I30="SINAPI",VLOOKUP(B30,DADOS_SINAPI,2,0),IF(I30="SETOP",VLOOKUP(B30,DADOS_SETOP,2,0),IF(I30="SICRO",VLOOKUP(B30,DADOS_SICRO,2,0),IF(I30="SUDECAP",VLOOKUP(B30,DADOS_SUDECAP,2,0),IF(I30="COTAÇÃO",VLOOKUP(B30,DADOS_COTACAO,2,0),VLOOKUP(B30,DADOS_COMPOSICAO,2,0)))))) -> CONCRETO USINADO BOMBEAVEL, CLASSE DE RESISTENCIA C25, COM BRITA 0 E 1, SLUMP = 130 +/- 20 MM, EXCLUI SERVICO DE BOMBEAMENTO (NBR 8953) | I30: SINAPI | J30: =IF(I30="SINAPI",VLOOKUP(B30,DADOS_SINAPI,3,0),IF(I30="SETOP",VLOOKUP(B30,DADOS_SETOP,3,0),IF(I30="SICRO",VLOOKUP(B30,DADOS_SICRO,3,0),IF(I30="SUDECAP",VLOOKUP(B30,DADOS_SUDECAP,3,0),IF(I30="COTAÇÃO",VLOOKUP(B30,DADOS_COTACAO,9,0),VLOOKUP(B30,DADOS_COMPOSICAO,10,0)))))) -> M3 | K30: =3.14159*0.15*0.15*1.1 -> 0.0777543525 | L30: =IF(I30="SINAPI",VLOOKUP(B30,DADOS_SINAPI,4,0),IF(I30="SETOP",VLOOKUP(B30,DADOS_SETOP,4,0),IF(I30="SICRO",VLOOKUP(B30,DADOS_SICRO,4,0),IF(I30="SUDECAP",VLOOKUP(B30,DADOS_SUDECAP,4,0),IF(I30="COTAÇÃO",VLOOKUP(B30,DADOS_COTACAO,12,0),VLOOKUP(B30,DADOS_COMPOSICAO,13,0)))))) -> 587.26 | M30: =K30*L30 -> 45.66202105
B31: 88316 | C31: SERVENTE COM ENCARGOS COMPLEMENTARES | I31: SINAPI | J31: H | K31: 0.2795 | L31: 20.92 | M31: 5.84714
B32: 90680 | C32: PERFURATRIZ HIDRÁULICA SOBRE CAMINHÃO COM TRADO CURTO ACOPLADO, PROFUNDIDADE MÁXIMA DE 20 M, DIÂMETRO MÁXIMO DE 1500 MM, POTÊNCIA INSTALADA DE 137 HP, MESA ROTATIVA COM TORQUE MÁXIMO DE 30 KNM - CHP DIURNO. AF_06/2015 | I32: SINAPI | J32: CHP | K32: 0.0342 | L32: 393.36 | M32: 13.452912
B33: 90681 | C33: PERFURATRIZ HIDRÁULICA SOBRE CAMINHÃO COM TRADO CURTO ACOPLADO, PROFUNDIDADE MÁXIMA DE 20 M, DIÂMETRO MÁXIMO DE 1500 MM, POTÊNCIA INSTALADA DE 137 HP, MESA ROTATIVA COM TORQUE MÁXIMO DE 30 KNM - CHI DIURNO. AF_06/2015 | I33: SINAPI | J33: CHI | K33: 0.0612 | L33: 166.44 | M33: 10.186128
B34: 90778 | C34: ENGENHEIRO CIVIL DE OBRA PLENO COM ENCARGOS COMPLEMENTARES | I34: SINAPI | J34: H | K34: 0.0064 | L34: 121.61 | M34: 0.778304
B35: ED-48298 | C35: CORTE, DOBRA E MONTAGEM DE AÇO CA-50/60, INCLUSIVE ESPAÇADOR | I35: SETOP | J35: Kg | K35: =339.4/(9*9) -> 4.190123457 | L35: 13.63 | M35: 57.11138272
B36: 97913 | C36: TRANSPORTE COM CAMINHÃO BASCULANTE DE 6 M³, EM VIA URBANA EM REVESTIMENTO PRIMÁRIO (UNIDADE: M3XKM). AF_07/2020 | I36: SINAPI | J36: M3XKM | K36: 0.0524 | L36: 3.32 | M36: 0.173968
B37: 100973 | C37: CARGA, MANOBRA E DESCARGA DE SOLOS E MATERIAIS GRANULARES EM CAMINHÃO BASCULANTE 6 M³ - CARGA COM PÁ CARREGADEIRA (CAÇAMBA DE 1,7 A 2,8 M³ / 128 HP) E DESCARGA LIVRE (UNIDADE: M3). AF_07/2020 | I37: SINAPI | J37: M3 | K37: =3.14159*0.15*0.15*1.15 -> 0.08128864125 | L37: 9.21 | M37: 0.7486683859
A39: DAC-5.2 | B39: ESTACA DO TIPO STRAUSS, COM DIÂMETRO DE 32CM, CONCRETO C-20, ARMAÇÃO, MOBILIZAÇÃO E DESMOBILIZAÇÃO | I39: CPU | J39: M | M39: =SUM(M40:M47) -> 156.9689085
B40: ED-29821 | C40: =IF(I40="SINAPI",VLOOKUP(B40,DADOS_SINAPI,2,0),IF(I40="SETOP",VLOOKUP(B40,DADOS_SETOP,2,0),IF(I40="SICRO",VLOOKUP(B40,DADOS_SICRO,2,0),IF(I40="SUDECAP",VLOOKUP(B40,DADOS_SUDECAP,2,0),IF(I40="COTAÇÃO",VLOOKUP(B40,DADOS_COTACAO,2,0),VLOOKUP(B40,DADOS_COMPOSICAO,2,0)))))) -> MOBILIZAÇÃO E DESMOBILIZAÇÃO DE EQUIPAMENTO PARA ESTACA TIPO STRAUSS (CUSTO FIXO), INCLUSIVE CARGA E DESCARGA, EXCLUSIVE TRANSPORTE EM QUILÔMETRO RODADO (CUSTO VARIÁVEL) | I40: SETOP | J40: =IF(I40="SINAPI",VLOOKUP(B40,DADOS_SINAPI,3,0),IF(I40="SETOP",VLOOKUP(B40,DADOS_SETOP,3,0),IF(I40="SICRO",VLOOKUP(B40,DADOS_SICRO,3,0),IF(I40="SUDECAP",VLOOKUP(B40,DADOS_SUDECAP,3,0),IF(I40="COTAÇÃO",VLOOKUP(B40,DADOS_COTACAO,9,0),VLOOKUP(B40,DADOS_COMPOSICAO,10,0)))))) -> un | K40: =1/(16*8) -> 0.0078125 | L40: =IF(I40="SINAPI",VLOOKUP(B40,DADOS_SINAPI,4,0),IF(I40="SETOP",VLOOKUP(B40,DADOS_SETOP,4,0),IF(I40="SICRO",VLOOKUP(B40,DADOS_SICRO,4,0),IF(I40="SUDECAP",VLOOKUP(B40,DADOS_SUDECAP,4,0),IF(I40="COTAÇÃO",VLOOKUP(B40,DADOS_COTACAO,12,0),VLOOKUP(B40,DADOS_COMPOSICAO,13,0)))))) -> 4698.6 | M40: =K40*L40 -> 36.7078125
B41: ED-29822 | C41: MOBILIZAÇÃO E DESMOBILIZAÇÃO DE EQUIPAMENTO PARA ESTACA TIPO STRAUSS (CUSTO VARIÁVEL), EXCLUSIVE CUSTO FIXO DE TRANSPORTE | I41: SETOP | J41: km | K41: =30/(16*8) -> 0.234375 | L41: 10.06 | M41: 2.3578125
B42: 38404 | C42: CONCRETO USINADO BOMBEAVEL, CLASSE DE RESISTENCIA C20, COM BRITA 0 E 1, SLUMP = 130 +/- 20 MM, EXCLUI SERVICO DE BOMBEAMENTO (NBR 8953) | I42: SINAPI | J42: M3 | K42: =11.3/(16*8) -> 0.08828125 | L42: 569.69 | M42: 50.29294531
B43: ED-48298 | C43: CORTE, DOBRA E MONTAGEM DE AÇO CA-50/60, INCLUSIVE ESPAÇADOR | I43: SETOP | J43: Kg | K43: =(396.1+297+346.7)/(16*8+12*8+14*8) -> 3.094642857 | L43: 13.63 | M43: 42.17998214
B44: 90778 | C44: ENGENHEIRO CIVIL DE OBRA PLENO COM ENCARGOS COMPLEMENTARES | I44: SINAPI | J44: H | K44: 0.022 | L44: 121.61 | M44: 2.67542
B45: 88316 | C45: SERVENTE COM ENCARGOS COMPLEMENTARES | I45: SINAPI | J45: H | K45: 0.769 | L45: 20.92 | M45: 16.08748
B46: 88309 | C46: PEDREIRO COM ENCARGOS COMPLEMENTARES | I46: SINAPI | J46: H | K46: 0.223 | L46: 28.6 | M46: 6.3778
B47: 41985 | C47: TUBO DE REVESTIMENTO, EM ACO, CORPO SCHEDULE 40, PONTEIRA SCHEDULE 80, ROSQUEAVEL E SEGMENTADO PARA PERFURACAO, DIAMETRO 6" (200 MM) | I47: SINAPI | J47: M | K47: 0.0002 | L47: 1448.28 | M47: 0.289656
A49: DAC-5.3 | B49: ESTACA DO TIPO BROCA MANUAL, COM DIÂMETRO DE 25CM, CONCRETO C-20, COM ARMAÇÃO | I49: CPU | J49: M | M49: =SUM(M50:M53) -> 120.6335892
B50: 38404 | C50: =IF(I50="SINAPI",VLOOKUP(B50,DADOS_SINAPI,2,0),IF(I50="SETOP",VLOOKUP(B50,DADOS_SETOP,2,0),IF(I50="SICRO",VLOOKUP(B50,DADOS_SICRO,2,0),IF(I50="SUDECAP",VLOOKUP(B50,DADOS_SUDECAP,2,0),IF(I50="COTAÇÃO",VLOOKUP(B50,DADOS_COTACAO,2,0),VLOOKUP(B50,DADOS_COMPOSICAO,2,0)))))) -> CONCRETO USINADO BOMBEAVEL, CLASSE DE RESISTENCIA C20, COM BRITA 0 E 1, SLUMP = 130 +/- 20 MM, EXCLUI SERVICO DE BOMBEAMENTO (NBR 8953) | I50: SINAPI | J50: =IF(I50="SINAPI",VLOOKUP(B50,DADOS_SINAPI,3,0),IF(I50="SETOP",VLOOKUP(B50,DADOS_SETOP,3,0),IF(I50="SICRO",VLOOKUP(B50,DADOS_SICRO,3,0),IF(I50="SUDECAP",VLOOKUP(B50,DADOS_SUDECAP,3,0),IF(I50="COTAÇÃO",VLOOKUP(B50,DADOS_COTACAO,9,0),VLOOKUP(B50,DADOS_COMPOSICAO,10,0)))))) -> M3 | K50: =(0.9+1.73+0.43)*1.15/(56) -> 0.06283928571 | L50: =IF(I50="SINAPI",VLOOKUP(B50,DADOS_SINAPI,4,0),IF(I50="SETOP",VLOOKUP(B50,DADOS_SETOP,4,0),IF(I50="SICRO",VLOOKUP(B50,DADOS_SICRO,4,0),IF(I50="SUDECAP",VLOOKUP(B50,DADOS_SUDECAP,4,0),IF(I50="COTAÇÃO",VLOOKUP(B50,DADOS_COTACAO,12,0),VLOOKUP(B50,DADOS_COMPOSICAO,13,0)))))) -> 569.69 | M50: =K50*L50 -> 35.79891268
B51: ED-48298 | C51: CORTE, DOBRA E MONTAGEM DE AÇO CA-50/60, INCLUSIVE ESPAÇADOR | I51: SETOP | J51: Kg | K51: =(37.5+112.5+25.1+100.1)/(3*5+9*4+8*4+2*4) -> 3.024175824 | L51: 13.63 | M51: 41.21951648
B52: 88316 | C52: SERVENTE COM ENCARGOS COMPLEMENTARES | I52: SINAPI | J52: H | K52: 0.998 | L52: 20.92 | M52: 20.87816
B53: 88309 | C53: PEDREIRO COM ENCARGOS COMPLEMENTARES | I53: SINAPI | J53: H | K53: 0.795 | L53: 28.6 | M53: 22.737
A55: DAC-5.4 | B55: LAJE TRELIÇADA H=12 CM - INCLUSO MONTAGEM E FORNECIMENTO DE TODOS OS MATERIAIS | I55: CPU | J55: M2 | M55: =SUM(M56:M62) -> 147.0886876
B56: 55.10.50 | C56: =IF(I56="SINAPI",VLOOKUP(B56,DADOS_SINAPI,2,0),IF(I56="SETOP",VLOOKUP(B56,DADOS_SETOP,2,0),IF(I56="SICRO",VLOOKUP(B56,DADOS_SICRO,2,0),IF(I56="SUDECAP",VLOOKUP(B56,DADOS_SUDECAP,2,0),IF(I56="COTAÇÃO",VLOOKUP(B56,DADOS_COTACAO,2,0),VLOOKUP(B56,DADOS_COMPOSICAO,2,0)))))) -> CARPINTEIRO | I56: SUDECAP | J56: =IF(I56="SINAPI",VLOOKUP(B56,DADOS_SINAPI,3,0),IF(I56="SETOP",VLOOKUP(B56,DADOS_SETOP,3,0),IF(I56="SICRO",VLOOKUP(B56,DADOS_SICRO,3,0),IF(I56="SUDECAP",VLOOKUP(B56,DADOS_SUDECAP,3,0),IF(I56="COTAÇÃO",VLOOKUP(B56,DADOS_COTACAO,9,0),VLOOKUP(B56,DADOS_COMPOSICAO,10,0)))))) -> H | K56: 0.55882 | L56: =IF(I56="SINAPI",VLOOKUP(B56,DADOS_SINAPI,4,0),IF(I56="SETOP",VLOOKUP(B56,DADOS_SETOP,4,0),IF(I56="SICRO",VLOOKUP(B56,DADOS_SICRO,4,0),IF(I56="SUDECAP",VLOOKUP(B56,DADOS_SUDECAP,4,0),IF(I56="COTAÇÃO",VLOOKUP(B56,DADOS_COTACAO,12,0),VLOOKUP(B56,DADOS_COMPOSICAO,13,0)))))) -> 21.79 | M56: =K56*L56 -> 12.1766878
B57: 55.10.88 | C57: SERVENTE | I57: SUDECAP | J57: H | K57: 0.34237 | L57: 15.49 | M57: 5.3033113
B58: 71.01.05 | C58: TABUA DE MADEIRA APARELHADA 2,5 X 25 CM REF 3990 | I58: SUDECAP | J58: M2 | K58: 0.4675 | L58: 30.9 | M58: 14.44575
B59: 71.30.04 | C59: MADEIRA ROLICA D= 6 A 10 CM COMPRIMENTO 6 METROS | I59: SUDECAP | J59: M | K59: 1.2707 | L59: 13.83 | M59: 17.573781
B60: 76.08.03 | C60: LAJE PRÉ-MOLDADA TRELIÇADA, UNIDIRECIONAL, BI-APOIADA, C/TRELIÇA METÁLICA TR08 E ENCHIMENTO EM EPS, SC=300Kgf/m², VÃO ATÉ 4 METROS, SEM COLOCAÇÃO | I60: SUDECAP | J60: M2 | K60: 1 | L60: 59 | M60: 59
B61: 77.05.51 | C61: PREGO DE ACO POLIDO COM CABECA 18 X 30 (2 3/4 X 10) REF 5075 | I61: SUDECAP | J61: KG | K61: 0.06231 | L61: 18.25 | M61: 1.1371575
B62: ED-49639 | C62: FORNECIMENTO DE CONCRETO ESTRUTURAL, USINADO BOMBEADO, COM FCK 30MPA, INCLUSIVE LANÇAMENTO, ADENSAMENTO E ACABAMENTO | I62: SETOP | J62: m3 | K62: 0.05 | L62: 749.04 | M62: 37.452
A64: DAC-5.5 | B64: LAJE TRELIÇADA H=16 CM - INCLUSO MONTAGEM E FORNECIMENTO DE TODOS OS MATERIAIS | I64: CPU | J64: M2 | M64: =SUM(M65:M71) -> 162.0886876
B65: 55.10.50 | C65: =IF(I65="SINAPI",VLOOKUP(B65,DADOS_SINAPI,2,0),IF(I65="SETOP",VLOOKUP(B65,DADOS_SETOP,2,0),IF(I65="SICRO",VLOOKUP(B65,DADOS_SICRO,2,0),IF(I65="SUDECAP",VLOOKUP(B65,DADOS_SUDECAP,2,0),IF(I65="COTAÇÃO",VLOOKUP(B65,DADOS_COTACAO,2,0),VLOOKUP(B65,DADOS_COMPOSICAO,2,0)))))) -> CARPINTEIRO | I65: SUDECAP | J65: =IF(I65="SINAPI",VLOOKUP(B65,DADOS_SINAPI,3,0),IF(I65="SETOP",VLOOKUP(B65,DADOS_SETOP,3,0),IF(I65="SICRO",VLOOKUP(B65,DADOS_SICRO,3,0),IF(I65="SUDECAP",VLOOKUP(B65,DADOS_SUDECAP,3,0),IF(I65="COTAÇÃO",VLOOKUP(B65,DADOS_COTACAO,9,0),VLOOKUP(B65,DADOS_COMPOSICAO,10,0)))))) -> H | K65: 0.55882 | L65: =IF(I65="SINAPI",VLOOKUP(B65,DADOS_SINAPI,4,0),IF(I65="SETOP",VLOOKUP(B65,DADOS_SETOP,4,0),IF(I65="SICRO",VLOOKUP(B65,DADOS_SICRO,4,0),IF(I65="SUDECAP",VLOOKUP(B65,DADOS_SUDECAP,4,0),IF(I65="COTAÇÃO",VLOOKUP(B65,DADOS_COTACAO,12,0),VLOOKUP(B65,DADOS_COMPOSICAO,13,0)))))) -> 21.79 | M65: =K65*L65 -> 12.1766878
B66: 55.10.88 | C66: SERVENTE | I66: SUDECAP | J66: H | K66: 0.34237 | L66: 15.49 | M66: 5.3033113
B67: 71.01.05 | C67: TABUA DE MADEIRA APARELHADA 2,5 X 25 CM REF 3990 | I67: SUDECAP | J67: M2 | K67: 0.4675 | L67: 30.9 | M67: 14.44575
B68: 71.30.04 | C68: MADEIRA ROLICA D= 6 A 10 CM COMPRIMENTO 6 METROS | I68: SUDECAP | J68: M | K68: 1.2707 | L68: 13.83 | M68: 17.573781
B69: 76.08.13 | C69: LAJE PRÉ-MOLDADA TRELIÇADA, UNIDIRECIONAL, BI-APOIADA, C/TRELIÇA METÁLICA TR12 E ENCHIMENTO EM EPS, SC=300Kgf/m², VÃO ATÉ 5 METROS, SEM COLOCAÇÃO | I69: SUDECAP | J69: M2 | K69: 1 | L69: 74 | M69: 74
B70: 77.05.51 | C70: PREGO DE ACO POLIDO COM CABECA 18 X 30 (2 3/4 X 10) REF 5075 | I70: SUDECAP | J70: KG | K70: 0.06231 | L70: 18.25 | M70: 1.1371575
B71: ED-49639 | C71: FORNECIMENTO DE CONCRETO ESTRUTURAL, USINADO BOMBEADO, COM FCK 30MPA, INCLUSIVE LANÇAMENTO, ADENSAMENTO E ACABAMENTO | I71: SETOP | J71: m3 | K71: 0.05 | L71: 749.04 | M71: 37.452
A73: DAC-5.6 | B73: LAJE TRELIÇADA H=20 CM - INCLUSO MONTAGEM E FORNECIMENTO DE TODOS OS MATERIAIS | I73: CPU | J73: M2 | M73: =SUM(M74:M80) -> 223.0886876
B74: 55.10.50 | C74: =IF(I74="SINAPI",VLOOKUP(B74,DADOS_SINAPI,2,0),IF(I74="SETOP",VLOOKUP(B74,DADOS_SETOP,2,0),IF(I74="SICRO",VLOOKUP(B74,DADOS_SICRO,2,0),IF(I74="SUDECAP",VLOOKUP(B74,DADOS_SUDECAP,2,0),IF(I74="COTAÇÃO",VLOOKUP(B74,DADOS_COTACAO,2,0),VLOOKUP(B74,DADOS_COMPOSICAO,2,0)))))) -> CARPINTEIRO | I74: SUDECAP | J74: =IF(I74="SINAPI",VLOOKUP(B74,DADOS_SINAPI,3,0),IF(I74="SETOP",VLOOKUP(B74,DADOS_SETOP,3,0),IF(I74="SICRO",VLOOKUP(B74,DADOS_SICRO,3,0),IF(I74="SUDECAP",VLOOKUP(B74,DADOS_SUDECAP,3,0),IF(I74="COTAÇÃO",VLOOKUP(B74,DADOS_COTACAO,9,0),VLOOKUP(B74,DADOS_COMPOSICAO,10,0)))))) -> H | K74: 0.55882 | L74: =IF(I74="SINAPI",VLOOKUP(B74,DADOS_SINAPI,4,0),IF(I74="SETOP",VLOOKUP(B74,DADOS_SETOP,4,0),IF(I74="SICRO",VLOOKUP(B74,DADOS_SICRO,4,0),IF(I74="SUDECAP",VLOOKUP(B74,DADOS_SUDECAP,4,0),IF(I74="COTAÇÃO",VLOOKUP(B74,DADOS_COTACAO,12,0),VLOOKUP(B74,DADOS_COMPOSICAO,13,0)))))) -> 21.79 | M74: =K74*L74 -> 12.1766878
B75: 55.10.88 | C75: SERVENTE | I75: SUDECAP | J75: H | K75: 0.34237 | L75: 15.49 | M75: 5.3033113
B76: 71.01.05 | C76: TABUA DE MADEIRA APARELHADA 2,5 X 25 CM REF 3990 | I76: SUDECAP | J76: M2 | K76: 0.4675 | L76: 30.9 | M76: 14.44575
B77: 71.30.04 | C77: MADEIRA ROLICA D= 6 A 10 CM COMPRIMENTO 6 METROS | I77: SUDECAP | J77: M | K77: 1.2707 | L77: 13.83 | M77: 17.573781
B78: 76.08.23 | C78: LAJE PRÉ-MOLDADA TRELIÇADA, UNIDIRECIONAL, BI-APOIADA, C/TRELIÇA METÁLICA TR16 E ENCHIMENTO EM EPS, SC=300Kgf/m², VÃO ATÉ 6 METROS, SEM COLOCAÇÃO | I78: SUDECAP | J78: M2 | K78: 1 | L78: 135 | M78: 135
B79: 77.05.51 | C79: PREGO DE ACO POLIDO COM CABECA 18 X 30 (2 3/4 X 10) REF 5075 | I79: SUDECAP | J79: KG | K79: 0.06231 | L79: 18.25 | M79: 1.1371575
B80: ED-49639 | C80: FORNECIMENTO DE CONCRETO ESTRUTURAL, USINADO BOMBEADO, COM FCK 30MPA, INCLUSIVE LANÇAMENTO, ADENSAMENTO E ACABAMENTO | I80: SETOP | J80: m3 | K80: 0.05 | L80: 749.04 | M80: 37.452
A82: 7 | B82: =VLOOKUP(A82,ORC!$D$77:$N$2069,2,0) -> ESQUADRIAS
A83: DAC-7.1 | B83: PORTA EM ALUMÍNIO DE CORRER COM FOLHA ÚNICA (90X210)CM COMPLETA, LINHA 25/SUPREMA, ACABAMENTO ANODIZADO NATURAL, INCLUSIVE PERFIS, VIDRO, FERRAGENS E INSTALAÇÃO | I83: CPU | J83: UN | M83: =SUM(M84:M87) -> 1433.4036
B84: ED-50934 | C84: =IF(I84="SINAPI",VLOOKUP(B84,DADOS_SINAPI,2,0),IF(I84="SETOP",VLOOKUP(B84,DADOS_SETOP,2,0),IF(I84="SICRO",VLOOKUP(B84,DADOS_SICRO,2,0),IF(I84="SUDECAP",VLOOKUP(B84,DADOS_SUDECAP,2,0),IF(I84="COTAÇÃO",VLOOKUP(B84,DADOS_COTACAO,2,0),VLOOKUP(B84,DADOS_COMPOSICAO,2,0)))))) -> ASSENTAMENTO DE PORTA METÁLICA DE AÇO OU FERRO, COM UMA (1) OU DUAS (2) FOLHAS, EXCLUSIVE FORNECIMENTO | I84: SETOP | J84: =IF(I84="SINAPI",VLOOKUP(B84,DADOS_SINAPI,3,0),IF(I84="SETOP",VLOOKUP(B84,DADOS_SETOP,3,0),IF(I84="SICRO",VLOOKUP(B84,DADOS_SICRO,3,0),IF(I84="SUDECAP",VLOOKUP(B84,DADOS_SUDECAP,3,0),IF(I84="COTAÇÃO",VLOOKUP(B84,DADOS_COTACAO,9,0),VLOOKUP(B84,DADOS_COMPOSICAO,10,0)))))) -> m2 | K84: =K86 -> 1.89 | L84: =IF(I84="SINAPI",VLOOKUP(B84,DADOS_SINAPI,4,0),IF(I84="SETOP",VLOOKUP(B84,DADOS_SETOP,4,0),IF(I84="SICRO",VLOOKUP(B84,DADOS_SICRO,4,0),IF(I84="SUDECAP",VLOOKUP(B84,DADOS_SUDECAP,4,0),IF(I84="COTAÇÃO",VLOOKUP(B84,DADOS_COTACAO,12,0),VLOOKUP(B84,DADOS_COMPOSICAO,13,0)))))) -> 79.68 | M84: =K84*L84 -> 150.5952
B85: ED-29454 | C85: =IF(I85="SINAPI",VLOOKUP(B85,DADOS_SINAPI,2,0),IF(I85="SETOP",VLOOKUP(B85,DADOS_SETOP,2,0),IF(I85="SICRO",VLOOKUP(B85,DADOS_SICRO,2,0),IF(I85="SUDECAP",VLOOKUP(B85,DADOS_SUDECAP,2,0),IF(I85="COTAÇÃO",VLOOKUP(B85,DADOS_COTACAO,2,0),VLOOKUP(B85,DADOS_COMPOSICAO,2,0)))))) -> FERRAGENS PARA PORTA DE ALUMÍNIO PARA CONJUNTO DE DUAS (2) FOLHAS DE CORRER, INCLUSIVE ROLDANAS E ACESSÓRIOS, FORNECIMENTO E INSTALAÇÃO, EXCLUSIVE PORTA | I85: SETOP | J85: =IF(I85="SINAPI",VLOOKUP(B85,DADOS_SINAPI,3,0),IF(I85="SETOP",VLOOKUP(B85,DADOS_SETOP,3,0),IF(I85="SICRO",VLOOKUP(B85,DADOS_SICRO,3,0),IF(I85="SUDECAP",VLOOKUP(B85,DADOS_SUDECAP,3,0),IF(I85="COTAÇÃO",VLOOKUP(B85,DADOS_COTACAO,9,0),VLOOKUP(B85,DADOS_COMPOSICAO,10,0)))))) -> un | K85: 1 | L85: =IF(I85="SINAPI",VLOOKUP(B85,DADOS_SINAPI,4,0),IF(I85="SETOP",VLOOKUP(B85,DADOS_SETOP,4,0),IF(I85="SICRO",VLOOKUP(B85,DADOS_SICRO,4,0),IF(I85="SUDECAP",VLOOKUP(B85,DADOS_SUDECAP,4,0),IF(I85="COTAÇÃO",VLOOKUP(B85,DADOS_COTACAO,12,0),VLOOKUP(B85,DADOS_COMPOSICAO,13,0)))))) -> 166.65 | M85: 166.65
B86: 4922 | C86: =IF(I86="SINAPI",VLOOKUP(B86,DADOS_SINAPI,2,0),IF(I86="SETOP",VLOOKUP(B86,DADOS_SETOP,2,0),IF(I86="SICRO",VLOOKUP(B86,DADOS_SICRO,2,0),IF(I86="SUDECAP",VLOOKUP(B86,DADOS_SUDECAP,2,0),IF(I86="COTAÇÃO",VLOOKUP(B86,DADOS_COTACAO,2,0),VLOOKUP(B86,DADOS_COMPOSICAO,2,0)))))) -> PORTA DE CORRER EM ALUMINIO, DUAS FOLHAS MOVEIS COM VIDRO, FECHADURA E PUXADOR EMBUTIDO, ACABAMENTO ANODIZADO NATURAL, SEM GUARNICAO/ALIZAR/VISTA | I86: SINAPI | J86: =IF(I86="SINAPI",VLOOKUP(B86,DADOS_SINAPI,3,0),IF(I86="SETOP",VLOOKUP(B86,DADOS_SETOP,3,0),IF(I86="SICRO",VLOOKUP(B86,DADOS_SICRO,3,0),IF(I86="SUDECAP",VLOOKUP(B86,DADOS_SUDECAP,3,0),IF(I86="COTAÇÃO",VLOOKUP(B86,DADOS_COTACAO,9,0),VLOOKUP(B86,DADOS_COMPOSICAO,10,0)))))) -> M2 | K86: =0.9*2.1 -> 1.89 | L86: =IF(I86="SINAPI",VLOOKUP(B86,DADOS_SINAPI,4,0),IF(I86="SETOP",VLOOKUP(B86,DADOS_SETOP,4,0),IF(I86="SICRO",VLOOKUP(B86,DADOS_SICRO,4,0),IF(I86="SUDECAP",VLOOKUP(B86,DADOS_SUDECAP,4,0),IF(I86="COTAÇÃO",VLOOKUP(B86,DADOS_COTACAO,12,0),VLOOKUP(B86,DADOS_COMPOSICAO,13,0)))))) -> 400.36 | M86: =K86*L86 -> 756.6804
B87: ED-51156 | C87: =IF(I87="SINAPI",VLOOKUP(B87,DADOS_SINAPI,2,0),IF(I87="SETOP",VLOOKUP(B87,DADOS_SETOP,2,0),IF(I87="SICRO",VLOOKUP(B87,DADOS_SICRO,2,0),IF(I87="SUDECAP",VLOOKUP(B87,DADOS_SUDECAP,2,0),IF(I87="COTAÇÃO",VLOOKUP(B87,DADOS_COTACAO,2,0),VLOOKUP(B87,DADOS_COMPOSICAO,2,0)))))) -> VIDRO COMUM TRANSPARENTE INCOLOR, ESP. 4MM, INCLUSIVE FIXAÇÃO E VEDAÇÃO COM GUARNIÇÃO/GAXETA DE BORRACHA NEOPRENE, FORNECIMENTO E INSTALAÇÃO, EXCLUSIVE CAIXILHO/PERFIL | I87: SETOP | J87: =IF(I87="SINAPI",VLOOKUP(B87,DADOS_SINAPI,3,0),IF(I87="SETOP",VLOOKUP(B87,DADOS_SETOP,3,0),IF(I87="SICRO",VLOOKUP(B87,DADOS_SICRO,3,0),IF(I87="SUDECAP",VLOOKUP(B87,DADOS_SUDECAP,3,0),IF(I87="COTAÇÃO",VLOOKUP(B87,DADOS_COTACAO,9,0),VLOOKUP(B87,DADOS_COMPOSICAO,10,0)))))) -> m2 | K87: =0.9*2.1 -> 1.89 | L87: =IF(I87="SINAPI",VLOOKUP(B87,DADOS_SINAPI,4,0),IF(I87="SETOP",VLOOKUP(B87,DADOS_SETOP,4,0),IF(I87="SICRO",VLOOKUP(B87,DADOS_SICRO,4,0),IF(I87="SUDECAP",VLOOKUP(B87,DADOS_SUDECAP,4,0),IF(I87="COTAÇÃO",VLOOKUP(B87,DADOS_COTACAO,12,0),VLOOKUP(B87,DADOS_COMPOSICAO,13,0)))))) -> 190.2 | M87: 359.478
A89: DAC-7.2 | B89: JANELA AÇO DE ENROLAR, INCLUSIVE EIXO, MOLA, SOLEIRA, ETIQUETA, CAVALETE E GUIAS, FITAS E FECHADURAS LATERAIS | I89: CPU | J89: UN | M89: =SUM(M90:M94) -> 655.7187366
B90: MATED-9724 | C90: GRAXA LUBRIFICANTE (BASE : CÁLCIO) | I90: SETOP | J90: kg | K90: 0.07 | L90: 40.06 | M90: =K90*L90 -> 2.8042
B91: MATED-12673 | C91: PORTA AÇO DE ENROLAR, INCLUSIVE EIXO, MOLA, SOLEIRA, ETIQUETA, CAVALETE E GUIAS, FITAS E FECHADURAS LATERAIS ( TIPO DE LÂMINA: RAIADA LARGA|CHAPA: 24|LARGURA ÚTIL: 100MM|ACIONAMENTO: MANUAL|QUANTIDADE DE FECHADURA COM TRAVA LATERAL E TETRA CHAVE: 2) | I91: SETOP | J91: m2 | K91: =1.2*1.2 -> 1.44 | L91: 407.69 | M91: 587.0736
B92: ED-48307 | C92: =IF(I92="SINAPI",VLOOKUP(B92,DADOS_SINAPI,2,0),IF(I92="SETOP",VLOOKUP(B92,DADOS_SETOP,2,0),IF(I92="SICRO",VLOOKUP(B92,DADOS_SICRO,2,0),IF(I92="SUDECAP",VLOOKUP(B92,DADOS_SUDECAP,2,0),IF(I92="COTAÇÃO",VLOOKUP(B92,DADOS_COTACAO,2,0),VLOOKUP(B92,DADOS_COMPOSICAO,2,0)))))) -> ARGAMASSA, TRAÇO 1:2:8 (CIMENTO, CAL E AREIA), COM PREPARO MECANIZADO | I92: SETOP | J92: =IF(I92="SINAPI",VLOOKUP(B92,DADOS_SINAPI,3,0),IF(I92="SETOP",VLOOKUP(B92,DADOS_SETOP,3,0),IF(I92="SICRO",VLOOKUP(B92,DADOS_SICRO,3,0),IF(I92="SUDECAP",VLOOKUP(B92,DADOS_SUDECAP,3,0),IF(I92="COTAÇÃO",VLOOKUP(B92,DADOS_COTACAO,9,0),VLOOKUP(B92,DADOS_COMPOSICAO,10,0)))))) -> m3 | K92: 0.0251648 | L92: =IF(I92="SINAPI",VLOOKUP(B92,DADOS_SINAPI,4,0),IF(I92="SETOP",VLOOKUP(B92,DADOS_SETOP,4,0),IF(I92="SICRO",VLOOKUP(B92,DADOS_SICRO,4,0),IF(I92="SUDECAP",VLOOKUP(B92,DADOS_SUDECAP,4,0),IF(I92="COTAÇÃO",VLOOKUP(B92,DADOS_COTACAO,12,0),VLOOKUP(B92,DADOS_COMPOSICAO,13,0)))))) -> 647.37 | M92: 16.29093658
B93: ED-50381 | C93: =IF(I93="SINAPI",VLOOKUP(B93,DADOS_SINAPI,2,0),IF(I93="SETOP",VLOOKUP(B93,DADOS_SETOP,2,0),IF(I93="SICRO",VLOOKUP(B93,DADOS_SICRO,2,0),IF(I93="SUDECAP",VLOOKUP(B93,DADOS_SUDECAP,2,0),IF(I93="COTAÇÃO",VLOOKUP(B93,DADOS_COTACAO,2,0),VLOOKUP(B93,DADOS_COMPOSICAO,2,0)))))) -> PEDREIRO COM ENCARGOS COMPLEMENTARES | I93: SETOP | J93: =IF(I93="SINAPI",VLOOKUP(B93,DADOS_SINAPI,3,0),IF(I93="SETOP",VLOOKUP(B93,DADOS_SETOP,3,0),IF(I93="SICRO",VLOOKUP(B93,DADOS_SICRO,3,0),IF(I93="SUDECAP",VLOOKUP(B93,DADOS_SUDECAP,3,0),IF(I93="COTAÇÃO",VLOOKUP(B93,DADOS_COTACAO,9,0),VLOOKUP(B93,DADOS_COMPOSICAO,10,0)))))) -> hora | K93: 1 | L93: =IF(I93="SINAPI",VLOOKUP(B93,DADOS_SINAPI,4,0),IF(I93="SETOP",VLOOKUP(B93,DADOS_SETOP,4,0),IF(I93="SICRO",VLOOKUP(B93,DADOS_SICRO,4,0),IF(I93="SUDECAP",VLOOKUP(B93,DADOS_SUDECAP,4,0),IF(I93="COTAÇÃO",VLOOKUP(B93,DADOS_COTACAO,12,0),VLOOKUP(B93,DADOS_COMPOSICAO,13,0)))))) -> 28.61 | M93: 28.61
B94: ED-50367 | C94: =IF(I94="SINAPI",VLOOKUP(B94,DADOS_SINAPI,2,0),IF(I94="SETOP",VLOOKUP(B94,DADOS_SETOP,2,0),IF(I94="SICRO",VLOOKUP(B94,DADOS_SICRO,2,0),IF(I94="SUDECAP",VLOOKUP(B94,DADOS_SUDECAP,2,0),IF(I94="COTAÇÃO",VLOOKUP(B94,DADOS_COTACAO,2,0),VLOOKUP(B94,DADOS_COMPOSICAO,2,0)))))) -> SERVENTE COM ENCARGOS COMPLEMENTARES | I94: SETOP | J94: =IF(I94="SINAPI",VLOOKUP(B94,DADOS_SINAPI,3,0),IF(I94="SETOP",VLOOKUP(B94,DADOS_SETOP,3,0),IF(I94="SICRO",VLOOKUP(B94,DADOS_SICRO,3,0),IF(I94="SUDECAP",VLOOKUP(B94,DADOS_SUDECAP,3,0),IF(I94="COTAÇÃO",VLOOKUP(B94,DADOS_COTACAO,9,0),VLOOKUP(B94,DADOS_COMPOSICAO,10,0)))))) -> hora | K94: 1 | L94: =IF(I94="SINAPI",VLOOKUP(B94,DADOS_SINAPI,4,0),IF(I94="SETOP",VLOOKUP(B94,DADOS_SETOP,4,0),IF(I94="SICRO",VLOOKUP(B94,DADOS_SICRO,4,0),IF(I94="SUDECAP",VLOOKUP(B94,DADOS_SUDECAP,4,0),IF(I94="COTAÇÃO",VLOOKUP(B94,DADOS_COTACAO,12,0),VLOOKUP(B94,DADOS_COMPOSICAO,13,0)))))) -> 20.94 | M94: =K94*L94 -> 20.94
A96: DAC-7.3 | B96: PORTA EM ALUMÍNIO DE ABRIR TIPO VENEZIANA, FIXAÇÃO COM PARAFUSOS - FORNECIMENTO E INSTALAÇÃO. | I96: CPU | J96: M2 | M96: =SUM(M97:M101) -> 479.202805
B97: 88309 | C97: =IF(I97="SINAPI",VLOOKUP(B97,DADOS_SINAPI,2,0),IF(I97="SETOP",VLOOKUP(B97,DADOS_SETOP,2,0),IF(I97="SICRO",VLOOKUP(B97,DADOS_SICRO,2,0),IF(I97="SUDECAP",VLOOKUP(B97,DADOS_SUDECAP,2,0),IF(I97="COTAÇÃO",VLOOKUP(B97,DADOS_COTACAO,2,0),VLOOKUP(B97,DADOS_COMPOSICAO,2,0)))))) -> PEDREIRO COM ENCARGOS COMPLEMENTARES | I97: SINAPI | J97: =IF(I97="SINAPI",VLOOKUP(B97,DADOS_SINAPI,3,0),IF(I97="SETOP",VLOOKUP(B97,DADOS_SETOP,3,0),IF(I97="SICRO",VLOOKUP(B97,DADOS_SICRO,3,0),IF(I97="SUDECAP",VLOOKUP(B97,DADOS_SUDECAP,3,0),IF(I97="COTAÇÃO",VLOOKUP(B97,DADOS_COTACAO,9,0),VLOOKUP(B97,DADOS_COMPOSICAO,10,0)))))) -> H | K97: 0.3826 | L97: =IF(I97="SINAPI",VLOOKUP(B97,DADOS_SINAPI,4,0),IF(I97="SETOP",VLOOKUP(B97,DADOS_SETOP,4,0),IF(I97="SICRO",VLOOKUP(B97,DADOS_SICRO,4,0),IF(I97="SUDECAP",VLOOKUP(B97,DADOS_SUDECAP,4,0),IF(I97="COTAÇÃO",VLOOKUP(B97,DADOS_COTACAO,12,0),VLOOKUP(B97,DADOS_COMPOSICAO,13,0)))))) -> 28.6 | M97: =K97*L97 -> 10.94236
B98: 88316 | C98: =IF(I98="SINAPI",VLOOKUP(B98,DADOS_SINAPI,2,0),IF(I98="SETOP",VLOOKUP(B98,DADOS_SETOP,2,0),IF(I98="SICRO",VLOOKUP(B98,DADOS_SICRO,2,0),IF(I98="SUDECAP",VLOOKUP(B98,DADOS_SUDECAP,2,0),IF(I98="COTAÇÃO",VLOOKUP(B98,DADOS_COTACAO,2,0),VLOOKUP(B98,DADOS_COMPOSICAO,2,0)))))) -> SERVENTE COM ENCARGOS COMPLEMENTARES | I98: SINAPI | J98: =IF(I98="SINAPI",VLOOKUP(B98,DADOS_SINAPI,3,0),IF(I98="SETOP",VLOOKUP(B98,DADOS_SETOP,3,0),IF(I98="SICRO",VLOOKUP(B98,DADOS_SICRO,3,0),IF(I98="SUDECAP",VLOOKUP(B98,DADOS_SUDECAP,3,0),IF(I98="COTAÇÃO",VLOOKUP(B98,DADOS_COTACAO,9,0),VLOOKUP(B98,DADOS_COMPOSICAO,10,0)))))) -> H | K98: 0.191 | L98: =IF(I98="SINAPI",VLOOKUP(B98,DADOS_SINAPI,4,0),IF(I98="SETOP",VLOOKUP(B98,DADOS_SETOP,4,0),IF(I98="SICRO",VLOOKUP(B98,DADOS_SICRO,4,0),IF(I98="SUDECAP",VLOOKUP(B98,DADOS_SUDECAP,4,0),IF(I98="COTAÇÃO",VLOOKUP(B98,DADOS_COTACAO,12,0),VLOOKUP(B98,DADOS_COMPOSICAO,13,0)))))) -> 20.92 | M98: 3.99572
B99: 7568 | C99: =IF(I99="SINAPI",VLOOKUP(B99,DADOS_SINAPI,2,0),IF(I99="SETOP",VLOOKUP(B99,DADOS_SETOP,2,0),IF(I99="SICRO",VLOOKUP(B99,DADOS_SICRO,2,0),IF(I99="SUDECAP",VLOOKUP(B99,DADOS_SUDECAP,2,0),IF(I99="COTAÇÃO",VLOOKUP(B99,DADOS_COTACAO,2,0),VLOOKUP(B99,DADOS_COMPOSICAO,2,0)))))) -> BUCHA DE NYLON SEM ABA S10, COM PARAFUSO DE 6,10 X 65 MM EM ACO ZINCADO COM ROSCA SOBERBA, CABECA CHATA E FENDA PHILLIPS | I99: SINAPI | J99: =IF(I99="SINAPI",VLOOKUP(B99,DADOS_SINAPI,3,0),IF(I99="SETOP",VLOOKUP(B99,DADOS_SETOP,3,0),IF(I99="SICRO",VLOOKUP(B99,DADOS_SICRO,3,0),IF(I99="SUDECAP",VLOOKUP(B99,DADOS_SUDECAP,3,0),IF(I99="COTAÇÃO",VLOOKUP(B99,DADOS_COTACAO,9,0),VLOOKUP(B99,DADOS_COMPOSICAO,10,0)))))) -> UN | K99: 4.8166 | L99: =IF(I99="SINAPI",VLOOKUP(B99,DADOS_SINAPI,4,0),IF(I99="SETOP",VLOOKUP(B99,DADOS_SETOP,4,0),IF(I99="SICRO",VLOOKUP(B99,DADOS_SICRO,4,0),IF(I99="SUDECAP",VLOOKUP(B99,DADOS_SUDECAP,4,0),IF(I99="COTAÇÃO",VLOOKUP(B99,DADOS_COTACAO,12,0),VLOOKUP(B99,DADOS_COMPOSICAO,13,0)))))) -> 0.92 | M99: 4.431272
B100: 39025 | C100: =IF(I100="SINAPI",VLOOKUP(B100,DADOS_SINAPI,2,0),IF(I100="SETOP",VLOOKUP(B100,DADOS_SETOP,2,0),IF(I100="SICRO",VLOOKUP(B100,DADOS_SICRO,2,0),IF(I100="SUDECAP",VLOOKUP(B100,DADOS_SUDECAP,2,0),IF(I100="COTAÇÃO",VLOOKUP(B100,DADOS_COTACAO,2,0),VLOOKUP(B100,DADOS_COMPOSICAO,2,0)))))) -> PORTA DE ABRIR, TIPO VENEZIANA, EM ALUMINIO, ACABAMENTO ANODIZADO NATURAL, 90 CM X 210 CM (LARGURA X ALTURA), SEM GUARNICAO/ALIZAR/VISTA | I100: SINAPI | J100: =IF(I100="SINAPI",VLOOKUP(B100,DADOS_SINAPI,3,0),IF(I100="SETOP",VLOOKUP(B100,DADOS_SETOP,3,0),IF(I100="SICRO",VLOOKUP(B100,DADOS_SICRO,3,0),IF(I100="SUDECAP",VLOOKUP(B100,DADOS_SUDECAP,3,0),IF(I100="COTAÇÃO",VLOOKUP(B100,DADOS_COTACAO,9,0),VLOOKUP(B100,DADOS_COMPOSICAO,10,0)))))) -> UN | K100: 0.5473 | L100: =IF(I100="SINAPI",VLOOKUP(B100,DADOS_SINAPI,4,0),IF(I100="SETOP",VLOOKUP(B100,DADOS_SETOP,4,0),IF(I100="SICRO",VLOOKUP(B100,DADOS_SICRO,4,0),IF(I100="SUDECAP",VLOOKUP(B100,DADOS_SUDECAP,4,0),IF(I100="COTAÇÃO",VLOOKUP(B100,DADOS_COTACAO,12,0),VLOOKUP(B100,DADOS_COMPOSICAO,13,0)))))) -> 790.37 | M100: 432.569501
B101: 142 | C101: =IF(I101="SINAPI",VLOOKUP(B101,DADOS_SINAPI,2,0),IF(I101="SETOP",VLOOKUP(B101,DADOS_SETOP,2,0),IF(I101="SICRO",VLOOKUP(B101,DADOS_SICRO,2,0),IF(I101="SUDECAP",VLOOKUP(B101,DADOS_SUDECAP,2,0),IF(I101="COTAÇÃO",VLOOKUP(B101,DADOS_COTACAO,2,0),VLOOKUP(B101,DADOS_COMPOSICAO,2,0)))))) -> SELANTE ELASTICO MONOCOMPONENTE A BASE DE POLIURETANO (PU) PARA JUNTAS DIVERSAS | I101: SINAPI | J101: =IF(I101="SINAPI",VLOOKUP(B101,DADOS_SINAPI,3,0),IF(I101="SETOP",VLOOKUP(B101,DADOS_SETOP,3,0),IF(I101="SICRO",VLOOKUP(B101,DADOS_SICRO,3,0),IF(I101="SUDECAP",VLOOKUP(B101,DADOS_SUDECAP,3,0),IF(I101="COTAÇÃO",VLOOKUP(B101,DADOS_COTACAO,9,0),VLOOKUP(B101,DADOS_COMPOSICAO,10,0)))))) -> 310ML | K101: 0.8829 | L101: =IF(I101="SINAPI",VLOOKUP(B101,DADOS_SINAPI,4,0),IF(I101="SETOP",VLOOKUP(B101,DADOS_SETOP,4,0),IF(I101="SICRO",VLOOKUP(B101,DADOS_SICRO,4,0),IF(I101="SUDECAP",VLOOKUP(B101,DADOS_SUDECAP,4,0),IF(I101="COTAÇÃO",VLOOKUP(B101,DADOS_COTACAO,12,0),VLOOKUP(B101,DADOS_COMPOSICAO,13,0)))))) -> 30.88 | M101: =K101*L101 -> 27.263952
A103: 9 | B103: =VLOOKUP(A103,ORC!$D$77:$N$2069,2,0) -> REVESTIMENTOS INTERNOS E EXTERNOS
A104: DAC-9.1 | B104: APLICAÇÃO DE RESINA SINTÉTICA PARA APLICAÇÃO DE GESSO | I104: CPU | J104: M2 | M104: =SUM(M105:M107) -> 8.272
B105: 88316 | C105: =IF(I105="SINAPI",VLOOKUP(B105,DADOS_SINAPI,2,0),IF(I105="SETOP",VLOOKUP(B105,DADOS_SETOP,2,0),IF(I105="SICRO",VLOOKUP(B105,DADOS_SICRO,2,0),IF(I105="SUDECAP",VLOOKUP(B105,DADOS_SUDECAP,2,0),IF(I105="COTAÇÃO",VLOOKUP(B105,DADOS_COTACAO,2,0),VLOOKUP(B105,DADOS_COMPOSICAO,2,0)))))) -> SERVENTE COM ENCARGOS COMPLEMENTARES | I105: SINAPI | J105: =IF(I105="SINAPI",VLOOKUP(B105,DADOS_SINAPI,3,0),IF(I105="SETOP",VLOOKUP(B105,DADOS_SETOP,3,0),IF(I105="SICRO",VLOOKUP(B105,DADOS_SICRO,3,0),IF(I105="SUDECAP",VLOOKUP(B105,DADOS_SUDECAP,3,0),IF(I105="COTAÇÃO",VLOOKUP(B105,DADOS_COTACAO,9,0),VLOOKUP(B105,DADOS_COMPOSICAO,10,0)))))) -> H | K105: 0.25 | L105: =IF(I105="SINAPI",VLOOKUP(B105,DADOS_SINAPI,4,0),IF(I105="SETOP",VLOOKUP(B105,DADOS_SETOP,4,0),IF(I105="SICRO",VLOOKUP(B105,DADOS_SICRO,4,0),IF(I105="SUDECAP",VLOOKUP(B105,DADOS_SUDECAP,4,0),IF(I105="COTAÇÃO",VLOOKUP(B105,DADOS_COTACAO,12,0),VLOOKUP(B105,DADOS_COMPOSICAO,13,0)))))) -> 20.92 | M105: =K105*L105 -> 5.23
B106: 7334 | C106: =IF(I106="SINAPI",VLOOKUP(B106,DADOS_SINAPI,2,0),IF(I106="SETOP",VLOOKUP(B106,DADOS_SETOP,2,0),IF(I106="SICRO",VLOOKUP(B106,DADOS_SICRO,2,0),IF(I106="SUDECAP",VLOOKUP(B106,DADOS_SUDECAP,2,0),IF(I106="COTAÇÃO",VLOOKUP(B106,DADOS_COTACAO,2,0),VLOOKUP(B106,DADOS_COMPOSICAO,2,0)))))) -> ADITIVO ADESIVO LIQUIDO PARA ARGAMASSAS DE REVESTIMENTOS CIMENTICIOS | I106: SINAPI | J106: =IF(I106="SINAPI",VLOOKUP(B106,DADOS_SINAPI,3,0),IF(I106="SETOP",VLOOKUP(B106,DADOS_SETOP,3,0),IF(I106="SICRO",VLOOKUP(B106,DADOS_SICRO,3,0),IF(I106="SUDECAP",VLOOKUP(B106,DADOS_SUDECAP,3,0),IF(I106="COTAÇÃO",VLOOKUP(B106,DADOS_COTACAO,9,0),VLOOKUP(B106,DADOS_COMPOSICAO,10,0)))))) -> L | K106: 0.2 | L106: =IF(I106="SINAPI",VLOOKUP(B106,DADOS_SINAPI,4,0),IF(I106="SETOP",VLOOKUP(B106,DADOS_SETOP,4,0),IF(I106="SICRO",VLOOKUP(B106,DADOS_SICRO,4,0),IF(I106="SUDECAP",VLOOKUP(B106,DADOS_SUDECAP,4,0),IF(I106="COTAÇÃO",VLOOKUP(B106,DADOS_COTACAO,12,0),VLOOKUP(B106,DADOS_COMPOSICAO,13,0)))))) -> 14.51 | M106: 2.902
B107: 1381 | C107: =IF(I107="SINAPI",VLOOKUP(B107,DADOS_SINAPI,2,0),IF(I107="SETOP",VLOOKUP(B107,DADOS_SETOP,2,0),IF(I107="SICRO",VLOOKUP(B107,DADOS_SICRO,2,0),IF(I107="SUDECAP",VLOOKUP(B107,DADOS_SUDECAP,2,0),IF(I107="COTAÇÃO",VLOOKUP(B107,DADOS_COTACAO,2,0),VLOOKUP(B107,DADOS_COMPOSICAO,2,0)))))) -> ARGAMASSA COLANTE AC I PARA CERAMICAS | I107: SINAPI | J107: =IF(I107="SINAPI",VLOOKUP(B107,DADOS_SINAPI,3,0),IF(I107="SETOP",VLOOKUP(B107,DADOS_SETOP,3,0),IF(I107="SICRO",VLOOKUP(B107,DADOS_SICRO,3,0),IF(I107="SUDECAP",VLOOKUP(B107,DADOS_SUDECAP,3,0),IF(I107="COTAÇÃO",VLOOKUP(B107,DADOS_COTACAO,9,0),VLOOKUP(B107,DADOS_COMPOSICAO,10,0)))))) -> KG | K107: 0.2 | L107: =IF(I107="SINAPI",VLOOKUP(B107,DADOS_SINAPI,4,0),IF(I107="SETOP",VLOOKUP(B107,DADOS_SETOP,4,0),IF(I107="SICRO",VLOOKUP(B107,DADOS_SICRO,4,0),IF(I107="SUDECAP",VLOOKUP(B107,DADOS_SUDECAP,4,0),IF(I107="COTAÇÃO",VLOOKUP(B107,DADOS_COTACAO,12,0),VLOOKUP(B107,DADOS_COMPOSICAO,13,0)))))) -> 0.7 | M107: 0.14
A109: 10 | B109: =VLOOKUP(A109,ORC!$D$77:$N$2069,2,0) -> SISTEMA DE PISOS
A110: DAC-10.1 | B110: EXECUÇÃO DE PASSEIO (CALÇADA) OU PISO DE CONCRETO COM CONCRETO MOLDADO IN LOCO, USINADO, ACABAMENTO CONVENCIONAL, ESPESSURA 10 CM, ARMADO | I110: CPU | J110: M2 | M110: =SUM(M111:XFD118) -> 125.25454
B111: 88262 | C111: =IF(I111="SINAPI",VLOOKUP(B111,DADOS_SINAPI,2,0),IF(I111="SETOP",VLOOKUP(B111,DADOS_SETOP,2,0),IF(I111="SICRO",VLOOKUP(B111,DADOS_SICRO,2,0),IF(I111="SUDECAP",VLOOKUP(B111,DADOS_SUDECAP,2,0),IF(I111="COTAÇÃO",VLOOKUP(B111,DADOS_COTACAO,2,0),VLOOKUP(B111,DADOS_COMPOSICAO,2,0)))))) -> CARPINTEIRO DE FORMAS COM ENCARGOS COMPLEMENTARES | I111: SINAPI | J111: =IF(I111="SINAPI",VLOOKUP(B111,DADOS_SINAPI,3,0),IF(I111="SETOP",VLOOKUP(B111,DADOS_SETOP,3,0),IF(I111="SICRO",VLOOKUP(B111,DADOS_SICRO,3,0),IF(I111="SUDECAP",VLOOKUP(B111,DADOS_SUDECAP,3,0),IF(I111="COTAÇÃO",VLOOKUP(B111,DADOS_COTACAO,9,0),VLOOKUP(B111,DADOS_COMPOSICAO,10,0)))))) -> H | K111: 0.2256 | L111: =IF(I111="SINAPI",VLOOKUP(B111,DADOS_SINAPI,4,0),IF(I111="SETOP",VLOOKUP(B111,DADOS_SETOP,4,0),IF(I111="SICRO",VLOOKUP(B111,DADOS_SICRO,4,0),IF(I111="SUDECAP",VLOOKUP(B111,DADOS_SUDECAP,4,0),IF(I111="COTAÇÃO",VLOOKUP(B111,DADOS_COTACAO,12,0),VLOOKUP(B111,DADOS_COMPOSICAO,13,0)))))) -> 28.17 | M111: =K111*L111 -> 6.355152
B112: 88309 | C112: PEDREIRO COM ENCARGOS COMPLEMENTARES | I112: SINAPI | J112: H | K112: 0.1594 | L112: 28.6 | M112: 4.55884
B113: 88316 | C113: SERVENTE COM ENCARGOS COMPLEMENTARES | I113: SINAPI | J113: H | K113: 0.385 | L113: 20.92 | M113: =K113*L113 -> 8.0542
B114: 3777 | C114: LONA PLASTICA PESADA PRETA, E = 150 MICRA | I114: SINAPI | J114: M2 | K114: 1.128 | L114: 1.48 | M114: 1.66944
B115: 4460 | C115: SARRAFO NAO APARELHADO *2,5 X 10* CM, EM MACARANDUBA/MASSARANDUBA, ANGELIM OU EQUIVALENTE DA REGIAO - BRUTA | I115: SINAPI | J115: M | K115: 0.25 | L115: 12.69 | M115: 3.1725
B116: 4517 | C116: SARRAFO *2,5 X 7,5* CM EM PINUS, MISTA OU EQUIVALENTE DA REGIAO - BRUTA | I116: SINAPI | J116: M | K116: 0.2 | L116: 2.93 | M116: =K116*L116 -> 0.586
B117: 7156 | C117: =IF(I117="SINAPI",VLOOKUP(B117,DADOS_SINAPI,2,0),IF(I117="SETOP",VLOOKUP(B117,DADOS_SETOP,2,0),IF(I117="SICRO",VLOOKUP(B117,DADOS_SICRO,2,0),IF(I117="SUDECAP",VLOOKUP(B117,DADOS_SUDECAP,2,0),IF(I117="COTAÇÃO",VLOOKUP(B117,DADOS_COTACAO,2,0),VLOOKUP(B117,DADOS_COMPOSICAO,2,0)))))) -> TELA DE ACO SOLDADA NERVURADA, CA-60, Q-196, (3,11 KG/M2), DIAMETRO DO FIO = 5,0 MM, LARGURA = 2,45 M, ESPACAMENTO DA MALHA = 10 X 10 CM | I117: SINAPI | J117: =IF(I117="SINAPI",VLOOKUP(B117,DADOS_SINAPI,3,0),IF(I117="SETOP",VLOOKUP(B117,DADOS_SETOP,3,0),IF(I117="SICRO",VLOOKUP(B117,DADOS_SICRO,3,0),IF(I117="SUDECAP",VLOOKUP(B117,DADOS_SUDECAP,3,0),IF(I117="COTAÇÃO",VLOOKUP(B117,DADOS_COTACAO,9,0),VLOOKUP(B117,DADOS_COMPOSICAO,10,0)))))) -> M2 | K117: 1.1224 | L117: =IF(I117="SINAPI",VLOOKUP(B117,DADOS_SINAPI,4,0),IF(I117="SETOP",VLOOKUP(B117,DADOS_SETOP,4,0),IF(I117="SICRO",VLOOKUP(B117,DADOS_SICRO,4,0),IF(I117="SUDECAP",VLOOKUP(B117,DADOS_SUDECAP,4,0),IF(I117="COTAÇÃO",VLOOKUP(B117,DADOS_COTACAO,12,0),VLOOKUP(B117,DADOS_COMPOSICAO,13,0)))))) -> 30.42 | M117: 34.143408
B118: 34492 | C118: CONCRETO USINADO BOMBEAVEL, CLASSE DE RESISTENCIA C20, COM BRITA 0 E 1, SLUMP = 100 +/- 20 MM, EXCLUI SERVICO DE BOMBEAMENTO (NBR 8953) | I118: SINAPI | J118: M3 | K118: 0.1213 | L118: 550 | M118: =K118*L118 -> 66.715
A120: DAC-10.2 | B120: RODAPÉ COM REVESTIMENTO EM PORCELANATO 60X60 COM BORDA RETIFICADA E ACABAMENTO POLIDO, ALTURA 10CM | I120: CPU | J120: M | M120: =SUM(M121:XFD125) -> 13.4640479
B121: 88256 | C121: =IF(I121="SINAPI",VLOOKUP(B121,DADOS_SINAPI,2,0),IF(I121="SETOP",VLOOKUP(B121,DADOS_SETOP,2,0),IF(I121="SICRO",VLOOKUP(B121,DADOS_SICRO,2,0),IF(I121="SUDECAP",VLOOKUP(B121,DADOS_SUDECAP,2,0),IF(I121="COTAÇÃO",VLOOKUP(B121,DADOS_COTACAO,2,0),VLOOKUP(B121,DADOS_COMPOSICAO,2,0)))))) -> AZULEJISTA OU LADRILHISTA COM ENCARGOS COMPLEMENTARES | I121: SINAPI | J121: =IF(I121="SINAPI",VLOOKUP(B121,DADOS_SINAPI,3,0),IF(I121="SETOP",VLOOKUP(B121,DADOS_SETOP,3,0),IF(I121="SICRO",VLOOKUP(B121,DADOS_SICRO,3,0),IF(I121="SUDECAP",VLOOKUP(B121,DADOS_SUDECAP,3,0),IF(I121="COTAÇÃO",VLOOKUP(B121,DADOS_COTACAO,9,0),VLOOKUP(B121,DADOS_COMPOSICAO,10,0)))))) -> H | K121: 0.14667 | L121: =IF(I121="SINAPI",VLOOKUP(B121,DADOS_SINAPI,4,0),IF(I121="SETOP",VLOOKUP(B121,DADOS_SETOP,4,0),IF(I121="SICRO",VLOOKUP(B121,DADOS_SICRO,4,0),IF(I121="SUDECAP",VLOOKUP(B121,DADOS_SUDECAP,4,0),IF(I121="COTAÇÃO",VLOOKUP(B121,DADOS_COTACAO,12,0),VLOOKUP(B121,DADOS_COMPOSICAO,13,0)))))) -> 30.29 | M121: =K121*L121 -> 4.4426343
B122: 88316 | C122: SERVENTE COM ENCARGOS COMPLEMENTARES | I122: SINAPI | J122: H | K122: 0.07333 | L122: 20.92 | M122: 1.5340636
B123: 1381 | C123: ARGAMASSA COLANTE AC I PARA CERAMICAS | I123: SINAPI | J123: KG | K123: 0.4725 | L123: 0.7 | M123: 0.33075
B124: 45190 | C124: PISO EM PORCELANATO, RETIFICADO, LISO, MONOCOLOR, ACETINADO OU POLIDO, FORMATO MAIOR QUE 2500 ATE 6400 CM2 | I124: SINAPI | J124: M2 | K124: 0.11 | L124: 60.95 | M124: 6.7045
B125: 34357 | C125: REJUNTE CIMENTICIO, QUALQUER COR | I125: SINAPI | J125: KG | K125: 0.11 | L125: 4.11 | M125: 0.4521
A127: 12 | B127: =VLOOKUP(A127,ORC!$D$77:$N$2069,2,0) -> INSTALAÇÕES HIDRÁULICAS
A128: DAC-12.1 | B128: ADAPTADOR COM FLANGES LIVRES, PVC, SOLDÁVEL, DN 50 MM X 1 1/2", FORNECIMENTO E INSTALAÇÃO | I128: CPU | J128: UN | M128: =SUM(M129:M134) -> 65.494121
B129: 88248 | C129: =IF(I129="SINAPI",VLOOKUP(B129,DADOS_SINAPI,2,0),IF(I129="SETOP",VLOOKUP(B129,DADOS_SETOP,2,0),IF(I129="SICRO",VLOOKUP(B129,DADOS_SICRO,2,0),IF(I129="SUDECAP",VLOOKUP(B129,DADOS_SUDECAP,2,0),IF(I129="COTAÇÃO",VLOOKUP(B129,DADOS_COTACAO,2,0),VLOOKUP(B129,DADOS_COMPOSICAO,2,0)))))) -> AUXILIAR DE ENCANADOR OU BOMBEIRO HIDRÁULICO COM ENCARGOS COMPLEMENTARES | I129: SINAPI | J129: H | K129: 0.2726 | L129: =IF(I129="SINAPI",VLOOKUP(B129,DADOS_SINAPI,4,0),IF(I129="SETOP",VLOOKUP(B129,DADOS_SETOP,4,0),IF(I129="SICRO",VLOOKUP(B129,DADOS_SICRO,4,0),IF(I129="SUDECAP",VLOOKUP(B129,DADOS_SUDECAP,4,0),IF(I129="COTAÇÃO",VLOOKUP(B129,DADOS_COTACAO,12,0),VLOOKUP(B129,DADOS_COMPOSICAO,13,0)))))) -> 22.52 | M129: =L129*K129 -> 6.138952
B130: 88267 | C130: ENCANADOR OU BOMBEIRO HIDRÁULICO COM ENCARGOS COMPLEMENTARES | I130: SINAPI | J130: H | K130: 0.2726 | L130: 27.88 | M130: =L130*K130 -> 7.600088
B131: 73.05.55 | C131: ADAPTADOR SOLDÁVEL CURTO C/FLANGES LIVRES P/CX D´ÁGUA D= 50MM (1 1/2") | I131: SUDECAP | J131: UN | K131: 1 | L131: 49.17 | M131: 49.17
B132: 122 | C132: ADESIVO PLASTICO PARA PVC, FRASCO COM *850* GR | I132: SINAPI | J132: UN | K132: 0.0129 | L132: 61.55 | M132: 0.793995
B133: 38383 | C133: LIXA D'AGUA EM FOLHA, COR PRETA, GRAO 100 | I133: SINAPI | J133: UN | K133: 0.0154 | L133: 3.09 | M133: 0.047586
B134: 20083 | C134: SOLUCAO PREPARADORA / LIMPADORA PARA PVC, FRASCO COM 1000 CM3 | I134: SINAPI | J134: UN | K134: 0.025 | L134: 69.74 | M134: 1.7435
A136: DAC-12.2 | B136: INSTALAÇÃO DA CRUZETA DN 5 MM | I136: CPU | J136: UN | M136: =SUM(M137:M141) -> 16.3573
B137: 88248 | C137: =IF(I137="SINAPI",VLOOKUP(B137,DADOS_SINAPI,2,0),IF(I137="SETOP",VLOOKUP(B137,DADOS_SETOP,2,0),IF(I137="SICRO",VLOOKUP(B137,DADOS_SICRO,2,0),IF(I137="SUDECAP",VLOOKUP(B137,DADOS_SUDECAP,2,0),IF(I137="COTAÇÃO",VLOOKUP(B137,DADOS_COTACAO,2,0),VLOOKUP(B137,DADOS_COMPOSICAO,2,0)))))) -> AUXILIAR DE ENCANADOR OU BOMBEIRO HIDRÁULICO COM ENCARGOS COMPLEMENTARES | I137: SINAPI | J137: H | K137: 0.1694 | L137: =IF(I137="SINAPI",VLOOKUP(B137,DADOS_SINAPI,4,0),IF(I137="SETOP",VLOOKUP(B137,DADOS_SETOP,4,0),IF(I137="SICRO",VLOOKUP(B137,DADOS_SICRO,4,0),IF(I137="SUDECAP",VLOOKUP(B137,DADOS_SUDECAP,4,0),IF(I137="COTAÇÃO",VLOOKUP(B137,DADOS_COTACAO,12,0),VLOOKUP(B137,DADOS_COMPOSICAO,13,0)))))) -> 22.52 | M137: =L137*K137 -> 3.814888
B138: 88267 | C138: ENCANADOR OU BOMBEIRO HIDRÁULICO COM ENCARGOS COMPLEMENTARES | I138: SINAPI | J138: H | K138: 0.1694 | L138: 27.88 | M138: =L138*K138 -> 4.722872
B139: 122 | C139: ADESIVO PLASTICO PARA PVC, FRASCO COM *850* GR | I139: SINAPI | J139: UN | K139: =0.0247*2 -> 0.0494 | L139: 61.55 | M139: 3.04057
B140: 38383 | C140: LIXA D'AGUA EM FOLHA, COR PRETA, GRAO 100 | I140: SINAPI | J140: UN | K140: =0.0285*2 -> 0.057 | L140: 3.09 | M140: 0.17613
B141: 20083 | C141: SOLUCAO PREPARADORA / LIMPADORA PARA PVC, FRASCO COM 1000 CM3 | I141: SINAPI | J141: UN | K141: =0.033*2 -> 0.066 | L141: 69.74 | M141: 4.60284
A143: 13 | B143: =VLOOKUP(A143,ORC!$D$77:$N$2069,2,0) -> INSTALAÇÕES SANITÁRIAS
A144: DAC-13.1 | B144: JOELHO PVC, COM BOLSA E ANEL, 90 GRAUS, DN 40 X *38* MM, SERIE NORMAL, PARA ESGOTO PREDIAL - FORNECIMENTO E INSTALAÇÃO | I144: CPU | J144: UN | M144: =SUM(M145:M148) -> 18.26804
B145: 88248 | C145: =IF(I145="SINAPI",VLOOKUP(B145,DADOS_SINAPI,2,0),IF(I145="SETOP",VLOOKUP(B145,DADOS_SETOP,2,0),IF(I145="SICRO",VLOOKUP(B145,DADOS_SICRO,2,0),IF(I145="SUDECAP",VLOOKUP(B145,DADOS_SUDECAP,2,0),IF(I145="COTAÇÃO",VLOOKUP(B145,DADOS_COTACAO,2,0),VLOOKUP(B145,DADOS_COMPOSICAO,2,0)))))) -> AUXILIAR DE ENCANADOR OU BOMBEIRO HIDRÁULICO COM ENCARGOS COMPLEMENTARES | I145: SINAPI | J145: H | K145: 0.1926 | L145: =IF(I145="SINAPI",VLOOKUP(B145,DADOS_SINAPI,4,0),IF(I145="SETOP",VLOOKUP(B145,DADOS_SETOP,4,0),IF(I145="SICRO",VLOOKUP(B145,DADOS_SICRO,4,0),IF(I145="SUDECAP",VLOOKUP(B145,DADOS_SUDECAP,4,0),IF(I145="COTAÇÃO",VLOOKUP(B145,DADOS_COTACAO,12,0),VLOOKUP(B145,DADOS_COMPOSICAO,13,0)))))) -> 22.52 | M145: =L145*K145 -> 4.337352
B146: 88267 | C146: =IF(I146="SINAPI",VLOOKUP(B146,DADOS_SINAPI,2,0),IF(I146="SETOP",VLOOKUP(B146,DADOS_SETOP,2,0),IF(I146="SICRO",VLOOKUP(B146,DADOS_SICRO,2,0),IF(I146="SUDECAP",VLOOKUP(B146,DADOS_SUDECAP,2,0),IF(I146="COTAÇÃO",VLOOKUP(B146,DADOS_COTACAO,2,0),VLOOKUP(B146,DADOS_COMPOSICAO,2,0)))))) -> ENCANADOR OU BOMBEIRO HIDRÁULICO COM ENCARGOS COMPLEMENTARES | I146: SINAPI | J146: H | K146: 0.1926 | L146: =IF(I146="SINAPI",VLOOKUP(B146,DADOS_SINAPI,4,0),IF(I146="SETOP",VLOOKUP(B146,DADOS_SETOP,4,0),IF(I146="SICRO",VLOOKUP(B146,DADOS_SICRO,4,0),IF(I146="SUDECAP",VLOOKUP(B146,DADOS_SUDECAP,4,0),IF(I146="COTAÇÃO",VLOOKUP(B146,DADOS_COTACAO,12,0),VLOOKUP(B146,DADOS_COMPOSICAO,13,0)))))) -> 27.88 | M146: =L146*K146 -> 5.369688
B147: 10835 | C147: =IF(I147="SINAPI",VLOOKUP(B147,DADOS_SINAPI,2,0),IF(I147="SETOP",VLOOKUP(B147,DADOS_SETOP,2,0),IF(I147="SICRO",VLOOKUP(B147,DADOS_SICRO,2,0),IF(I147="SUDECAP",VLOOKUP(B147,DADOS_SUDECAP,2,0),IF(I147="COTAÇÃO",VLOOKUP(B147,DADOS_COTACAO,2,0),VLOOKUP(B147,DADOS_COMPOSICAO,2,0)))))) -> JOELHO PVC, COM BOLSA E ANEL, 90 GRAUS, DN 40 X *38* MM, SERIE NORMAL, PARA ESGOTO PREDIAL | I147: SINAPI | J147: UN | K147: 1 | L147: =IF(I147="SINAPI",VLOOKUP(B147,DADOS_SINAPI,4,0),IF(I147="SETOP",VLOOKUP(B147,DADOS_SETOP,4,0),IF(I147="SICRO",VLOOKUP(B147,DADOS_SICRO,4,0),IF(I147="SUDECAP",VLOOKUP(B147,DADOS_SUDECAP,4,0),IF(I147="COTAÇÃO",VLOOKUP(B147,DADOS_COTACAO,12,0),VLOOKUP(B147,DADOS_COMPOSICAO,13,0)))))) -> 5.64 | M147: 5.64
B148: 20078 | C148: =IF(I148="SINAPI",VLOOKUP(B148,DADOS_SINAPI,2,0),IF(I148="SETOP",VLOOKUP(B148,DADOS_SETOP,2,0),IF(I148="SICRO",VLOOKUP(B148,DADOS_SICRO,2,0),IF(I148="SUDECAP",VLOOKUP(B148,DADOS_SUDECAP,2,0),IF(I148="COTAÇÃO",VLOOKUP(B148,DADOS_COTACAO,2,0),VLOOKUP(B148,DADOS_COMPOSICAO,2,0)))))) -> PASTA LUBRIFICANTE PARA TUBOS E CONEXOES COM JUNTA ELASTICA, EMBALAGEM DE *400* GR (USO EM PVC, ACO, POLIETILENO E OUTROS) | I148: SINAPI | J148: UN | K148: 0.115 | L148: =IF(I148="SINAPI",VLOOKUP(B148,DADOS_SINAPI,4,0),IF(I148="SETOP",VLOOKUP(B148,DADOS_SETOP,4,0),IF(I148="SICRO",VLOOKUP(B148,DADOS_SICRO,4,0),IF(I148="SUDECAP",VLOOKUP(B148,DADOS_SUDECAP,4,0),IF(I148="COTAÇÃO",VLOOKUP(B148,DADOS_COTACAO,12,0),VLOOKUP(B148,DADOS_COMPOSICAO,13,0)))))) -> 25.4 | M148: 2.921
A150: DAC-13.2 | B150: JUNÇÃO SIMPLES, PVC, SERIE NORMAL, ESGOTO PREDIAL, DN 100 X 50 MM, JUNTA ELÁSTICA, FORNECIDO E INSTALADO | I150: CPU | J150: UN | M150: =SUM(M151:M156) -> 45.06734
B151: 88248 | C151: =IF(I151="SINAPI",VLOOKUP(B151,DADOS_SINAPI,2,0),IF(I151="SETOP",VLOOKUP(B151,DADOS_SETOP,2,0),IF(I151="SICRO",VLOOKUP(B151,DADOS_SICRO,2,0),IF(I151="SUDECAP",VLOOKUP(B151,DADOS_SUDECAP,2,0),IF(I151="COTAÇÃO",VLOOKUP(B151,DADOS_COTACAO,2,0),VLOOKUP(B151,DADOS_COMPOSICAO,2,0)))))) -> AUXILIAR DE ENCANADOR OU BOMBEIRO HIDRÁULICO COM ENCARGOS COMPLEMENTARES | I151: SINAPI | J151: H | K151: 0.2896 | L151: =IF(I151="SINAPI",VLOOKUP(B151,DADOS_SINAPI,4,0),IF(I151="SETOP",VLOOKUP(B151,DADOS_SETOP,4,0),IF(I151="SICRO",VLOOKUP(B151,DADOS_SICRO,4,0),IF(I151="SUDECAP",VLOOKUP(B151,DADOS_SUDECAP,4,0),IF(I151="COTAÇÃO",VLOOKUP(B151,DADOS_COTACAO,12,0),VLOOKUP(B151,DADOS_COMPOSICAO,13,0)))))) -> 22.52 | M151: =L151*K151 -> 6.521792
B152: 88267 | C152: ENCANADOR OU BOMBEIRO HIDRÁULICO COM ENCARGOS COMPLEMENTARES | I152: SINAPI | J152: H | K152: 0.2896 | L152: 27.88 | M152: =L152*K152 -> 8.074048
B153: 301 | C153: ANEL BORRACHA PARA TUBO ESGOTO PREDIAL, DN 100 MM (NBR 5688) | I153: SINAPI | J153: UN | K153: 2 | L153: 2.92 | M153: 5.84
B154: 296 | C154: ANEL BORRACHA PARA TUBO ESGOTO PREDIAL, DN 50 MM (NBR 5688) | I154: SINAPI | J154: UN | K154: 1 | L154: 1.65 | M154: 1.65
B155: 3659 | C155: JUNCAO SIMPLES DE REDUCAO, PVC, DN 100 X 50 MM, SERIE NORMAL PARA ESGOTO PREDIAL | I155: SINAPI | J155: UN | K155: 1 | L155: 18.6 | M155: 18.6
B156: 20078 | C156: PASTA LUBRIFICANTE PARA TUBOS E CONEXOES COM JUNTA ELASTICA, EMBALAGEM DE *400* GR (USO EM PVC, ACO, POLIETILENO E OUTROS) | I156: SINAPI | J156: UN | K156: 0.1725 | L156: 25.4 | M156: 4.3815
A158: DAC-13.3 | B158: JUNÇÃO SIMPLES, PVC, SERIE NORMAL, ESGOTO PREDIAL, DN 100 X 75 MM, JUNTA ELÁSTICA, FORNECIDO E INSTALADO | I158: CPU | J158: UN | M158: =SUM(M159:M164) -> 51.28734
B159: 88248 | C159: =IF(I159="SINAPI",VLOOKUP(B159,DADOS_SINAPI,2,0),IF(I159="SETOP",VLOOKUP(B159,DADOS_SETOP,2,0),IF(I159="SICRO",VLOOKUP(B159,DADOS_SICRO,2,0),IF(I159="SUDECAP",VLOOKUP(B159,DADOS_SUDECAP,2,0),IF(I159="COTAÇÃO",VLOOKUP(B159,DADOS_COTACAO,2,0),VLOOKUP(B159,DADOS_COMPOSICAO,2,0)))))) -> AUXILIAR DE ENCANADOR OU BOMBEIRO HIDRÁULICO COM ENCARGOS COMPLEMENTARES | I159: SINAPI | J159: H | K159: 0.2896 | L159: =IF(I159="SINAPI",VLOOKUP(B159,DADOS_SINAPI,4,0),IF(I159="SETOP",VLOOKUP(B159,DADOS_SETOP,4,0),IF(I159="SICRO",VLOOKUP(B159,DADOS_SICRO,4,0),IF(I159="SUDECAP",VLOOKUP(B159,DADOS_SUDECAP,4,0),IF(I159="COTAÇÃO",VLOOKUP(B159,DADOS_COTACAO,12,0),VLOOKUP(B159,DADOS_COMPOSICAO,13,0)))))) -> 22.52 | M159: =L159*K159 -> 6.521792
B160: 88267 | C160: ENCANADOR OU BOMBEIRO HIDRÁULICO COM ENCARGOS COMPLEMENTARES | I160: SINAPI | J160: H | K160: 0.2896 | L160: 27.88 | M160: =L160*K160 -> 8.074048
B161: 301 | C161: ANEL BORRACHA PARA TUBO ESGOTO PREDIAL, DN 100 MM (NBR 5688) | I161: SINAPI | J161: UN | K161: 2 | L161: 2.92 | M161: 5.84
B162: 297 | C162: ANEL BORRACHA PARA TUBO ESGOTO PREDIAL, DN 75 MM (NBR 5688) | I162: SINAPI | J162: UN | K162: 1 | L162: 2.42 | M162: 2.42
B163: 3660 | C163: JUNCAO SIMPLES DE REDUCAO, PVC, DN 100 X 75 MM, SERIE NORMAL PARA ESGOTO PREDIAL | I163: SINAPI | J163: UN | K163: 1 | L163: 24.05 | M163: 24.05
B164: 20078 | C164: PASTA LUBRIFICANTE PARA TUBOS E CONEXOES COM JUNTA ELASTICA, EMBALAGEM DE *400* GR (USO EM PVC, ACO, POLIETILENO E OUTROS) | I164: SINAPI | J164: UN | K164: 0.1725 | L164: 25.4 | M164: 4.3815
A166: DAC-13.4 | B166: JUNÇÃO SIMPLES, PVC, SERIE NORMAL, ESGOTO PREDIAL, DN 75 X 50 MM, JUNTA ELÁSTICA, FORNECIDO E INSTALADO | I166: CPU | J166: UN | M166: =SUM(M167:M172) -> 61.51734
B167: 88248 | C167: =IF(I167="SINAPI",VLOOKUP(B167,DADOS_SINAPI,2,0),IF(I167="SETOP",VLOOKUP(B167,DADOS_SETOP,2,0),IF(I167="SICRO",VLOOKUP(B167,DADOS_SICRO,2,0),IF(I167="SUDECAP",VLOOKUP(B167,DADOS_SUDECAP,2,0),IF(I167="COTAÇÃO",VLOOKUP(B167,DADOS_COTACAO,2,0),VLOOKUP(B167,DADOS_COMPOSICAO,2,0)))))) -> AUXILIAR DE ENCANADOR OU BOMBEIRO HIDRÁULICO COM ENCARGOS COMPLEMENTARES | I167: SINAPI | J167: H | K167: 0.2896 | L167: =IF(I167="SINAPI",VLOOKUP(B167,DADOS_SINAPI,4,0),IF(I167="SETOP",VLOOKUP(B167,DADOS_SETOP,4,0),IF(I167="SICRO",VLOOKUP(B167,DADOS_SICRO,4,0),IF(I167="SUDECAP",VLOOKUP(B167,DADOS_SUDECAP,4,0),IF(I167="COTAÇÃO",VLOOKUP(B167,DADOS_COTACAO,12,0),VLOOKUP(B167,DADOS_COMPOSICAO,13,0)))))) -> 22.52 | M167: =L167*K167 -> 6.521792
B168: 88267 | C168: ENCANADOR OU BOMBEIRO HIDRÁULICO COM ENCARGOS COMPLEMENTARES | I168: SINAPI | J168: H | K168: 0.2896 | L168: 27.88 | M168: =L168*K168 -> 8.074048
B169: 297 | C169: ANEL BORRACHA PARA TUBO ESGOTO PREDIAL, DN 75 MM (NBR 5688) | I169: SINAPI | J169: UN | K169: 2 | L169: 2.42 | M169: 4.84
B170: 296 | C170: ANEL BORRACHA PARA TUBO ESGOTO PREDIAL, DN 50 MM (NBR 5688) | I170: SINAPI | J170: UN | K170: 1 | L170: 1.65 | M170: 1.65
B171: COT-SAN-001 | C171: JUNÇÃO SIMPLES, PVC, SERIE NORMAL, ESGOTO PREDIAL, DN 75 X 50 MM, JUNTA ELÁSTICA | I171: COTAÇÃO | J171: UN | K171: 1 | L171: 36.05 | M171: 36.05
B172: 20078 | C172: PASTA LUBRIFICANTE PARA TUBOS E CONEXOES COM JUNTA ELASTICA, EMBALAGEM DE *400* GR (USO EM PVC, ACO, POLIETILENO E OUTROS) | I172: SINAPI | J172: UN | K172: 0.1725 | L172: 25.4 | M172: 4.3815
A174: 14 | B174: =VLOOKUP(A174,ORC!$D$77:$N$2069,2,0) -> LOUÇAS E METAIS
A175: DAC-14.1 | B175: BANCADA EM AÇO INOX COM RODABANCA | I175: CPU | J175: M2 | M175: =SUM(M176:M178) -> 2091.4559
B176: 88309 | C176: =IF(I176="SINAPI",VLOOKUP(B176,DADOS_SINAPI,2,0),IF(I176="SETOP",VLOOKUP(B176,DADOS_SETOP,2,0),IF(I176="SICRO",VLOOKUP(B176,DADOS_SICRO,2,0),IF(I176="SUDECAP",VLOOKUP(B176,DADOS_SUDECAP,2,0),IF(I176="COTAÇÃO",VLOOKUP(B176,DADOS_COTACAO,2,0),VLOOKUP(B176,DADOS_COMPOSICAO,2,0)))))) -> PEDREIRO COM ENCARGOS COMPLEMENTARES | I176: SINAPI | J176: =IF(I176="SINAPI",VLOOKUP(B176,DADOS_SINAPI,3,0),IF(I176="SETOP",VLOOKUP(B176,DADOS_SETOP,3,0),IF(I176="SICRO",VLOOKUP(B176,DADOS_SICRO,3,0),IF(I176="SUDECAP",VLOOKUP(B176,DADOS_SUDECAP,3,0),IF(I176="COTAÇÃO",VLOOKUP(B176,DADOS_COTACAO,9,0),VLOOKUP(B176,DADOS_COMPOSICAO,10,0)))))) -> H | K176: 6 | L176: =IF(I176="SINAPI",VLOOKUP(B176,DADOS_SINAPI,4,0),IF(I176="SETOP",VLOOKUP(B176,DADOS_SETOP,4,0),IF(I176="SICRO",VLOOKUP(B176,DADOS_SICRO,4,0),IF(I176="SUDECAP",VLOOKUP(B176,DADOS_SUDECAP,4,0),IF(I176="COTAÇÃO",VLOOKUP(B176,DADOS_COTACAO,12,0),VLOOKUP(B176,DADOS_COMPOSICAO,13,0)))))) -> 28.6 | M176: =K176*L176 -> 171.6
B177: 88316 | C177: =IF(I177="SINAPI",VLOOKUP(B177,DADOS_SINAPI,2,0),IF(I177="SETOP",VLOOKUP(B177,DADOS_SETOP,2,0),IF(I177="SICRO",VLOOKUP(B177,DADOS_SICRO,2,0),IF(I177="SUDECAP",VLOOKUP(B177,DADOS_SUDECAP,2,0),IF(I177="COTAÇÃO",VLOOKUP(B177,DADOS_COTACAO,2,0),VLOOKUP(B177,DADOS_COMPOSICAO,2,0)))))) -> SERVENTE COM ENCARGOS COMPLEMENTARES | I177: SINAPI | J177: =IF(I177="SINAPI",VLOOKUP(B177,DADOS_SINAPI,3,0),IF(I177="SETOP",VLOOKUP(B177,DADOS_SETOP,3,0),IF(I177="SICRO",VLOOKUP(B177,DADOS_SICRO,3,0),IF(I177="SUDECAP",VLOOKUP(B177,DADOS_SUDECAP,3,0),IF(I177="COTAÇÃO",VLOOKUP(B177,DADOS_COTACAO,9,0),VLOOKUP(B177,DADOS_COMPOSICAO,10,0)))))) -> H | K177: 3.5 | L177: =IF(I177="SINAPI",VLOOKUP(B177,DADOS_SINAPI,4,0),IF(I177="SETOP",VLOOKUP(B177,DADOS_SETOP,4,0),IF(I177="SICRO",VLOOKUP(B177,DADOS_SICRO,4,0),IF(I177="SUDECAP",VLOOKUP(B177,DADOS_SUDECAP,4,0),IF(I177="COTAÇÃO",VLOOKUP(B177,DADOS_COTACAO,12,0),VLOOKUP(B177,DADOS_COMPOSICAO,13,0)))))) -> 20.92 | M177: 73.22
B178: 11687 | C178: =IF(I178="SINAPI",VLOOKUP(B178,DADOS_SINAPI,2,0),IF(I178="SETOP",VLOOKUP(B178,DADOS_SETOP,2,0),IF(I178="SICRO",VLOOKUP(B178,DADOS_SICRO,2,0),IF(I178="SUDECAP",VLOOKUP(B178,DADOS_SUDECAP,2,0),IF(I178="COTAÇÃO",VLOOKUP(B178,DADOS_COTACAO,2,0),VLOOKUP(B178,DADOS_COMPOSICAO,2,0)))))) -> BANCADA/TAMPO ACO INOX (AISI 304), LARGURA 60 CM, COM RODABANCA (NAO INCLUI PES DE APOIO) | I178: SINAPI | J178: =IF(I178="SINAPI",VLOOKUP(B178,DADOS_SINAPI,3,0),IF(I178="SETOP",VLOOKUP(B178,DADOS_SETOP,3,0),IF(I178="SICRO",VLOOKUP(B178,DADOS_SICRO,3,0),IF(I178="SUDECAP",VLOOKUP(B178,DADOS_SUDECAP,3,0),IF(I178="COTAÇÃO",VLOOKUP(B178,DADOS_COTACAO,9,0),VLOOKUP(B178,DADOS_COMPOSICAO,10,0)))))) -> M | K178: 1.67 | L178: =IF(I178="SINAPI",VLOOKUP(B178,DADOS_SINAPI,4,0),IF(I178="SETOP",VLOOKUP(B178,DADOS_SETOP,4,0),IF(I178="SICRO",VLOOKUP(B178,DADOS_SICRO,4,0),IF(I178="SUDECAP",VLOOKUP(B178,DADOS_SUDECAP,4,0),IF(I178="COTAÇÃO",VLOOKUP(B178,DADOS_COTACAO,12,0),VLOOKUP(B178,DADOS_COMPOSICAO,13,0)))))) -> 1105.77 | M178: 1846.6359
A180: 15 | B180: =VLOOKUP(A180,ORC!$D$77:$N$2069,2,0) -> DRENAGEM PLUVIAL
A181: DAC-15.1 | B181: CANALETA DE CONCRETO ARMADO 0,20 X 0,20M - INCLUSIVE GRELHA EM FERRO FUNDIDO | I181: CPU | J181: M | M181: =SUM(M182:M187) -> 307.34676
B182: 93358 | C182: =IF(I182="SINAPI",VLOOKUP(B182,DADOS_SINAPI,2,0),IF(I182="SETOP",VLOOKUP(B182,DADOS_SETOP,2,0),IF(I182="SICRO",VLOOKUP(B182,DADOS_SICRO,2,0),IF(I182="SUDECAP",VLOOKUP(B182,DADOS_SUDECAP,2,0),IF(I182="COTAÇÃO",VLOOKUP(B182,DADOS_COTACAO,2,0),VLOOKUP(B182,DADOS_COMPOSICAO,2,0)))))) -> ESCAVAÇÃO MANUAL DE VALA. AF_09/2024 | I182: SINAPI | J182: =IF(I182="SINAPI",VLOOKUP(B182,DADOS_SINAPI,3,0),IF(I182="SETOP",VLOOKUP(B182,DADOS_SETOP,3,0),IF(I182="SICRO",VLOOKUP(B182,DADOS_SICRO,3,0),IF(I182="SUDECAP",VLOOKUP(B182,DADOS_SUDECAP,3,0),IF(I182="COTAÇÃO",VLOOKUP(B182,DADOS_COTACAO,9,0),VLOOKUP(B182,DADOS_COMPOSICAO,10,0)))))) -> M3 | K182: 0.04 | L182: =IF(I182="SINAPI",VLOOKUP(B182,DADOS_SINAPI,4,0),IF(I182="SETOP",VLOOKUP(B182,DADOS_SETOP,4,0),IF(I182="SICRO",VLOOKUP(B182,DADOS_SICRO,4,0),IF(I182="SUDECAP",VLOOKUP(B182,DADOS_SUDECAP,4,0),IF(I182="COTAÇÃO",VLOOKUP(B182,DADOS_COTACAO,12,0),VLOOKUP(B182,DADOS_COMPOSICAO,13,0)))))) -> 82.75 | M182: =K182*L182 -> 3.31
B183: 94965 | C183: CONCRETO FCK = 25MPA, TRAÇO 1:2,3:2,7 (EM MASSA SECA DE CIMENTO/ AREIA MÉDIA/ BRITA 1) - PREPARO MECÂNICO COM BETONEIRA 400 L. AF_05/2021 | I183: SINAPI | J183: M3 | K183: 0.072 | L183: 525.93 | M183: =K183*L183 -> 37.86696
B184: ED-48298 | C184: CORTE, DOBRA E MONTAGEM DE AÇO CA-50/60, INCLUSIVE ESPAÇADOR | I184: SETOP | J184: Kg | K184: 0.96 | L184: 13.63 | M184: 13.0848
B185: ED-49643 | C185: FÔRMA E DESFORMA DE TÁBUA E SARRAFO, REAPROVEITAMENTO (3X), EXCLUSIVE ESCORAMENTO | I185: SETOP | J185: m2 | K185: 0.7 | L185: 67.63 | M185: 47.341
B186: ED-51093 | C186: APILOAMENTO MANUAL EM FUNDO DE VALA COM SOQUETE, EXCLUSIVE ESCAVAÇÃO | I186: SETOP | J186: m2 | K186: 0.2 | L186: 24.08 | M186: =K186*L186 -> 4.816
B187: 11236 | C187: GRELHA FOFO SIMPLES COM REQUADRO, CARGA MAXIMA 1,5 T, 200 X 1000 MM, E= *15* MM | I187: SINAPI | J187: UN | K187: 1.05 | L187: 191.36 | M187: =K187*L187 -> 200.928
A189: DAC-15.2 | B189: CANALETA DE CONCRETO ARMADO 0,30 X 0,20M - INCLUSIVE GRELHA EM FERRO FUNDIDO | I189: CPU | J189: M | M189: =SUM(M190:M195) -> 446.20464
B190: 93358 | C190: =IF(I190="SINAPI",VLOOKUP(B190,DADOS_SINAPI,2,0),IF(I190="SETOP",VLOOKUP(B190,DADOS_SETOP,2,0),IF(I190="SICRO",VLOOKUP(B190,DADOS_SICRO,2,0),IF(I190="SUDECAP",VLOOKUP(B190,DADOS_SUDECAP,2,0),IF(I190="COTAÇÃO",VLOOKUP(B190,DADOS_COTACAO,2,0),VLOOKUP(B190,DADOS_COMPOSICAO,2,0)))))) -> ESCAVAÇÃO MANUAL DE VALA. AF_09/2024 | I190: SINAPI | J190: =IF(I190="SINAPI",VLOOKUP(B190,DADOS_SINAPI,3,0),IF(I190="SETOP",VLOOKUP(B190,DADOS_SETOP,3,0),IF(I190="SICRO",VLOOKUP(B190,DADOS_SICRO,3,0),IF(I190="SUDECAP",VLOOKUP(B190,DADOS_SUDECAP,3,0),IF(I190="COTAÇÃO",VLOOKUP(B190,DADOS_COTACAO,9,0),VLOOKUP(B190,DADOS_COMPOSICAO,10,0)))))) -> M3 | K190: 0.06 | L190: =IF(I190="SINAPI",VLOOKUP(B190,DADOS_SINAPI,4,0),IF(I190="SETOP",VLOOKUP(B190,DADOS_SETOP,4,0),IF(I190="SICRO",VLOOKUP(B190,DADOS_SICRO,4,0),IF(I190="SUDECAP",VLOOKUP(B190,DADOS_SUDECAP,4,0),IF(I190="COTAÇÃO",VLOOKUP(B190,DADOS_COTACAO,12,0),VLOOKUP(B190,DADOS_COMPOSICAO,13,0)))))) -> 82.75 | M190: =K190*L190 -> 4.965
B191: 94965 | C191: CONCRETO FCK = 25MPA, TRAÇO 1:2,3:2,7 (EM MASSA SECA DE CIMENTO/ AREIA MÉDIA/ BRITA 1) - PREPARO MECÂNICO COM BETONEIRA 400 L. AF_05/2021 | I191: SINAPI | J191: M3 | K191: 0.108 | L191: 525.93 | M191: 56.80044
B192: ED-48298 | C192: CORTE, DOBRA E MONTAGEM DE AÇO CA-50/60, INCLUSIVE ESPAÇADOR | I192: SETOP | J192: Kg | K192: 1.44 | L192: 13.63 | M192: 19.6272
B193: ED-49643 | C193: FÔRMA E DESFORMA DE TÁBUA E SARRAFO, REAPROVEITAMENTO (3X), EXCLUSIVE ESCORAMENTO | I193: SETOP | J193: m2 | K193: 1.05 | L193: 67.63 | M193: 71.0115
B194: ED-51093 | C194: APILOAMENTO MANUAL EM FUNDO DE VALA COM SOQUETE, EXCLUSIVE ESCAVAÇÃO | I194: SETOP | J194: m2 | K194: 0.3 | L194: 24.08 | M194: 7.224
B195: 11245 | C195: GRELHA FOFO SIMPLES COM REQUADRO, CARGA MAXIMA 12,5 T, *300 X 1000* MM, E= *15* MM, AREA ESTACIONAMENTO CARRO PASSEIO | I195: SINAPI | J195: UN | K195: 1.05 | L195: 272.93 | M195: 286.5765
A197: 16 | B197: =VLOOKUP(A197,ORC!$D$77:$N$2069,2,0) -> INSTALAÇÕES DE GÁS
A198: DAC-16.1 | B198: INSTALAÇÃO DO NIPLE DE FERRO GALVANIZADO, COM ROSCA BSP, DE 1/2" | I198: CPU | J198: UN | M198: =SUM(M199:M202) -> 15.49236
B199: 88248 | C199: =IF(I199="SINAPI",VLOOKUP(B199,DADOS_SINAPI,2,0),IF(I199="SETOP",VLOOKUP(B199,DADOS_SETOP,2,0),IF(I199="SICRO",VLOOKUP(B199,DADOS_SICRO,2,0),IF(I199="SUDECAP",VLOOKUP(B199,DADOS_SUDECAP,2,0),IF(I199="COTAÇÃO",VLOOKUP(B199,DADOS_COTACAO,2,0),VLOOKUP(B199,DADOS_COMPOSICAO,2,0)))))) -> AUXILIAR DE ENCANADOR OU BOMBEIRO HIDRÁULICO COM ENCARGOS COMPLEMENTARES | I199: SINAPI | J199: =IF(I199="SINAPI",VLOOKUP(B199,DADOS_SINAPI,3,0),IF(I199="SETOP",VLOOKUP(B199,DADOS_SETOP,3,0),IF(I199="SICRO",VLOOKUP(B199,DADOS_SICRO,3,0),IF(I199="SUDECAP",VLOOKUP(B199,DADOS_SUDECAP,3,0),IF(I199="COTAÇÃO",VLOOKUP(B199,DADOS_COTACAO,9,0),VLOOKUP(B199,DADOS_COMPOSICAO,10,0)))))) -> H | K199: 0.3 | L199: =IF(I199="SINAPI",VLOOKUP(B199,DADOS_SINAPI,4,0),IF(I199="SETOP",VLOOKUP(B199,DADOS_SETOP,4,0),IF(I199="SICRO",VLOOKUP(B199,DADOS_SICRO,4,0),IF(I199="SUDECAP",VLOOKUP(B199,DADOS_SUDECAP,4,0),IF(I199="COTAÇÃO",VLOOKUP(B199,DADOS_COTACAO,12,0),VLOOKUP(B199,DADOS_COMPOSICAO,13,0)))))) -> 22.52 | M199: =K199*L199 -> 6.756
B200: 88267 | C200: ENCANADOR OU BOMBEIRO HIDRÁULICO COM ENCARGOS COMPLEMENTARES | I200: SINAPI | J200: H | K200: 0.301 | L200: 27.88 | M200: 8.39188
B201: 3148 | C201: FITA VEDA ROSCA, EM PTFE, ROLO DE 18 MM X 50 M (L X C) | I201: SINAPI | J201: UN | K201: 0.013 | L201: 14.75 | M201: 0.19175
B202: 7307 | C202: FUNDO ANTICORROSIVO PARA METAIS FERROSOS (ZARCAO) | I202: SINAPI | J202: L | K202: 0.003 | L202: 50.91 | M202: 0.15273
A204: 18 | B204: =VLOOKUP(A204,ORC!$D$77:$N$2069,2,0) -> CABEAMENTO ESTRUTURADO E CFTV
A205: DAC-18.1 | B205: INSTALAÇÃO DE CÂMERA POE | I205: CPU | J205: UN | M205: =SUM(M206:XFD207) -> 52.49
B206: 88247 | C206: =IF(I206="SINAPI",VLOOKUP(B206,DADOS_SINAPI,2,0),IF(I206="SETOP",VLOOKUP(B206,DADOS_SETOP,2,0),IF(I206="SICRO",VLOOKUP(B206,DADOS_SICRO,2,0),IF(I206="SUDECAP",VLOOKUP(B206,DADOS_SUDECAP,2,0),IF(I206="COTAÇÃO",VLOOKUP(B206,DADOS_COTACAO,2,0),VLOOKUP(B206,DADOS_COMPOSICAO,2,0)))))) -> AUXILIAR DE ELETRICISTA COM ENCARGOS COMPLEMENTARES | I206: SINAPI | J206: =IF(I206="SINAPI",VLOOKUP(B206,DADOS_SINAPI,3,0),IF(I206="SETOP",VLOOKUP(B206,DADOS_SETOP,3,0),IF(I206="SICRO",VLOOKUP(B206,DADOS_SICRO,3,0),IF(I206="SUDECAP",VLOOKUP(B206,DADOS_SUDECAP,3,0),IF(I206="COTAÇÃO",VLOOKUP(B206,DADOS_COTACAO,9,0),VLOOKUP(B206,DADOS_COMPOSICAO,10,0)))))) -> H | K206: 1 | L206: =IF(I206="SINAPI",VLOOKUP(B206,DADOS_SINAPI,4,0),IF(I206="SETOP",VLOOKUP(B206,DADOS_SETOP,4,0),IF(I206="SICRO",VLOOKUP(B206,DADOS_SICRO,4,0),IF(I206="SUDECAP",VLOOKUP(B206,DADOS_SUDECAP,4,0),IF(I206="COTAÇÃO",VLOOKUP(B206,DADOS_COTACAO,12,0),VLOOKUP(B206,DADOS_COMPOSICAO,13,0)))))) -> 23.51 | M206: =K206*L206 -> 23.51
B207: 88264 | C207: =IF(I207="SINAPI",VLOOKUP(B207,DADOS_SINAPI,2,0),IF(I207="SETOP",VLOOKUP(B207,DADOS_SETOP,2,0),IF(I207="SICRO",VLOOKUP(B207,DADOS_SICRO,2,0),IF(I207="SUDECAP",VLOOKUP(B207,DADOS_SUDECAP,2,0),IF(I207="COTAÇÃO",VLOOKUP(B207,DADOS_COTACAO,2,0),VLOOKUP(B207,DADOS_COMPOSICAO,2,0)))))) -> ELETRICISTA COM ENCARGOS COMPLEMENTARES | I207: SINAPI | J207: =IF(I207="SINAPI",VLOOKUP(B207,DADOS_SINAPI,3,0),IF(I207="SETOP",VLOOKUP(B207,DADOS_SETOP,3,0),IF(I207="SICRO",VLOOKUP(B207,DADOS_SICRO,3,0),IF(I207="SUDECAP",VLOOKUP(B207,DADOS_SUDECAP,3,0),IF(I207="COTAÇÃO",VLOOKUP(B207,DADOS_COTACAO,9,0),VLOOKUP(B207,DADOS_COMPOSICAO,10,0)))))) -> H | K207: 1 | L207: =IF(I207="SINAPI",VLOOKUP(B207,DADOS_SINAPI,4,0),IF(I207="SETOP",VLOOKUP(B207,DADOS_SETOP,4,0),IF(I207="SICRO",VLOOKUP(B207,DADOS_SICRO,4,0),IF(I207="SUDECAP",VLOOKUP(B207,DADOS_SUDECAP,4,0),IF(I207="COTAÇÃO",VLOOKUP(B207,DADOS_COTACAO,12,0),VLOOKUP(B207,DADOS_COMPOSICAO,13,0)))))) -> 28.98 | M207: 28.98
A210: DAC-18.2 | B210: MONTAGEM DO HACK E COMPONENTES - ACESSÓRIOS DE CABEAMENTO DO HACK | I210: CPU | J210: UN | M210: =SUM(M211:XFD212) -> 3234.32882
B211: 88247 | C211: =IF(I211="SINAPI",VLOOKUP(B211,DADOS_SINAPI,2,0),IF(I211="SETOP",VLOOKUP(B211,DADOS_SETOP,2,0),IF(I211="SICRO",VLOOKUP(B211,DADOS_SICRO,2,0),IF(I211="SUDECAP",VLOOKUP(B211,DADOS_SUDECAP,2,0),IF(I211="COTAÇÃO",VLOOKUP(B211,DADOS_COTACAO,2,0),VLOOKUP(B211,DADOS_COMPOSICAO,2,0)))))) -> AUXILIAR DE ELETRICISTA COM ENCARGOS COMPLEMENTARES | I211: SINAPI | J211: =IF(I211="SINAPI",VLOOKUP(B211,DADOS_SINAPI,3,0),IF(I211="SETOP",VLOOKUP(B211,DADOS_SETOP,3,0),IF(I211="SICRO",VLOOKUP(B211,DADOS_SICRO,3,0),IF(I211="SUDECAP",VLOOKUP(B211,DADOS_SUDECAP,3,0),IF(I211="COTAÇÃO",VLOOKUP(B211,DADOS_COTACAO,9,0),VLOOKUP(B211,DADOS_COMPOSICAO,10,0)))))) -> H | K211: 61.618 | L211: =IF(I211="SINAPI",VLOOKUP(B211,DADOS_SINAPI,4,0),IF(I211="SETOP",VLOOKUP(B211,DADOS_SETOP,4,0),IF(I211="SICRO",VLOOKUP(B211,DADOS_SICRO,4,0),IF(I211="SUDECAP",VLOOKUP(B211,DADOS_SUDECAP,4,0),IF(I211="COTAÇÃO",VLOOKUP(B211,DADOS_COTACAO,12,0),VLOOKUP(B211,DADOS_COMPOSICAO,13,0)))))) -> 23.51 | M211: =K211*L211 -> 1448.63918
B212: 88264 | C212: =IF(I212="SINAPI",VLOOKUP(B212,DADOS_SINAPI,2,0),IF(I212="SETOP",VLOOKUP(B212,DADOS_SETOP,2,0),IF(I212="SICRO",VLOOKUP(B212,DADOS_SICRO,2,0),IF(I212="SUDECAP",VLOOKUP(B212,DADOS_SUDECAP,2,0),IF(I212="COTAÇÃO",VLOOKUP(B212,DADOS_COTACAO,2,0),VLOOKUP(B212,DADOS_COMPOSICAO,2,0)))))) -> ELETRICISTA COM ENCARGOS COMPLEMENTARES | I212: SINAPI | J212: =IF(I212="SINAPI",VLOOKUP(B212,DADOS_SINAPI,3,0),IF(I212="SETOP",VLOOKUP(B212,DADOS_SETOP,3,0),IF(I212="SICRO",VLOOKUP(B212,DADOS_SICRO,3,0),IF(I212="SUDECAP",VLOOKUP(B212,DADOS_SUDECAP,3,0),IF(I212="COTAÇÃO",VLOOKUP(B212,DADOS_COTACAO,9,0),VLOOKUP(B212,DADOS_COMPOSICAO,10,0)))))) -> H | K212: 61.618 | L212: =IF(I212="SINAPI",VLOOKUP(B212,DADOS_SINAPI,4,0),IF(I212="SETOP",VLOOKUP(B212,DADOS_SETOP,4,0),IF(I212="SICRO",VLOOKUP(B212,DADOS_SICRO,4,0),IF(I212="SUDECAP",VLOOKUP(B212,DADOS_SUDECAP,4,0),IF(I212="COTAÇÃO",VLOOKUP(B212,DADOS_COTACAO,12,0),VLOOKUP(B212,DADOS_COMPOSICAO,13,0)))))) -> 28.98 | M212: 1785.68964
A215: 19 | B215: =VLOOKUP(A215,ORC!$D$77:$N$2069,2,0) -> SISTEMA DE PROTEÇÃO CONTRA DESCARGAS ATMOSFÉRICAS
A216: DAC-19.1 | B216: FIXAÇÃO DE SUPORTE PARA BARRA CHATA | I216: CPU | J216: UN | M216: =SUM(M217:XFD219) -> 41.448
B217: =COT!A81 -> COT-SPDA-001 | C217: =IF(I217="SINAPI",VLOOKUP(B217,DADOS_SINAPI,2,0),IF(I217="SETOP",VLOOKUP(B217,DADOS_SETOP,2,0),IF(I217="SICRO",VLOOKUP(B217,DADOS_SICRO,2,0),IF(I217="SUDECAP",VLOOKUP(B217,DADOS_SUDECAP,2,0),IF(I217="COTAÇÃO",VLOOKUP(B217,DADOS_COTACAO,2,0),VLOOKUP(B217,DADOS_COMPOSICAO,2,0)))))) -> SUPORTE DE FIXAÇÃO PARA BARRA CHATA TEL 726 | I217: COTAÇÃO | J217: =IF(I217="SINAPI",VLOOKUP(B217,DADOS_SINAPI,3,0),IF(I217="SETOP",VLOOKUP(B217,DADOS_SETOP,3,0),IF(I217="SICRO",VLOOKUP(B217,DADOS_SICRO,3,0),IF(I217="SUDECAP",VLOOKUP(B217,DADOS_SUDECAP,3,0),IF(I217="COTAÇÃO",VLOOKUP(B217,DADOS_COTACAO,9,0),VLOOKUP(B217,DADOS_COMPOSICAO,10,0)))))) -> UN | K217: 1 | L217: =IF(I217="SINAPI",VLOOKUP(B217,DADOS_SINAPI,4,0),IF(I217="SETOP",VLOOKUP(B217,DADOS_SETOP,4,0),IF(I217="SICRO",VLOOKUP(B217,DADOS_SICRO,4,0),IF(I217="SUDECAP",VLOOKUP(B217,DADOS_SUDECAP,4,0),IF(I217="COTAÇÃO",VLOOKUP(B217,DADOS_COTACAO,12,0),VLOOKUP(B217,DADOS_COMPOSICAO,13,0)))))) -> 30.95 | M217: =K217*L217 -> 30.95
B218: 88247 | C218: =IF(I218="SINAPI",VLOOKUP(B218,DADOS_SINAPI,2,0),IF(I218="SETOP",VLOOKUP(B218,DADOS_SETOP,2,0),IF(I218="SICRO",VLOOKUP(B218,DADOS_SICRO,2,0),IF(I218="SUDECAP",VLOOKUP(B218,DADOS_SUDECAP,2,0),IF(I218="COTAÇÃO",VLOOKUP(B218,DADOS_COTACAO,2,0),VLOOKUP(B218,DADOS_COMPOSICAO,2,0)))))) -> AUXILIAR DE ELETRICISTA COM ENCARGOS COMPLEMENTARES | I218: SINAPI | J218: =IF(I218="SINAPI",VLOOKUP(B218,DADOS_SINAPI,3,0),IF(I218="SETOP",VLOOKUP(B218,DADOS_SETOP,3,0),IF(I218="SICRO",VLOOKUP(B218,DADOS_SICRO,3,0),IF(I218="SUDECAP",VLOOKUP(B218,DADOS_SUDECAP,3,0),IF(I218="COTAÇÃO",VLOOKUP(B218,DADOS_COTACAO,9,0),VLOOKUP(B218,DADOS_COMPOSICAO,10,0)))))) -> H | K218: 0.2 | L218: =IF(I218="SINAPI",VLOOKUP(B218,DADOS_SINAPI,4,0),IF(I218="SETOP",VLOOKUP(B218,DADOS_SETOP,4,0),IF(I218="SICRO",VLOOKUP(B218,DADOS_SICRO,4,0),IF(I218="SUDECAP",VLOOKUP(B218,DADOS_SUDECAP,4,0),IF(I218="COTAÇÃO",VLOOKUP(B218,DADOS_COTACAO,12,0),VLOOKUP(B218,DADOS_COMPOSICAO,13,0)))))) -> 23.51 | M218: 4.702
B219: 88264 | C219: =IF(I219="SINAPI",VLOOKUP(B219,DADOS_SINAPI,2,0),IF(I219="SETOP",VLOOKUP(B219,DADOS_SETOP,2,0),IF(I219="SICRO",VLOOKUP(B219,DADOS_SICRO,2,0),IF(I219="SUDECAP",VLOOKUP(B219,DADOS_SUDECAP,2,0),IF(I219="COTAÇÃO",VLOOKUP(B219,DADOS_COTACAO,2,0),VLOOKUP(B219,DADOS_COMPOSICAO,2,0)))))) -> ELETRICISTA COM ENCARGOS COMPLEMENTARES | I219: SINAPI | J219: =IF(I219="SINAPI",VLOOKUP(B219,DADOS_SINAPI,3,0),IF(I219="SETOP",VLOOKUP(B219,DADOS_SETOP,3,0),IF(I219="SICRO",VLOOKUP(B219,DADOS_SICRO,3,0),IF(I219="SUDECAP",VLOOKUP(B219,DADOS_SUDECAP,3,0),IF(I219="COTAÇÃO",VLOOKUP(B219,DADOS_COTACAO,9,0),VLOOKUP(B219,DADOS_COMPOSICAO,10,0)))))) -> H | K219: 0.2 | L219: =IF(I219="SINAPI",VLOOKUP(B219,DADOS_SINAPI,4,0),IF(I219="SETOP",VLOOKUP(B219,DADOS_SETOP,4,0),IF(I219="SICRO",VLOOKUP(B219,DADOS_SICRO,4,0),IF(I219="SUDECAP",VLOOKUP(B219,DADOS_SUDECAP,4,0),IF(I219="COTAÇÃO",VLOOKUP(B219,DADOS_COTACAO,12,0),VLOOKUP(B219,DADOS_COMPOSICAO,13,0)))))) -> 28.98 | M219: 5.796
A222: 20 | B222: =VLOOKUP(A222,ORC!$D$77:$N$2069,2,0) -> SISTEMA DE PROTEÇÃO CONTRA INCÊNDIO E PÂNICO
A223: DAC-20.1 | B223: FIXAÇÃO DE PLACAS FOTOLUMINESCENTES PARA SINALIZAÇÃO DE EMERGÊNCIA | I223: CPU | J223: UN | M223: =SUM(M224:XFD226) -> 11.0734848
B224: 88309 | C224: =IF(I224="SINAPI",VLOOKUP(B224,DADOS_SINAPI,2,0),IF(I224="SETOP",VLOOKUP(B224,DADOS_SETOP,2,0),IF(I224="SICRO",VLOOKUP(B224,DADOS_SICRO,2,0),IF(I224="SUDECAP",VLOOKUP(B224,DADOS_SUDECAP,2,0),IF(I224="COTAÇÃO",VLOOKUP(B224,DADOS_COTACAO,2,0),VLOOKUP(B224,DADOS_COMPOSICAO,2,0)))))) -> PEDREIRO COM ENCARGOS COMPLEMENTARES | I224: SINAPI | J224: =IF(I224="SINAPI",VLOOKUP(B224,DADOS_SINAPI,3,0),IF(I224="SETOP",VLOOKUP(B224,DADOS_SETOP,3,0),IF(I224="SICRO",VLOOKUP(B224,DADOS_SICRO,3,0),IF(I224="SUDECAP",VLOOKUP(B224,DADOS_SUDECAP,3,0),IF(I224="COTAÇÃO",VLOOKUP(B224,DADOS_COTACAO,9,0),VLOOKUP(B224,DADOS_COMPOSICAO,10,0)))))) -> H | K224: 0.12222 | L224: =IF(I224="SINAPI",VLOOKUP(B224,DADOS_SINAPI,4,0),IF(I224="SETOP",VLOOKUP(B224,DADOS_SETOP,4,0),IF(I224="SICRO",VLOOKUP(B224,DADOS_SICRO,4,0),IF(I224="SUDECAP",VLOOKUP(B224,DADOS_SUDECAP,4,0),IF(I224="COTAÇÃO",VLOOKUP(B224,DADOS_COTACAO,12,0),VLOOKUP(B224,DADOS_COMPOSICAO,13,0)))))) -> 28.6 | M224: =K224*L224 -> 3.495492
B225: 88242 | C225: =IF(I225="SINAPI",VLOOKUP(B225,DADOS_SINAPI,2,0),IF(I225="SETOP",VLOOKUP(B225,DADOS_SETOP,2,0),IF(I225="SICRO",VLOOKUP(B225,DADOS_SICRO,2,0),IF(I225="SUDECAP",VLOOKUP(B225,DADOS_SUDECAP,2,0),IF(I225="COTAÇÃO",VLOOKUP(B225,DADOS_COTACAO,2,0),VLOOKUP(B225,DADOS_COMPOSICAO,2,0)))))) -> AJUDANTE DE PEDREIRO COM ENCARGOS COMPLEMENTARES | I225: SINAPI | J225: =IF(I225="SINAPI",VLOOKUP(B225,DADOS_SINAPI,3,0),IF(I225="SETOP",VLOOKUP(B225,DADOS_SETOP,3,0),IF(I225="SICRO",VLOOKUP(B225,DADOS_SICRO,3,0),IF(I225="SUDECAP",VLOOKUP(B225,DADOS_SUDECAP,3,0),IF(I225="COTAÇÃO",VLOOKUP(B225,DADOS_COTACAO,9,0),VLOOKUP(B225,DADOS_COMPOSICAO,10,0)))))) -> H | K225: 0.24444 | L225: =IF(I225="SINAPI",VLOOKUP(B225,DADOS_SINAPI,4,0),IF(I225="SETOP",VLOOKUP(B225,DADOS_SETOP,4,0),IF(I225="SICRO",VLOOKUP(B225,DADOS_SICRO,4,0),IF(I225="SUDECAP",VLOOKUP(B225,DADOS_SUDECAP,4,0),IF(I225="COTAÇÃO",VLOOKUP(B225,DADOS_COTACAO,12,0),VLOOKUP(B225,DADOS_COMPOSICAO,13,0)))))) -> 23.12 | M225: 5.6514528
B226: 83.41.04 | C226: =IF(I226="SINAPI",VLOOKUP(B226,DADOS_SINAPI,2,0),IF(I226="SETOP",VLOOKUP(B226,DADOS_SETOP,2,0),IF(I226="SICRO",VLOOKUP(B226,DADOS_SICRO,2,0),IF(I226="SUDECAP",VLOOKUP(B226,DADOS_SUDECAP,2,0),IF(I226="COTAÇÃO",VLOOKUP(B226,DADOS_COTACAO,2,0),VLOOKUP(B226,DADOS_COMPOSICAO,2,0)))))) -> FITA DUPLA FACE TRANSFERIVEL VHB12MMX20M UNITARIO 3M OU EQUIVALENTE | I226: SUDECAP | J226: 0 | K226: 0.126 | L226: =IF(I226="SINAPI",VLOOKUP(B226,DADOS_SINAPI,4,0),IF(I226="SETOP",VLOOKUP(B226,DADOS_SETOP,4,0),IF(I226="SICRO",VLOOKUP(B226,DADOS_SICRO,4,0),IF(I226="SUDECAP",VLOOKUP(B226,DADOS_SUDECAP,4,0),IF(I226="COTAÇÃO",VLOOKUP(B226,DADOS_COTACAO,12,0),VLOOKUP(B226,DADOS_COMPOSICAO,13,0)))))) -> 15.29 | M226: 1.92654
A228: DAC-20.2 | B228: INSTALAÇÃO DE EXTINTOR DE INCÊNDIO TIPO PÓ QUÍMICO 4-A:40-B:C, CAPACIDADE 6 KG | I228: CPU | J228: UN | M228: =SUM(M229:M231) -> 13.84
B229: 88267 | C229: =IF(I229="SINAPI",VLOOKUP(B229,DADOS_SINAPI,2,0),IF(I229="SETOP",VLOOKUP(B229,DADOS_SETOP,2,0),IF(I229="SICRO",VLOOKUP(B229,DADOS_SICRO,2,0),IF(I229="SUDECAP",VLOOKUP(B229,DADOS_SUDECAP,2,0),IF(I229="COTAÇÃO",VLOOKUP(B229,DADOS_COTACAO,2,0),VLOOKUP(B229,DADOS_COMPOSICAO,2,0)))))) -> ENCANADOR OU BOMBEIRO HIDRÁULICO COM ENCARGOS COMPLEMENTARES | I229: SINAPI | J229: =IF(I229="SINAPI",VLOOKUP(B229,DADOS_SINAPI,3,0),IF(I229="SETOP",VLOOKUP(B229,DADOS_SETOP,3,0),IF(I229="SICRO",VLOOKUP(B229,DADOS_SICRO,3,0),IF(I229="SUDECAP",VLOOKUP(B229,DADOS_SUDECAP,3,0),IF(I229="COTAÇÃO",VLOOKUP(B229,DADOS_COTACAO,9,0),VLOOKUP(B229,DADOS_COMPOSICAO,10,0)))))) -> H | K229: 0.25 | L229: =IF(I229="SINAPI",VLOOKUP(B229,DADOS_SINAPI,4,0),IF(I229="SETOP",VLOOKUP(B229,DADOS_SETOP,4,0),IF(I229="SICRO",VLOOKUP(B229,DADOS_SICRO,4,0),IF(I229="SUDECAP",VLOOKUP(B229,DADOS_SUDECAP,4,0),IF(I229="COTAÇÃO",VLOOKUP(B229,DADOS_COTACAO,12,0),VLOOKUP(B229,DADOS_COMPOSICAO,13,0)))))) -> 27.88 | M229: =K229*L229 -> 6.97
B230: 88248 | C230: =IF(I230="SINAPI",VLOOKUP(B230,DADOS_SINAPI,2,0),IF(I230="SETOP",VLOOKUP(B230,DADOS_SETOP,2,0),IF(I230="SICRO",VLOOKUP(B230,DADOS_SICRO,2,0),IF(I230="SUDECAP",VLOOKUP(B230,DADOS_SUDECAP,2,0),IF(I230="COTAÇÃO",VLOOKUP(B230,DADOS_COTACAO,2,0),VLOOKUP(B230,DADOS_COMPOSICAO,2,0)))))) -> AUXILIAR DE ENCANADOR OU BOMBEIRO HIDRÁULICO COM ENCARGOS COMPLEMENTARES | I230: SINAPI | J230: =IF(I230="SINAPI",VLOOKUP(B230,DADOS_SINAPI,3,0),IF(I230="SETOP",VLOOKUP(B230,DADOS_SETOP,3,0),IF(I230="SICRO",VLOOKUP(B230,DADOS_SICRO,3,0),IF(I230="SUDECAP",VLOOKUP(B230,DADOS_SUDECAP,3,0),IF(I230="COTAÇÃO",VLOOKUP(B230,DADOS_COTACAO,9,0),VLOOKUP(B230,DADOS_COMPOSICAO,10,0)))))) -> H | K230: 0.25 | L230: =IF(I230="SINAPI",VLOOKUP(B230,DADOS_SINAPI,4,0),IF(I230="SETOP",VLOOKUP(B230,DADOS_SETOP,4,0),IF(I230="SICRO",VLOOKUP(B230,DADOS_SICRO,4,0),IF(I230="SUDECAP",VLOOKUP(B230,DADOS_SUDECAP,4,0),IF(I230="COTAÇÃO",VLOOKUP(B230,DADOS_COTACAO,12,0),VLOOKUP(B230,DADOS_COMPOSICAO,13,0)))))) -> 22.52 | M230: 5.63
B231: 7583 | C231: =IF(I231="SINAPI",VLOOKUP(B231,DADOS_SINAPI,2,0),IF(I231="SETOP",VLOOKUP(B231,DADOS_SETOP,2,0),IF(I231="SICRO",VLOOKUP(B231,DADOS_SICRO,2,0),IF(I231="SUDECAP",VLOOKUP(B231,DADOS_SUDECAP,2,0),IF(I231="COTAÇÃO",VLOOKUP(B231,DADOS_COTACAO,2,0),VLOOKUP(B231,DADOS_COMPOSICAO,2,0)))))) -> BUCHA DE NYLON SEM ABA S8, COM PARAFUSO DE 4,80 X 50 MM EM ACO ZINCADO COM ROSCA SOBERBA, CABECA CHATA E FENDA PHILLIPS | I231: SINAPI | J231: =IF(I231="SINAPI",VLOOKUP(B231,DADOS_SINAPI,3,0),IF(I231="SETOP",VLOOKUP(B231,DADOS_SETOP,3,0),IF(I231="SICRO",VLOOKUP(B231,DADOS_SICRO,3,0),IF(I231="SUDECAP",VLOOKUP(B231,DADOS_SUDECAP,3,0),IF(I231="COTAÇÃO",VLOOKUP(B231,DADOS_COTACAO,9,0),VLOOKUP(B231,DADOS_COMPOSICAO,10,0)))))) -> UN | K231: 2 | L231: =IF(I231="SINAPI",VLOOKUP(B231,DADOS_SINAPI,4,0),IF(I231="SETOP",VLOOKUP(B231,DADOS_SETOP,4,0),IF(I231="SICRO",VLOOKUP(B231,DADOS_SICRO,4,0),IF(I231="SUDECAP",VLOOKUP(B231,DADOS_SUDECAP,4,0),IF(I231="COTAÇÃO",VLOOKUP(B231,DADOS_COTACAO,12,0),VLOOKUP(B231,DADOS_COMPOSICAO,13,0)))))) -> 0.62 | M231: 1.24
A233: DAC-20.3 | B233: PINTURA ACRÍLICA PARA SINALIZAÇÃO HORIZONTAL EM PISO | I233: CPU | J233: UN | M233: =SUM(M234:XFD236) -> 10.473
B234: 88310 | C234: =IF(I234="SINAPI",VLOOKUP(B234,DADOS_SINAPI,2,0),IF(I234="SETOP",VLOOKUP(B234,DADOS_SETOP,2,0),IF(I234="SICRO",VLOOKUP(B234,DADOS_SICRO,2,0),IF(I234="SUDECAP",VLOOKUP(B234,DADOS_SUDECAP,2,0),IF(I234="COTAÇÃO",VLOOKUP(B234,DADOS_COTACAO,2,0),VLOOKUP(B234,DADOS_COMPOSICAO,2,0)))))) -> PINTOR COM ENCARGOS COMPLEMENTARES | I234: SINAPI | J234: =IF(I234="SINAPI",VLOOKUP(B234,DADOS_SINAPI,3,0),IF(I234="SETOP",VLOOKUP(B234,DADOS_SETOP,3,0),IF(I234="SICRO",VLOOKUP(B234,DADOS_SICRO,3,0),IF(I234="SUDECAP",VLOOKUP(B234,DADOS_SUDECAP,3,0),IF(I234="COTAÇÃO",VLOOKUP(B234,DADOS_COTACAO,9,0),VLOOKUP(B234,DADOS_COMPOSICAO,10,0)))))) -> H | K234: 0.3 | L234: =IF(I234="SINAPI",VLOOKUP(B234,DADOS_SINAPI,4,0),IF(I234="SETOP",VLOOKUP(B234,DADOS_SETOP,4,0),IF(I234="SICRO",VLOOKUP(B234,DADOS_SICRO,4,0),IF(I234="SUDECAP",VLOOKUP(B234,DADOS_SUDECAP,4,0),IF(I234="COTAÇÃO",VLOOKUP(B234,DADOS_COTACAO,12,0),VLOOKUP(B234,DADOS_COMPOSICAO,13,0)))))) -> 30.27 | M234: =K234*L234 -> 9.081
B235: 88831 | C235: =IF(I235="SINAPI",VLOOKUP(B235,DADOS_SINAPI,2,0),IF(I235="SETOP",VLOOKUP(B235,DADOS_SETOP,2,0),IF(I235="SICRO",VLOOKUP(B235,DADOS_SICRO,2,0),IF(I235="SUDECAP",VLOOKUP(B235,DADOS_SUDECAP,2,0),IF(I235="COTAÇÃO",VLOOKUP(B235,DADOS_COTACAO,2,0),VLOOKUP(B235,DADOS_COMPOSICAO,2,0)))))) -> BETONEIRA CAPACIDADE NOMINAL DE 400 L, CAPACIDADE DE MISTURA 280 L, MOTOR ELÉTRICO TRIFÁSICO POTÊNCIA DE 2 CV, SEM CARREGADOR - CHI DIURNO. AF_05/2023 | I235: SINAPI | J235: =IF(I235="SINAPI",VLOOKUP(B235,DADOS_SINAPI,3,0),IF(I235="SETOP",VLOOKUP(B235,DADOS_SETOP,3,0),IF(I235="SICRO",VLOOKUP(B235,DADOS_SICRO,3,0),IF(I235="SUDECAP",VLOOKUP(B235,DADOS_SUDECAP,3,0),IF(I235="COTAÇÃO",VLOOKUP(B235,DADOS_COTACAO,9,0),VLOOKUP(B235,DADOS_COMPOSICAO,10,0)))))) -> CHI | K235: 0.3 | L235: =IF(I235="SINAPI",VLOOKUP(B235,DADOS_SINAPI,4,0),IF(I235="SETOP",VLOOKUP(B235,DADOS_SETOP,4,0),IF(I235="SICRO",VLOOKUP(B235,DADOS_SICRO,4,0),IF(I235="SUDECAP",VLOOKUP(B235,DADOS_SUDECAP,4,0),IF(I235="COTAÇÃO",VLOOKUP(B235,DADOS_COTACAO,12,0),VLOOKUP(B235,DADOS_COMPOSICAO,13,0)))))) -> 0.49 | M235: 0.147
B236: 7348 | C236: =IF(I236="SINAPI",VLOOKUP(B236,DADOS_SINAPI,2,0),IF(I236="SETOP",VLOOKUP(B236,DADOS_SETOP,2,0),IF(I236="SICRO",VLOOKUP(B236,DADOS_SICRO,2,0),IF(I236="SUDECAP",VLOOKUP(B236,DADOS_SUDECAP,2,0),IF(I236="COTAÇÃO",VLOOKUP(B236,DADOS_COTACAO,2,0),VLOOKUP(B236,DADOS_COMPOSICAO,2,0)))))) -> TINTA ACRILICA PREMIUM PARA PISO | I236: SINAPI | J236: =IF(I236="SINAPI",VLOOKUP(B236,DADOS_SINAPI,3,0),IF(I236="SETOP",VLOOKUP(B236,DADOS_SETOP,3,0),IF(I236="SICRO",VLOOKUP(B236,DADOS_SICRO,3,0),IF(I236="SUDECAP",VLOOKUP(B236,DADOS_SUDECAP,3,0),IF(I236="COTAÇÃO",VLOOKUP(B236,DADOS_COTACAO,9,0),VLOOKUP(B236,DADOS_COMPOSICAO,10,0)))))) -> L | K236: 0.06 | L236: =IF(I236="SINAPI",VLOOKUP(B236,DADOS_SINAPI,4,0),IF(I236="SETOP",VLOOKUP(B236,DADOS_SETOP,4,0),IF(I236="SICRO",VLOOKUP(B236,DADOS_SICRO,4,0),IF(I236="SUDECAP",VLOOKUP(B236,DADOS_SUDECAP,4,0),IF(I236="COTAÇÃO",VLOOKUP(B236,DADOS_COTACAO,12,0),VLOOKUP(B236,DADOS_COMPOSICAO,13,0)))))) -> 20.75 | M236: 1.245
A238: 21 | B238: =VLOOKUP(A238,ORC!$D$77:$N$2069,2,0) -> ACESSIBILIDADE
A239: DAC-21.1 | B239: PLACA DE SINALIZACAO EM CHAPA DE ALUMINIO COM PINTURA REFLETIVA, E = 2 MM - FORNECIMENTO E INSTALAÇÃO | I239: CPU | J239: M2 | M239: =SUM(M240:M241) -> 1282.778
